{"text_format":"3","workbook":"xlsx","n_sheets":4,"sheets":["Note to Bidders","Price Schedule C2.2 - Valves","Detail Descriptions C2.2","Foreign Currency Schedule"],"not_rendered":{"defined_names":1},"read":"whole","date_system":"1900"}

{"sheet":"Note to Bidders","index":0,"n_rows":19,"n_cols":5,"rows_kept":19,"merged":[[0,0,0,6],[1,0,1,6],[2,0,2,6],[4,0,4,6],[6,1,6,6],[7,1,7,6],[8,1,8,6],[9,1,9,6],[10,1,10,6],[12,0,12,6],[14,0,14,6],[15,1,15,3],[15,4,15,6],[16,1,16,3],[16,4,16,6],[17,1,17,3],[17,4,17,6],[18,1,18,3],[18,4,18,6]]}
["ESKOM HOLDINGS SOC LTD"]
["NOTE TO BIDDERS"]
["Tender Enquiry No: E2979GXPOU - Supply and delivery of various valves and valve components for Peaking Power Stations"]
[]
["📋 IMPORTANT INFORMATION FOR BIDDERS"]
[]
[1,"The material number is the primary reference for each item and must be used in all responses."]
[2,"Bidders are not required to quote on all items and may submit partial offers."]
[3,"Where applicable, bidders may propose equivalent items, which must be clearly indicated in the designated columns."]
[4,"The NEC document aligns with this pricing schedule; however, material numbers shall take precedence for identification purposes."]
[5,"All supporting technical documentation (including datasheets) must be submitted for items quoted."]
[]
["📌 NOTE: Please ensure all Item Numbers, Material Codes, Quantities and Units of Measure are verified against the NEC Schedule and ITT documents before submission."]
[]
["📑 DOCUMENT STRUCTURE"]
["Sheet 1:","Note to Bidders",null,null,"(This page)"]
["Sheet 2:","Price Schedule C2.2 - Valves",null,null,"(Main pricing schedule - complete all yellow fields)"]
["Sheet 3:","Detail Descriptions C2.2",null,null,"(Detailed item descriptions for reference)"]
["Sheet 4:","Foreign Currency Schedule",null,null,"(Complete ONLY if quoting foreign currency components)"]

{"sheet":"Price Schedule C2.2 - Valves","index":1,"n_rows":746,"n_cols":14,"rows_kept":746,"merged":[[0,0,0,13],[1,0,1,13],[2,11,2,12],[3,0,3,6],[4,1,4,3],[4,5,4,6],[5,1,5,3],[5,5,5,6],[6,1,6,3],[6,5,6,6],[7,1,7,3],[7,5,7,10],[8,0,8,10],[9,0,9,10],[734,0,734,13],[735,0,735,13],[738,0,738,13],[742,0,742,13],[743,3,743,4],[744,1,744,4],[745,0,745,4]]}
["ESKOM HOLDINGS SOC LTD"]
["PRICE SCHEDULE - SUPPLIER QUOTATION FORM"]
[{"$nulls":11},"QUOTE SUMMARY"]
["SUPPLIER INFORMATION",{"$nulls":7},"TENDER VALIDITY",null,null,"Total Line Items:",{"$f":"COUNTA(A12:A746)","v":734}]
["Company Name:",{"$nulls":3},"Contact Person:",{"$nulls":3},"Tender Closing Date:",null,null,"Items Quoted (ZAR price):",{"$f":"COUNTIF(J12:J746,\">0\")","v":0}]
["Email:",{"$nulls":3},"Phone:",{"$nulls":3},"Quote Validity Period:","180 days from Tender Closing Date",null,"Equivalent Items Offered:",{"$f":"COUNTIF(G12:G746,\"Equivalent\")","v":0}]
["Quote Reference:",{"$nulls":3},"Quote Date:",{"$nulls":3},"Quote Valid Until:","(Auto-calculates when closing date entered)",null,"Obsolete - Alt Offered:",{"$f":"COUNTIF(G12:G746,\"Obsolete - Alternative Offered\")","v":0}]
["Tender Enquiry No:","E2979GXPOU",null,null,"Description:","The supply and delivery of various valves and valve components on an \"as and when\" required basis for all Peaking Power Stations for a period of five (5) years",{"$nulls":5},"Cannot Supply:",{"$f":"COUNTIF(G12:G746,\"Cannot Supply\")","v":0}]
["⚠️ INSTRUCTIONS: Complete YELLOW fields only. | Column G: Select status (Original/Equivalent/Obsolete - Alternative Offered/Cannot Supply) | Column J: Enter Unit Price in ZAR | Column L: Enter Lead Time in days | Column M: Select Yes/No for Datasheet Submitted | Column N: Add any supplier notes. | For foreign currency items, also complete the 'Foreign Currency Schedule' sheet.",{"$nulls":10},"Datasheets Submitted:",{"$f":"COUNTIF(M12:M746,\"Yes\")","v":0}]
["📌 NOTE: If quoting foreign currency components, you MUST complete the 'Foreign Currency Schedule' sheet. Refer to ITT Annexure F - importers cannot claim profit on foreign goods/services."]
["Item Number","Material","Short Text","Quantity Requested","Unit of Measure","Plant","Equivalent/Obsolete Status","Equivalent Item","Deviations","Unit Price (ZAR)","Total Price (ZAR)","Lead Time (Days)","Datasheet Submitted","Supplier Notes"]
[1,"0023834","VALVE SLND:35 MM;2 WAY;125 VDC;NPT;SS",10,"EA","Acacia Gas Turbine",{"$nulls":4},{"$f":"IF(J12=\"\",\"\",D12*J12)","v":""}]
[2,"0023886","VALVE BTRFLY:WAFER;150 MM;FLANGE;STL;AIR",10,"EA","Port Rex Power Station",{"$nulls":4},""]
[3,"0023887","VALVE BTRFLY:WAFER;150 MM;FLANGE;STL;AIR",10,"EA","Port Rex Power Station",{"$nulls":4},""]
[4,"0023899","VALVE:CONTROL",10,"EA","Port Rex Power Station",{"$nulls":4},""]
[5,"0023900","ASSY:AIR RELEASE VALVE FILTER;42 IN",10,"EA","Acacia Gas Turbine",{"$nulls":4},""]
[6,"0023905","VALVE SLND:25 MM;2 WAY;110 VAC; 120 VDC",10,"EA","Port Rex Power Station",{"$nulls":4},""]
[7,"0023909","VALVE:TEMPERATURE CONTROL;40 MM;150 BAR",10,"EA","Acacia Gas Turbine",{"$nulls":4},""]
[8,"0041833","VALVE:COMPRESSOR;175 MM;PRESSURE;STL",10,"EA","Ingula Pump Storage",{"$nulls":4},""]
[9,"0043039","HEAD CYL:1ST STG VALVE",10,"EA","Palmiet Pumped Storage",{"$nulls":4},""]
[10,"0043262","VALVE:SUCTION;144 MM;COMPRESSION;SS",10,"EA","Drakensberg Pumped Storage",{"$nulls":4},""]
[11,"0043264","VALVE:SUCTION;104 MM;COMPRESSION;SS",10,"EA","Drakensberg Pumped Storage",{"$nulls":4},""]
[12,"0043264","VALVE:SUCTION;104 MM;COMPRESSION;SS",10,"EA","Drakensberg Pumped Storage",{"$nulls":4},""]
[13,"0043264","VALVE:SUCTION;104 MM;COMPRESSION;SS",10,"EA","Drakensberg Pumped Storage",{"$nulls":4},""]
[14,"0043265","VALVE:DISCHARGE;164 MM;COMPRESSION;SS",10,"EA","Drakensberg Pumped Storage",{"$nulls":4},""]
[15,"0062308","VALVE RELF:24 X 12 MM;14.5 KGF/CM;BRS",10,"EA","Palmiet Pumped Storage",{"$nulls":4},""]
[16,"0062309","VALVE SLND:1/4 IN;3 WAY;220 VDC;35;FNPT",10,"EA","Palmiet Pumped Storage",{"$nulls":4},""]
[17,"0062311","VALVE SLND:3/8 IN;2 WAY;220 VDC;0.7/14",5,"EA","Palmiet Pumped Storage",{"$nulls":4},""]
[18,"0062312","VALVE SLND:10 MM;4/2 WAY;250 VAC;315 BAR",10,"EA","Palmiet Pumped Storage",{"$nulls":4},""]
[19,"0062413","VALVE SLND:12 MM;4 WAY;240 - 250 VDC;BRS",10,"EA","Drakensberg Pumped Storage",{"$nulls":4},""]
[20,"0062540","VALVE SLND:220 V",10,"EA","Ingula Pump Storage",{"$nulls":4},""]
[21,"0062654","VALVE GATE:200 MM;SOLID WEDGE;FLANGE;CI",10,"EA","Vanderkloof Hydro Station",{"$nulls":4},""]
[22,"0062790","VALVE SLND:8 MM;2 WAY;120 VAC;150 LB;STL",10,"EA","Port Rex Power Station",{"$nulls":4},""]
[23,"0062793","VALVE SLND:100 MM;2 WAY;110/120 VAC;2.5",10,"EA","Vanderkloof Hydro Station",{"$nulls":4},""]
[24,"0063152","VALVE GATE:3/4 IN;SOLID WEDGE;FLANGE;BRS",10,"EA","Drakensberg Pumped Storage",{"$nulls":4},""]
[25,"0063348","VALVE BALL:3/4 IN;1000 KPA;FEMALE THD",10,"EA","Drakensberg Pumped Storage",{"$nulls":4},""]
[26,"0063385","SEAT:DISC SAFETY VALVE;SQ 0.514 IN",10,"EA","Ingula Pump Storage",{"$nulls":4},""]
[27,"0065786","VALVE GATE:250 MM;FLANGE;250 MM;STL;16",10,"EA","Drakensberg Pumped Storage",{"$nulls":4},""]
[28,"0065917","VALVE RELF:45 X 40 MM;70 BAR;NPT X FNPT",6,"EA","Drakensberg Pumped Storage",{"$nulls":4},""]
[29,"0065928","BALL VLV:16 MM;STL",50,"EA","Ingula Pump Storage",{"$nulls":4},""]
[30,"0066072","VALVE CHECK:PISTON;25 MM;NPT;SS;THD CAP",10,"EA","Drakensberg Pumped Storage",{"$nulls":4},""]
[31,"0066074","VALVE BALL:16 MM;100 BAR;-200 TO 200;STL",10,"EA","Drakensberg Pumped Storage",{"$nulls":4},""]
[32,"0066205","VALVE RELF:60 BAR;MB8-222-2450C60B",10,"EA","Drakensberg Pumped Storage",{"$nulls":4},""]
[33,"0066232","VALVE DIAPH:15 MM;FNPT;CI;RUBBER GR Q",20,"EA","Drakensberg Pumped Storage",{"$nulls":4},""]
[34,"0066529","VALVE CHECK:SWING;400 MM;16 BAR;FLANGE",10,"EA","Drakensberg Pumped Storage",{"$nulls":4},""]
[35,"0066535","VALVE BALL:1/2 IN;40 LB;25 DEG C;FNPT;SS",10,"EA","Drakensberg Pumped Storage",{"$nulls":4},""]
[36,"0068148","VALVE RELF:50 MM;35 KPA;THD;STL;BRS;2-20",10,"EA","Drakensberg Pumped Storage",{"$nulls":4},""]
[37,"0070478","VALVE RELF:50 X 32 MM;600 KPA;-10 TO 14",10,"EA","Drakensberg Pumped Storage",{"$nulls":4},""]
[38,"0071418","VALVE GATE:250 MM;SOLID WEDGE;10 BAR;325",5,"EA","Gariep Hydro Station",{"$nulls":4},""]
[39,"0072012","VALVE BALL:50 MM;6 BAR;FLANGE;STL;LEVER",10,"EA","Drakensberg Pumped Storage",{"$nulls":4},""]
[40,"0072040","VALVE GATE:3 IN;SOLID WEDGE;FLANGE;STL",8,"EA","Drakensberg Pumped Storage",{"$nulls":4},""]
[41,"0072046","VALVE GATE:2-1/2 IN;FLANGE;CS;150 LB",5,"EA","Drakensberg Pumped Storage",{"$nulls":4},""]
[42,"0072057","VALVE GATE:100 MM;FLANGE;CS;150 LB",10,"EA","Drakensberg Pumped Storage",{"$nulls":4},""]
[43,"0072058","VALVE GATE:3/8 IN;SOLID WEDGE;FNPT;STL",10,"EA","Drakensberg Pumped Storage",{"$nulls":4},""]
[44,"0072060","VALVE GLB:10 MM;HANDWHEEL;FNPT;SS FORGED",10,"EA","Drakensberg Pumped Storage",{"$nulls":4},""]
[45,"0072062","VALVE GLB:1/2 IN;HANDWHEEL;FLANGE",10,"EA","Drakensberg Pumped Storage",{"$nulls":4},""]
[46,"0072645","VALVE:HYDRAULIC;3/4 IN",10,"EA","Ingula Pump Storage",{"$nulls":4},""]
[47,"0073053","VALVE BTRFLY:WAFER;75 MM;740 LB;FLANGE",10,"EA","Drakensberg Pumped Storage",{"$nulls":4},""]
[48,"0074427","SEAL RNG:VALVE END;ID 58 MM;OD 62 MM",10,"EA","Port Rex Power Station",{"$nulls":4},""]
[49,"0074956","VALVE BALL:1-1/2 IN;600 LB;BSP;CS;MANUAL",10,"EA","Ankerlig 1 Gas Turbine",{"$nulls":4},""]
[50,"0077118","VALVE RELF:1/4 IN;60 LB;NPT;BRS",10,"EA","Drakensberg Pumped Storage",{"$nulls":4},""]
[51,"0077124","VALVE:DISCHARGE;27 MM;COMPRESSION;STL",10,"EA","Drakensberg Pumped Storage",{"$nulls":4},""]
[52,"0077134","VALVE RELF:1/4 IN;1300 LB;NPT;BRS",10,"EA","Drakensberg Pumped Storage",{"$nulls":4},""]
[53,"0077142","VALVE RELF:1/4 IN;1300 LB;NPT;BRS",10,"EA","Drakensberg Pumped Storage",{"$nulls":4},""]
[54,"0077155","VALVE SLND:10 MM;5 WAY;220 VAC;315 BAR",10,"EA","Drakensberg Pumped Storage",{"$nulls":4},""]
[55,"0077157","VALVE:EXHAUST;15 MM;THD FEMALE;PRESSURE",10,"EA","Drakensberg Pumped Storage",{"$nulls":4},""]
[56,"0077165","VALVE BALL:25 MM;315 LB;FNPT;STL;LEVER",10,"EA","Drakensberg Pumped Storage",{"$nulls":4},""]
[57,"0077169","VALVE GATE:100 MM;SOLID WEDGE;FLANGE;STL",10,"EA","Drakensberg Pumped Storage",{"$nulls":4},""]
[58,"0077200","VALVE:SUCTION;167 MM;COMPRESSION;STL",50,"EA","Drakensberg Pumped Storage",{"$nulls":4},""]
[59,"0077201","VALVE:DISCHARGE;145 MM;COMPRESSION;STL",10,"EA","Drakensberg Pumped Storage",{"$nulls":4},""]
[60,"0077202","VALVE:DISCHARGE;103.7 MM;0-250 DEG C;STL",50,"EA","Drakensberg Pumped Storage",{"$nulls":4},""]
[61,"0077203","VALVE:DISCHARGE;104.4 MM;COMPRESSION;STL",10,"EA","Drakensberg Pumped Storage",{"$nulls":4},""]
[62,"0077242","VALVE ANGL:GLOBE;100 MM;600 LB;FLANGE",10,"EA","Drakensberg Pumped Storage",{"$nulls":4},""]
[63,"0177857","VALVE:CONTROL;38 MM;FLANGE;AIR;CS",5,"EA","Palmiet Pumped Storage",{"$nulls":4},""]
[64,"0178035","VALVE RELF:0523C",10,"EA","Drakensberg Pumped Storage",{"$nulls":4},""]
[65,"0233792","VALVE SLND:DN15;2 WAY;220 VDC;100 BAR;NO",10,"EA","Ankerlig 1 Gas Turbine",{"$nulls":4},{"$f":"IF(J76=\"\",\"\",D76*J76)","v":""}]
[66,"0233792","VALVE SLND:DN15;2 WAY;220 VDC;100 BAR;NO",10,"EA","Gourikwa Gas Turbine",{"$nulls":4},""]
[67,"0233844","VALVE CHECK:CI",10,"EA","Ankerlig 1 Gas Turbine",{"$nulls":4},""]
[68,"0233844","VALVE CHECK:CI",10,"EA","Gourikwa Gas Turbine",{"$nulls":4},""]
[69,"0233849","VALVE BALL:1 IN;40 BAR;BSP;SS;LEVER;SS",10,"EA","Ankerlig 1 Gas Turbine",{"$nulls":4},""]
[70,"0233849","VALVE BALL:1 IN;40 BAR;BSP;SS;LEVER;SS",10,"EA","Gourikwa Gas Turbine",{"$nulls":4},""]
[71,"0233850","VALVE:ISOLATING;NB 4;400 BAR;BSP;1.046",10,"EA","Ankerlig 1 Gas Turbine",{"$nulls":4},""]
[72,"0233850","VALVE:ISOLATING;NB 4;400 BAR;BSP;1.046",10,"EA","Gourikwa Gas Turbine",{"$nulls":4},""]
[73,"0233851","VALVE:BALANCE;3/8 IN;16 BAR;80-100 DEG C",10,"EA","Ankerlig 1 Gas Turbine",{"$nulls":4},""]
[74,"0233851","VALVE:BALANCE;3/8 IN;16 BAR;80-100 DEG C",10,"EA","Gourikwa Gas Turbine",{"$nulls":4},""]
[75,"0233857","VALVE BTRFLY:WAFER;150 MM;PN16;-10 TO 80",10,"EA","Ankerlig 1 Gas Turbine",{"$nulls":4},""]
[76,"0233857","VALVE BTRFLY:WAFER;150 MM;PN16;-10 TO 80",10,"EA","Gourikwa Gas Turbine",{"$nulls":4},""]
[77,"0233859","VALVE:THROTTLE;BOLTED;SCREW DOWN;STL;STL",10,"EA","Ankerlig 1 Gas Turbine",{"$nulls":4},""]
[78,"0233871","VALVE RELF:CAST IRON;210 BAR",10,"EA","Ankerlig 1 Gas Turbine",{"$nulls":4},""]
[79,"0233871","VALVE RELF:CAST IRON;210 BAR",10,"EA","Gourikwa Gas Turbine",{"$nulls":4},""]
[80,"0233872","VALVE RELF:CI",10,"EA","Ankerlig 1 Gas Turbine",{"$nulls":4},""]
[81,"0233872","VALVE RELF:CI",10,"EA","Gourikwa Gas Turbine",{"$nulls":4},""]
[82,"0233891","VALVE BALL:1/4 IN;65;THD;SS;LEVER;1 WAY",10,"EA","Gourikwa Gas Turbine",{"$nulls":4},""]
[83,"0233891","VALVE BALL:1/4 IN;65;THD;SS;LEVER;1 WAY",10,"EA","Ankerlig 1 Gas Turbine",{"$nulls":4},""]
[84,"0233892","VALVE BALL:1/2 IN;65 BAR;THD;SS;LEVER;SS",10,"EA","Ankerlig 1 Gas Turbine",{"$nulls":4},""]
[85,"0233892","VALVE BALL:1/2 IN;65 BAR;THD;SS;LEVER;SS",10,"EA","Gourikwa Gas Turbine",{"$nulls":4},""]
[86,"0233893","VALVE BALL:3/4 IN;40;THD;SS;LEVER;1 WAY",10,"EA","Ankerlig 1 Gas Turbine",{"$nulls":4},""]
[87,"0233893","VALVE BALL:3/4 IN;40;THD;SS;LEVER;1 WAY",10,"EA","Gourikwa Gas Turbine",{"$nulls":4},""]
[88,"0233895","VALVE RELF:3/4 X 1/2 IN;10 BAR;BSP;BRS",10,"EA","Ankerlig 1 Gas Turbine",{"$nulls":4},""]
[89,"0233895","VALVE RELF:3/4 X 1/2 IN;10 BAR;BSP;BRS",10,"EA","Gourikwa Gas Turbine",{"$nulls":4},""]
[90,"0233896","VALVE:THROTTLE;KEY LOCK;STL",10,"EA","Ankerlig 1 Gas Turbine",{"$nulls":4},""]
[91,"0233896","VALVE:THROTTLE;KEY LOCK;STL",10,"EA","Gourikwa Gas Turbine",{"$nulls":4},""]
[92,"0233898","VALVE BALL:2 IN;40 BAR;THD;SS;LEVER;SS",10,"EA","Ankerlig 1 Gas Turbine",{"$nulls":4},""]
[93,"0233898","VALVE BALL:2 IN;40 BAR;THD;SS;LEVER;SS",10,"EA","Gourikwa Gas Turbine",{"$nulls":4},""]
[94,"0233901","VALVE CHECK:NON RETURN;150 MM;10-40 BAR",10,"EA","Ankerlig 1 Gas Turbine",{"$nulls":4},""]
[95,"0233901","VALVE CHECK:NON RETURN;150 MM;10-40 BAR",10,"EA","Gourikwa Gas Turbine",{"$nulls":4},""]
[96,"0235772","VALVE:ISOLATING GAUGE;NB 4;PN400;MANUAL",10,"EA","Ankerlig 1 Gas Turbine",{"$nulls":4},""]
[97,"0235772","VALVE:ISOLATING GAUGE;NB 4;PN400;MANUAL",10,"EA","Gourikwa Gas Turbine",{"$nulls":4},""]
[98,"0235774","VALVE:ISOLATING;1 IN;PN40;THD 30 MM;STL",5,"EA","Ankerlig 1 Gas Turbine",{"$nulls":4},""]
[99,"0235781","VALVE CHECK:80;PN16;BRZ;SPRING;1 WAY;SS",10,"EA","Ankerlig 1 Gas Turbine",{"$nulls":4},""]
[100,"0235781","VALVE CHECK:80;PN16;BRZ;SPRING;1 WAY;SS",10,"EA","Gourikwa Gas Turbine",{"$nulls":4},""]
[101,"0235783","VALVE RELF:3/4 IN;130 DEG C;FEMALE THD",10,"EA","Ankerlig 1 Gas Turbine",{"$nulls":4},""]
[102,"0235783","VALVE RELF:3/4 IN;130 DEG C;FEMALE THD",10,"EA","Gourikwa Gas Turbine",{"$nulls":4},""]
[103,"0238889","VALVE:GAGE ISOLATING;4 MM;PN400;MANUAL",5,"EA","Ankerlig 1 Gas Turbine",{"$nulls":4},""]
[104,"0238889","VALVE:GAGE ISOLATING;4 MM;PN400;MANUAL",5,"EA","Gourikwa Gas Turbine",{"$nulls":4},""]
[105,"0239052","VALVE BALL:1/2 IN;16 BAR;THD FEMALE;SS",5,"EA","Ankerlig 1 Gas Turbine",{"$nulls":4},""]
[106,"0239052","VALVE BALL:1/2 IN;16 BAR;THD FEMALE;SS",5,"EA","Gourikwa Gas Turbine",{"$nulls":4},""]
[107,"0239053","VALVE RELF:1 IN;5.6 BAR;THD;CI;PRESSURE",10,"EA","Ankerlig 1 Gas Turbine",{"$nulls":4},""]
[108,"0239053","VALVE RELF:1 IN;5.6 BAR;THD;CI;PRESSURE",10,"EA","Gourikwa Gas Turbine",{"$nulls":4},""]
[109,"0239054","VALVE RELF:1 IN;6 BAR;THD;CI;PRESSURE",10,"EA","Ankerlig 1 Gas Turbine",{"$nulls":4},""]
[110,"0239054","VALVE RELF:1 IN;6 BAR;THD;CI;PRESSURE",10,"EA","Gourikwa Gas Turbine",{"$nulls":4},""]
[111,"0239062","VALVE BALL:150 MM;FLANGE;STL;1 WAY",5,"EA","Ankerlig 1 Gas Turbine",{"$nulls":4},""]
[112,"0239649","VALVE BALL:1/2 IN;16;-20 TO 130 DEG C;50",10,"EA","Ankerlig 1 Gas Turbine",{"$nulls":4},""]
[113,"0239649","VALVE BALL:1/2 IN;16;-20 TO 130 DEG C;50",10,"EA","Gourikwa Gas Turbine",{"$nulls":4},""]
[114,"0239669","VALVE SLND:DN15;2/2 WAY;24 VDC;0-40 BAR",5,"EA","Ankerlig 1 Gas Turbine",{"$nulls":4},""]
[115,"0239669","VALVE SLND:DN15;2/2 WAY;24 VDC;0-40 BAR",10,"EA","Gourikwa Gas Turbine",{"$nulls":4},""]
[116,"0239684","VALVE RELF:1 IN;10 BAR;THD;BRS;BRASS;25",10,"EA","Gourikwa Gas Turbine",{"$nulls":4},""]
[117,"0239684","VALVE RELF:1 IN;10 BAR;THD;BRS;BRASS;25",10,"EA","Ankerlig 1 Gas Turbine",{"$nulls":4},""]
[118,"0239791","VALVE RELF:DN 32, 140 MM;22 BAR;SS;SS",10,"EA","Ankerlig 1 Gas Turbine",{"$nulls":4},""]
[119,"0239791","VALVE RELF:DN 32, 140 MM;22 BAR;SS;SS",10,"EA","Gourikwa Gas Turbine",{"$nulls":4},""]
[120,"0239795","VALVE CHECK:NON RETURN;150 MM;PN40;SS;SS",10,"EA","Ankerlig 1 Gas Turbine",{"$nulls":4},""]
[121,"0239795","VALVE CHECK:NON RETURN;150 MM;PN40;SS;SS",10,"EA","Gourikwa Gas Turbine",{"$nulls":4},""]
[122,"0250048","VALVE CHECK:CENTRIFUGES",10,"EA","Ankerlig 1 Gas Turbine",{"$nulls":4},""]
[123,"0250048","VALVE CHECK:CENTRIFUGES",10,"EA","Gourikwa Gas Turbine",{"$nulls":4},""]
[124,"0250049","VALVE CHECK:CENTRIFUGES",10,"EA","Ankerlig 1 Gas Turbine",{"$nulls":4},""]
[125,"0250049","VALVE CHECK:CENTRIFUGES",10,"EA","Gourikwa Gas Turbine",{"$nulls":4},""]
[126,"0250052","VALVE SLND:3/4 X 1 IN;4/2 WAY;24 VDC;17",10,"EA","Ankerlig 1 Gas Turbine",{"$nulls":4},""]
[127,"0250052","VALVE SLND:3/4 X 1 IN;4/2 WAY;24 VDC;17",10,"EA","Gourikwa Gas Turbine",{"$nulls":4},""]
[128,"0250052","VALVE SLND:3/4 X 1 IN;4/2 WAY;24 VDC;17",15,"EA","Gourikwa Gas Turbine",{"$nulls":4},""]
[129,"0256828","VALVE:LIQUID FUEL METERING;193.5 MM2;345",5,"EA","Acacia Gas Turbine",{"$nulls":4},{"$f":"IF(J140=\"\",\"\",D140*J140)","v":""}]
[130,"0256828","VALVE:LIQUID FUEL METERING;193.5 MM2;345",5,"EA","Port Rex Power Station",{"$nulls":4},""]
[131,"0257026","VALVE BALL:40 MM;100;-10 TO 200 DEG C",10,"EA","Ankerlig 1 Gas Turbine",{"$nulls":4},""]
[132,"0257026","VALVE BALL:40 MM;100;-10 TO 200 DEG C",10,"EA","Gourikwa Gas Turbine",{"$nulls":4},""]
[133,"0257160","VALVE BALL:40 MM;100;-70 TO 300 DEG C;SS",5,"EA","Ankerlig 1 Gas Turbine",{"$nulls":4},""]
[134,"0401291","VALVE BALL:3/4 IN;HANDLE;STOP",5,"EA","Drakensberg Pumped Storage",{"$nulls":4},""]
[135,"0403617","VALVE RELF:LATCO PRESSURE CONTROL;400",5,"EA","Drakensberg Pumped Storage",{"$nulls":4},""]
[136,"0502387","VALVE:COMPRESSOR 3RD STAGE;AUTOMATIC;STL",5,"EA","Drakensberg Pumped Storage",{"$nulls":4},""]
[137,"0502388","VALVE:COMPRESSOR 2ND STAGE;AUTOMATIC;STL",5,"EA","Drakensberg Pumped Storage",{"$nulls":4},""]
[138,"0502396","VALVE:1ST STAGE;164MM X 85 IN;0-250;STL",5,"EA","Drakensberg Pumped Storage",{"$nulls":4},""]
[139,"0553121","VALVE SLND:1/2 IN;220 VDC;0-100 BAR;COIL",20,"EA","Ankerlig 1 Gas Turbine",{"$nulls":4},""]
[140,"0553121","VALVE SLND:1/2 IN;220 VDC;0-100 BAR;COIL",20,"EA","Gourikwa Gas Turbine",{"$nulls":4},""]
[141,"0553122","VALVE:SOLENOID COAXIAL;G10/0;40 BAR;BRS",20,"EA","Ankerlig 1 Gas Turbine",{"$nulls":4},""]
[142,"0553122","VALVE:SOLENOID COAXIAL;G10/0;40 BAR;BRS",20,"EA","Gourikwa Gas Turbine",{"$nulls":4},""]
[143,"0553123","VALVE:SOLONOID COAXIAL;PN40;0-40 BAR;BRS",20,"EA","Ankerlig 1 Gas Turbine",{"$nulls":4},""]
[144,"0553123","VALVE:SOLONOID COAXIAL;PN40;0-40 BAR;BRS",20,"EA","Gourikwa Gas Turbine",{"$nulls":4},""]
[145,"0553124","VALVE:SOLONOID COAXIAL;PN40;0-40 BAR;BRS",20,"EA","Ankerlig 1 Gas Turbine",{"$nulls":4},""]
[146,"0553124","VALVE:SOLONOID COAXIAL;PN40;0-40 BAR;BRS",20,"EA","Gourikwa Gas Turbine",{"$nulls":4},""]
[147,"0553125","VALVE:SOLONOID COAXIAL;NB8 MM;0-150 BAR",20,"EA","Ankerlig 1 Gas Turbine",{"$nulls":4},""]
[148,"0553125","VALVE:SOLONOID COAXIAL;NB8 MM;0-150 BAR",20,"EA","Gourikwa Gas Turbine",{"$nulls":4},""]
[149,"0553126","VALVE:COAXIAL SOLENOID;G11/4; 38 MM;BRS",20,"EA","Ankerlig 1 Gas Turbine",{"$nulls":4},""]
[150,"0553126","VALVE:COAXIAL SOLENOID;G11/4; 38 MM;BRS",20,"EA","Gourikwa Gas Turbine",{"$nulls":4},""]
[151,"0553127","VALVE:SOLENOID COAXIAL;PN100;0-100 BAR",20,"EA","Ankerlig 1 Gas Turbine",{"$nulls":4},""]
[152,"0553127","VALVE:SOLENOID COAXIAL;PN100;0-100 BAR",20,"EA","Gourikwa Gas Turbine",{"$nulls":4},""]
[153,"0553128","VALVE:SOLONOID COAXIAL;G1/2;0-100 BAR",20,"EA","Ankerlig 1 Gas Turbine",{"$nulls":4},""]
[154,"0553128","VALVE:SOLONOID COAXIAL;G1/2;0-100 BAR",20,"EA","Gourikwa Gas Turbine",{"$nulls":4},""]
[155,"0553129","VALVE:INLINE SOLENOID;G1/2 IN-BSPP;184",20,"EA","Ankerlig 1 Gas Turbine",{"$nulls":4},""]
[156,"0553129","VALVE:INLINE SOLENOID;G1/2 IN-BSPP;184",20,"EA","Gourikwa Gas Turbine",{"$nulls":4},""]
[157,"0585702","VALVE SLND:G3/8 IN;2/2 WAY;220 VDC;0-150",10,"EA","Gourikwa Gas Turbine",{"$nulls":4},""]
[158,"0585702","VALVE SLND:G3/8 IN;2/2 WAY;220 VDC;0-150",10,"EA","Ankerlig 1 Gas Turbine",{"$nulls":4},""]
[159,"0588761","VALVE BTRFLY:SWIVEL;400 MM;6 BAR;270;310",10,"EA","Ankerlig 1 Gas Turbine",{"$nulls":4},""]
[160,"0588761","VALVE BTRFLY:SWIVEL;400 MM;6 BAR;270;310",10,"EA","Gourikwa Gas Turbine",{"$nulls":4},""]
[161,"0589427","VALVE RELF:3/4 IN;420 KPA;70 DEG C;BRS",20,"EA","Acacia Gas Turbine",{"$nulls":4},""]
[162,"0589427","VALVE RELF:3/4 IN;420 KPA;70 DEG C;BRS",20,"EA","Port Rex Power Station",{"$nulls":4},""]
[163,"0593549","VALVE BTRFLY:SWIVEL;400 MM;6 BAR;270;310",10,"EA","Gourikwa Gas Turbine",{"$nulls":4},""]
[164,"0593549","VALVE BTRFLY:SWIVEL;400 MM;6 BAR;270;310",10,"EA","Ankerlig 1 Gas Turbine",{"$nulls":4},""]
[165,"0593550","VALVE BTRFLY:SWIVEL;400 MM;6 BAR;270;310",10,"EA","Ankerlig 1 Gas Turbine",{"$nulls":4},""]
[166,"0593550","VALVE BTRFLY:SWIVEL;400 MM;6 BAR;270;310",10,"EA","Gourikwa Gas Turbine",{"$nulls":4},""]
[167,"0593794","KIT:SEAL;CHANGE OVER VALVE HDD 91",10,"EA","Gourikwa Gas Turbine",{"$nulls":4},""]
[168,"0593794","KIT:SEAL;CHANGE OVER VALVE HDD 91",10,"EA","Ankerlig 1 Gas Turbine",{"$nulls":4},""]
[169,"0593797","KIT:SEAL;CHANGE OVER VALVE HDD 170",10,"EA","Gourikwa Gas Turbine",{"$nulls":4},""]
[170,"0593797","KIT:SEAL;CHANGE OVER VALVE HDD 170",10,"EA","Ankerlig 1 Gas Turbine",{"$nulls":4},""]
[171,"0607158","VALVE BALL:40 MM;100 BAR;-10 TO 200;STL",10,"EA","Ankerlig 1 Gas Turbine",{"$nulls":4},""]
[172,"0607158","VALVE BALL:40 MM;100 BAR;-10 TO 200;STL",10,"EA","Gourikwa Gas Turbine",{"$nulls":4},""]
[173,"0612657","VALVE BALL:DN 40;PN100;-10 TO 200 DEG C",10,"EA","Ankerlig 1 Gas Turbine",{"$nulls":4},""]
[174,"0612657","VALVE BALL:DN 40;PN100;-10 TO 200 DEG C",10,"EA","Gourikwa Gas Turbine",{"$nulls":4},""]
[175,"0613732","VALVE:SOL;15 MM;MAX 160 DEG C;130 MM;SS",10,"EA","Ankerlig 1 Gas Turbine",{"$nulls":4},""]
[176,"0613732","VALVE:SOL;15 MM;MAX 160 DEG C;130 MM;SS",10,"EA","Gourikwa Gas Turbine",{"$nulls":4},""]
[177,"0613733","VALVE:SOL;15 MM;MAX 160 DEG C;130 MM;SS",10,"EA","Ankerlig 1 Gas Turbine",{"$nulls":4},""]
[178,"0613733","VALVE:SOL;15 MM;MAX 160 DEG C;130 MM;SS",10,"EA","Gourikwa Gas Turbine",{"$nulls":4},""]
[179,"0613741","VALVE:A2A50005975;NON RETURN,WAFER;54 MM",5,"EA","Ankerlig 1 Gas Turbine",{"$nulls":4},""]
[180,"0613741","VALVE:A2A50005975;NON RETURN,WAFER;54 MM",5,"EA","Gourikwa Gas Turbine",{"$nulls":4},""]
[181,"0619974","VALVE RELF:BK033;1/2 IN;1.5 MPA;120;STL",20,"EA","Ingula Pump Storage",{"$nulls":4},""]
[182,"0619983","VALVE BALL:50 MM;10 KPA;JIS10K;FLANGED",5,"EA","Ingula Pump Storage",{"$nulls":4},""]
[183,"0620183","VALVE GLB:1/2 IN;2.0 MPA;<100 DEG C;150",5,"EA","Ingula Pump Storage",{"$nulls":4},""]
[184,"0620391","VALVE GATE:250 MM;ISOLATING;2-2.8 MPA;SS",5,"EA","Ingula Pump Storage",{"$nulls":4},""]
[185,"0620405","VALVE BALL:200 MM;JIS 10 K;10 K;FLANGE",5,"EA","Ingula Pump Storage",{"$nulls":4},""]
[186,"0620407","VALVE GLB:50 MM;200 MM;HANDWHEEL;FLANGE",5,"EA","Ingula Pump Storage",{"$nulls":4},""]
[187,"0620408","VALVE GLB:2 IN;200 MM;HANDWHEEL;FLANGE",5,"EA","Ingula Pump Storage",{"$nulls":4},""]
[188,"0621484","VALVE BTRFLY:LUG WAFER;150 MM;PN16;0-120",10,"EA","Sere Wind Farm",{"$nulls":4},""]
[189,"0621637","SET:STOP VALVE",10,"EA","Gourikwa Gas Turbine",{"$nulls":4},""]
[190,"0622490","VALVE SLND:DN25;1/2;220 V;PN40;FLANGE",10,"EA","Gourikwa Gas Turbine",{"$nulls":4},""]
[191,"0622490","VALVE SLND:DN25;1/2;220 V;PN40;FLANGE",10,"EA","Ankerlig 1 Gas Turbine",{"$nulls":4},""]
[192,"0622492","VALVE SLND:DN25;2/2;230 V;PN40;FLANGE",10,"EA","Gourikwa Gas Turbine",{"$nulls":4},""]
[193,"0622492","VALVE SLND:DN25;2/2;230 V;PN40;FLANGE",10,"EA","Ankerlig 1 Gas Turbine",{"$nulls":4},{"$f":"IF(J204=\"\",\"\",D204*J204)","v":""}]
[194,"0622742","VALVE:FUEL OIL TRANSFER;G1/2 IN;PN100",10,"EA","Gourikwa Gas Turbine",{"$nulls":4},""]
[195,"0622743","VALVE:FUEL OIL PREMIX;G1/2 IN;PN100;STL",10,"EA","Gourikwa Gas Turbine",{"$nulls":4},""]
[196,"0626656","VALVE CHECK:PG0031832800;HYDRAULIC;G1/2",10,"EA","Gourikwa Gas Turbine",{"$nulls":4},""]
[197,"0626656","VALVE CHECK:PG0031832800;HYDRAULIC;G1/2",10,"EA","Ankerlig 1 Gas Turbine",{"$nulls":4},""]
[198,"0628662","VALVE:4\"707 SD;SAFETY;4 IN;53 BAR;538;PT",10,"EA","Ingula Pump Storage",{"$nulls":4},""]
[199,"0628694","VALVE BALL:50 MM;63 BAR;200 DEG C;SS;140",5,"EA","Ingula Pump Storage",{"$nulls":4},""]
[200,"0628697","VALVE RELF:3/4 IN;47.2 BAR;-10 TO 100;10",5,"EA","Ingula Pump Storage",{"$nulls":4},""]
[201,"0637382","VALVE:CONCENTRIC;OD 225 X THK 30 MM;380",30,"EA","Ingula Pump Storage",{"$nulls":4},""]
[202,"0637420","VALVE BALL:DN 50;PN100;0-30 DEG C;FLANGE",10,"EA","Ingula Pump Storage",{"$nulls":4},""]
[203,"0637421","VALVE BALL:DN 100;PN100;-10 TO 50 DEG C",10,"EA","Ingula Pump Storage",{"$nulls":4},""]
[204,"0637560","VALVE RELF:1 IN;88 BAR;0-50 DEG C;SS;SS",10,"EA","Ingula Pump Storage",{"$nulls":4},""]
[205,"0637562","VALVE RELF:1/2 IN;3 BAR;0-20 DEG C;SS;SS",5,"EA","Ingula Pump Storage",{"$nulls":4},""]
[206,"0638401","VALVE BALL:1/2 IN;PN30;0-200 DEG C;SS;59",5,"EA","Ingula Pump Storage",{"$nulls":4},""]
[207,"0638405","VALVE ANGL:SUPPLY;80 MM;50 BAR;300 DEG C",10,"EA","Ingula Pump Storage",{"$nulls":4},""]
[208,"0640478","VALVE GLB:2 IN;102 BAR;-29 TO 38 DEG C",10,"EA","Drakensberg Pumped Storage",{"$nulls":4},""]
[209,"0640479","VALVE BTRFLY:DRAIN WAFER;DN 32;PN25;33",40,"EA","Drakensberg Pumped Storage",{"$nulls":4},""]
[210,"0642473","VALVE:DIRECTIONAL;8/4 MM;350 BAR;52;49",40,"EA","Ingula Pump Storage",{"$nulls":4},""]
[211,"0643634","VALVE:CONTROL;6 IN;21 BAR;65 DEG C;235",10,"EA","Ankerlig 1 Gas Turbine",{"$nulls":4},""]
[212,"0643634","VALVE:CONTROL;6 IN;21 BAR;65 DEG C;235",10,"EA","Gourikwa Gas Turbine",{"$nulls":4},""]
[213,"0777978","VALVE SLND:MPZWIDC.124 (0065745.002);10",10,"EA","Drakensberg Pumped Storage",{"$nulls":4},""]
[214,"0643976","VALVE BALL:DN 50;PN200;180 DEG C;THD;SS",10,"EA","Ingula Pump Storage",{"$nulls":4},""]
[215,"0643977","VALVE BALL:12 MM;PN500;180 DEG C;18L;SS",10,"EA","Ingula Pump Storage",{"$nulls":4},""]
[216,"0643978","VALVE BALL:1/2 IN;PN500;180 DEG C;THD;SS",5,"EA","Ingula Pump Storage",{"$nulls":4},""]
[217,"0643979","VALVE:SHUT OFF;DN 4;PN250;250 DEG C;105",10,"EA","Ingula Pump Storage",{"$nulls":4},""]
[218,"0644167","VALVE:STOP;DN 50;16 BAR;120 DEG C;150 MM",10,"EA","Ankerlig 1 Gas Turbine",{"$nulls":4},""]
[219,"0644167","VALVE:STOP;DN 50;16 BAR;120 DEG C;150 MM",10,"EA","Gourikwa Gas Turbine",{"$nulls":4},""]
[220,"0644168","VALVE:STOP;DN 40;16 BAR;120 DEG C;140 MM",10,"EA","Ankerlig 1 Gas Turbine",{"$nulls":4},""]
[221,"0644168","VALVE:STOP;DN 40;16 BAR;120 DEG C;140 MM",10,"EA","Gourikwa Gas Turbine",{"$nulls":4},""]
[222,"0644441","VALVE:CONTROL;2 IN;21 BAR;65 DEG C;190",10,"EA","Ankerlig 1 Gas Turbine",{"$nulls":4},""]
[223,"0644441","VALVE:CONTROL;2 IN;21 BAR;65 DEG C;190",10,"EA","Gourikwa Gas Turbine",{"$nulls":4},""]
[224,"0644442","VALVE:CONTROL;3 IN;21 BAR;65 DEG C;155",10,"EA","Ankerlig 1 Gas Turbine",{"$nulls":4},""]
[225,"0644442","VALVE:CONTROL;3 IN;21 BAR;65 DEG C;155",10,"EA","Gourikwa Gas Turbine",{"$nulls":4},""]
[226,"0644443","VALVE:CONTROL;4 IN;21 BAR;65 DEG C;187",10,"EA","Ankerlig 1 Gas Turbine",{"$nulls":4},""]
[227,"0644443","VALVE:CONTROL;4 IN;21 BAR;65 DEG C;187",10,"EA","Gourikwa Gas Turbine",{"$nulls":4},""]
[228,"0644949","VALVE RELF:10 MM;65 BAR;-30 TO 80 DEG C",10,"EA","Ingula Pump Storage",{"$nulls":4},""]
[229,"0644951","VALVE RELF:30 MM;130 BAR;-30 TO 80 DEG C",10,"EA","Ingula Pump Storage",{"$nulls":4},""]
[230,"0644953","VALVE RELF:20 MM;100 BAR;-30 TO 80 DEG C",5,"EA","Ingula Pump Storage",{"$nulls":4},""]
[231,"0647409","VALVE SLND:6 X 4 MM;3/2 WAY;230 VAC;0-10",10,"EA","Ingula Pump Storage",{"$nulls":4},""]
[232,"0647831","VALVE BALL:1 IN;69 BAR;50 DEG C;SS;88 MM",10,"EA","Gourikwa Gas Turbine",{"$nulls":4},""]
[233,"0647831","VALVE BALL:1 IN;69 BAR;50 DEG C;SS;88 MM",10,"EA","Ankerlig 1 Gas Turbine",{"$nulls":4},""]
[234,"0647832","VALVE BALL:1/2 IN;69 BAR;50 DEG C;SS;65",20,"EA","Gourikwa Gas Turbine",{"$nulls":4},""]
[235,"0647833","VALVE BALL:3/4 IN;69;50 DEG C;SS;74 MM",10,"EA","Gourikwa Gas Turbine",{"$nulls":4},""]
[236,"0647833","VALVE BALL:3/4 IN;69;50 DEG C;SS;74 MM",10,"EA","Ankerlig 1 Gas Turbine",{"$nulls":4},""]
[237,"0648284","VALVE:EMERGENCY CLOSING;13 MM;350 BAR",80,"EA","Ingula Pump Storage",{"$nulls":4},""]
[238,"0650143","VALVE SLND:3/4 IN;24 VDC;3 BAR;BSP;BRS",10,"EA","Ankerlig 1 Gas Turbine",{"$nulls":4},""]
[239,"0650143","VALVE SLND:3/4 IN;24 VDC;3 BAR;BSP;BRS",10,"EA","Gourikwa Gas Turbine",{"$nulls":4},""]
[240,"0654743","VALVE BALL:1/2 IN;QUICK STOP",10,"EA","Drakensberg Pumped Storage",{"$nulls":4},""]
[241,"0655228","VALVE RELF:G1/2 IN;365 KPA;-10 TO 220;46",10,"EA","Ingula Pump Storage",{"$nulls":4},""]
[242,"0662552","VALVE CHECK:NON RETURN;80 MM;PN40;50;BW",10,"EA","Drakensberg Pumped Storage",{"$nulls":4},""]
[243,"0662572","VALVE CHECK:NON RETURN;100 MM;PN25;55;BW",10,"EA","Drakensberg Pumped Storage",{"$nulls":4},""]
[244,"0664392","VALVE:PLUG;DN 150;PN64;0-100 DEG C;CS",10,"EA","Palmiet Pumped Storage",{"$nulls":4},""]
[245,"0671840","VALVE SLND:DN15;BLOCK;24 VDC;0.2-16 BAR",10,"EA","Ankerlig 1 Gas Turbine",{"$nulls":4},""]
[246,"0671840","VALVE SLND:DN15;BLOCK;24 VDC;0.2-16 BAR",10,"EA","Gourikwa Gas Turbine",{"$nulls":4},""]
[247,"0671894","VALVE:CHANGE OVER;1-1/2 IN;40-100 BAR",10,"EA","Ankerlig 1 Gas Turbine",{"$nulls":4},""]
[248,"0671894","VALVE:CHANGE OVER;1-1/2 IN;40-100 BAR",10,"EA","Gourikwa Gas Turbine",{"$nulls":4},""]
[249,"0688401","VALVE RELF:100 X 125 MM;25-2400 KPA G;CS",10,"EA","Palmiet Pumped Storage",{"$nulls":4},""]
[250,"0688633","VALVE:KNIFE GATE;450 MM;7 BAR;50 DEG C",10,"EA","Gariep Hydro Station",{"$nulls":4},""]
[251,"0692543","VALVE:033930;NON RETURN;20 MM;-10 TO 100",20,"EA","Ingula Pump Storage",{"$nulls":4},""]
[252,"0692898","VALVE SLND:VS3P-4030-10G HMJ-X;1/2 IN;3",15,"EA","Ingula Pump Storage",{"$nulls":4},""]
[253,"0694573","VALVE SLND:1 IN;1/1;24 VDC;10 BAR;FNPT",20,"EA","Ingula Pump Storage",{"$nulls":4},""]
[254,"0696638","VALVE BTRFLY:CENTERED DISC;3 IN;PN35;BW",10,"EA","Drakensberg Pumped Storage",{"$nulls":4},""]
[255,"0708469","VALVE:DELUGE;3 IN;21 BAR;65 DEG C;WAFER",10,"EA","Ankerlig 1 Gas Turbine",{"$nulls":4},""]
[256,"0708469","VALVE:DELUGE;3 IN;21 BAR;65 DEG C;WAFER",10,"EA","Gourikwa Gas Turbine",{"$nulls":4},""]
[257,"0708473","VALVE:DELUGE;4 IN;21 BAR;65 DEG C;WAFER",10,"EA","Ankerlig 1 Gas Turbine",{"$nulls":4},{"$f":"IF(J268=\"\",\"\",D268*J268)","v":""}]
[258,"0708473","VALVE:DELUGE;4 IN;21 BAR;65 DEG C;WAFER",10,"EA","Gourikwa Gas Turbine",{"$nulls":4},""]
[259,"0713424","VALVE:ISOLATING;G1/2 IN;400 BAR;100 MM",20,"EA","Ankerlig 1 Gas Turbine",{"$nulls":4},""]
[260,"0714976","VALVE PLG:80;PN40;-10 TO 100 CELSIUS;155",10,"EA","Palmiet Pumped Storage",{"$nulls":4},""]
[261,"0715945","VALVE CHECK:NON-RETURN;650 MM;200 DEG C",10,"EA","Ingula Pump Storage",{"$nulls":4},""]
[262,"0726792","VALVE SLND:28 MM;230 VAC;100 BAR;BRS;AIR",10,"EA","Ingula Pump Storage",{"$nulls":4},""]
[263,"0728675","VALVE RELF:1 IN;64 BAR;-30 TO 100 DEG C",10,"EA","Palmiet Pumped Storage",{"$nulls":4},""]
[264,"0731743","VALVE CHECK:SWING DISK NRV;3 IN;PN 16;66",20,"EA","Palmiet Pumped Storage",{"$nulls":4},""]
[265,"0731847","VALVE RELF:G 1/4 IN;11 BAR;-20 TO 200;65",50,"EA","Palmiet Pumped Storage",{"$nulls":4},""]
[266,"0738822","VALVE:INJECTION;6/4 - R 1/2 IN;7-16 BAR",10,"EA","Drakensberg Pumped Storage",{"$nulls":4},""]
[267,"0738824","VALVE:FOOT;20 MM;7-16 BAR;40 DEG",10,"EA","Drakensberg Pumped Storage",{"$nulls":4},""]
[268,"0754488","VALVE SLND:G1/2 Thread ACRE;24 VDC;PN 80",10,"EA","Drakensberg Pumped Storage",{"$nulls":4},""]
[269,"0754499","VALVE CHECK:CHECK VALVE;500 BAR;SS;47.5",10,"EA","Gariep Hydro Station",{"$nulls":4},""]
[270,"0758582","VALVE:NRV;3/8 IN;700 BAR;0 to 80 DEG;SS",10,"EA","Gourikwa Gas Turbine",{"$nulls":4},""]
[271,"0765058","VALVE:RELIEF;25 MM;30 BAR;170 DEG C",20,"EA","Ankerlig 1 Gas Turbine",{"$nulls":4},""]
[272,"0767444","VALVE:PRESSURE RELIEF;1/4 IN;0.3-10 BAR",10,"EA","Palmiet Pumped Storage",{"$nulls":4},""]
[273,"0028911","BELT:VALVE;44411-006B",10,"EA","Palmiet Pumped Storage",{"$nulls":4},""]
[274,"0068400","VALVE CHECK:20 MM;20 BAR;THD FEMALE;BRZ",10,"EA","Palmiet Pumped Storage",{"$nulls":4},""]
[275,"0068955","VALVE CHECK:SWING;280 MM;200 DEG C;BW",10,"EA","Palmiet Pumped Storage",{"$nulls":4},""]
[276,"0515330","MASK:DUST;207 MM;DUST;WITH VALVE",10,"EA","Palmiet Pumped Storage",{"$nulls":4},""]
[277,"0751707","VALVE GATE:DN150 MM;WEDGE;16 BAR;+/- 80",10,"EA","Palmiet Pumped Storage",{"$nulls":4},""]
[278,"0751861","VALVE CHECK:16DMZ;WAFER;400 MM;1600 KPA",10,"EA","Palmiet Pumped Storage",{"$nulls":4},""]
[279,"0762729","VALVE RELF:172 X 90 MM;8  PSI;FLANGE",10,"EA","Palmiet Pumped Storage",{"$nulls":4},""]
[280,"0778355","PROTECTOR:SHUTTER VALVE;80 MM;AL",10,"EA","Palmiet Pumped Storage",{"$nulls":4},""]
[281,"0717459","VALVE:HYDRAULIC;0.5 MM;65 BAR;-10 TO 100",10,"EA","Palmiet Pumped Storage",{"$nulls":4},""]
[282,"0041764","VALVE:UNLOADING",10,"EA","Palmiet Pumped Storage",{"$nulls":4},""]
[283,"0041832","VALVE:COMPRESSOR;280 MM;PRESSURE;STL",10,"EA","Palmiet Pumped Storage",{"$nulls":4},""]
[284,"0041833","VALVE:COMPRESSOR;175 MM;PRESSURE;STL",10,"EA","Palmiet Pumped Storage",{"$nulls":4},""]
[285,"0041834","VALVE:COMPRESSOR;95 MM;PRESSURE;STL",10,"EA","Palmiet Pumped Storage",{"$nulls":4},""]
[286,"0050087","VALVE SLND:15 MM;2 WAY;FNPT;STL;OIL",10,"EA","Palmiet Pumped Storage",{"$nulls":4},""]
[287,"0050088","VALVE SLND:12 MM;4 WAY;FNPT;STL;OIL",10,"EA","Palmiet Pumped Storage",{"$nulls":4},""]
[288,"0050089","VALVE SLND:12 MM;3 WAY;FNPT;STL;OIL",10,"EA","Palmiet Pumped Storage",{"$nulls":4},""]
[289,"0050090","VALVE SLND:15 MM;2 WAY;FNPT;STL;OIL",10,"EA","Palmiet Pumped Storage",{"$nulls":4},""]
[290,"0050092","VALVE SLND:12 MM;4 WAY;FNPT;STL;OIL",10,"EA","Palmiet Pumped Storage",{"$nulls":4},""]
[291,"0069346","VALVE RELF:30 X 15 MM;64 BAR;NPT X FNPT",10,"EA","Palmiet Pumped Storage",{"$nulls":4},""]
[292,"0069359","VALVE PLG:15 MM;FNPT;BRS;HANDWHEEL",10,"EA","Palmiet Pumped Storage",{"$nulls":4},""]
[293,"0142398","CLUTCH:SOLENOID VALVE;19 MM",10,"EA","Palmiet Pumped Storage",{"$nulls":4},""]
[294,"0655128","VALVE BTRFLY:STRAINER;DN50;16 BAR;CI;45",10,"EA","Palmiet Pumped Storage",{"$nulls":4},""]
[295,"0725188","VALVE:AIR VENT;3/4 X 3/8 IN;16 BAR;120",10,"EA","Palmiet Pumped Storage",{"$nulls":4},""]
[296,"0727285","VALVE:FREE FLOATING LEVER AIR VENT;21;93",10,"EA","Palmiet Pumped Storage",{"$nulls":4},""]
[297,"0738906","KIT COMPRSR REPR:SERV;SPHERICAL VALVE",10,"EA","Palmiet Pumped Storage",{"$nulls":4},""]
[298,"0751644","VALVE BALL:12 MM;400 BAR;-10 to +100;100",10,"EA","Palmiet Pumped Storage",{"$nulls":4},""]
[299,"0751649","VALVE BALL:12 MM;400 BAR;-10 to +100;100",10,"EA","Palmiet Pumped Storage",{"$nulls":4},""]
[300,"0783654","VALVE GATE:80 MM;GATE;18 BAR;-120 TO 200",4,"EA","Palmiet Pumped Storage",{"$nulls":4},""]
[301,"0783433","VALVE GATE:150 MM;SOLID WEGDE;64 BAR;447",4,"EA","Palmiet Pumped Storage",{"$nulls":4},""]
[302,"0783757","VALVE DIAPH:A;15 MM;16 BAR;-5 TO 100;64",4,"EA","Palmiet Pumped Storage",{"$nulls":4},""]
[303,"0783432","VALVE GATE:300 MM;63 BAR;-20 to 200;750",4,"EA","Palmiet Pumped Storage",{"$nulls":4},""]
[304,"0783755","VALVE BALL:12 MM;500 BAR;-45 TO 121;80",4,"EA","Palmiet Pumped Storage",{"$nulls":4},""]
[305,"0783664","VALVE:2-WAY;20 MM;420 BAR;-10 TO 80;95",4,"EA","Palmiet Pumped Storage",{"$nulls":4},""]
[306,"0783762","VALVE DIAPH:A;25 MM;16 BAR;-5 TO 100;108",4,"EA","Palmiet Pumped Storage",{"$nulls":4},""]
[307,"0750298","VALVE RELF:G3/4;48.5 BAR;-15 TO 200",4,"EA","Palmiet Pumped Storage",{"$nulls":4},""]
[308,"0783431","VALVE:PLUG;300 MM;50 BAR;-20 to 200;8",4,"EA","Palmiet Pumped Storage",{"$nulls":4},""]
[309,"0783759","VALVE DIAPH:A;50 MM;16 BAR;-5 TO 100;165",4,"EA","Palmiet Pumped Storage",{"$nulls":4},""]
[310,"0765642","VALVE GATE:100 MM;SOLID WEDGE;64 BAR;350",4,"EA","Palmiet Pumped Storage",{"$nulls":4},""]
[311,"0780490","MANIFOLD:2 WAY VALVE MANIFOLD;SS",4,"EA","Palmiet Pumped Storage",{"$nulls":4},""]
[312,"0783419","VALVE GATE:50 MM;GATE VALVE;10 BAR;140",4,"EA","Palmiet Pumped Storage",{"$nulls":4},""]
[313,"0783758","VALVE DIAPH:A;40 MM;16 BAR;-5 TO 100;165",4,"EA","Palmiet Pumped Storage",{"$nulls":4},""]
[314,"0780491","MANIFOLD:3 VALVE DIRECT MOUNT MANIFOLD",4,"EA","Palmiet Pumped Storage",{"$nulls":4},""]
[315,"0783503","VALVE GLB:80 MM;2 - 21 BAR; 82 DEG C;336",4,"EA","Palmiet Pumped Storage",{"$nulls":4},""]
[316,"0683354","FLANGE:DIESEL ENGINE AIR STARTING VALVE",2,"EA","Palmiet Pumped Storage",{"$nulls":4},""]
[317,"0783425","VALVE CHECK:CHECK VALVE;100 MM;40 BAR",4,"EA","Palmiet Pumped Storage",{"$nulls":4},""]
[318,"0783437","VALVE:GLOBE;100 MM;64 BAR;-20 TO 200;430",4,"EA","Palmiet Pumped Storage",{"$nulls":4},""]
[319,"0783422","VALVE GLB:50 MM;40 BAR;-196 to 573 DEG C",4,"EA","Palmiet Pumped Storage",{"$nulls":4},""]
[320,"0783760","VALVE DIAPH:A;80 MM;16 BAR;-5 to 100 DEG",4,"EA","Palmiet Pumped Storage",{"$nulls":4},""]
[321,"0783426","VALVE BALL:80 MM;40 BAR;-40 TO 200 DEG C",4,"EA","Palmiet Pumped Storage",{"$nulls":4},{"$f":"IF(J332=\"\",\"\",D332*J332)","v":""}]
[322,"0783761","VALVE DIAPH:A;20 MM;16 BAR;-5 TO 100;83",4,"EA","Palmiet Pumped Storage",{"$nulls":4},""]
[323,"0783505","VALVE BALL:50 MM;19 BAR;5 - 75 DEG C;WCB",4,"EA","Palmiet Pumped Storage",{"$nulls":4},""]
[324,"0783430","VALVE:GLOBE;100 MM;40 BAR;-20 to 200;340",4,"EA","Palmiet Pumped Storage",{"$nulls":4},""]
[325,"0783427","VALVE:PLUG;40 MM;100 BAR;-20 to 200;8",4,"EA","Palmiet Pumped Storage",{"$nulls":4},""]
[326,"0768522","VALVE GLB:15 MM;10 KG/CM2;180 DEG C;85",4,"EA","Palmiet Pumped Storage",{"$nulls":4},""]
[327,"0783792","VALVE GATE:250 MM;SOLID WEDGE;16 BAR;356",4,"EA","Palmiet Pumped Storage",{"$nulls":4},""]
[328,"0783434","VALVE GATE:300 MM;SOLID WEDGE;25 BAR;345",4,"EA","Palmiet Pumped Storage",{"$nulls":4},""]
[329,"0750300","VALVE RELF:DN 25;16.9 BAR;-15/200 DEG C",4,"EA","Palmiet Pumped Storage",{"$nulls":4},""]
[330,"0783756","VALVE BALL:25 MM;420 BAR;-4 TO 121 DEG",4,"EA","Palmiet Pumped Storage",{"$nulls":4},""]
[331,"0783435","VALVE:PLUG;150 MM;64 BAR;-20 to 200",4,"EA","Palmiet Pumped Storage",{"$nulls":4},""]
[332,"0783423","VALVE GATE:200 MM;GATE VALVE;10 BAR;290",4,"EA","Palmiet Pumped Storage",{"$nulls":4},""]
[333,"0783754","VALVE BALL:06 MM;500 BAR;-20 TO 60 DEG C",4,"EA","Palmiet Pumped Storage",{"$nulls":4},""]
[334,"0783421","VALVE GATE:32 MM;GATE VALVE;10 BAR;120",4,"EA","Palmiet Pumped Storage",{"$nulls":4},""]
[335,"0684520","VALVE:SCREW DOWN NON-RETURN;1 IN;38 BAR",4,"EA","Palmiet Pumped Storage",{"$nulls":4},""]
[336,"0783436","VALVE:GLOBE;65 MM;16 BAR;-20 to 200;288",4,"EA","Palmiet Pumped Storage",{"$nulls":4},""]
[337,"0783424","VALVE GLB:25 MM;40 BAR;-20 TO 120 DEG C",4,"EA","Palmiet Pumped Storage",{"$nulls":4},""]
[338,"0042716","BODY:PILOT VALVE;DIA 15.5 X LG 36.4 MM",5,"EA","Drakensberg Pumped Storage",{"$nulls":4},""]
[339,"0041833","VALVE:COMPRESSOR;175 MM;PRESSURE;STL",5,"EA","Drakensberg Pumped Storage",{"$nulls":4},""]
[340,"0041913","ASSY:PILOT VALVE",5,"EA","Drakensberg Pumped Storage",{"$nulls":4},""]
[341,"0043215","VALVE:68 MM;COMPRESSION;PRESSURE;STL",5,"EA","Drakensberg Pumped Storage",{"$nulls":4},""]
[342,"0043216","VALVE:DISCHARGE;68 MM;COMPRESSION;STL",5,"EA","Drakensberg Pumped Storage",{"$nulls":4},""]
[343,"0043234","KIT COMPRSR REPR:TUNE UP/RING/VALVE",5,"EA","Drakensberg Pumped Storage",{"$nulls":4},""]
[344,"0043262","VALVE:SUCTION;144 MM;COMPRESSION;SS",5,"EA","Drakensberg Pumped Storage",{"$nulls":4},""]
[345,"0043263","VALVE:SUCTION;104 MM;COMPRESSION;STL",5,"EA","Drakensberg Pumped Storage",{"$nulls":4},""]
[346,"0042019","VALVE:10 MM;COMPRESSION;PRESSURE;STL",5,"EA","Drakensberg Pumped Storage",{"$nulls":4},""]
[347,"0042712","CAP:VALVE CAGE;DIA 39 X HT 22 MM;STL",5,"EA","Drakensberg Pumped Storage",{"$nulls":4},""]
[348,"0043264","VALVE:SUCTION;104 MM;COMPRESSION;SS",5,"EA","Drakensberg Pumped Storage",{"$nulls":4},""]
[349,"0043265","VALVE:DISCHARGE;164 MM;COMPRESSION;SS",5,"EA","Drakensberg Pumped Storage",{"$nulls":4},""]
[350,"0043268","VALVE:DISCHARGE;HT303799",5,"EA","Drakensberg Pumped Storage",{"$nulls":4},""]
[351,"0043269","VALVE:SUCTION;35-00",5,"EA","Drakensberg Pumped Storage",{"$nulls":4},""]
[352,"0043270","VALVE:DISCHARGE;HT303800",5,"EA","Drakensberg Pumped Storage",{"$nulls":4},""]
[353,"0043271","VALVE:SUCTION;HT303858",5,"EA","Drakensberg Pumped Storage",{"$nulls":4},""]
[354,"0062413","VALVE SLND:12 MM;4 WAY;240 - 250 VDC;BRS",5,"EA","Drakensberg Pumped Storage",{"$nulls":4},""]
[355,"0044480","CONTROL:PUMP VALVE ASSY",5,"EA","Drakensberg Pumped Storage",{"$nulls":4},""]
[356,"0061543","ADAPTOR:PILOT VALVE;BRS;3W39895",5,"EA","Drakensberg Pumped Storage",{"$nulls":4},""]
[357,"0062540","VALVE SLND:220 V",5,"EA","Drakensberg Pumped Storage",{"$nulls":4},""]
[358,"0062568","VALVE SLND:10 MM;2 WAY;220 VDC;100 BAR",5,"EA","Drakensberg Pumped Storage",{"$nulls":4},""]
[359,"0063087","VALVE SLND:10 MM;5 WAY;STL;DOUBLE ACTING",5,"EA","Drakensberg Pumped Storage",{"$nulls":4},""]
[360,"0063152","VALVE GATE:3/4 IN;SOLID WEDGE;FLANGE;BRS",5,"EA","Drakensberg Pumped Storage",{"$nulls":4},""]
[361,"0065785","VALVE:IMPULSE;15 MM;THD FEMALE;PRESSURE",5,"EA","Drakensberg Pumped Storage",{"$nulls":4},""]
[362,"0065786","VALVE GATE:250 MM;FLANGE;250 MM;STL;16",5,"EA","Drakensberg Pumped Storage",{"$nulls":4},""]
[363,"0063285","VALVE RELF:12 MM;FNPT;STL;SPRING STL",5,"EA","Drakensberg Pumped Storage",{"$nulls":4},""]
[364,"0063348","VALVE BALL:3/4 IN;1000 KPA;FEMALE THD",5,"EA","Drakensberg Pumped Storage",{"$nulls":4},""]
[365,"0063385","SEAT:DISC SAFETY VALVE;SQ 0.514 IN",5,"EA","Drakensberg Pumped Storage",{"$nulls":4},""]
[366,"0063532","VALVE GATE:32 MM;WEDGE;THD;BRASS;175",5,"EA","Drakensberg Pumped Storage",{"$nulls":4},""]
[367,"0065784","VALVE:MAIN CONTROL;100 MM;PRESSURE;STL",5,"EA","Drakensberg Pumped Storage",{"$nulls":4},""]
[368,"0065929","VALVE RELF:25 MM;1015 LB;FNPT;CI",5,"EA","Drakensberg Pumped Storage",{"$nulls":4},""]
[369,"0066050","VALVE GATE:1-1/2 IN;SOLID WEDGE;FNPT",5,"EA","Drakensberg Pumped Storage",{"$nulls":4},""]
[370,"0065807","VALVE:FLOW CONTROL;15 MM;FNPT;PRESSURE",5,"EA","Drakensberg Pumped Storage",{"$nulls":4},""]
[371,"0065808","VALVE GLB:3/4 IN;HANDWHEEL;FLANGE;STL",5,"EA","Drakensberg Pumped Storage",{"$nulls":4},""]
[372,"0066072","VALVE CHECK:PISTON;25 MM;NPT;SS;THD CAP",5,"EA","Drakensberg Pumped Storage",{"$nulls":4},""]
[373,"0065832","VALVE:ISOLATING;65 MM;THD;HANDWHEEL;STL",5,"EA","Drakensberg Pumped Storage",{"$nulls":4},""]
[374,"0065847","VALVE NDL:60 MM;STL;120 MM",5,"EA","Drakensberg Pumped Storage",{"$nulls":4},""]
[375,"0065861","VALVE PLT:5 MM;BRS;MB8-288-1705D",5,"EA","Drakensberg Pumped Storage",{"$nulls":4},""]
[376,"0066073","VALVE RELF:12 MM;400 BAR;FNPT;STL",5,"EA","Drakensberg Pumped Storage",{"$nulls":4},""]
[377,"0065917","VALVE RELF:45 X 40 MM;70 BAR;NPT X FNPT",5,"EA","Drakensberg Pumped Storage",{"$nulls":4},""]
[378,"0066074","VALVE BALL:16 MM;100 BAR;-200 TO 200;STL",5,"EA","Drakensberg Pumped Storage",{"$nulls":4},""]
[379,"0066234","VALVE DIAPH:32 MM;FNPT;CI;RUBBER GR Q",5,"EA","Drakensberg Pumped Storage",{"$nulls":4},""]
[380,"0066076","VALVE NDL:3.5 MM;THD MALE X FEMALE;BRS",5,"EA","Drakensberg Pumped Storage",{"$nulls":4},""]
[381,"0066235","VALVE DIAPH:40 MM;FNPT;CI;RUBBER GR Q",5,"EA","Drakensberg Pumped Storage",{"$nulls":4},""]
[382,"0066236","VALVE DIAPH:50 MM;FNPT;CI;RUBBER GR Q",5,"EA","Drakensberg Pumped Storage",{"$nulls":4},""]
[383,"0066205","VALVE RELF:60 BAR;MB8-222-2450C60B",5,"EA","Drakensberg Pumped Storage",{"$nulls":4},""]
[384,"0066327","VALVE:COMPENSATION;16 MM;SLIP ON;LEVER",5,"EA","Drakensberg Pumped Storage",{"$nulls":4},""]
[385,"0066223","VALVE SLND:25 MM;4 WAY;110/120 VAC;3000",5,"EA","Drakensberg Pumped Storage",{"$nulls":4},{"$f":"IF(J396=\"\",\"\",D396*J396)","v":""}]
[386,"0066232","VALVE DIAPH:15 MM;FNPT;CI;RUBBER GR Q",5,"EA","Drakensberg Pumped Storage",{"$nulls":4},""]
[387,"0066233","VALVE DIAPH:25 MM;FNPT;CI;RUBBER GR Q",5,"EA","Drakensberg Pumped Storage",{"$nulls":4},""]
[388,"0066493","VALVE CHECK:PISTON;12 MM;NPT;STL;THD CAP",5,"EA","Drakensberg Pumped Storage",{"$nulls":4},""]
[389,"0066494","SPOOL:RELIEF VALVE;ID 108 MM;LG 153 MM",5,"EA","Drakensberg Pumped Storage",{"$nulls":4},""]
[390,"0066522","VALVE GATE:400 MM;SOLID WEDGE;FLANGE;STL",5,"EA","Drakensberg Pumped Storage",{"$nulls":4},""]
[391,"0066523","VALVE GATE:300 MM;SOLID WEDGE;FLANGE;100",5,"EA","Drakensberg Pumped Storage",{"$nulls":4},""]
[392,"0066524","VALVE GATE:250 MM;SOLID WEDGE;FLANGE;CS",5,"EA","Drakensberg Pumped Storage",{"$nulls":4},""]
[393,"0066525","VALVE GATE:200 MM;FLANGE;STL CAST",5,"EA","Drakensberg Pumped Storage",{"$nulls":4},""]
[394,"0066530","VALVE:250 MM;CS",5,"EA","Drakensberg Pumped Storage",{"$nulls":4},""]
[395,"0066527","VALVE BTRFLY:WAFER;400 MM;FLANGE;CS;GEAR",5,"EA","Drakensberg Pumped Storage",{"$nulls":4},""]
[396,"0066531","VALVE CHECK:SWING;80 MM;COMPRESSION;CS",5,"EA","Drakensberg Pumped Storage",{"$nulls":4},""]
[397,"0066529","VALVE CHECK:SWING;400 MM;16 BAR;FLANGE",5,"EA","Drakensberg Pumped Storage",{"$nulls":4},""]
[398,"0069572","VALVE GATE:40 MM;FLANGE;HANDWHEEL",5,"EA","Drakensberg Pumped Storage",{"$nulls":4},""]
[399,"0066533","VALVE RELF:200 MM;STL CAST;PRESSURE",5,"EA","Drakensberg Pumped Storage",{"$nulls":4},""]
[400,"0066534","VALVE:DELUGE;150 MM;150 LB;FLANGE;AIR",5,"EA","Drakensberg Pumped Storage",{"$nulls":4},""]
[401,"0066535","VALVE BALL:1/2 IN;40 LB;25 DEG C;FNPT;SS",5,"EA","Drakensberg Pumped Storage",{"$nulls":4},""]
[402,"0066661","VALVE RELF:20 MM;STL;BONNET/SPRING STL",5,"EA","Drakensberg Pumped Storage",{"$nulls":4},""]
[403,"0067279","VALVE BTRFLY:WAFER;65 MM;16 BAR;CLAMP;CI",5,"EA","Drakensberg Pumped Storage",{"$nulls":4},""]
[404,"0068148","VALVE RELF:50 MM;35 KPA;THD;STL;BRS;2-20",5,"EA","Drakensberg Pumped Storage",{"$nulls":4},""]
[405,"0068767","VALVE:CONTROL;12 MM;FNPT;PRESSURE;STL",5,"EA","Drakensberg Pumped Storage",{"$nulls":4},""]
[406,"0068909","ASSY:BFPT DISCHARGE ISOLATOR VALVE BELT",5,"EA","Drakensberg Pumped Storage",{"$nulls":4},""]
[407,"0068910","VALVE GLB:1/2 IN;HANDWHEEL;BW;2500 PSI",5,"EA","Drakensberg Pumped Storage",{"$nulls":4},""]
[408,"0072009","VALVE BALL:16 MM;400 LB;FNPT;STL;LEVER",5,"EA","Drakensberg Pumped Storage",{"$nulls":4},""]
[409,"0070478","VALVE RELF:50 X 32 MM;600 KPA;-10 TO 14",5,"EA","Drakensberg Pumped Storage",{"$nulls":4},""]
[410,"0072010","VALVE BALL:20 MM;315;FNPT;STL;LEVER",5,"EA","Drakensberg Pumped Storage",{"$nulls":4},""]
[411,"0072012","VALVE BALL:50 MM;6 BAR;FLANGE;STL;LEVER",5,"EA","Drakensberg Pumped Storage",{"$nulls":4},""]
[412,"0072002","VALVE BALL:50 MM;100 BAR;FLANGE;STL",5,"EA","Drakensberg Pumped Storage",{"$nulls":4},""]
[413,"0072004","VALVE BALL:40 MM;100;FNPT;STL;LEVER",5,"EA","Drakensberg Pumped Storage",{"$nulls":4},""]
[414,"0072013","VALVE BALL:10 MM;500 LB;FNPT;STL;LEVER",5,"EA","Drakensberg Pumped Storage",{"$nulls":4},""]
[415,"0072006","VALVE BALL:DN 65 MM;PN100;FLANGE",5,"EA","Drakensberg Pumped Storage",{"$nulls":4},""]
[416,"0072007","VALVE BALL:16 MM;400 LB;NPT;STL;LEVER",5,"EA","Drakensberg Pumped Storage",{"$nulls":4},""]
[417,"0072008","VALVE BALL:10 MM;315;NPT;STL;LEVER;4 WAY",5,"EA","Drakensberg Pumped Storage",{"$nulls":4},""]
[418,"0072014","VALVE BALL:20 MM;315;NPT;STL;LEVER;2 WAY",5,"EA","Drakensberg Pumped Storage",{"$nulls":4},""]
[419,"0072026","VALVE RELF:13 MM;240 LB;NPT;BRS",5,"EA","Drakensberg Pumped Storage",{"$nulls":4},""]
[420,"0072016","VALVE BALL:8 MM;500 LB;FNPT;STL;LEVER",5,"EA","Drakensberg Pumped Storage",{"$nulls":4},""]
[421,"0072017","VALVE BALL:6 MM;500 LB;FNPT;STL;LEVER",5,"EA","Drakensberg Pumped Storage",{"$nulls":4},""]
[422,"0072018","VALVE GLB:4 MM;HANDWHEEL;NPT;STL A122",5,"EA","Drakensberg Pumped Storage",{"$nulls":4},""]
[423,"0072020","VALVE CHECK:PISTON;12 MM;FNPT;STL",5,"EA","Drakensberg Pumped Storage",{"$nulls":4},""]
[424,"0072021","VALVE RELF:12 MM;NPT;STL;SPRING STL",5,"EA","Drakensberg Pumped Storage",{"$nulls":4},""]
[425,"0072022","VALVE RELF:12 MM;42 LB;NPT;BRS",5,"EA","Drakensberg Pumped Storage",{"$nulls":4},""]
[426,"0072023","VALVE:DISCHARGE;51 MM;PRESSURE;STL",5,"EA","Drakensberg Pumped Storage",{"$nulls":4},""]
[427,"0072024","VALVE:COMPRESSOR;8 MM;THD FEMALE;STL",5,"EA","Drakensberg Pumped Storage",{"$nulls":4},""]
[428,"0072027","VALVE RELF:13 MM;1160 LB;NPT;BRS",5,"EA","Drakensberg Pumped Storage",{"$nulls":4},""]
[429,"0072029","VALVE:DISCHARGE;34 MM;COMPRESSION;MS",5,"EA","Drakensberg Pumped Storage",{"$nulls":4},""]
[430,"0072030","HOUSING:VALVE;DIA 34 X LG 62 MM;AL",5,"EA","Drakensberg Pumped Storage",{"$nulls":4},""]
[431,"0072031","VALVE:COMPRESSOR;9 MM;THD FEMALE;4 WAY",5,"EA","Drakensberg Pumped Storage",{"$nulls":4},""]
[432,"0072032","VALVE RELF:13 MM;138 BAR;NPT;SS;PRESSURE",5,"EA","Drakensberg Pumped Storage",{"$nulls":4},""]
[433,"0072033","VALVE RELF:12 MM;NPT;SS;SPRING STL",5,"EA","Drakensberg Pumped Storage",{"$nulls":4},""]
[434,"0072034","VALVE RELF:34 MM;FLANGE;CI;SPRING STL",5,"EA","Drakensberg Pumped Storage",{"$nulls":4},""]
[435,"0072035","VALVE RELF:L16",5,"EA","Drakensberg Pumped Storage",{"$nulls":4},""]
[436,"0072036","VALVE CHECK:14 X 12 MM;NPT;BRS;THD CAP",5,"EA","Drakensberg Pumped Storage",{"$nulls":4},""]
[437,"0072037","VALVE:BARE;48 MM;FLANGE;PRESSURE;SS",5,"EA","Drakensberg Pumped Storage",{"$nulls":4},""]
[438,"0072038","VALVE GLB:3 IN;HANDWHEEL;FLANGE;CS;WCB",5,"EA","Drakensberg Pumped Storage",{"$nulls":4},""]
[439,"0072039","VALVE GLB:4 IN;HANDWHEEL;FLANGE;CS;WCB",5,"EA","Drakensberg Pumped Storage",{"$nulls":4},""]
[440,"0072040","VALVE GATE:3 IN;SOLID WEDGE;FLANGE;STL",5,"EA","Drakensberg Pumped Storage",{"$nulls":4},""]
[441,"0072041","VALVE GLB:2 IN;HANDWHEEL;FLANGE;CS;WCB",5,"EA","Drakensberg Pumped Storage",{"$nulls":4},""]
[442,"0072042","VALVE CHECK:2 IN;600 LB;FLANGE;CS",5,"EA","Drakensberg Pumped Storage",{"$nulls":4},""]
[443,"0072043","VALVE GLB:10 MM;HANDWHEEL;FNPT;SEAT 13CR",5,"EA","Drakensberg Pumped Storage",{"$nulls":4},""]
[444,"0072044","VALVE GATE:1/2 IN;WEDGE;THD TAPER FEMALE",5,"EA","Drakensberg Pumped Storage",{"$nulls":4},""]
[445,"0072045","VALVE GLB:4 IN;HANDWHEEL;FLANGE;CS;WCB",5,"EA","Drakensberg Pumped Storage",{"$nulls":4},""]
[446,"0072046","VALVE GATE:2-1/2 IN;FLANGE;CS;150 LB",5,"EA","Drakensberg Pumped Storage",{"$nulls":4},""]
[447,"0072047","VALVE GATE:5 IN;FLANGE;CS;BONNET STL;150",5,"EA","Drakensberg Pumped Storage",{"$nulls":4},""]
[448,"0072048","VALVE GATE:150 MM;FLANGE;CS;SEAT 13CR",5,"EA","Drakensberg Pumped Storage",{"$nulls":4},""]
[449,"0072059","VALVE GLB:1/2 IN;HANDWHEEL;FNPT;STL",5,"EA","Drakensberg Pumped Storage",{"$nulls":4},{"$f":"IF(J460=\"\",\"\",D460*J460)","v":""}]
[450,"0072050","VALVE ANGL:NEEDLE;200 MM;300 LB;FLANGE",5,"EA","Drakensberg Pumped Storage",{"$nulls":4},""]
[451,"0072052","VALVE GATE:50 MM;SOLID WEDGE;FLANGE;STL",5,"EA","Drakensberg Pumped Storage",{"$nulls":4},""]
[452,"0072053","VALVE GATE:3 IN;SOLID WEDGE;FLANGE;STL",5,"EA","Drakensberg Pumped Storage",{"$nulls":4},""]
[453,"0072054","VALVE GLB:100 MM;HANDWHEEL;FLANGE;CS;WCB",5,"EA","Drakensberg Pumped Storage",{"$nulls":4},""]
[454,"0072055","VALVE CHECK:SWING;100 MM;600 LB;FLANGE",5,"EA","Drakensberg Pumped Storage",{"$nulls":4},""]
[455,"0072056","VALVE GATE:1/2 IN;SOLID WEDGE;FLANGE;STL",5,"EA","Drakensberg Pumped Storage",{"$nulls":4},""]
[456,"0072057","VALVE GATE:100 MM;FLANGE;CS;150 LB",5,"EA","Drakensberg Pumped Storage",{"$nulls":4},""]
[457,"0072058","VALVE GATE:3/8 IN;SOLID WEDGE;FNPT;STL",5,"EA","Drakensberg Pumped Storage",{"$nulls":4},""]
[458,"0072060","VALVE GLB:10 MM;HANDWHEEL;FNPT;SS FORGED",5,"EA","Drakensberg Pumped Storage",{"$nulls":4},""]
[459,"0072061","VALVE GLB:25 MM;HANDWHEEL;FLANGE;STL",5,"EA","Drakensberg Pumped Storage",{"$nulls":4},""]
[460,"0072062","VALVE GLB:1/2 IN;HANDWHEEL;FLANGE",5,"EA","Drakensberg Pumped Storage",{"$nulls":4},""]
[461,"0072063","VALVE GLB:3 IN;HANDWHEEL;FLANGE;CS;WCB",5,"EA","Drakensberg Pumped Storage",{"$nulls":4},""]
[462,"0073053","VALVE BTRFLY:WAFER;75 MM;740 LB;FLANGE",5,"EA","Drakensberg Pumped Storage",{"$nulls":4},""]
[463,"0075280","VALVE RELF:150 LB;THD;BRS;CU;SPRING",5,"EA","Drakensberg Pumped Storage",{"$nulls":4},""]
[464,"0077118","VALVE RELF:1/4 IN;60 LB;NPT;BRS",5,"EA","Drakensberg Pumped Storage",{"$nulls":4},""]
[465,"0077123","VALVE:INLET;27 MM;COMPRESSION;PRESSURE",5,"EA","Drakensberg Pumped Storage",{"$nulls":4},""]
[466,"0077124","VALVE:DISCHARGE;27 MM;COMPRESSION;STL",5,"EA","Drakensberg Pumped Storage",{"$nulls":4},""]
[467,"0077126","VALVE:INLET",5,"EA","Drakensberg Pumped Storage",{"$nulls":4},""]
[468,"0077130","CAP:VALVE CAGE;DIA 85 X HT 38 MM;STL",5,"EA","Drakensberg Pumped Storage",{"$nulls":4},""]
[469,"0077133","VALVE RELF:22 X 11 MM;NPT;AL;SPRING STL",5,"EA","Drakensberg Pumped Storage",{"$nulls":4},""]
[470,"0077134","VALVE RELF:1/4 IN;1300 LB;NPT;BRS",5,"EA","Drakensberg Pumped Storage",{"$nulls":4},""]
[471,"0077135","VALVE RELF:1/4 IN;60 LB;NPT;BRS",5,"EA","Drakensberg Pumped Storage",{"$nulls":4},""]
[472,"0077136","VALVE RELF:1/4 IN;260 LB;NPT;BRS",5,"EA","Drakensberg Pumped Storage",{"$nulls":4},""]
[473,"0077144","VALVE CHECK:4 IN;FLANGE;STL",5,"EA","Drakensberg Pumped Storage",{"$nulls":4},""]
[474,"0077140","VALVE CHECK:49815C",5,"EA","Drakensberg Pumped Storage",{"$nulls":4},""]
[475,"0077145","VALVE RELF:20 MM;60 BAR;FNPT;BRS",5,"EA","Drakensberg Pumped Storage",{"$nulls":4},""]
[476,"0077142","VALVE RELF:1/4 IN;1300 LB;NPT;BRS",5,"EA","Drakensberg Pumped Storage",{"$nulls":4},""]
[477,"0077143","VALVE BALL:12 MM;250 BAR;FNPT;STL;LEVER",5,"EA","Drakensberg Pumped Storage",{"$nulls":4},""]
[478,"0077146","VALVE BALL:16 MM;250 LB;NPT;STL;LEVER",5,"EA","Drakensberg Pumped Storage",{"$nulls":4},""]
[479,"0077148","VALVE BALL:20 MM;200 BAR;FNPT;BRZ;LEVER",5,"EA","Drakensberg Pumped Storage",{"$nulls":4},""]
[480,"0077149","VALVE SLND:10 MM;2/4 WAY;220 VAC;315 BAR",5,"EA","Drakensberg Pumped Storage",{"$nulls":4},""]
[481,"0077150","VALVE CHECK:THROTTLE;15 MM;FNPT;STL",5,"EA","Drakensberg Pumped Storage",{"$nulls":4},""]
[482,"0077159","VALVE RELF:18 X 12 MM;25 BAR;FNPT;STL",5,"EA","Drakensberg Pumped Storage",{"$nulls":4},""]
[483,"0077152","VALVE CHECK:THROTTLE;15 MM;FNPT;STL",5,"EA","Drakensberg Pumped Storage",{"$nulls":4},""]
[484,"0077154","VALVE CHECK:PISTON;18 MM;NPT;SS;THD CAP",5,"EA","Drakensberg Pumped Storage",{"$nulls":4},""]
[485,"0077155","VALVE SLND:10 MM;5 WAY;220 VAC;315 BAR",5,"EA","Drakensberg Pumped Storage",{"$nulls":4},""]
[486,"0077156","VALVE BALL:16 MM;63 LB;NPT;STL;LEVER",5,"EA","Drakensberg Pumped Storage",{"$nulls":4},""]
[487,"0077157","VALVE:EXHAUST;15 MM;THD FEMALE;PRESSURE",5,"EA","Drakensberg Pumped Storage",{"$nulls":4},""]
[488,"0077160","VALVE SLND:8 MM;4 WAY;220 VAC;315 BAR;34",5,"EA","Drakensberg Pumped Storage",{"$nulls":4},""]
[489,"0077161","VALVE SLND:8 MM;4/2 WAY;220 VDC;STL;34 W",5,"EA","Drakensberg Pumped Storage",{"$nulls":4},""]
[490,"0077162","VALVE BALL:16 MM;250 LB;NPT;BRASS;LEVER",5,"EA","Drakensberg Pumped Storage",{"$nulls":4},""]
[491,"0077172","VALVE:DIRECTIONAL;22 MM;HYDRAULIC;CI",5,"EA","Drakensberg Pumped Storage",{"$nulls":4},""]
[492,"0077164","VALVE BALL:50 MM;64;FLANGE;STL;LEVER",5,"EA","Drakensberg Pumped Storage",{"$nulls":4},""]
[493,"0077165","VALVE BALL:25 MM;315 LB;FNPT;STL;LEVER",5,"EA","Drakensberg Pumped Storage",{"$nulls":4},""]
[494,"0077166","VALVE BALL:25 MM;160 LB;FLANGE;STL;LEVER",5,"EA","Drakensberg Pumped Storage",{"$nulls":4},""]
[495,"0077173","VALVE CHECK:30 MM;FLANGE;CI;THD CAP",5,"EA","Drakensberg Pumped Storage",{"$nulls":4},""]
[496,"0077169","VALVE GATE:100 MM;SOLID WEDGE;FLANGE;STL",5,"EA","Drakensberg Pumped Storage",{"$nulls":4},""]
[497,"0077178","JOINT BALL:8 MM;THD FEMALE;STL;VALVE",5,"EA","Drakensberg Pumped Storage",{"$nulls":4},""]
[498,"0077180","VALVE RELF:50 MM;3 KGF/CM2;NPT X FNPT",5,"EA","Drakensberg Pumped Storage",{"$nulls":4},""]
[499,"0077183","VALVE RELF:32 MM;11.5 KG/CM2;NPT X FNPT",5,"EA","Drakensberg Pumped Storage",{"$nulls":4},""]
[500,"0077186","VALVE RELF:32 MM;11.5 KG/CM2;NPT X FNPT",5,"EA","Drakensberg Pumped Storage",{"$nulls":4},""]
[501,"0077189","VALVE RELF:12 MM;8.8 KG/CM2;NPT X FNPT",5,"EA","Drakensberg Pumped Storage",{"$nulls":4},""]
[502,"0077202","VALVE:DISCHARGE;103.7 MM;0-250 DEG C;STL",5,"EA","Drakensberg Pumped Storage",{"$nulls":4},""]
[503,"0077194","PISTON:DIA 180 X THK 30 MM;STL;VALVE;20",5,"EA","Drakensberg Pumped Storage",{"$nulls":4},""]
[504,"0077195","VALVE BALL:3 IN;150 LB;FLANGE;STL",5,"EA","Drakensberg Pumped Storage",{"$nulls":4},""]
[505,"0077196","CONNECTOR:VALVE;DIA (43-48) X LG 63 MM",5,"EA","Drakensberg Pumped Storage",{"$nulls":4},""]
[506,"0077200","VALVE:SUCTION;167 MM;COMPRESSION;STL",5,"EA","Drakensberg Pumped Storage",{"$nulls":4},""]
[507,"0077201","VALVE:DISCHARGE;145 MM;COMPRESSION;STL",5,"EA","Drakensberg Pumped Storage",{"$nulls":4},""]
[508,"0077203","VALVE:DISCHARGE;104.4 MM;COMPRESSION;STL",5,"EA","Drakensberg Pumped Storage",{"$nulls":4},""]
[509,"0077212","VALVE ANGL:NEEDLE;1/4 IN;NPT;BRS;STEM SS",5,"EA","Drakensberg Pumped Storage",{"$nulls":4},""]
[510,"0077224","VALVE GATE:65 MM;FLANGE",5,"EA","Drakensberg Pumped Storage",{"$nulls":4},""]
[511,"0077226","VALVE GATE:50 MM;SOLID WEDGE;FNPT;BRASS",5,"EA","Drakensberg Pumped Storage",{"$nulls":4},""]
[512,"0077215","VALVE:DISCHARGE;HT303798",5,"EA","Drakensberg Pumped Storage",{"$nulls":4},""]
[513,"0077216","VALVE:33-00",5,"EA","Drakensberg Pumped Storage",{"$nulls":4},{"$f":"IF(J524=\"\",\"\",D524*J524)","v":""}]
[514,"0077227","VALVE GATE:1/2 IN;SOLID WEDGE;FNPT;BRASS",5,"EA","Drakensberg Pumped Storage",{"$nulls":4},""]
[515,"0077228","VALVE GLB:15 MM;HANDWHEEL;FLANGE;BRASS",5,"EA","Drakensberg Pumped Storage",{"$nulls":4},""]
[516,"0077220","VALVE RELF:3/8 IN;1750 KPA;BSP;BRS",5,"EA","Drakensberg Pumped Storage",{"$nulls":4},""]
[517,"0077221","VALVE:LOW PRESSURE;100.5 MM;COMPRESSION",5,"EA","Drakensberg Pumped Storage",{"$nulls":4},""]
[518,"0077229","VALVE GLB:20 MM;HANDWHEEL;FLANGE;BRASS",5,"EA","Drakensberg Pumped Storage",{"$nulls":4},""]
[519,"0077240","VALVE CHECK:SWING;10 IN;10 BAR;FLANGE",5,"EA","Drakensberg Pumped Storage",{"$nulls":4},""]
[520,"0077231","VALVE GLB:40 MM;HANDWHEEL;FLANGE;BRASS;5",5,"EA","Drakensberg Pumped Storage",{"$nulls":4},""]
[521,"0077233","VALVE CHECK:50 MM;FLANGE;CI;BOLTED CAP",5,"EA","Drakensberg Pumped Storage",{"$nulls":4},""]
[522,"0077242","VALVE ANGL:GLOBE;100 MM;600 LB;FLANGE",5,"EA","Drakensberg Pumped Storage",{"$nulls":4},""]
[523,"0077243","VALVE GLB:38 MM;HANDWHEEL;FNPT;STL",5,"EA","Drakensberg Pumped Storage",{"$nulls":4},""]
[524,"0077236","VALVE GLB:2 IN;HANDWHEEL;FLANGE;STL",5,"EA","Drakensberg Pumped Storage",{"$nulls":4},""]
[525,"0077237","VALVE GATE:150 MM;SOLID WEDGE;FLANGE;CI",5,"EA","Drakensberg Pumped Storage",{"$nulls":4},""]
[526,"0077238","VALVE GATE:200 MM;SOLID WEDGE;FLANGE;STL",5,"EA","Drakensberg Pumped Storage",{"$nulls":4},""]
[527,"0077244","VALVE BALL:30 MM;315 BAR;FNPT;STL;LEVER",5,"EA","Drakensberg Pumped Storage",{"$nulls":4},""]
[528,"0077245","VALVE BALL:45 MM;200 BAR;FNPT;STL;LEVER",5,"EA","Drakensberg Pumped Storage",{"$nulls":4},""]
[529,"0077246","VALVE CHECK:PISTON;3/4 IN;FNPT;STL",5,"EA","Drakensberg Pumped Storage",{"$nulls":4},""]
[530,"0077247","VALVE CHECK:PISTON;1-1/2 IN;FNPT;STL",5,"EA","Drakensberg Pumped Storage",{"$nulls":4},""]
[531,"0077248","VALVE RELF:22 MM;STL;SPRING STL;PRESSURE",5,"EA","Drakensberg Pumped Storage",{"$nulls":4},""]
[532,"0077249","VALVE:FLOW CONTROL;27 MM;PRESSURE;CI",5,"EA","Drakensberg Pumped Storage",{"$nulls":4},""]
[533,"0078752","BELLOWS:VALVE SAFETY RELIEF EMNIBC0080E",5,"EA","Drakensberg Pumped Storage",{"$nulls":4},""]
[534,"0085607","BOLT:VALVE;3/4 IN;LG 3-1/4 IN;RD;STL",5,"EA","Drakensberg Pumped Storage",{"$nulls":4},""]
[535,"0085608","BOLT:VALVE;5/8 IN;LG 3 IN;RD;STL;18UNF",5,"EA","Drakensberg Pumped Storage",{"$nulls":4},""]
[536,"0085609","BOLT:VALVE;5/8 IN;LG 2-5/8 IN;RD;STL",5,"EA","Drakensberg Pumped Storage",{"$nulls":4},""]
[537,"0102600","KIT:OVERHAUL;SAFETY VALVE",5,"EA","Drakensberg Pumped Storage",{"$nulls":4},""]
[538,"0107087","GASKET PC:VALVE CAGE CAP",5,"EA","Drakensberg Pumped Storage",{"$nulls":4},""]
[539,"0109457","HANDLE:VALVE;LG 750 MM;STL",5,"EA","Drakensberg Pumped Storage",{"$nulls":4},""]
[540,"0127130","SOLENOID ELECT:VALVE;220 VAC;7601-0476",5,"EA","Drakensberg Pumped Storage",{"$nulls":4},""]
[541,"0111786","SPRING:VALVE;DIA 14 X LG 67 MM",5,"EA","Drakensberg Pumped Storage",{"$nulls":4},""]
[542,"0111801","SPRING:VALVE;SPRING STL;HT403875",5,"EA","Drakensberg Pumped Storage",{"$nulls":4},""]
[543,"0111803","SPRING:VALVE;SPRING STL;HT403877",5,"EA","Drakensberg Pumped Storage",{"$nulls":4},""]
[544,"0128439","SOLENOID ELECT:VALVE;24 VDC;GS 40-4N-B",5,"EA","Drakensberg Pumped Storage",{"$nulls":4},""]
[545,"0123504","VALVE SLND:8 MM;3 WAY;24 VDC;STL;OIL",5,"EA","Drakensberg Pumped Storage",{"$nulls":4},""]
[546,"0125604","SOLENOID ELECT:VALVE;220 VAC;331B21",5,"EA","Drakensberg Pumped Storage",{"$nulls":4},""]
[547,"0126169","SOLENOID ELECT:AIR VALVE;220 VAC",5,"EA","Drakensberg Pumped Storage",{"$nulls":4},""]
[548,"0177811","VALVE ANGL:GLOBE;150 MM;150 LB;FLANGE",5,"EA","Drakensberg Pumped Storage",{"$nulls":4},""]
[549,"0502387","VALVE:COMPRESSOR 3RD STAGE;AUTOMATIC;STL",5,"EA","Drakensberg Pumped Storage",{"$nulls":4},""]
[550,"0178035","VALVE RELF:0523C",5,"EA","Drakensberg Pumped Storage",{"$nulls":4},""]
[551,"0178037","VALVE GATE:4 IN;MB9-341.3200B",5,"EA","Drakensberg Pumped Storage",{"$nulls":4},""]
[552,"0502388","VALVE:COMPRESSOR 2ND STAGE;AUTOMATIC;STL",5,"EA","Drakensberg Pumped Storage",{"$nulls":4},""]
[553,"0178437","VALVE NDL:6 IN;FLANGE;STL",5,"EA","Drakensberg Pumped Storage",{"$nulls":4},""]
[554,"0178522","VALVE ANGL:PLUG;100 MM;FLANGE;CI",5,"EA","Drakensberg Pumped Storage",{"$nulls":4},""]
[555,"0178523","VALVE ANGL:PLUG;250 MM;FLANGE;STL",5,"EA","Drakensberg Pumped Storage",{"$nulls":4},""]
[556,"0205470","KIT:SEALS;SPH/VALVE OPERATOR",5,"EA","Drakensberg Pumped Storage",{"$nulls":4},""]
[557,"0401291","VALVE BALL:3/4 IN;HANDLE;STOP",5,"EA","Drakensberg Pumped Storage",{"$nulls":4},""]
[558,"0502390","VALVE:COMPRESSION;AUTOMATIC;STEEL;GASKET",5,"EA","Drakensberg Pumped Storage",{"$nulls":4},""]
[559,"0502396","VALVE:1ST STAGE;164MM X 85 IN;0-250;STL",5,"EA","Drakensberg Pumped Storage",{"$nulls":4},""]
[560,"0594825","KIT:REPAIR T125;PRESSURE RELIEF VALVE",5,"EA","Drakensberg Pumped Storage",{"$nulls":4},""]
[561,"0621290","KIT VLV RPR:BALL VALVE 1/2 IN;B16",5,"EA","Drakensberg Pumped Storage",{"$nulls":4},""]
[562,"0621484","VALVE BTRFLY:LUG WAFER;150 MM;PN16;0-120",5,"EA","Drakensberg Pumped Storage",{"$nulls":4},""]
[563,"0628662","VALVE:4\"707 SD;SAFETY;4 IN;53 BAR;538;PT",5,"EA","Drakensberg Pumped Storage",{"$nulls":4},""]
[564,"0637382","VALVE:CONCENTRIC;OD 225 X THK 30 MM;380",5,"EA","Drakensberg Pumped Storage",{"$nulls":4},""]
[565,"0640478","VALVE GLB:2 IN;102 BAR;-29 TO 38 DEG C",5,"EA","Drakensberg Pumped Storage",{"$nulls":4},""]
[566,"0640479","VALVE BTRFLY:DRAIN WAFER;DN 32;PN25;33",5,"EA","Drakensberg Pumped Storage",{"$nulls":4},""]
[567,"0647409","VALVE SLND:6 X 4 MM;3/2 WAY;230 VAC;0-10",5,"EA","Drakensberg Pumped Storage",{"$nulls":4},""]
[568,"0654743","VALVE BALL:1/2 IN;QUICK STOP",5,"EA","Drakensberg Pumped Storage",{"$nulls":4},""]
[569,"0655344","CONE:SHUT-OFF VALVE",5,"EA","Drakensberg Pumped Storage",{"$nulls":4},""]
[570,"0662034","VALVE RELF:20 MM;7000 KPA;-25 TO 400",5,"EA","Drakensberg Pumped Storage",{"$nulls":4},""]
[571,"0662552","VALVE CHECK:NON RETURN;80 MM;PN40;50;BW",5,"EA","Drakensberg Pumped Storage",{"$nulls":4},""]
[572,"0662572","VALVE CHECK:NON RETURN;100 MM;PN25;55;BW",5,"EA","Drakensberg Pumped Storage",{"$nulls":4},""]
[573,"0688832","VALVE RELF:1/2 X 3/4 IN;1100 KPA;BRS",5,"EA","Drakensberg Pumped Storage",{"$nulls":4},""]
[574,"0696638","VALVE BTRFLY:CENTERED DISC;3 IN;PN35;BW",5,"EA","Drakensberg Pumped Storage",{"$nulls":4},""]
[575,"0708296","VALVE:891215705;BYPASS;450 X 350 MM;7.2",5,"EA","Drakensberg Pumped Storage",{"$nulls":4},""]
[576,"0715945","VALVE CHECK:NON-RETURN;650 MM;200 DEG C",5,"EA","Drakensberg Pumped Storage",{"$nulls":4},""]
[577,"0738160","VALVE:NRV NON RETURN;1/2 IN;16 BAR;FLOW",5,"EA","Drakensberg Pumped Storage",{"$nulls":4},{"$f":"IF(J588=\"\",\"\",D588*J588)","v":""}]
[578,"0738822","VALVE:INJECTION;6/4 - R 1/2 IN;7-16 BAR",5,"EA","Drakensberg Pumped Storage",{"$nulls":4},""]
[579,"0738824","VALVE:FOOT;20 MM;7-16 BAR;40 DEG",5,"EA","Drakensberg Pumped Storage",{"$nulls":4},""]
[580,"0738906","KIT COMPRSR REPR:SERV;SPHERICAL VALVE",5,"EA","Drakensberg Pumped Storage",{"$nulls":4},""]
[581,"0628695","VALVE BALL:20 MM;40 BAR;200 DEG C;SS;44",5,"EA","Ingula Pump Storage",{"$nulls":4},""]
[582,"0620405","VALVE BALL:200 MM;JIS 10 K;10 K;FLANGE",5,"EA","Ingula Pump Storage",{"$nulls":4},""]
[583,"0620406","VALVE BALL:200 MM;JIS 10 K;10 K;FLANGE",5,"EA","Ingula Pump Storage",{"$nulls":4},""]
[584,"0692543","VALVE:033930;NON RETURN;20 MM;-10 TO 100",5,"EA","Ingula Pump Storage",{"$nulls":4},""]
[585,"0628696","VALVE BALL:1/2 IN;2000 KPA;200 DEG C;SS",5,"EA","Ingula Pump Storage",{"$nulls":4},""]
[586,"0643978","VALVE BALL:1/2 IN;PN500;180 DEG C;THD;SS",5,"EA","Ingula Pump Storage",{"$nulls":4},""]
[587,"0637420","VALVE BALL:DN 50;PN100;0-30 DEG C;FLANGE",5,"EA","Ingula Pump Storage",{"$nulls":4},""]
[588,"0643976","VALVE BALL:DN 50;PN200;180 DEG C;THD;SS",5,"EA","Ingula Pump Storage",{"$nulls":4},""]
[589,"0657951","VALVE BALL:DN 80;PN100;0-30 DEG C;FLANGE",5,"EA","Ingula Pump Storage",{"$nulls":4},""]
[590,"0657952","VALVE BALL:DN 80;PN100;0-40 DEG C;FLANGE",5,"EA","Ingula Pump Storage",{"$nulls":4},""]
[591,"0657953","VALVE BALL:DN 80;PN100;0-40 DEG C;FLANGE",5,"EA","Ingula Pump Storage",{"$nulls":4},""]
[592,"0628693","VALVE BALL:25 MM;63;200 DEG C;FEMALE THD",5,"EA","Ingula Pump Storage",{"$nulls":4},""]
[593,"0619983","VALVE BALL:50 MM;10 KPA;JIS10K;FLANGED",5,"EA","Ingula Pump Storage",{"$nulls":4},""]
[594,"0628694","VALVE BALL:50 MM;63 BAR;200 DEG C;SS;140",5,"EA","Ingula Pump Storage",{"$nulls":4},""]
[595,"0637421","VALVE BALL:DN 100;PN100;-10 TO 50 DEG C",5,"EA","Ingula Pump Storage",{"$nulls":4},""]
[596,"0648284","VALVE:EMERGENCY CLOSING;13 MM;350 BAR",5,"EA","Ingula Pump Storage",{"$nulls":4},""]
[597,"0646934","VALVE:DIRECTIONAL;NG 6;350 BAR;-25 TO 70",5,"EA","Ingula Pump Storage",{"$nulls":4},""]
[598,"0642473","VALVE:DIRECTIONAL;8/4 MM;350 BAR;52;49",5,"EA","Ingula Pump Storage",{"$nulls":4},""]
[599,"0637416","VALVE:SAFETY;DN40;35 BAR;20 DEG C;1.4408",5,"EA","Ingula Pump Storage",{"$nulls":4},""]
[600,"0630729","VALVE:ISOLATING GAUGE;DN 4;PN400;140 MM",5,"EA","Ingula Pump Storage",{"$nulls":4},""]
[601,"0630728","VALVE:ISOLATING GAUGE;DN 4;-20 TO 200;SS",5,"EA","Ingula Pump Storage",{"$nulls":4},""]
[602,"0072645","VALVE:HYDRAULIC;3/4 IN",5,"EA","Ingula Pump Storage",{"$nulls":4},""]
[603,"0644906","VALVE CHECK:DUAL PURPOSE;1-1/2 IN;3000",5,"EA","Ingula Pump Storage",{"$nulls":4},""]
[604,"0628680","VALVE CHECK:DISC;DN 80;PN40;-200 TO 550",5,"EA","Ingula Pump Storage",{"$nulls":4},""]
[605,"0644902","VALVE:DIRECTIONAL PISTON;NG10;315 BAR;SS",5,"EA","Ingula Pump Storage",{"$nulls":4},""]
[606,"0623858","VALVE CHECK:2FRM16-32/160L;FLOW CONTROL",5,"EA","Ingula Pump Storage",{"$nulls":4},""]
[607,"0623859","VALVE CHECK:2FRM10-31/50L;FLOW CONTROL",5,"EA","Ingula Pump Storage",{"$nulls":4},""]
[608,"0178003","VALVE CHECK:100 MM;3-8 BAR;50-100 DEG C",5,"EA","Ingula Pump Storage",{"$nulls":4},""]
[609,"0628204","VALVE BTRFLY:WAFER;DN65;16 BAR;CI;46 MM",5,"EA","Ingula Pump Storage",{"$nulls":4},""]
[610,"0643980","VALVE BTRFLY:WAFER;DN40;16 BAR;200 DEG C",5,"EA","Ingula Pump Storage",{"$nulls":4},""]
[611,"0623861","VALVE CHECK:FT257/6 100 0 BAR;1 IN;320",5,"EA","Ingula Pump Storage",{"$nulls":4},""]
[612,"0692898","VALVE SLND:VS3P-4030-10G HMJ-X;1/2 IN;3",5,"EA","Ingula Pump Storage",{"$nulls":4},""]
[613,"0692543","VALVE:033930;NON RETURN;20 MM;-10 TO 100",5,"EA","Ingula Pump Storage",{"$nulls":4},""]
[614,"0628662","VALVE:4\"707 SD;SAFETY;4 IN;53 BAR;538;PT",5,"EA","Ingula Pump Storage",{"$nulls":4},""]
[615,"0619975","VALVE:CA200MP;SHUT OFF;3/8 IN;200 BAR;55",5,"EA","Ingula Pump Storage",{"$nulls":4},""]
[616,"0041833","VALVE:COMPRESSOR;175 MM;PRESSURE;STL",5,"EA","Ingula Pump Storage",{"$nulls":4},""]
[617,"0637382","VALVE:CONCENTRIC;OD 225 X THK 30 MM;380",5,"EA","Ingula Pump Storage",{"$nulls":4},""]
[618,"0701459","VALVE:CONTROL;NG10;120 BAR;20-60 DEG C",5,"EA","Ingula Pump Storage",{"$nulls":4},""]
[619,"0644954","VALVE:DIRECTIONAL CONTROL;6 MM;350 BAR",5,"EA","Ingula Pump Storage",{"$nulls":4},""]
[620,"0623860","VALVE CHECK:FT257/6 114 1 BAR;1-1/4 IN",5,"EA","Ingula Pump Storage",{"$nulls":4},""]
[621,"0731181","VALVE CHECK:E65;DN25 MM;PN40;FLANGE;0.01",5,"EA","Ingula Pump Storage",{"$nulls":4},""]
[622,"0644907","VALVE CHECK:DUAL PURPOSE;2-1/2 IN;3000",5,"EA","Ingula Pump Storage",{"$nulls":4},""]
[623,"0655868","VALVE BTRFLY:WAFER;250 MM;PN100;FLANGE",5,"EA","Ingula Pump Storage",{"$nulls":4},""]
[624,"0628207","VALVE BTRFLY:WAFER;DN125;16 BAR;CI;56 MM",5,"EA","Ingula Pump Storage",{"$nulls":4},""]
[625,"0628203","VALVE BTRFLY:WAFER;DN 50;10 BAR;CI;43 MM",5,"EA","Ingula Pump Storage",{"$nulls":4},""]
[626,"0628205","VALVE BTRFLY:WAFER;80 MM;10 BAR;CI;46 MM",5,"EA","Ingula Pump Storage",{"$nulls":4},""]
[627,"0657949","VALVE BALL:DN125;PN16;40 DEG C;FLANGE;SS",5,"EA","Ingula Pump Storage",{"$nulls":4},""]
[628,"0657948","VALVE BALL:DN125;PN100;2-40 DEG C;FLANGE",5,"EA","Ingula Pump Storage",{"$nulls":4},""]
[629,"0657950","VALVE BALL:DN65;PN100;0-40 DEG C;FLANGE",5,"EA","Ingula Pump Storage",{"$nulls":4},""]
[630,"0655832","VALVE BTRFLY:WAFER;200 MM;PN 16;FLANGE",5,"EA","Ingula Pump Storage",{"$nulls":4},""]
[631,"0655865","VALVE BTRFLY:WAFER;150 MM;PN40;FLANGE;SS",5,"EA","Ingula Pump Storage",{"$nulls":4},""]
[632,"0620187","VALVE BALL:X13W-40P;1/2 IN;1 MPA;100;STL",5,"EA","Ingula Pump Storage",{"$nulls":4},""]
[633,"0655834","VALVE BTRFLY:WAFER;600 MM;PN 16;FLANGE",5,"EA","Ingula Pump Storage",{"$nulls":4},""]
[634,"0655831","VALVE BTRFLY:WAFER;300 MM;PN 16;FLANGE",5,"EA","Ingula Pump Storage",{"$nulls":4},""]
[635,"0655867","VALVE BTRFLY:WAFER;300 MM;PN25;FLANGE;SS",5,"EA","Ingula Pump Storage",{"$nulls":4},""]
[636,"0655833","VALVE BTRFLY:WAFER;150 MM;PN 16;FLANGE",5,"EA","Ingula Pump Storage",{"$nulls":4},""]
[637,"0655866","VALVE BTRFLY:WAFER;200 MM;PN40;FLANGE;SS",5,"EA","Ingula Pump Storage",{"$nulls":4},""]
[638,"0628206","VALVE BTRFLY:WAFER;DN 100;10 BAR;CI;52",5,"EA","Ingula Pump Storage",{"$nulls":4},""]
[639,"0637555","VALVE CHECK:NON RETURN;G 3/4 IN;1 BAR;SS",5,"EA","Ingula Pump Storage",{"$nulls":4},""]
[640,"0715945","VALVE CHECK:NON-RETURN;650 MM;200 DEG C",5,"EA","Ingula Pump Storage",{"$nulls":4},""]
[641,"0655823","VALVE CHECK:PRESSURE;DN400;16 BAR;CI;480",5,"EA","Ingula Pump Storage",{"$nulls":4},{"$f":"IF(J652=\"\",\"\",D652*J652)","v":""}]
[642,"0623866","VALVE SLND:M-3SED6UK13/350CG24N9K4;3/2",5,"EA","Ingula Pump Storage",{"$nulls":4},""]
[643,"0623874","VALVE SLND:4WE10C50/EG24N9K4/M;PORT 11",5,"EA","Ingula Pump Storage",{"$nulls":4},""]
[644,"0726792","VALVE SLND:28 MM;230 VAC;100 BAR;BRS;AIR",5,"EA","Ingula Pump Storage",{"$nulls":4},""]
[645,"0062540","VALVE SLND:220 V",5,"EA","Ingula Pump Storage",{"$nulls":4},""]
[646,"0668248","VALVE SLND:1-1/2 IN;PLUNGER;230 V;16 BAR",5,"EA","Ingula Pump Storage",{"$nulls":4},""]
[647,"0617885","VALVE SLND:1/4 IN;2/1;220 VDC;2 MPA;IN",5,"EA","Ingula Pump Storage",{"$nulls":4},""]
[648,"0668261","VALVE SLND:1 IN;PLUNGER;230 V;33 BAR;THD",5,"EA","Ingula Pump Storage",{"$nulls":4},""]
[649,"0694573","VALVE SLND:1 IN;1/1;24 VDC;10 BAR;FNPT",5,"EA","Ingula Pump Storage",{"$nulls":4},""]
[650,"0659669","VALVE RELF:V/50;1 IN;0.025-0.08 BAR;90;6",5,"EA","Ingula Pump Storage",{"$nulls":4},""]
[651,"0623862","VALVE CHECK:FT257/6 114 8 BAR;1-1/4 IN",5,"EA","Ingula Pump Storage",{"$nulls":4},""]
[652,"0637556","VALVE CHECK:NON RETURN;1-5/8 IN;10 BAR",5,"EA","Ingula Pump Storage",{"$nulls":4},""]
[653,"0637558","VALVE CHECK:NON RETURN;DIN 50;PN40;0-100",5,"EA","Ingula Pump Storage",{"$nulls":4},""]
[654,"0628742","VALVE CHECK:NON RETURN;DN 100;PN40;60 MM",5,"EA","Ingula Pump Storage",{"$nulls":4},""]
[655,"0637559","VALVE CHECK:NON RETURN;DN 80;PN100-160",5,"EA","Ingula Pump Storage",{"$nulls":4},""]
[656,"0655829","VALVE DIAPH:WET PILOT ACTUATION;6 IN;250",5,"EA","Ingula Pump Storage",{"$nulls":4},""]
[657,"0657954","VALVE FLPR:CHECK;DN65;FLANGE;SS;TURBINE",5,"EA","Ingula Pump Storage",{"$nulls":4},""]
[658,"0657955","VALVE FLPR:CHECK;DN80;FLANGE;SS;TURBINE",5,"EA","Ingula Pump Storage",{"$nulls":4},""]
[659,"0620393","VALVE GATE:100 MM;ISOLATING;FLANGE;300",5,"EA","Ingula Pump Storage",{"$nulls":4},""]
[660,"0620394","VALVE GATE:1-1/2 IN;ISOLATING;FLANGE;160",5,"EA","Ingula Pump Storage",{"$nulls":4},""]
[661,"0620397","VALVE GATE:200 MM;ISOLATING;FLANGE;450",5,"EA","Ingula Pump Storage",{"$nulls":4},""]
[662,"0620398","VALVE GATE:200 MM;ISOLATING;JIS 20 K;20",5,"EA","Ingula Pump Storage",{"$nulls":4},""]
[663,"0620391","VALVE GATE:250 MM;ISOLATING;2-2.8 MPA;SS",5,"EA","Ingula Pump Storage",{"$nulls":4},""]
[664,"0655828","VALVE DIAPH:WET PILOT ACTUATION;4 IN;250",5,"EA","Ingula Pump Storage",{"$nulls":4},""]
[665,"0637405","VALVE CHECK:RIGHT ANGLE;3 IN;21 MPA",5,"EA","Ingula Pump Storage",{"$nulls":4},""]
[666,"0721178","VALVE CHECK:TL34;3 IN;2 BAR;-40-100;1.00",5,"EA","Ingula Pump Storage",{"$nulls":4},""]
[667,"0731175","VALVE CHECK:TL34;DN80;2 BAR;-40 to 100",5,"EA","Ingula Pump Storage",{"$nulls":4},""]
[668,"0635725","VALVE CHECK:WAFER;DN65;20 BAR;0-120;46",5,"EA","Ingula Pump Storage",{"$nulls":4},""]
[669,"0623867","VALVE CHECK:Z1S10B05-2-41/F;SUBPLATE;350",5,"EA","Ingula Pump Storage",{"$nulls":4},""]
[670,"0623870","VALVE CHECK:Z2FS6-2-44/2QV;TWIN THROTTLE",5,"EA","Ingula Pump Storage",{"$nulls":4},""]
[671,"0620183","VALVE GLB:1/2 IN;2.0 MPA;<100 DEG C;150",5,"EA","Ingula Pump Storage",{"$nulls":4},""]
[672,"0064665","VALVE GLB:15 MM;MANUAL;SW;CS;600 LB",5,"EA","Ingula Pump Storage",{"$nulls":4},""]
[673,"0620408","VALVE GLB:2 IN;200 MM;HANDWHEEL;FLANGE",5,"EA","Ingula Pump Storage",{"$nulls":4},""]
[674,"0620407","VALVE GLB:50 MM;200 MM;HANDWHEEL;FLANGE",5,"EA","Ingula Pump Storage",{"$nulls":4},""]
[675,"0620181","VALVE GLB:SC-F10K-15A;1/2 IN;1 TO 1.2",5,"EA","Ingula Pump Storage",{"$nulls":4},""]
[676,"0620186","VALVE GLB:SC-F10K-25A;1 IN;1 TO 1.2 MPA",5,"EA","Ingula Pump Storage",{"$nulls":4},""]
[677,"0623904","VALVE RELF:LFA40H2-71/F;NS40;ADJUSTABLE",5,"EA","Ingula Pump Storage",{"$nulls":4},""]
[678,"0623903","VALVE RELF:LFA16H2-71/F;NS16;ADJUSTABLE",5,"EA","Ingula Pump Storage",{"$nulls":4},""]
[679,"0655228","VALVE RELF:G1/2 IN;365 KPA;-10 TO 220;46",5,"EA","Ingula Pump Storage",{"$nulls":4},""]
[680,"0639776","VALVE RELF:G1/2 IN;3 BAR;0-20 DEG C;90",5,"EA","Ingula Pump Storage",{"$nulls":4},""]
[681,"0620399","VALVE GATE:250 MM;ISOLATING;FLANGE;450",5,"EA","Ingula Pump Storage",{"$nulls":4},""]
[682,"0620395","VALVE GATE:300 MM;ISOLATING;FLANGE;500",5,"EA","Ingula Pump Storage",{"$nulls":4},""]
[683,"0620396","VALVE GATE:300 MM;ISOLATING;JIS 20 K;20",5,"EA","Ingula Pump Storage",{"$nulls":4},""]
[684,"0620392","VALVE GATE:50 MM;ISOLATING;FLANGE;213 MM",5,"EA","Ingula Pump Storage",{"$nulls":4},""]
[685,"0628697","VALVE RELF:3/4 IN;47.2 BAR;-10 TO 100;10",5,"EA","Ingula Pump Storage",{"$nulls":4},""]
[686,"0637561","VALVE RELF:DN 3/4 X 1 IN;53 BAR;THD;BRS",5,"EA","Ingula Pump Storage",{"$nulls":4},""]
[687,"0655227","VALVE RELF:DN 1 X 1-1/4 IN;8 BAR;THD;BRZ",5,"EA","Ingula Pump Storage",{"$nulls":4},""]
[688,"0623863","VALVE RELF:DBW10B2-52/300-6EG24N9K4;NS10",5,"EA","Ingula Pump Storage",{"$nulls":4},""]
[689,"0644952","VALVE RELF:30 MM;100 BAR;-30 TO 80 DEG C",5,"EA","Ingula Pump Storage",{"$nulls":4},""]
[690,"0068148","VALVE RELF:50 MM;35 KPA;THD;STL;BRS;2-20",5,"EA","Ingula Pump Storage",{"$nulls":4},""]
[691,"0619974","VALVE RELF:BK033;1/2 IN;1.5 MPA;120;STL",5,"EA","Ingula Pump Storage",{"$nulls":4},""]
[692,"0623857","VALVE RELF:DB20-2-52/315;1 IN;94 BAR;100",5,"EA","Ingula Pump Storage",{"$nulls":4},""]
[693,"0660516","VALVE PLT:GPFX730094P0001;1 WAY;6 MM;STL",5,"EA","Ingula Pump Storage",{"$nulls":4},""]
[694,"0659664","VALVE RELF:03/16-08711;8 MM;11 BAR;BRS;6",5,"EA","Ingula Pump Storage",{"$nulls":4},""]
[695,"0637560","VALVE RELF:1 IN;88 BAR;0-50 DEG C;SS;SS",5,"EA","Ingula Pump Storage",{"$nulls":4},""]
[696,"0617883","VALVE RELF:1/2 IN;2.1 MPA;220 DEG C;STL",5,"EA","Ingula Pump Storage",{"$nulls":4},""]
[697,"0637562","VALVE RELF:1/2 IN;3 BAR;0-20 DEG C;SS;SS",5,"EA","Ingula Pump Storage",{"$nulls":4},""]
[698,"0644950","VALVE RELF:10 MM;130 BAR;-30 TO 80 DEG C",5,"EA","Ingula Pump Storage",{"$nulls":4},""]
[699,"0644949","VALVE RELF:10 MM;65 BAR;-30 TO 80 DEG C",5,"EA","Ingula Pump Storage",{"$nulls":4},""]
[700,"0644951","VALVE RELF:30 MM;130 BAR;-30 TO 80 DEG C",5,"EA","Ingula Pump Storage",{"$nulls":4},""]
[701,"0644953","VALVE RELF:20 MM;100 BAR;-30 TO 80 DEG C",5,"EA","Ingula Pump Storage",{"$nulls":4},""]
[702,"0637402","VALVE RELF:3 IN;25 MPA;-15 TO 75 DEG C",5,"EA","Ingula Pump Storage",{"$nulls":4},""]
[703,"0783932","VALVE BTRFLY:VALVE BUTTERFLY;DN 80 MM;95",5,"EA","Ingula Pump Storage",{"$nulls":4},""]
[704,"0783504","VALVE GLB:100 MM;16 BAR;400 DEG;230 MM",4,"EA","Palmiet Pumped Storage",{"$nulls":4},""]
[705,"0783650","VALVE:BELLOWS SEAL GLOBE;1/2 IN;30;58 MM",4,"EA","Palmiet Pumped Storage",{"$nulls":4},{"$f":"IF(J716=\"\",\"\",D716*J716)","v":""}]
[706,"0774960","KIT:PRESSURE RELIEF VALVES",4,"EA","Palmiet Pumped Storage",{"$nulls":4},""]
[707,"0783663","VALVE CHECK:NON RETURN;20 MM;16 BAR;52",4,"EA","Palmiet Pumped Storage",{"$nulls":4},""]
[708,"0783420","VALVE GATE:250 MM;GATE VALVE;10 BAR;332",4,"EA","Palmiet Pumped Storage",{"$nulls":4},""]
[709,"0692548","VALVE CHECK:SWING DISK NRV;1 IN;300 LB",4,"EA","Palmiet Pumped Storage",{"$nulls":4},""]
[710,"0783648","VALVE GLB:25 MM;10 BAR;120 DEG C;127 MM",4,"EA","Palmiet Pumped Storage",{"$nulls":4},""]
[711,"0783662","VALVE CHECK:WAFER;150 MM;16 BAR;5 to 40",4,"EA","Palmiet Pumped Storage",{"$nulls":4},""]
[712,"0783651","VALVE GLB:50 MM;16 BAR;-120 to 200 DEG C",4,"EA","Palmiet Pumped Storage",{"$nulls":4},""]
[713,"0783429","VALVE CHECK:SWING;50 MM;76 BAR;538 DEG C",4,"EA","Palmiet Pumped Storage",{"$nulls":4},""]
[714,"0783504","VALVE GLB:100 MM;16 BAR;400 DEG;230 MM",4,"EA","Palmiet Pumped Storage",{"$nulls":4},""]
[715,"0783652","VALVE GATE:250 MM;SOLID WEDGE;10 BAR;120",4,"EA","Palmiet Pumped Storage",{"$nulls":4},""]
[716,"0783647","VALVE GATE:80 MM;SOLID WEDGE;10 BAR;120",4,"EA","Palmiet Pumped Storage",{"$nulls":4},""]
[717,"0784003","VALVE RELF:1 IN;600 KPA G;-20 TO -260;44",4,"EA","Palmiet Pumped Storage",{"$nulls":4},""]
[718,"0784000","VALVE BTRFLY:WAFER;6 IN;20.7 BAR;100;61",4,"EA","Palmiet Pumped Storage",{"$nulls":4},""]
[719,"0784005","VALVE GATE:200 MM;SOLID WEDGE;16 BAR;317",4,"EA","Palmiet Pumped Storage",{"$nulls":4},""]
[720,"0784002","VALVE GATE:250 MM;SOLID WEDGE;16 BAR;380",4,"EA","Palmiet Pumped Storage",{"$nulls":4},""]
[721,"0784001","VALVE GATE:2 IN;SOLID WEDGE;20 BAR;74 MM",4,"EA","Palmiet Pumped Storage",{"$nulls":4},""]
[722,"0784004","VALVE CHECK:SPRING;50 MM;18 BAR;101 MM",4,"EA","Palmiet Pumped Storage",{"$nulls":4},""]
[{"$nulls":9},"GRAND TOTAL (ZAR):",{"$f":"SUM(K12:K733)","v":{"v":0,"d":"0.00"}}]
["ADDITIONAL PRICING REQUIREMENTS"]
["1. CATALOGUING OF NEW VALVES (For items not currently in Eskom stock catalogue)"]
["Description","Unit","Rate (ZAR)","Notes"]
["Cataloguing fee per new valve item","Per Item",null,"Enter rate for cataloguing new items"]
["2. COST PLUS PERCENTAGE (Markup on cost of goods)"]
["Description","Percentage (%)","Applicable To","Notes"]
["Cost Plus Percentage - Local Items",null,"Local ZAR items"]
["Cost Plus Percentage - Imported Items",null,"Foreign currency items"]
["3. TRANSPORTATION / DELIVERY RATES"]
["Description","Rate per km (ZAR)","Estimated Lead Time (Days)","Notes"]
["Transportation Rate (applicable to all Peaking Power Stations)"]
["📌 Note: Single rate per km applies to deliveries to all Peaking Power Stations: Acacia, Port Rex, Ankerlig, Gourikwa, Drakensberg, Palmiet, Ingula, Gariep/Vanderkloof, and Sere Wind Farm."]

{"sheet":"Detail Descriptions C2.2","index":2,"n_rows":728,"n_cols":3,"rows_kept":728,"merged":[[0,0,0,2],[1,0,1,2],[2,0,2,2],[3,0,3,2],[727,1,727,2]]}
["ESKOM HOLDINGS SOC LTD"]
["DETAIL DESCRIPTIONS - PRICE SCHEDULE C2.2"]
["Tender Enquiry No: E2979GXPOU - Supply and delivery of various valves and valve components for Peaking Power Stations"]
["📌 This sheet provides detailed descriptions for each material code. The Item Number corresponds to the line item on the Price Schedule."]
["Item Number","Material Code","Purchase Order Description"]
[1,"0023834","VALVE, SOLENOID: PIPE SIZE: 35 MM; STYLE: 2 WAY; POTENTIAL: 125 VDC; CONNECTION: NPT; BODY MATERIAL: STAINLESS STEEL; OPERATED: PRESSURE; ENCLOSURE RATING: IP67; MEDIUM: FUEL; SUPPL P/N: 679V100A; REFERENCE NO: 1142; 711680; FUEL SHUT OFF, MAKE ALTAIR"]
[2,"0023886","VALVE, BUTTERFLY: TYPE: WAFER; VALVE SIZE: 150 MM; CONNECTION: FLANGE; BODY MATERIAL: STL; OPERATED: AIR; TRIM: DISC STL; ACTUATOR/ASSY,BLEED"]
[3,"0023887","VALVE, BUTTERFLY: TYPE: WAFER; VALVE SIZE: 150 MM; CONNECTION: FLANGE; BODY MATERIAL: STL; OPERATED: AIR; TRIM: DISC STL; ACTUATOR AND VALVE ASSY; BLEED"]
[4,"0023899","VALVE: TYPE: CONTROL; ASSY; AIR STARTER"]
[5,"0023900","ASSEMBLY: TYPE: AIR RELEASE VALVE FILTER; DIMENSIONS: 42 IN"]
[6,"0023905","VALVE, SOLENOID: PIPE SIZE: 25 MM; STYLE: 2 WAY; POTENTIAL: 110 VAC; 120 VDC; DESIGN RATING: 115/225/300 KPA; CONNECTION: FNPT; BODY MATERIAL: BRASS; OPERATED: AIR; ENCLOSURE RATING: IP67; MEDIUM: AIR/GAS/WATER; POWER: 20 W; ORIFICE SIZE: 25 MM; FREQUENCY 50/60 HZ, FOR USE ON COMPRESSOR"]
[7,"0023909","VALVE: TYPE: TEMPERATURE CONTROL; VALVE SIZE: 40 MM; DESIGN RATING: 150 BAR; CONNECTION: FLANGE; OPERATED: TEMPERATURE; BODY MATERIAL: STL; STYLE: BOLTED BONNET; TRIM: BONNET STL; DISC SS; GRADE: WC8; MODEL NO: 83937-3; REFERENCE NO: E76L375; RANGE: 150 - 220, MAKE ROBERSHAW"]
[8,"0041833","VALVE: TYPE: COMPRESSOR; VALVE SIZE: 175 MM; OPERATED: PRESSURE; BODY MATERIAL: STL; TRIM: DISC SS; 2ND STAGE CONCENTRIC"]
[9,"0043039","HEAD, CYLINDER: TYPE: 1ST STG VALVE; SUPPL P/N: 4656; ITEM 23 POS 230, SIZE 128MM X 128 MM X 20 MM;USED ON THE SULZER BURCKHART COMPRESSOR TYPE C4N2F"]
[10,"0043262","VALVE: TYPE: SUCTION; VALVE SIZE: 144 MM; CONNECTION: COMPRESSION; OPERATED: PRESSURE; BODY MATERIAL: STAINLESS STEEL; TRIM: DISC STL; REFERENCE NO: HT303811; 2ND STAGE; 20P-4PORTS; 46.3MM THK PLATE; 88MM THK O/A; WITH HEX NUT, WASHER AND SPLIT PIN"]
[11,"0043264","VALVE: TYPE: SUCTION; VALVE SIZE: 104 MM; CONNECTION: COMPRESSION; OPERATED: PRESSURE; BODY MATERIAL: STAINLESS STEEL; TRIM: DISC STL; REFERENCE NO: HT303815; 4TH STAGE; 20P-2PORTS; 46.3MM THK PLATE; 89MM THK O/A; WITH HEX NUT, WASHER AND SPLIT PIN"]
[12,"0043264","VALVE: TYPE: SUCTION; VALVE SIZE: 104 MM; CONNECTION: COMPRESSION; OPERATED: PRESSURE; BODY MATERIAL: STAINLESS STEEL; TRIM: DISC STL; REFERENCE NO: HT303815; 4TH STAGE; 20P-2PORTS; 46.3MM THK PLATE; 89MM THK O/A; WITH HEX NUT, WASHER AND SPLIT PIN"]
[13,"0043264","VALVE: TYPE: SUCTION; VALVE SIZE: 104 MM; CONNECTION: COMPRESSION; OPERATED: PRESSURE; BODY MATERIAL: STAINLESS STEEL; TRIM: DISC STL; REFERENCE NO: HT303815; 4TH STAGE; 20P-2PORTS; 46.3MM THK PLATE; 89MM THK O/A; WITH HEX NUT, WASHER AND SPLIT PIN"]
[14,"0043265","VALVE: TYPE: DISCHARGE; VALVE SIZE: 164 MM; CONNECTION: COMPRESSION; OPERATED: PRESSURE; BODY MATERIAL: STAINLESS STEEL; TRIM: DISC STL; REFERENCE NO: HT303810; ASSY; 1ST STAGE 20P- 5PORTS; 46.0MM THK PLATE; 70MM THK O/A; WITH HEX NUT AND SPLIT PIN"]
[15,"0062308","VALVE, RELIEF: VALVE SIZE: 24 X 12 MM; SET PRESSURE: 14.5 KGF/CM; CONNECTION: NPT X FNPT; BODY MATERIAL: BRASS; REFERENCE NO: M096-84176222/23P10; SAFETY; POP; TYPE RCX-SO; SEAT DIA. 12MM"]
[16,"0062309","VALVE, SOLENOID: PIPE SIZE: 1/4 IN; STYLE: 3 WAY; POTENTIAL: 220 VDC; DESIGN RATING: 35 KGF/CM; CONNECTION: FNPT; BODY MATERIAL: BRASS; MEDIUM: AIR/GAS/OIL/WATER; POWER: 9.7 W; ORIFICE SIZE: 3/64 IN; DRAWING NO: M096-8417222/23P8 REV 1; CAT NO: T8262D19; REFERENCE NO: 364202; 8321A2; GENERAL PURPOSE ENCLOSURE"]
[17,"0062311","VALVE, SOLENOID: PIPE SIZE: 3/8 IN; STYLE: 2 WAY; POTENTIAL: 220 VDC; DESIGN RATING: 0.7/14 KGF/CM; CONNECTION: FNPT; BODY MATERIAL: BRASS; MEDIUM: AIR/GAS/OIL/WATER; POWER: 9.7 W; ORIFICE SIZE: 9/32 IN; REFERENCE NO: 364201; 8263D19; GENERAL PURPOSE ENCLOSURE"]
[18,"0062312","VALVE, SOLENOID: PIPE SIZE: 10 MM; STYLE: 4/2 WAY; POTENTIAL: 250 VAC; DESIGN RATING: 315 BAR; CONNECTION: COMPRESSION; BODY MATERIAL: STEEL; OPERATED: DC SOLENOID; ENCLOSURE RATING: IP54; MEDIUM: AIR/LIQUID; POWER: 36 W; MANUF P/N: S10G51G0230615MV; CAT NO: 52051.9000; HERION DIRECTIONAL CONTROL VALVE - PRESSURE TEST CERTIFICATES TO BE SUPPLIED ON DELIVERY"]
[19,"0062413","VALVE, SOLENOID: PIPE SIZE: 12 MM; STYLE: 4 WAY; POTENTIAL: 240 - 250 VDC; DESIGN RATING: 70-700 KPA; CONNECTION: FNPT; BODY MATERIAL: BRASS; OPERATED: PRESSURE; ENCLOSURE RATING: IP65 EN 60529; MEDIUM: AIR/OIL/WATER; POWER: 11.2 W; APPLICATION: BLOWDOWN COMPRESSOR; REFERENCE NO: WP8345E001; GENERAL PURPOSE ENCLOSURE; 240 VDC COIL"]
[20,"0062540","VALVE, SOLENOID: POTENTIAL: 220 V; SUPPL P/N: S2155"]
[21,"0062654","VALVE, GATE: VALVE SIZE: 200 MM; TYPE: SOLID WEDGE; CONNECTION: FLANGE; BODY MATERIAL: CI; TRIM: BONNET CI; OPERATED: HANDWHEEL; STEM DESIGN: RISING OUTSIDE SCREW; STYLE: BOLTED BONNET; SUPPL P/N: Y1501-11"]
[22,"0062790","VALVE, SOLENOID: PIPE SIZE: 8 MM; STYLE: 2 WAY; POTENTIAL: 120 VAC; DESIGN RATING: 150 LB; CONNECTION: FNPT; BODY MATERIAL: STEEL; MEDIUM: AIR/LIQUID; POWER: 10 W; ORIFICE SIZE: 1/16 X 3/64 IN; 60 HZ; GENERAL PURPOSE ENCLOSURE"]
[23,"0062793","VALVE, SOLENOID: PIPE SIZE: 100 MM; STYLE: 2 WAY; POTENTIAL: 110/120 VAC; DESIGN RATING: 2.5 MPA; CONNECTION: FLANGE; BODY MATERIAL: STEEL; OPERATED: SOLENOID; ENCLOSURE RATING: IP 65 (EN 60529); MEDIUM: WATER; POWER: 220 VAC; CURRENT: 0.45 A; APPLICATION: GEN BEARING COOLER CW FLOW CONTROL; SPECIFICATION: PED; MANUF P/N: 8651000.9504.22050; REFERENCE NO: 27148735 & 27148736; SOLENOID VALVE INCLUDING A PISTON TYPE 2-WAY VALVE AND ELECTRICAL SOLENOID; DUTY CYCLE: 100% ED; VOLTAGE: FREQUENCY: 50HZ; VALVE MECHANICAL DETAILS: VALVE TYPE: 2/2 WAY PISTON VALVE; OPERATING PRESSURE: 0 - 25 BAR; RATED FLOW RATE: 125 M3/H = 34.7 L/S;VALVE MECHANICAL INTERFACE (FLANGE) DETAILS: FLANGE-TO-FLANGE FACE DIMENSION: 350MM; FLANGE STANDARD AND CLASS/TABLE: 100NB BS 4504 16/3;FLANGE OD = Ø220.0MM; RAISED FACE DIAMETER = Ø158.0MM; RAISED FACE HEIGHT = 3.0MM; NUMBER OF BOLTS = 8; BOLT HOLE DIAMETER = Ø18.0MM."]
[24,"0063152","VALVE, GATE: VALVE SIZE: 3/4 IN; TYPE: SOLID WEDGE; CONNECTION: FLANGE; BODY MATERIAL: BRASS; TRIM: DISC BRS; OPERATED: HANDWHEEL; STEM DESIGN: INSIDE SCREW; STYLE: THD BONNET; NEEDLE VALVE; FLANGE SIZE 105MM O/D; 4 HOLES 14MM DIA PCD 75MM; BS 2060"]
[25,"0063348","VALVE, BALL: VALVE SIZE: 3/4 IN; DESIGN RATING: 1000 KPA; CONNECTION: FEMALE THD; OPERATED: LEVER; STYLE: 3 WAY; 3 PIECE; TRIM: BALL SS GR 316; SOFTGOODS: SEALS PTFE; GRADE: CF8M; ACID WATER OIL AND GAS; THROUGHWAY IN BALL TO BE 20 MM"]
[26,"0063385","SEAT: TYPE: DISC SAFETY VALVE; DIMENSIONS: SQ 0.514 IN; MATERIAL: 1.4122 DIN X 35CRMO17; SUPPL P/N: 018109610; 601267620; MODEL NO: VSE2.40.25.A.50.I.22.123; USED ON SEMPELL; POSITION CODE RL01S010, RL02S009, RL03S008"]
[27,"0065786","VALVE, GATE: VALVE SIZE: 250 MM; TYPE: SPHERICAL MANUAL BYPASS; CONNECTION: FLANGE; FACE TO FACE LENGTH: 250 MM; BODY MATERIAL: STEEL; OPERATED: HANDWHEEL; TEMPERATURE RATING: 16 DEG C; DESIGN RATING: 7.2 MPA; MAIN BY-PASS VALVE VOEST-ALPINE TYPE MB9-642-5320A ESKOM NO. 0.48/1121 DESIGNE PRESSURE = 7.2 MPA VALVE, BYPASS MAIN 5320 A"]
[28,"0065917","VALVE, RELIEF: VALVE SIZE: 45 X 40 MM; SET PRESSURE: 70 BAR; CONNECTION: NPT X FNPT; BODY MATERIAL: STL; TRIM: DISC/SPRING STL; OPERATED: PRESSURE, SPRING; SAFETY"]
[29,"0065928","BALL VLV:16 MM;STL"]
[30,"0066072","VALVE, CHECK: TYPE: PISTON; VALVE SIZE: 25 MM; CONNECTION: NPT; BODY MATERIAL: STAINLESS STEEL; STYLE: THD CAP; TRIM: DISC/CAP STL; NON-RETURN; EO; TUBE SIZE 25MM OD EO TUBE CONNECTION AT BOTH ENDS"]
[31,"0066074","VALVE, BALL: VALVE SIZE: 16 MM; DESIGN RATING: 100 BAR; TEMPERATURE RATING: -200 TO 200 DEG C; CONNECTION: NPT X FNPT; BODY MATERIAL: STEEL; OPERATED: LEVER; STYLE: 4 WAY; TRIM: BALL STL; SPECIFICATION: DIN 3230; PORT TYPE: 3 X MALE; 1 X FEMALE; APPLICATION: UPSTREAM SEAL CHANGE OVER VALVE; TYPE: MANUAL OPERATED; SUPPL P/N: 1017489; REFERENCE NO: 1017489; 3 MALE X 1 FEMALE; CHANGE-OVER; BLOCK; ARGUS"]
[32,"0066205","VALVE, RELIEF: SET PRESSURE: 60 BAR; REFERENCE NO: MB8-222-2450C60B; SAFETY"]
[33,"0066232","VALVE, DIAPHRAGM: VALVE SIZE: 15 MM; CONNECTION: FNPT; BODY MATERIAL: CI; DIAPHRAGM MATERIAL: RUBBER GR Q; OPERATED: HANDWHEEL; STYLE: WEIR; REFERENCE NO: A; SAUNDERS"]
[34,"0066529","VALVE, CHECK: TYPE: SWING; VALVE SIZE: 400 MM; DESIGN RATING: 16 BAR; CONNECTION: FLANGE; BODY MATERIAL: CS; TRIM: BONNET/DISC STEEL; REFERENCE NO: 16SMZ; CHECKRITE NON-RETURN; HYDRO. TEST CERTIFICATE REQUIRED FOR ALL VALVES"]
[35,"0066535","VALVE, BALL: VALVE SIZE: 1/2 IN; DESIGN RATING: 40 LB; TEMPERATURE RATING: 25 DEG C; CONNECTION: FNPT; BODY MATERIAL: STAINLESS STEEL; OPERATED: LEVER; STYLE: UNION BONNET; TRIM: BALL SS; BRASS; WITH FIXED FEMALE FLANGE EITHER END"]
[36,"0068148","VALVE, RELIEF: VALVE SIZE: 50 MM; SET PRESSURE: 35 KPA; CONNECTION: THD; BODY MATERIAL: STL; TRIM: BRASS; OPERATED: SPRING; PRESSURE RANGE: 2-20 LB; REFERENCE NO: MD0014; SAFETY; TYPE 616-2; TYPE: HLP"]
[37,"0070478","VALVE, RELIEF: VALVE SIZE: 50 X 32 MM; SET PRESSURE: 600 KPA; TEMPERATURE RATING: -10 TO 14 DEG C; CONNECTION: FLANGE; BODY MATERIAL: CI; TRIM: STAINLESS STEEL; OPERATED: PRESSURE; DESIGN RATING: 16 BAR; PRESSURE RANGE: 6 BAR; FIG NO: 4411/H2; REFERENCE NO: 16; SAFETY; INLET AND OUTLET PN16; TO SIZED TO DIN3320 AND TEST APPROVED IN ACCORDANCE WITH (AD-MERKBLATT A2); FLOW CAPACITY TO BE AT LEAST 35000 KG/HR"]
[38,"0071418","VALVE, GATE: VALVE SIZE: 250 MM; TYPE: SOLID WEDGE; DESIGN PRESSURE: 10 BAR; DESIGN TEMPERATURE: 0-100 DEG C; CONNECTION: FLANGE; FACE TO FACE LENGTH: 325 MM; BODY MATERIAL: STEEL CAST; TRIM: BONNET/DISC STEEL; OPERATED: HANDWHEEL; STEM DESIGN: RISING OS; STYLE: BOLTED BONNET; DESIGN RATING: 10 BAR; REFERENCE NO: FBS10K250; PCD"]
[39,"0072012","VALVE, BALL: VALVE SIZE: 50 MM; DESIGN RATING: 6 BAR; CONNECTION: FLANGE; BODY MATERIAL: STEEL; OPERATED: LEVER; STYLE: 2 WAY; TRIM: BALL STL; BOHMER; SERIES FK"]
[40,"0072040","VALVE, GATE: VALVE SIZE: 3 IN; TYPE: SOLID WEDGE; CONNECTION: FLANGE; BODY MATERIAL: STEEL; TRIM: SEAT 13CR; OPERATED: HANDWHEEL; STEM DESIGN: RISING OUTSIDE SCREW; STYLE: BOLTED BONNET; GRADE: WCB; DESIGN RATING: 150 LB; REFERENCE NO: 2H27347; CAST; HIRATA"]
[41,"0072046","VALVE, GATE: VALVE SIZE: 2-1/2 IN; CONNECTION: FLANGE; BODY MATERIAL: CS; DESIGN RATING: 150 LB; DRAWING NO: 2H27346 REV 1"]
[42,"0072057","VALVE, GATE: VALVE SIZE: 100 MM; CONNECTION: FLANGE; BODY MATERIAL: CS; DESIGN RATING: 150 LB; REFERENCE NO: 2H27354; HIRATA"]
[43,"0072058","VALVE, GATE: VALVE SIZE: 3/8 IN; TYPE: SOLID WEDGE; CONNECTION: FNPT; BODY MATERIAL: STEEL; TRIM: SEAT 13CR; OPERATED: HANDWHEEL; STEM DESIGN: RISING OUTSIDE SCREW; STYLE: BOLTED BONNET; DESIGN RATING: 600 LB; DRAWING NO: 2N27361 REV 1; FORGED; HIRATA"]
[44,"0072060","VALVE, GLOBE: VALVE SIZE: 10 MM; OPERATED: HANDWHEEL; CONNECTION: FNPT; BODY MATERIAL: SS FORGED; TRIM: SEAT 13CR; STEM DESIGN: RISING OUTSIDE SCREW; STYLE: BOLTED BONNET; DESIGN RATING: 150 LB; DRAWING NO: 2S18670 REV 1; 3/8 INCH; HIRATA"]
[45,"0072062","VALVE, GLOBE: VALVE SIZE: 1/2 IN; OPERATED: HANDWHEEL; CONNECTION: FLANGE; BODY MATERIAL: STL FORGED; TRIM: SEAT 13CR; STEM DESIGN: INSIDE SCREW; STYLE: BOLTED BONNET; DESIGN RATING: 150-800 LB; DRAWING NO: 2M18627 REV 1; HIRATA"]
[46,"0072645","VALVE: TYPE: HYDRAULIC; VALVE SIZE: 3/4 IN"]
[47,"0073053","VALVE, BUTTERFLY: TYPE: WAFER; VALVE SIZE: 75 MM; DESIGN RATING: 740 LB; TEMPERATURE RATING: -250 TO 500 DEG F; CONNECTION: FLANGE; BODY MATERIAL: STAINLESS STEEL; TRIM: DISC SS GR 316; ELECTRICAL; MINITORK ASSY TURB"]
[48,"0074427","SEAL, RING: TYPE: VALVE END; INSIDE DIAMETER: 58 MM; OUTSIDE DIAMETER: 62 MM; THICKNESS: 3 MM; MATERIAL: TEFLON; APPLICATION: VALVE; REFERENCE NO: 20117-16"]
[49,"0074956","VALVE, BALL: VALVE SIZE: 1-1/2 IN; DESIGN RATING: 600 LB; CONNECTION: BSP; BODY MATERIAL: CS; OPERATED: MANUAL; STYLE: 2 WAY; TRIM: BALL/STEM SS GR 304; SEAT PTFE"]
[50,"0077118","VALVE, RELIEF: VALVE SIZE: 1/4 IN; SET PRESSURE: 60 LB; CONNECTION: NPT; BODY MATERIAL: BRASS; TRIM: SPRING STL; STEM BRS; OPERATED: PRESSURE, SPRING; SUPPL P/N: 3W123 662T2; STOP"]
[51,"0077124","VALVE: TYPE: DISCHARGE; VALVE SIZE: 27 MM; CONNECTION: COMPRESSION; OPERATED: PRESSURE; BODY MATERIAL: STL; TRIM: DISC STL; REFERENCE NO: 30279459"]
[52,"0077134","VALVE, RELIEF: VALVE SIZE: 1/4 IN; SET PRESSURE: 1300 LB; CONNECTION: NPT; BODY MATERIAL: BRASS; TRIM: SPRING STL; OPERATED: PRESSURE, SPRING; MODEL NO: 15T2; REFERENCE NO: X1396T19-1300; SAFETY; FOR TYPE 30; ING-RAND COMPRESSOR"]
[53,"0077142","VALVE, RELIEF: VALVE SIZE: 1/4 IN; SET PRESSURE: 1300 LB; CONNECTION: NPT; BODY MATERIAL: BRASS; TRIM: SPRING STL; STEM BRS; OPERATED: PRESSURE, SPRING; REFERENCE NO: W123662T2; SAFETY; ING-RAND"]
[54,"0077155","VALVE, SOLENOID: PIPE SIZE: 10 MM; STYLE: 5 WAY; POTENTIAL: 220 VAC; DESIGN RATING: 315 BAR; BODY MATERIAL: STEEL; MEDIUM: OIL; REFERENCE NO: S10G51G020001100; 35 HZ; CONNECTION MANIFOLD; GENERAL PURPOSE ENCLOSURE; PUMP PILOT VALVE"]
[55,"0077157","VALVE: TYPE: EXHAUST; VALVE SIZE: 15 MM; CONNECTION: THD FEMALE; OPERATED: PRESSURE; BODY MATERIAL: ALUMINIUM; STYLE: 3 WAY; TRIM: BONNET AL; REFERENCE NO: 3340 B 10 HD-D6461; SCHOVILL SCHREIDER QUICK SHUTTLE VALVES"]
[56,"0077165","VALVE, BALL: VALVE SIZE: 25 MM; DESIGN RATING: 315 LB; CONNECTION: FNPT; BODY MATERIAL: STEEL; OPERATED: LEVER; STYLE: 2 WAY; BOHMER BLOCK"]
[57,"0077169","VALVE, GATE: VALVE SIZE: 100 MM; TYPE: SOLID WEDGE; CONNECTION: FLANGE; BODY MATERIAL: STEEL; TRIM: BONNET STL; OPERATED: HYDRAULIC; STEM DESIGN: RISING OUTSIDE SCREW; STYLE: BOLTED BONNET; DESIGN RATING: 150 LB; REFERENCE NO: 20WRC; RUNNER COOLING WATER SUPPLY AUTO"]
[58,"0077200","VALVE: TYPE: SUCTION; VALVE SIZE: 167 MM; CONNECTION: COMPRESSION; OPERATED: PRESSURE; BODY MATERIAL: STL; TRIM: DISC STL; REFERENCE NO: HT303809; 1ST STAGE"]
[59,"0077201","VALVE: TYPE: DISCHARGE; VALVE SIZE: 145 MM; CONNECTION: COMPRESSION; OPERATED: PRESSURE; BODY MATERIAL: STL; TRIM: DISC STL; REFERENCE NO: HT303812; ASSEMBLY; 2ND STAGE"]
[60,"0077202","VALVE: TYPE: DISCHARGE; VALVE SIZE: 103.7 MM; DESIGN RATING: 0-250 DEG C; TEMPERATURE RATING: 0-250 DEG C; CONNECTION: COMPRESSION; OPERATED: PRESSURE; BODY MATERIAL: STL; TRIM: DISC STL; REFERENCE NO: HT303814; ASSEMBLY; 3RD STAGE"]
[61,"0077203","VALVE: TYPE: DISCHARGE; VALVE SIZE: 104.4 MM; CONNECTION: COMPRESSION; OPERATED: PRESSURE; BODY MATERIAL: STL; TRIM: DISC STL; REFERENCE NO: HT303816; ASSEMBLY; 4TH STAGE"]
[62,"0077242","VALVE, ANGLE: TYPE: GLOBE; VALVE SIZE: 100 MM; DESIGN RATING: 600 LB; CONNECTION: FLANGE; BODY MATERIAL: STL; OPERATED: HYDRAULIC; STYLE: BOLTED BONNET; TRIM: BONNET/STEM STL; DRAWING NO: M-6WO78AG8 REV 1; REFERENCE NO: 20DA1/2; AIR ADMISSION; FOR TAIL WATER DEPRESSING"]
[63,"0177857","VALVE: TYPE: CONTROL; VALVE SIZE: 38 MM; CONNECTION: FLANGE; OPERATED: AIR; BODY MATERIAL: CS; STYLE: BOLTED BONNET; TRIM: DISC STL"]
[64,"0178035","VALVE, RELIEF: REFERENCE NO: 0523C"]
[65,"0233792","VALVE, SOLENOID: PIPE SIZE: DN15; STYLE: 2 WAY; POTENTIAL: 220 VDC; DESIGN RATING: 100 BAR; CONNECTION: FLANGE; BODY MATERIAL: GR 1.4404/1.4571; OPERATED: NO; ENCLOSURE RATING: IP65; MEDIUM: HEIZOL; CURRENT: 0.22 A; ORIFICE SIZE: DN 15; COIL: 220 V DC; MANUF P/N: FK15NO1E; SUPPL P/N: A2A50187268; REFERENCE NO: PB0000144283; 503443; 2.5 M3/HR; WITH 4 X 14 MM DIA HOLES DRILLED INTO FLANGE"]
[66,"0233792","VALVE, SOLENOID: PIPE SIZE: DN15; STYLE: 2 WAY; POTENTIAL: 220 VDC; DESIGN RATING: 100 BAR; CONNECTION: FLANGE; BODY MATERIAL: GR 1.4404/1.4571; OPERATED: NO; ENCLOSURE RATING: IP65; MEDIUM: HEIZOL; CURRENT: 0.22 A; ORIFICE SIZE: DN 15; COIL: 220 V DC; MANUF P/N: FK15NO1E; SUPPL P/N: A2A50187268; REFERENCE NO: PB0000144283; 503443; 2.5 M3/HR; WITH 4 X 14 MM DIA HOLES DRILLED INTO FLANGE"]
[67,"0233844","VALVE, CHECK: BODY MATERIAL: CI; SUPPL P/N: MBV30AA201; C5V08311B5; LIFTING OIL; KKS; FOR USE ON LIFTING OIL PUMP MBV BASE PIPING ON GT AUX SYSTEM"]
[68,"0233844","VALVE, CHECK: BODY MATERIAL: CI; SUPPL P/N: MBV30AA201; C5V08311B5; LIFTING OIL; KKS; FOR USE ON LIFTING OIL PUMP MBV BASE PIPING ON GT AUX SYSTEM"]
[69,"0233849","VALVE, BALL: VALVE SIZE: 1 IN; DESIGN RATING: 40 BAR; CONNECTION: BSP; BODY MATERIAL: STAINLESS STEEL; OPERATED: LEVER; STYLE: 1 WAY; TRIM: STAINLESS STEEL; SOFTGOODS: PTFE; SUPPL P/N: MBV23AA412; REFERENCE NO: SLV3800141; MBV25AA401; WITH ATTACHMENT, KKS; FOR USE ON LUBE OIL FILTER ON MBV BASE PIPING ON GT AUX SYSTEM"]
[70,"0233849","VALVE, BALL: VALVE SIZE: 1 IN; DESIGN RATING: 40 BAR; CONNECTION: BSP; BODY MATERIAL: STAINLESS STEEL; OPERATED: LEVER; STYLE: 1 WAY; TRIM: STAINLESS STEEL; SOFTGOODS: PTFE; SUPPL P/N: MBV23AA412; REFERENCE NO: SLV3800141; MBV25AA401; WITH ATTACHMENT, KKS; FOR USE ON LUBE OIL FILTER ON MBV BASE PIPING ON GT AUX SYSTEM"]
[71,"0233850","VALVE: TYPE: ISOLATING; VALVE SIZE: NB 4; DESIGN RATING: 400 BAR; CONNECTION: BSP; OPERATED: HANDWHEEL; BODY MATERIAL: 1.046; STYLE: ISOLATE/VENT; REFERENCE NO: MBV31AA301; MBV31AA305; MBV21AA301; MBV23AA301; FOR USE ON GT AUX SYSTEMS"]
[72,"0233850","VALVE: TYPE: ISOLATING; VALVE SIZE: NB 4; DESIGN RATING: 400 BAR; CONNECTION: BSP; OPERATED: HANDWHEEL; BODY MATERIAL: 1.046; STYLE: ISOLATE/VENT; REFERENCE NO: MBV31AA301; MBV31AA305; MBV21AA301; MBV23AA301; FOR USE ON GT AUX SYSTEMS"]
[73,"0233851","VALVE: TYPE: BALANCE; VALVE SIZE: 3/8 IN; DESIGN RATING: 16 BAR; TEMPERATURE RATING: 80-100 DEG C; CONNECTION: 3/8 IN-BSPP; OPERATED: KNOB; BODY MATERIAL: STL HARDENED BS 970; SPECIFICATION: 305000; SPECIAL FEATURES: HAND WHEEL; STL VERSION; MANUF P/N: 305000; REFERENCE NO: SLV3800141; MBV25AA252; FOR USE ON LUBE OIL FILTER ON MBV BASE PIPING ON GT AUX SYSTEM"]
[74,"0233851","VALVE: TYPE: BALANCE; VALVE SIZE: 3/8 IN; DESIGN RATING: 16 BAR; TEMPERATURE RATING: 80-100 DEG C; CONNECTION: 3/8 IN-BSPP; OPERATED: KNOB; BODY MATERIAL: STL HARDENED BS 970; SPECIFICATION: 305000; SPECIAL FEATURES: HAND WHEEL; STL VERSION; MANUF P/N: 305000; REFERENCE NO: SLV3800141; MBV25AA252; FOR USE ON LUBE OIL FILTER ON MBV BASE PIPING ON GT AUX SYSTEM"]
[75,"0233857","VALVE, BUTTERFLY: TYPE: WAFER; VALVE SIZE: 150 MM; DESIGN RATING: PN16; TEMPERATURE RATING: -10 TO 80 DEG C; CONNECTION: FLANGE; BODY MATERIAL: STEEL; OPERATED: HANDLEVER; TRIM: STAINLESS STEEL; SOFTGOODS: RUBBER; REFERENCE NO: MBV21AA254; ECLS 71391; FOR USE ON MBV BASE PIPING ON GT AUX SYSTEM"]
[76,"0233857","VALVE, BUTTERFLY: TYPE: WAFER; VALVE SIZE: 150 MM; DESIGN RATING: PN16; TEMPERATURE RATING: -10 TO 80 DEG C; CONNECTION: FLANGE; BODY MATERIAL: STEEL; OPERATED: HANDLEVER; TRIM: STAINLESS STEEL; SOFTGOODS: RUBBER; REFERENCE NO: MBV21AA254; ECLS 71391; FOR USE ON MBV BASE PIPING ON GT AUX SYSTEM"]
[77,"0233859","VALVE: TYPE: THROTTLE; CONNECTION: BOLTED; OPERATED: SCREW DOWN; BODY MATERIAL: STL; STYLE: 1 WAY; TRIM: STL; REFERENCE NO: MBV22AA281; FOR MBV BASE PIPING ON GT AUX SYSTEM"]
[78,"0233871","VALVE, RELIEF: BODY MATERIAL: CAST IRON; DESIGN RATING: 210 BAR; SUPPL P/N: MBA30AA191; R5V 08 593 32 A5 152 210; REFERENCE NO: SLV 3720522; PARKER; KKS: FOR LIFTING OIL PUMP ON GT AUX SYSTEM"]
[79,"0233871","VALVE, RELIEF: BODY MATERIAL: CAST IRON; DESIGN RATING: 210 BAR; SUPPL P/N: MBA30AA191; R5V 08 593 32 A5 152 210; REFERENCE NO: SLV 3720522; PARKER; KKS: FOR LIFTING OIL PUMP ON GT AUX SYSTEM"]
[80,"0233872","VALVE, RELIEF: BODY MATERIAL: CI; SUPPL P/N: R4V06 535 30 A5; MBV31AA151; REFERENCE NO: SLV3860114; PARKER, KKS; FOR CONTROL BLOCK LIFTING OIL ON MBV BASE PIPING ON GT AUX SYSTEM"]
[81,"0233872","VALVE, RELIEF: BODY MATERIAL: CI; SUPPL P/N: R4V06 535 30 A5; MBV31AA151; REFERENCE NO: SLV3860114; PARKER, KKS; FOR CONTROL BLOCK LIFTING OIL ON MBV BASE PIPING ON GT AUX SYSTEM"]
[82,"0233891","VALVE, BALL: VALVE SIZE: 1/4 IN; DESIGN RATING: 65; CONNECTION: THD; BODY MATERIAL: STAINLESS STEEL; OPERATED: LEVER; STYLE: 1 WAY; TRIM: STAINLESS STEEL; SOFTGOODS: TEFLON; SUPPL P/N: MBV50AA503; KKS; USED ON MBV BASE PIPING ON GT AUX SYSTEMS"]
[83,"0233891","VALVE, BALL: VALVE SIZE: 1/4 IN; DESIGN RATING: 65; CONNECTION: THD; BODY MATERIAL: STAINLESS STEEL; OPERATED: LEVER; STYLE: 1 WAY; TRIM: STAINLESS STEEL; SOFTGOODS: TEFLON; SUPPL P/N: MBV50AA503; KKS; USED ON MBV BASE PIPING ON GT AUX SYSTEMS"]
[84,"0233892","VALVE, BALL: VALVE SIZE: 1/2 IN; DESIGN RATING: 65 BAR; CONNECTION: THD; BODY MATERIAL: STAINLESS STEEL; OPERATED: LEVER; STYLE: 1 WAY; TRIM: STAINLESS STEEL; SOFTGOODS: TEFLON; SUPPL P/N: MBV21AA403; KKS; USED ON MBV BASE PIPING ON GT AUX SYSTEMS"]
[85,"0233892","VALVE, BALL: VALVE SIZE: 1/2 IN; DESIGN RATING: 65 BAR; CONNECTION: THD; BODY MATERIAL: STAINLESS STEEL; OPERATED: LEVER; STYLE: 1 WAY; TRIM: STAINLESS STEEL; SOFTGOODS: TEFLON; SUPPL P/N: MBV21AA403; KKS; USED ON MBV BASE PIPING ON GT AUX SYSTEMS"]
[86,"0233893","VALVE, BALL: VALVE SIZE: 3/4 IN; DESIGN RATING: 40; CONNECTION: THD; BODY MATERIAL: STAINLESS STEEL; OPERATED: LEVER; STYLE: 1 WAY; TRIM: STAINLESS STEEL; SOFTGOODS: TEFLON; SUPPL P/N: MBV26AA401; KKS; USED ON MBV BASE PIPING ON GT AUX SYSTEMS"]
[87,"0233893","VALVE, BALL: VALVE SIZE: 3/4 IN; DESIGN RATING: 40; CONNECTION: THD; BODY MATERIAL: STAINLESS STEEL; OPERATED: LEVER; STYLE: 1 WAY; TRIM: STAINLESS STEEL; SOFTGOODS: TEFLON; SUPPL P/N: MBV26AA401; KKS; USED ON MBV BASE PIPING ON GT AUX SYSTEMS"]
[88,"0233895","VALVE, RELIEF: VALVE SIZE: 3/4 X 1/2 IN; SET PRESSURE: 10 BAR; CONNECTION: BSP; BODY MATERIAL: BRASS; TRIM: BRASS; OPERATED: PRESSURE; SUPPL P/N: MBV23AA191; KKS; USED ON GT AUX SYSTEMS"]
[89,"0233895","VALVE, RELIEF: VALVE SIZE: 3/4 X 1/2 IN; SET PRESSURE: 10 BAR; CONNECTION: BSP; BODY MATERIAL: BRASS; TRIM: BRASS; OPERATED: PRESSURE; SUPPL P/N: MBV23AA191; KKS; USED ON GT AUX SYSTEMS"]
[90,"0233896","VALVE: TYPE: THROTTLE; OPERATED: KEY LOCK; BODY MATERIAL: STL; REFERENCE NO: MBV31AA285; USED ON CONTROL BLOCK ON MBV BASE PIPING ON GT AUX SYSTEMS"]
[91,"0233896","VALVE: TYPE: THROTTLE; OPERATED: KEY LOCK; BODY MATERIAL: STL; REFERENCE NO: MBV31AA285; USED ON CONTROL BLOCK ON MBV BASE PIPING ON GT AUX SYSTEMS"]
[92,"0233898","VALVE, BALL: VALVE SIZE: 2 IN; DESIGN RATING: 40 BAR; CONNECTION: THD; BODY MATERIAL: STAINLESS STEEL; OPERATED: LEVER; STYLE: 1 WAY; TRIM: STAINLESS STEEL; SOFTGOODS: TEFLON; SUPPL P/N: MBV10AA401; KKS; USED ON MBV BASE PIPING ON GT AUX SYSTEMS"]
[93,"0233898","VALVE, BALL: VALVE SIZE: 2 IN; DESIGN RATING: 40 BAR; CONNECTION: THD; BODY MATERIAL: STAINLESS STEEL; OPERATED: LEVER; STYLE: 1 WAY; TRIM: STAINLESS STEEL; SOFTGOODS: TEFLON; SUPPL P/N: MBV10AA401; KKS; USED ON MBV BASE PIPING ON GT AUX SYSTEMS"]
[94,"0233901","VALVE, CHECK: TYPE: NON RETURN; VALVE SIZE: 150 MM; DESIGN RATING: 10-40 BAR; CONNECTION: FLANGE; STYLE: 1 WAY; TRIM: 1.4408; GRADE: 1.057; SUPPL P/N: MBV21AA201; KKS, USED ON MBV BASE PIPING ON GT AUX SYSTEMS"]
[95,"0233901","VALVE, CHECK: TYPE: NON RETURN; VALVE SIZE: 150 MM; DESIGN RATING: 10-40 BAR; CONNECTION: FLANGE; STYLE: 1 WAY; TRIM: 1.4408; GRADE: 1.057; SUPPL P/N: MBV21AA201; KKS, USED ON MBV BASE PIPING ON GT AUX SYSTEMS"]
[96,"0235772","VALVE: TYPE: ISOLATING GAUGE; VALVE SIZE: NB 4; DESIGN RATING: PN400; CONNECTION: THD 1/2 IN; OPERATED: MANUAL; BODY MATERIAL: 1.4571; STYLE: 1 WAY; TRIM: GR 1.4571; SOFTGOODS: GR 1.4571; WITH ONE KNOB; USED ON GAS 1 AUX SYSTEM"]
[97,"0235772","VALVE: TYPE: ISOLATING GAUGE; VALVE SIZE: NB 4; DESIGN RATING: PN400; CONNECTION: THD 1/2 IN; OPERATED: MANUAL; BODY MATERIAL: 1.4571; STYLE: 1 WAY; TRIM: GR 1.4571; SOFTGOODS: GR 1.4571; WITH ONE KNOB; USED ON GAS 1 AUX SYSTEM"]
[98,"0235774","VALVE: TYPE: ISOLATING; VALVE SIZE: 1 IN; DESIGN RATING: PN40; CONNECTION: THD 30 MM; OPERATED: MANUAL; BODY MATERIAL: STL; STYLE: 1 WAY; TRIM: STAINLESS STEEL; SOFTGOODS: STAINLESS STEEL; SUPPL P/N: S90; USED ON GAS 1 AUX SYSTEM"]
[99,"0235781","VALVE, CHECK: VALVE SIZE: 80; DESIGN RATING: PN16; BODY MATERIAL: BRZ; OPERATED: SPRING; STYLE: 1 WAY; TRIM: DISC SS; SOFTGOODS: STAINLESS STEEL; SUPPL P/N: RK71; NON RETURN; WITH SPIRAL CENTERING RING; USED ON GAS 1 AUX SYSTEM; TEMPERATURE RATING: 13 BAR AT 250 DEG CEL"]
[100,"0235781","VALVE, CHECK: VALVE SIZE: 80; DESIGN RATING: PN16; BODY MATERIAL: BRZ; OPERATED: SPRING; STYLE: 1 WAY; TRIM: DISC SS; SOFTGOODS: STAINLESS STEEL; SUPPL P/N: RK71; NON RETURN; WITH SPIRAL CENTERING RING; USED ON GAS 1 AUX SYSTEM; TEMPERATURE RATING: 13 BAR AT 250 DEG CEL"]
[101,"0235783","VALVE, RELIEF: VALVE SIZE: 3/4 IN; TEMPERATURE RATING: 130 DEG C; CONNECTION: FEMALE THD; BODY MATERIAL: CRNIMO-STAHL; OPERATED: AIR; DESIGN RATING: PN16; PRESSURE RANGE: 0-16 BAR; REFERENCE NO: 7146002; MANKENBURG; USED ON GAS 1 AUX SYSTEM."]
[102,"0235783","VALVE, RELIEF: VALVE SIZE: 3/4 IN; TEMPERATURE RATING: 130 DEG C; CONNECTION: FEMALE THD; BODY MATERIAL: CRNIMO-STAHL; OPERATED: AIR; DESIGN RATING: PN16; PRESSURE RANGE: 0-16 BAR; REFERENCE NO: 7146002; MANKENBURG; USED ON GAS 1 AUX SYSTEM."]
[103,"0238889","VALVE: TYPE: GAGE ISOLATING; VALVE SIZE: 4 MM; DESIGN RATING: PN400; CONNECTION: 1/2 IN-BSP; OPERATED: MANUAL; BODY MATERIAL: CI; STYLE: 1 WAY; TRIM: CI; REFERENCE NO: 061462-9515.002; COMPLETE WITH BLEED DOWN SCREW; USED ON GAS 1 PLANT"]
[104,"0238889","VALVE: TYPE: GAGE ISOLATING; VALVE SIZE: 4 MM; DESIGN RATING: PN400; CONNECTION: 1/2 IN-BSP; OPERATED: MANUAL; BODY MATERIAL: CI; STYLE: 1 WAY; TRIM: CI; REFERENCE NO: 061462-9515.002; COMPLETE WITH BLEED DOWN SCREW; USED ON GAS 1 PLANT"]
[105,"0239052","VALVE, BALL: VALVE SIZE: 1/2 IN; DESIGN RATING: 16 BAR; CONNECTION: THD FEMALE; BODY MATERIAL: STAINLESS STEEL; OPERATED: WING GREEN; STYLE: 1 WAY; TRIM: TEFLON; FOR USE ON GAS 1 PLANT"]
[106,"0239052","VALVE, BALL: VALVE SIZE: 1/2 IN; DESIGN RATING: 16 BAR; CONNECTION: THD FEMALE; BODY MATERIAL: STAINLESS STEEL; OPERATED: WING GREEN; STYLE: 1 WAY; TRIM: TEFLON; FOR USE ON GAS 1 PLANT"]
[107,"0239053","VALVE, RELIEF: VALVE SIZE: 1 IN; SET PRESSURE: 5.6 BAR; CONNECTION: THD; BODY MATERIAL: CI; OPERATED: PRESSURE; STYLE: 1 WAY; SUPPL P/N: 4593.2504; FOR USE ON GAS 1 PLANT"]
[108,"0239053","VALVE, RELIEF: VALVE SIZE: 1 IN; SET PRESSURE: 5.6 BAR; CONNECTION: THD; BODY MATERIAL: CI; OPERATED: PRESSURE; STYLE: 1 WAY; SUPPL P/N: 4593.2504; FOR USE ON GAS 1 PLANT"]
[109,"0239054","VALVE, RELIEF: VALVE SIZE: 1 IN; SET PRESSURE: 6 BAR; CONNECTION: THD; BODY MATERIAL: CI; OPERATED: PRESSURE; STYLE: 1 WAY; SUPPL P/N: 4603.7863; TYPE SAFETY; TYPE LESER; FOR USE ON GAS 1 PLANT"]
[110,"0239054","VALVE, RELIEF: VALVE SIZE: 1 IN; SET PRESSURE: 6 BAR; CONNECTION: THD; BODY MATERIAL: CI; OPERATED: PRESSURE; STYLE: 1 WAY; SUPPL P/N: 4603.7863; TYPE SAFETY; TYPE LESER; FOR USE ON GAS 1 PLANT"]
[111,"0239062","VALVE, BALL: VALVE SIZE: 150 MM; CONNECTION: FLANGE; BODY MATERIAL: STL; STYLE: 1 WAY; TO BE SUPPLIED WITH ACTUATOR; FOR USE ON GAS 1 PLANT"]
[112,"0239649","VALVE, BALL: VALVE SIZE: 1/2 IN; DESIGN RATING: 16; TEMPERATURE RATING: -20 TO 130 DEG C; CONNECTION: THD 1/2 IN; BODY MATERIAL: BRS NICKEL PLTD; FACE TO FACE LENGTH: 50 MM; OPERATED: LEVER; STYLE: 1 WAY VALVE AND PLUG; APPLICATION: WATER; SUPPL P/N: 305220108"]
[113,"0239649","VALVE, BALL: VALVE SIZE: 1/2 IN; DESIGN RATING: 16; TEMPERATURE RATING: -20 TO 130 DEG C; CONNECTION: THD 1/2 IN; BODY MATERIAL: BRS NICKEL PLTD; FACE TO FACE LENGTH: 50 MM; OPERATED: LEVER; STYLE: 1 WAY VALVE AND PLUG; APPLICATION: WATER; SUPPL P/N: 305220108"]
[114,"0239669","VALVE, SOLENOID: PIPE SIZE: DN15; STYLE: 2/2 WAY; POTENTIAL: 24 VDC; DESIGN RATING: 0-40 BAR; CONNECTION: FLANGE; BODY MATERIAL: STAINLESS STEEL; OPERATED: SOLENOID; ENCLOSURE RATING: IP65; MEDIUM: DEMINIRALIZED WATER 70; POWER: 24 V X 1.6 A; CURRENT: 1.6 A; ORIFICE SIZE: DN 15; SOFTGOODS: SEAL VITON; APPLICATION: DEMIN WATER; SPECIFICATION: COAX VALVE; MANUF P/N: FK15NC; REFERENCE NO: 513465"]
[115,"0239669","VALVE, SOLENOID: PIPE SIZE: DN15; STYLE: 2/2 WAY; POTENTIAL: 24 VDC; DESIGN RATING: 0-40 BAR; CONNECTION: FLANGE; BODY MATERIAL: STAINLESS STEEL; OPERATED: SOLENOID; ENCLOSURE RATING: IP65; MEDIUM: DEMINIRALIZED WATER 70; POWER: 24 V X 1.6 A; CURRENT: 1.6 A; ORIFICE SIZE: DN 15; SOFTGOODS: SEAL VITON; APPLICATION: DEMIN WATER; SPECIFICATION: COAX VALVE; MANUF P/N: FK15NC; REFERENCE NO: 513465"]
[116,"0239684","VALVE, RELIEF: VALVE SIZE: 1 IN; SET PRESSURE: 10 BAR; CONNECTION: THD; BODY MATERIAL: BRASS; TRIM: BRASS; OPERATED: PRESSURE; DESIGN RATING: 25 BAR; PRESSURE RANGE: 0-25 BAR; SUPPL P/N: TUVSV 03-581 18"]
[117,"0239684","VALVE, RELIEF: VALVE SIZE: 1 IN; SET PRESSURE: 10 BAR; CONNECTION: THD; BODY MATERIAL: BRASS; TRIM: BRASS; OPERATED: PRESSURE; DESIGN RATING: 25 BAR; PRESSURE RANGE: 0-25 BAR; SUPPL P/N: TUVSV 03-581 18"]
[118,"0239791","VALVE, RELIEF: VALVE SIZE: DN 32, 140 MM; SET PRESSURE: 22 BAR; CONNECTION: FLANGE, 140 MM; BODY MATERIAL: STAINLESS STEEL; TRIM: STAINLESS STEEL; FACE TO FACE LENGTH: 275 MM; OPERATED: SPRING; APPLICATION: TURBINE PURGE WATER OVERFLOW CONTROL; GRADE: 1.4408; DESIGN RATING: PN40; VALVE MADE OF CAST STEEL; SEAT,CONE,GUID CONE SPINDLE OF HIGH QUALITY STEEL; CENTRAL SPRING, DIN PN40; WILLEM SCHLEY HAMBURG - OVERFLOW VALVE MODEL T27"]
[119,"0239791","VALVE, RELIEF: VALVE SIZE: DN 32, 140 MM; SET PRESSURE: 22 BAR; CONNECTION: FLANGE, 140 MM; BODY MATERIAL: STAINLESS STEEL; TRIM: STAINLESS STEEL; FACE TO FACE LENGTH: 275 MM; OPERATED: SPRING; APPLICATION: TURBINE PURGE WATER OVERFLOW CONTROL; GRADE: 1.4408; DESIGN RATING: PN40; VALVE MADE OF CAST STEEL; SEAT,CONE,GUID CONE SPINDLE OF HIGH QUALITY STEEL; CENTRAL SPRING, DIN PN40; WILLEM SCHLEY HAMBURG - OVERFLOW VALVE MODEL T27"]
[120,"0239795","VALVE, CHECK: TYPE: NON RETURN; VALVE SIZE: 150 MM; DESIGN RATING: PN40; CONNECTION: FLANGE; BODY MATERIAL: STAINLESS STEEL; STYLE: 1 WAY; TRIM: STAINLESS STEEL; SUPPL P/N: RK86A"]
[121,"0239795","VALVE, CHECK: TYPE: NON RETURN; VALVE SIZE: 150 MM; DESIGN RATING: PN40; CONNECTION: FLANGE; BODY MATERIAL: STAINLESS STEEL; STYLE: 1 WAY; TRIM: STAINLESS STEEL; SUPPL P/N: RK86A"]
[122,"0250048","VALVE, CHECK: APPLICATION: CENTRIFUGES; MANUF P/N: 176289482; CAPACITY 2.8 L/MIN"]
[123,"0250048","VALVE, CHECK: APPLICATION: CENTRIFUGES; MANUF P/N: 176289482; CAPACITY 2.8 L/MIN"]
[124,"0250049","VALVE, CHECK: APPLICATION: CENTRIFUGES; MANUF P/N: 176289486; OPERATED FLOW, CAPACITY 23 L/MIN"]
[125,"0250049","VALVE, CHECK: APPLICATION: CENTRIFUGES; MANUF P/N: 176289486; OPERATED FLOW, CAPACITY 23 L/MIN"]
[126,"0250052","VALVE, SOLENOID: PIPE SIZE: 3/4 X 1 IN; STYLE: 4/2 WAY; POTENTIAL: 24 VDC; DESIGN RATING: 17 BAR; CONNECTION: NPT; BODY MATERIAL: BRASS; OPERATED: ELECTRONIC; ENCLOSURE RATING: IP65; MEDIUM: OIL/WATER; POWER: 11.6 W; CURRENT: 0.48 A; ORIFICE SIZE: 19 MM; COIL: SINGLE; APPLICATION: SSS CLUTCH; SPECIFICATION: SOLINOID VALVE; MANUF P/N: SC8344G076; REFERENCE NO: SC8344G076"]
[127,"0250052","VALVE, SOLENOID: PIPE SIZE: 3/4 X 1 IN; STYLE: 4/2 WAY; POTENTIAL: 24 VDC; DESIGN RATING: 17 BAR; CONNECTION: NPT; BODY MATERIAL: BRASS; OPERATED: ELECTRONIC; ENCLOSURE RATING: IP65; MEDIUM: OIL/WATER; POWER: 11.6 W; CURRENT: 0.48 A; ORIFICE SIZE: 19 MM; COIL: SINGLE; APPLICATION: SSS CLUTCH; SPECIFICATION: SOLINOID VALVE; MANUF P/N: SC8344G076; REFERENCE NO: SC8344G076"]
[128,"0250052","VALVE, SOLENOID: PIPE SIZE: 3/4 X 1 IN; STYLE: 4/2 WAY; POTENTIAL: 24 VDC; DESIGN RATING: 17 BAR; CONNECTION: NPT; BODY MATERIAL: BRASS; OPERATED: ELECTRONIC; ENCLOSURE RATING: IP65; MEDIUM: OIL/WATER; POWER: 11.6 W; CURRENT: 0.48 A; ORIFICE SIZE: 19 MM; COIL: SINGLE; APPLICATION: SSS CLUTCH; SPECIFICATION: SOLINOID VALVE; MANUF P/N: SC8344G076; REFERENCE NO: SC8344G076"]
[129,"0256828","VALVE: TYPE: LIQUID FUEL METERING; VALVE SIZE: 193.5 MM2; DESIGN RATING: 345 KPA; TEMPERATURE RATING: -28 TO +103 DEG C; CONNECTION: BASE; OPERATED: ELECTRICAL; BODY MATERIAL: METAL; MANUF P/N: LQ25, 9907-361; SUPPL P/N: LQ25T"]
[130,"0256828","VALVE: TYPE: LIQUID FUEL METERING; VALVE SIZE: 193.5 MM2; DESIGN RATING: 345 KPA; TEMPERATURE RATING: -28 TO +103 DEG C; CONNECTION: BASE; OPERATED: ELECTRICAL; BODY MATERIAL: METAL; MANUF P/N: LQ25, 9907-361; SUPPL P/N: LQ25T"]
[131,"0257026","VALVE, BALL: VALVE SIZE: 40 MM; DESIGN RATING: 100; TEMPERATURE RATING: -10 TO 200 DEG C; CONNECTION: FLANGE; BODY MATERIAL: STEEL; FACE TO FACE LENGTH: 250; OPERATED: ACTUATOR ELECTRIC; GRADE: I54; TYPE: PREMIX"]
[132,"0257026","VALVE, BALL: VALVE SIZE: 40 MM; DESIGN RATING: 100; TEMPERATURE RATING: -10 TO 200 DEG C; CONNECTION: FLANGE; BODY MATERIAL: STEEL; FACE TO FACE LENGTH: 250; OPERATED: ACTUATOR ELECTRIC; GRADE: I54; TYPE: PREMIX"]
[133,"0257160","VALVE, BALL: VALVE SIZE: 40 MM; DESIGN RATING: 100; TEMPERATURE RATING: -70 TO 300 DEG C; CONNECTION: FLANGE; BODY MATERIAL: STAINLESS STEEL; FACE TO FACE LENGTH: 250; OPERATED: ACTUATOR; TYPE: DIFFUSION"]
[134,"0401291","VALVE, BALL: VALVE SIZE: 3/4 IN; OPERATED: HANDLE; TYPE: STOP"]
[135,"0403617","VALVE, RELIEF: APPLICATION: LATCO PRESSURE CONTROL; DESIGN RATING: 400 KPA"]
[136,"0502387","VALVE: TYPE: COMPRESSOR 3RD STAGE; OPERATED: AUTOMATIC; BODY MATERIAL: STL; SUPPL P/N: 31517725"]
[137,"0502388","VALVE: TYPE: COMPRESSOR 2ND STAGE; OPERATED: AUTOMATIC; BODY MATERIAL: STL; SUPPL P/N: 37004827"]
[138,"0502396","VALVE: TYPE: 1ST STAGE; VALVE SIZE: 164MM X 85 IN; TEMPERATURE RATING: 0-250 DEG C; CONNECTION: COMPRESSION; OPERATED: AUTOMATIC; BODY MATERIAL: STEEL; MANUF P/N: 37101946"]
[139,"0553121","VALVE, SOLENOID: PIPE SIZE: 1/2 IN; STYLE: (2) PIPE CONNECTIONS; (1) SOLENOID; POTENTIAL: 220 VDC; DESIGN RATING: 0-100 BAR; CONNECTION: TERMINAL; BODY MATERIAL: GS/BRS; OPERATED: COIL; ENCLOSURE RATING: IP65; MEDIUM: DIESEL; POWER: 40 W; CURRENT: 0.17 A DC; ORIFICE SIZE: G 1/2 IN; COIL: 220 VOLT DC INSULATION CLASS - H; SOFTGOODS: VITON SEALS; APPLICATION: DIFFUSION/PREMIX FUEL LINES V9214 GAS TURBINES; SPECIFICATION: MK15NC2E; CLASSIFICATION: E X NA11 T3; MANUF P/N: MK15NC2E; 523181; TERMINAL 130 X M15 X 1.5 MM"]
[140,"0553121","VALVE, SOLENOID: PIPE SIZE: 1/2 IN; STYLE: (2) PIPE CONNECTIONS; (1) SOLENOID; POTENTIAL: 220 VDC; DESIGN RATING: 0-100 BAR; CONNECTION: TERMINAL; BODY MATERIAL: GS/BRS; OPERATED: COIL; ENCLOSURE RATING: IP65; MEDIUM: DIESEL; POWER: 40 W; CURRENT: 0.17 A DC; ORIFICE SIZE: G 1/2 IN; COIL: 220 VOLT DC INSULATION CLASS - H; SOFTGOODS: VITON SEALS; APPLICATION: DIFFUSION/PREMIX FUEL LINES V9214 GAS TURBINES; SPECIFICATION: MK15NC2E; CLASSIFICATION: E X NA11 T3; MANUF P/N: MK15NC2E; 523181; TERMINAL 130 X M15 X 1.5 MM"]
[141,"0553122","VALVE: TYPE: SOLENOID COAXIAL; VALVE SIZE: G10/0; DESIGN RATING: 40 BAR; TEMPERATURE RATING: -40 TO 100 DEG C; CONNECTION: 1/2 IN; OPERATED: ELECTRIC COIL 220VAC; BODY MATERIAL: BRASS; SPECIFICATION: VALVE; SOFTGOODS: VITON; SPECIAL FEATURES: VITON SEAL; MANUF P/N: MK25DRN01E; 510038"]
[142,"0553122","VALVE: TYPE: SOLENOID COAXIAL; VALVE SIZE: G10/0; DESIGN RATING: 40 BAR; TEMPERATURE RATING: -40 TO 100 DEG C; CONNECTION: 1/2 IN; OPERATED: ELECTRIC COIL 220VAC; BODY MATERIAL: BRASS; SPECIFICATION: VALVE; SOFTGOODS: VITON; SPECIAL FEATURES: VITON SEAL; MANUF P/N: MK25DRN01E; 510038"]
[143,"0553123","VALVE: TYPE: SOLONOID COAXIAL; VALVE SIZE: PN40; DESIGN RATING: 0-40 BAR; TEMPERATURE RATING: -40 TO 100 DEG C; CONNECTION: FLANGE PN40; OPERATED: ELECTRIC COIL 230VAC; BODY MATERIAL: BRASS; SPECIFICATION: VALVE; SOFTGOODS: VITON; SPECIAL FEATURES: VITON SEALS; MANUF P/N: 515259; FK25NC1E"]
[144,"0553123","VALVE: TYPE: SOLONOID COAXIAL; VALVE SIZE: PN40; DESIGN RATING: 0-40 BAR; TEMPERATURE RATING: -40 TO 100 DEG C; CONNECTION: FLANGE PN40; OPERATED: ELECTRIC COIL 230VAC; BODY MATERIAL: BRASS; SPECIFICATION: VALVE; SOFTGOODS: VITON; SPECIAL FEATURES: VITON SEALS; MANUF P/N: 515259; FK25NC1E"]
[145,"0553124","VALVE: TYPE: SOLONOID COAXIAL; VALVE SIZE: PN40; DESIGN RATING: 0-40 BAR; TEMPERATURE RATING: -40 TO 100 DEG C; CONNECTION: FLANGE; OPERATED: ELECTRIC COIL 240VAC; BODY MATERIAL: BRASS; SPECIFICATION: VALVE; SOFTGOODS: VITON; SPECIAL FEATURES: VITON SEALS; MANUF P/N: 527506; FK25NC"]
[146,"0553124","VALVE: TYPE: SOLONOID COAXIAL; VALVE SIZE: PN40; DESIGN RATING: 0-40 BAR; TEMPERATURE RATING: -40 TO 100 DEG C; CONNECTION: FLANGE; OPERATED: ELECTRIC COIL 240VAC; BODY MATERIAL: BRASS; SPECIFICATION: VALVE; SOFTGOODS: VITON; SPECIAL FEATURES: VITON SEALS; MANUF P/N: 527506; FK25NC"]
[147,"0553125","VALVE: TYPE: SOLONOID COAXIAL; VALVE SIZE: NB8 MM; DESIGN RATING: 0-150 BAR; TEMPERATURE RATING: 55 DEG C; CONNECTION: 3/8 IN THREAD; OPERATED: ELECTRIC COIL 220VDC; BODY MATERIAL: BRASS; SPECIFICATION: VALVE; SOFTGOODS: VITON; MANUF P/N: 503507; ECD-H10NO2E"]
[148,"0553125","VALVE: TYPE: SOLONOID COAXIAL; VALVE SIZE: NB8 MM; DESIGN RATING: 0-150 BAR; TEMPERATURE RATING: 55 DEG C; CONNECTION: 3/8 IN THREAD; OPERATED: ELECTRIC COIL 220VDC; BODY MATERIAL: BRASS; SPECIFICATION: VALVE; SOFTGOODS: VITON; MANUF P/N: 503507; ECD-H10NO2E"]
[149,"0553126","VALVE: TYPE: COAXIAL SOLENOID; VALVE SIZE: G11/4; 38 MM; DESIGN RATING: 0-100 BAR; TEMPERATURE RATING: -40 TO 100 DEG C; CONNECTION: 1-1/4 IN THREAD; OPERATED: ELECTRIC COIL 220VDC; BODY MATERIAL: BRASS; SOFTGOODS: VITON; MANUF P/N: 500479; MK25NC1E"]
[150,"0553126","VALVE: TYPE: COAXIAL SOLENOID; VALVE SIZE: G11/4; 38 MM; DESIGN RATING: 0-100 BAR; TEMPERATURE RATING: -40 TO 100 DEG C; CONNECTION: 1-1/4 IN THREAD; OPERATED: ELECTRIC COIL 220VDC; BODY MATERIAL: BRASS; SOFTGOODS: VITON; MANUF P/N: 500479; MK25NC1E"]
[151,"0553127","VALVE: TYPE: SOLENOID COAXIAL; VALVE SIZE: PN100; DESIGN RATING: 0-100 BAR; TEMPERATURE RATING: -40 TO 100 DEG C; FACE TO FACE LENGTH: 241 MM; CONNECTION: THREAD/FLANGE; OPERATED: ELECTRIC COIL 220VDC; BODY MATERIAL: BRASS; SPECIFICATION: VALVE; SOFTGOODS: VITON; SPECIAL FEATURES: VITON SEALS; MANUF P/N: 527372; FKI5NC1E"]
[152,"0553127","VALVE: TYPE: SOLENOID COAXIAL; VALVE SIZE: PN100; DESIGN RATING: 0-100 BAR; TEMPERATURE RATING: -40 TO 100 DEG C; FACE TO FACE LENGTH: 241 MM; CONNECTION: THREAD/FLANGE; OPERATED: ELECTRIC COIL 220VDC; BODY MATERIAL: BRASS; SPECIFICATION: VALVE; SOFTGOODS: VITON; SPECIAL FEATURES: VITON SEALS; MANUF P/N: 527372; FKI5NC1E"]
[153,"0553128","VALVE: TYPE: SOLONOID COAXIAL; VALVE SIZE: G1/2; DESIGN RATING: 0-100 BAR; TEMPERATURE RATING: -40 TO 100 DEG C; CONNECTION: THREAD/FLANGE; OPERATED: ELECTRIC COIL 230VAC; BODY MATERIAL: BRASS; SPECIFICATION: VALVE; SOFTGOODS: VITON; MANUF P/N: MK15NC1E; 520496"]
[154,"0553128","VALVE: TYPE: SOLONOID COAXIAL; VALVE SIZE: G1/2; DESIGN RATING: 0-100 BAR; TEMPERATURE RATING: -40 TO 100 DEG C; CONNECTION: THREAD/FLANGE; OPERATED: ELECTRIC COIL 230VAC; BODY MATERIAL: BRASS; SPECIFICATION: VALVE; SOFTGOODS: VITON; MANUF P/N: MK15NC1E; 520496"]
[155,"0553129","VALVE: TYPE: INLINE SOLENOID; VALVE SIZE: G1/2 IN-BSPP; DESIGN RATING: 0-40 BAR; TEMPERATURE RATING: -40 TO 100 DEG C; FACE TO FACE LENGTH: 184 MM; CONNECTION: THD; OPERATED: ELECTRIC COIL 220VDC; BODY MATERIAL: GS/BRS; STYLE: 2/2 WAY DIRECT ACTING; TRIM: BODY MATERIAL BRASS/GALVANISED STEEL; SPECIFICATION: VALVE; SOFTGOODS: VITON; SPECIAL FEATURES: 2 X INDUCTIVE PROXIMITY SWITCHES/SAME DIRECTION SWITCHING; MANUF P/N: 503506; MK15NC2E"]
[156,"0553129","VALVE: TYPE: INLINE SOLENOID; VALVE SIZE: G1/2 IN-BSPP; DESIGN RATING: 0-40 BAR; TEMPERATURE RATING: -40 TO 100 DEG C; FACE TO FACE LENGTH: 184 MM; CONNECTION: THD; OPERATED: ELECTRIC COIL 220VDC; BODY MATERIAL: GS/BRS; STYLE: 2/2 WAY DIRECT ACTING; TRIM: BODY MATERIAL BRASS/GALVANISED STEEL; SPECIFICATION: VALVE; SOFTGOODS: VITON; SPECIAL FEATURES: 2 X INDUCTIVE PROXIMITY SWITCHES/SAME DIRECTION SWITCHING; MANUF P/N: 503506; MK15NC2E"]
[157,"0585702","VALVE, SOLENOID: PIPE SIZE: G3/8 IN; STYLE: 2/2 WAY; POTENTIAL: 220 VDC; DESIGN RATING: 0-150 BAR; CONNECTION: THD; BODY MATERIAL: BRASS; OPERATED: SOLENOID; ENCLOSURE RATING: IP65; MEDIUM: FUEL/OIL; ORIFICE SIZE: 10 MM; SOFTGOODS: VITON SEALS; APPLICATION: FUEL/OIL; SPECIFICATION: 516348; CLASSIFICATION: ZONE 2; MANUF P/N: ECD-H10NO2E; 2 LIMIT SWITCHES, 55 DEG; HIGH PRESSURE"]
[158,"0585702","VALVE, SOLENOID: PIPE SIZE: G3/8 IN; STYLE: 2/2 WAY; POTENTIAL: 220 VDC; DESIGN RATING: 0-150 BAR; CONNECTION: THD; BODY MATERIAL: BRASS; OPERATED: SOLENOID; ENCLOSURE RATING: IP65; MEDIUM: FUEL/OIL; ORIFICE SIZE: 10 MM; SOFTGOODS: VITON SEALS; APPLICATION: FUEL/OIL; SPECIFICATION: 516348; CLASSIFICATION: ZONE 2; MANUF P/N: ECD-H10NO2E; 2 LIMIT SWITCHES, 55 DEG; HIGH PRESSURE"]
[159,"0588761","VALVE, BUTTERFLY: TYPE: SWIVEL; VALVE SIZE: 400 MM; DESIGN RATING: 6 BAR; TEMPERATURE RATING: 270 DEG C; CONNECTION: FLANGE; BODY MATERIAL: STEEL WELDMENT; FACE TO FACE LENGTH: 310 MM; OPERATED: ACTUATOR PNEUMATIC; TRIM: FLEXIBLE PRESS FORMED; SOFTGOODS: PTFE COMPOUND; APPLICATION: TURBINE COMPRESSOR; GRADE: PN10; DIN 2632; DRAWING NO: 1.5055B REV 0; INCLUDING ACTUATOR: ACTUATOR POSITION SLV 3540043 (TOP)"]
[160,"0588761","VALVE, BUTTERFLY: TYPE: SWIVEL; VALVE SIZE: 400 MM; DESIGN RATING: 6 BAR; TEMPERATURE RATING: 270 DEG C; CONNECTION: FLANGE; BODY MATERIAL: STEEL WELDMENT; FACE TO FACE LENGTH: 310 MM; OPERATED: ACTUATOR PNEUMATIC; TRIM: FLEXIBLE PRESS FORMED; SOFTGOODS: PTFE COMPOUND; APPLICATION: TURBINE COMPRESSOR; GRADE: PN10; DIN 2632; DRAWING NO: 1.5055B REV 0; INCLUDING ACTUATOR: ACTUATOR POSITION SLV 3540043 (TOP)"]
[161,"0589427","VALVE, RELIEF: VALVE SIZE: 3/4 IN; SET PRESSURE: 420 KPA; TEMPERATURE RATING: 70 DEG C; CONNECTION: THD 1/2 IN; BODY MATERIAL: BRASS; TRIM: PLASTIC BONNET/ADJUSTABLE SCREW; FACE TO FACE LENGTH: 65 MM; OPERATED: PRESSURE 0-460 KPA; DESIGN RATING: 40 BAR; PRESSURE RANGE: 0-40 BAR; MANUF P/N: D22-1/2A"]
[162,"0589427","VALVE, RELIEF: VALVE SIZE: 3/4 IN; SET PRESSURE: 420 KPA; TEMPERATURE RATING: 70 DEG C; CONNECTION: THD 1/2 IN; BODY MATERIAL: BRASS; TRIM: PLASTIC BONNET/ADJUSTABLE SCREW; FACE TO FACE LENGTH: 65 MM; OPERATED: PRESSURE 0-460 KPA; DESIGN RATING: 40 BAR; PRESSURE RANGE: 0-40 BAR; MANUF P/N: D22-1/2A"]
[163,"0593549","VALVE, BUTTERFLY: TYPE: SWIVEL; VALVE SIZE: 400 MM; DESIGN RATING: 6 BAR; TEMPERATURE RATING: 270 DEG C; CONNECTION: FLANGE; BODY MATERIAL: STEEL WELDMENT; FACE TO FACE LENGTH: 310 MM; OPERATED: ACTUATOR PNEUMATIC; TRIM: FLEXIBLE PRESS FORMED; SOFTGOODS: PTFE COMPOUND; APPLICATION: TURBINE COMPRESSOR; GRADE: PN10; DIN 2632; DRAWING NO: 1.5055B REV 0; INCLUDING ACTUATOR; ACTUATOR POSITION SLV 3540041 L/H"]
[164,"0593549","VALVE, BUTTERFLY: TYPE: SWIVEL; VALVE SIZE: 400 MM; DESIGN RATING: 6 BAR; TEMPERATURE RATING: 270 DEG C; CONNECTION: FLANGE; BODY MATERIAL: STEEL WELDMENT; FACE TO FACE LENGTH: 310 MM; OPERATED: ACTUATOR PNEUMATIC; TRIM: FLEXIBLE PRESS FORMED; SOFTGOODS: PTFE COMPOUND; APPLICATION: TURBINE COMPRESSOR; GRADE: PN10; DIN 2632; DRAWING NO: 1.5055B REV 0; INCLUDING ACTUATOR; ACTUATOR POSITION SLV 3540041 L/H"]
[165,"0593550","VALVE, BUTTERFLY: TYPE: SWIVEL; VALVE SIZE: 400 MM; DESIGN RATING: 6 BAR; TEMPERATURE RATING: 270 DEG C; CONNECTION: FLANGE; BODY MATERIAL: STEEL WELDMENT; FACE TO FACE LENGTH: 310 MM; OPERATED: ACTUATOR PNEUMATIC; TRIM: FLEXIBLE PRESS FORMED; SOFTGOODS: PTFE COMPOUND; APPLICATION: TURBINE COMPRESSOR; GRADE: PN10; DIN 2632; DRAWING NO: 1.5055B REV 0; INCLUDING ACTUATOR; ACTUATOR POSITION SLV 3540042 R/H"]
[166,"0593550","VALVE, BUTTERFLY: TYPE: SWIVEL; VALVE SIZE: 400 MM; DESIGN RATING: 6 BAR; TEMPERATURE RATING: 270 DEG C; CONNECTION: FLANGE; BODY MATERIAL: STEEL WELDMENT; FACE TO FACE LENGTH: 310 MM; OPERATED: ACTUATOR PNEUMATIC; TRIM: FLEXIBLE PRESS FORMED; SOFTGOODS: PTFE COMPOUND; APPLICATION: TURBINE COMPRESSOR; GRADE: PN10; DIN 2632; DRAWING NO: 1.5055B REV 0; INCLUDING ACTUATOR; ACTUATOR POSITION SLV 3540042 R/H"]
[167,"0593794","KIT: TYPE: SEAL; APPLICATION: CHANGE OVER VALVE HDD 91; COMPRISING: O-RINGS; SUPPORT RINGS; MANUF P/N: 318517; ALL O RINGS FROM VITON MATERIAL - HDD91 CHANGE OVER VALVE"]
[168,"0593794","KIT: TYPE: SEAL; APPLICATION: CHANGE OVER VALVE HDD 91; COMPRISING: O-RINGS; SUPPORT RINGS; MANUF P/N: 318517; ALL O RINGS FROM VITON MATERIAL - HDD91 CHANGE OVER VALVE"]
[169,"0593797","KIT: TYPE: SEAL; APPLICATION: CHANGE OVER VALVE HDD 170; COMPRISING: O-RINGS; SUPPORT RINGS; MANUF P/N: 308333; ALL O RINGS FROM VITON MATERIAL - HDD 170 CHANGE OVER VALVE"]
[170,"0593797","KIT: TYPE: SEAL; APPLICATION: CHANGE OVER VALVE HDD 170; COMPRISING: O-RINGS; SUPPORT RINGS; MANUF P/N: 308333; ALL O RINGS FROM VITON MATERIAL - HDD 170 CHANGE OVER VALVE"]
[171,"0607158","VALVE, BALL: VALVE SIZE: 40 MM; DESIGN RATING: 100 BAR; TEMPERATURE RATING: -10 TO 200 DEG C; CONNECTION: FLANGE; BODY MATERIAL: STEEL; FACE TO FACE LENGTH: 850 MM; OPERATED: ACTUATOR/ELECTRICAL; GRADE: I54; TYPE: FUEL DIFFUSION; MANUF P/N: 5100046637-100; 6211-0100-670289/G84/G82G; VALVE AND ACTUATOR ASSEMBLY"]
[172,"0607158","VALVE, BALL: VALVE SIZE: 40 MM; DESIGN RATING: 100 BAR; TEMPERATURE RATING: -10 TO 200 DEG C; CONNECTION: FLANGE; BODY MATERIAL: STEEL; FACE TO FACE LENGTH: 850 MM; OPERATED: ACTUATOR/ELECTRICAL; GRADE: I54; TYPE: FUEL DIFFUSION; MANUF P/N: 5100046637-100; 6211-0100-670289/G84/G82G; VALVE AND ACTUATOR ASSEMBLY"]
[173,"0612657","VALVE, BALL: VALVE SIZE: DN 40; DESIGN RATING: PN100; TEMPERATURE RATING: -10 TO 200 DEG C; CONNECTION: FLANGE; BODY MATERIAL: STAINLESS STEEL; FACE TO FACE LENGTH: 300 MM; OPERATED: ELECTRICAL MOTOR; STYLE: 3 WAY; TYPE: PREMIX; SUPPL P/N: 6211-0100-670852MOD/-G85GH...M; VALVE AND ACTUATOR ASSEMBLY; ARGUS E25 ELECTRIC ACTUATOR, VALVE AND ELECTRIC ACTUATOR ASSEMBLY A2A50296201/ PB0000279980"]
[174,"0612657","VALVE, BALL: VALVE SIZE: DN 40; DESIGN RATING: PN100; TEMPERATURE RATING: -10 TO 200 DEG C; CONNECTION: FLANGE; BODY MATERIAL: STAINLESS STEEL; FACE TO FACE LENGTH: 300 MM; OPERATED: ELECTRICAL MOTOR; STYLE: 3 WAY; TYPE: PREMIX; SUPPL P/N: 6211-0100-670852MOD/-G85GH...M; VALVE AND ACTUATOR ASSEMBLY; ARGUS E25 ELECTRIC ACTUATOR, VALVE AND ELECTRIC ACTUATOR ASSEMBLY A2A50296201/ PB0000279980"]
[175,"0613732","VALVE: TYPE: SOL; VALVE SIZE: 15 MM; TEMPERATURE RATING: MAX 160 DEG C; FACE TO FACE LENGTH: 130 MM; CONNECTION: FLANGE; OPERATED: ELECTRICAL; BODY MATERIAL: STAINLESS STEEL; OEM P/N: 12-EVF 5R U.XN.P.09.29; A2A50268346; SUPPL P/N: 799.010.010.0421; 220 VDC"]
[176,"0613732","VALVE: TYPE: SOL; VALVE SIZE: 15 MM; TEMPERATURE RATING: MAX 160 DEG C; FACE TO FACE LENGTH: 130 MM; CONNECTION: FLANGE; OPERATED: ELECTRICAL; BODY MATERIAL: STAINLESS STEEL; OEM P/N: 12-EVF 5R U.XN.P.09.29; A2A50268346; SUPPL P/N: 799.010.010.0421; 220 VDC"]
[177,"0613733","VALVE: TYPE: SOL; VALVE SIZE: 15 MM; TEMPERATURE RATING: MAX 160 DEG C; FACE TO FACE LENGTH: 130 MM; CONNECTION: FLANGE; OPERATED: ELECTRICAL; BODY MATERIAL: STAINLESS STEEL; OEM P/N: 12-EVDF 3R XN.W.U.P.09.29; SUPPL P/N: 799.010.010.0422; A2A50268347; 220 VDC"]
[178,"0613733","VALVE: TYPE: SOL; VALVE SIZE: 15 MM; TEMPERATURE RATING: MAX 160 DEG C; FACE TO FACE LENGTH: 130 MM; CONNECTION: FLANGE; OPERATED: ELECTRICAL; BODY MATERIAL: STAINLESS STEEL; OEM P/N: 12-EVDF 3R XN.W.U.P.09.29; SUPPL P/N: 799.010.010.0422; A2A50268347; 220 VDC"]
[179,"0613741","VALVE: TYPE: NON RETURN,WAFER; VALVE SIZE: 54 MM; DESIGN RATING: 160 BAR; TEMPERATURE RATING: 300 DEG C; FACE TO FACE LENGTH: 25 MM; CONNECTION: COUPLING; OPERATED: PNEUMATIC; BODY MATERIAL: STAINLESS STEEL; STYLE: WAFER; TRIM: DISC SS; OEM P/N: A2A50005975; SUPPL P/N: 700.050.010.1028"]
[180,"0613741","VALVE: TYPE: NON RETURN,WAFER; VALVE SIZE: 54 MM; DESIGN RATING: 160 BAR; TEMPERATURE RATING: 300 DEG C; FACE TO FACE LENGTH: 25 MM; CONNECTION: COUPLING; OPERATED: PNEUMATIC; BODY MATERIAL: STAINLESS STEEL; STYLE: WAFER; TRIM: DISC SS; OEM P/N: A2A50005975; SUPPL P/N: 700.050.010.1028"]
[181,"0619974","VALVE, RELIEF: VALVE SIZE: 1/2 IN; SET PRESSURE: 1.5 MPA; TEMPERATURE RATING: 120 DEG C; CONNECTION: BSP SCREW; BODY MATERIAL: STEEL; TRIM: STEEL; FACE TO FACE LENGTH: T-TYPE; OPERATED: PRESSURE; APPLICATION: PRESSURE REDUCER; DESIGN RATING: 1.5 MPA; PRESSURE RANGE: 1.3-1.5 MPA; REFERENCE NO: ESV-903M"]
[182,"0619983","VALVE, BALL: VALVE SIZE: 50 MM; DESIGN RATING: 10 KPA; TEMPERATURE RATING: JIS10K; CONNECTION: FLANGED; BODY MATERIAL: SCPH2/304; FACE TO FACE LENGTH: 175 MM; OPERATED: LEVER; STYLE: DIRECTIONAL; TRIM: STL; SOFTGOODS: PTFE; APPLICATION: UPPER OIL COOLER; TYPE: ISOLATING"]
[183,"0620183","VALVE, GLOBE: VALVE SIZE: 1/2 IN; DESIGN PRESSURE: 2.0 MPA; DESIGN TEMPERATURE: <100 DEG C; FACE TO FACE LENGTH: 150 MM; OPERATED: HANDWHEEL; CONNECTION: FLANGED; BODY MATERIAL: F304; TRIM: SS GR 304/STL; GRADE: ASTM A182 F304; SOFTGOODS: NEOPRENE; STEM DESIGN: RISING SPINDLE; STYLE: DIRECTIONAL; APPLICATION: DRAIN AIR/OIL COOLER; SPECIFICATION: ISO9001; TYPE: SHUT OFF; DESIGN RATING: JIS 20K; S AND S VALVE"]
[184,"0620391","VALVE, GATE: VALVE SIZE: 250 MM; TYPE: ISOLATING; DESIGN PRESSURE: 2-2.8 MPA; DESIGN TEMPERATURE: 220-350 DEG C; CONNECTION: FLANGE; FACE TO FACE LENGTH: 455 MM; BODY MATERIAL: STAINLESS STEEL; TRIM: HF; OPERATED: ACTUATOR; STEM DESIGN: NON RISING; STYLE: 1 WAY; TEMPERATURE RATING: 20 K; PORT TYPE: STANDARD; APPLICATION: TURBINE; SPECIFICATION: ISO 9001; SPECIAL FEATURES: NONE; GRADE: 304; DESIGN RATING: JIS 20K"]
[185,"0620405","VALVE, BALL: VALVE SIZE: 200 MM; DESIGN RATING: JIS 10 K; TEMPERATURE RATING: 10 K; CONNECTION: FLANGE; BODY MATERIAL: SS GR 304; FACE TO FACE LENGTH: 455 MM; OPERATED: ACTUATOR, HANDWHEEL; STYLE: 1 WAY; SOFTGOODS: PTFE; APPLICATION: GENERATOR; TYPE: ISOLATING; ."]
[186,"0620407","VALVE, GLOBE: VALVE SIZE: 50 MM; FACE TO FACE LENGTH: 200 MM; OPERATED: HANDWHEEL; CONNECTION: FLANGE; BODY MATERIAL: SCS13; TRIM: SS GR 304; STEM DESIGN: RISING; STYLE: 1 WAY; APPLICATION: DRAIN; TYPE: ISOLATING; DESIGN RATING: JIS 20K; TEMPERATURE RATING: 20K"]
[187,"0620408","VALVE, GLOBE: VALVE SIZE: 2 IN; FACE TO FACE LENGTH: 200 MM; OPERATED: HANDWHEEL; CONNECTION: FLANGE; BODY MATERIAL: A105; TRIM: 13CR; STEM DESIGN: RISING; STYLE: 1 WAY; APPLICATION: DRAIN; TYPE: ISOLATING; DESIGN RATING: JIS 10K; TEMPERATURE RATING: 840 DEG F"]
[188,"0621484","VALVE, BUTTERFLY: TYPE: LUG WAFER; VALVE SIZE: 150 MM; DESIGN RATING: PN16; TEMPERATURE RATING: 0-120 DEG C; CONNECTION: LUG; BODY MATERIAL: DI; FACE TO FACE LENGTH: 59 MM; OPERATED: ACTUATOR; TRIM: RUBBER LINED; SOFTGOODS: SEAL; APPLICATION: TURBINE PROTECTION; GRADE: GGG40; SHAFT CONNECTION: DIA 14MM"]
[189,"0621637","SET: TYPE: STOP VALVE; OEM P/N: A2A50314606; SUPPL P/N: PG0031759200"]
[190,"0622490","VALVE, SOLENOID: PIPE SIZE: DN25; STYLE: 1/2; POTENTIAL: 220 V; DESIGN RATING: PN40; CONNECTION: FLANGE; BODY MATERIAL: STEEL; OPERATED: ELECTRIC; ENCLOSURE RATING: IP65; MEDIUM: BUTANE/NATURAL GAS/PROPANE; CURRENT: 0.33 A; OEM P/N: A2A50272850; SUPPL P/N: PB0000267703"]
[191,"0622490","VALVE, SOLENOID: PIPE SIZE: DN25; STYLE: 1/2; POTENTIAL: 220 V; DESIGN RATING: PN40; CONNECTION: FLANGE; BODY MATERIAL: STEEL; OPERATED: ELECTRIC; ENCLOSURE RATING: IP65; MEDIUM: BUTANE/NATURAL GAS/PROPANE; CURRENT: 0.33 A; OEM P/N: A2A50272850; SUPPL P/N: PB0000267703"]
[192,"0622492","VALVE, SOLENOID: PIPE SIZE: DN25; STYLE: 2/2; POTENTIAL: 230 V; DESIGN RATING: PN40; CONNECTION: FLANGE; BODY MATERIAL: STEEL; OPERATED: ELECTRIC; ENCLOSURE RATING: IP65; MEDIUM: BUTANE/NATURAL GAS/PROPANE; POWER: 160 W; CURRENT: 0.33 A; SPECIFICATION: DIN 3394-1; OEM P/N: 40-EVSADU 10NH-4 P.XN.09.20.32; SUPPL P/N: PB0000282466; A2A50296211"]
[193,"0622492","VALVE, SOLENOID: PIPE SIZE: DN25; STYLE: 2/2; POTENTIAL: 230 V; DESIGN RATING: PN40; CONNECTION: FLANGE; BODY MATERIAL: STEEL; OPERATED: ELECTRIC; ENCLOSURE RATING: IP65; MEDIUM: BUTANE/NATURAL GAS/PROPANE; POWER: 160 W; CURRENT: 0.33 A; SPECIFICATION: DIN 3394-1; OEM P/N: 40-EVSADU 10NH-4 P.XN.09.20.32; SUPPL P/N: PB0000282466; A2A50296211"]
[194,"0622742","VALVE: TYPE: FUEL OIL TRANSFER; VALVE SIZE: G1/2 IN; TEMPERATURE RATING: MAX 140 DEG C; CONNECTION: FLANGE, FITTING; OPERATED: AUTOMATIC; BODY MATERIAL: STEEL; OEM P/N: A2A50323268; SUPPL P/N: PG0032860600"]
[195,"0622743","VALVE: TYPE: FUEL OIL PREMIX; VALVE SIZE: G1/2 IN; DESIGN RATING: PN100; TEMPERATURE RATING: MAX 160 DEG C; CONNECTION: FLANGE, FITTING; OPERATED: AUTOMATIC; BODY MATERIAL: STEEL; OEM P/N: A2A50328041; SUPPL P/N: PG0032863600"]
[196,"0626656","VALVE, CHECK: TYPE: HYDRAULIC; VALVE SIZE: G1/2 IN; DESIGN RATING: MAX 350 BAR; TEMPERATURE RATING: -30 TO 80 DEG C; CONNECTION: G1/2 IN-BSPP; BODY MATERIAL: STEEL; FACE TO FACE LENGTH: 16 MM; OPERATED: PNEUMATIC; OEM P/N: PG0031832800; SUPPL P/N: A2A50315038"]
[197,"0626656","VALVE, CHECK: TYPE: HYDRAULIC; VALVE SIZE: G1/2 IN; DESIGN RATING: MAX 350 BAR; TEMPERATURE RATING: -30 TO 80 DEG C; CONNECTION: G1/2 IN-BSPP; BODY MATERIAL: STEEL; FACE TO FACE LENGTH: 16 MM; OPERATED: PNEUMATIC; OEM P/N: PG0031832800; SUPPL P/N: A2A50315038"]
[198,"0628662","VALVE: TYPE: SAFETY; VALVE SIZE: 4 IN; DESIGN RATING: 53 BAR; TEMPERATURE RATING: 538 DEG C; CONNECTION: FLANGE; OPERATED: PRESSURE, SPRING, 0-35 LB; BODY MATERIAL: BS 1504-240; STYLE: ANGLE PATTERN; TRIM: PT; OEM P/N: 4\"707 SD; DRAWING NO: F5217/5 REV 0; ."]
[199,"0628694","VALVE, BALL: VALVE SIZE: 50 MM; DESIGN RATING: 63 BAR; TEMPERATURE RATING: 200 DEG C; CONNECTION: FEMALE THD; BODY MATERIAL: STAINLESS STEEL; FACE TO FACE LENGTH: 140 MM; OPERATED: HAND; STYLE: 1 WAY; TRIM: STAINLESS STEEL; SOFTGOODS: PTFE; SPECIFICATION: JT97AN; PORT TYPE: BALL; APPLICATION: VARIOUS; GRADE: 1.4408; TYPE: ISOLATING"]
[200,"0628697","VALVE, RELIEF: VALVE SIZE: 3/4 IN; SET PRESSURE: 47.2 BAR; TEMPERATURE RATING: -10 TO 100 DEG C; CONNECTION: THREADED FEMALE; BODY MATERIAL: BRASS; TRIM: BRASS; FACE TO FACE LENGTH: 118 MM; OPERATED: PRESSURE; ORIFICE SIZE: 10 MM; SPECIFICATION: ISO 4126-1; APPLICATION: VARIOUS; STYLE: 1 WAY; SOFTGOODS: BRASS; DESIGN RATING: 150 BAR; PRESSURE RANGE: 42-25 BAR; MANUF P/N: H10N11787"]
[201,"0637382","VALVE: TYPE: CONCENTRIC; VALVE SIZE: OD 225 X THK 30 MM; DESIGN RATING: 380 BAR; TEMPERATURE RATING: -28 TO 425 DEG C; CONNECTION: SEAT; OPERATED: MECHANICAL; BODY MATERIAL: STAINLESS STEEL; STYLE: LEAF; MANUF P/N: 37134; MODEL NO: WP6310; FOR USE ON JP SAUER AND SOHN COMPRESSOR"]
[202,"0637420","VALVE, BALL: VALVE SIZE: DN 50; DESIGN RATING: PN100; TEMPERATURE RATING: 0-30 DEG C; CONNECTION: FLANGE; BODY MATERIAL: 1.4571; OPERATED: LEVER; SPECIFICATION: SAE; DIN; ANSI; ISO; TYPE: HYDRAULIC; REFERENCE NO: 190-050-138"]
[203,"0637421","VALVE, BALL: VALVE SIZE: DN 100; DESIGN RATING: PN100; TEMPERATURE RATING: -10 TO 50 DEG C; CONNECTION: FLANGE; BODY MATERIAL: 1.4571; OPERATED: LEVER; SPECIFICATION: SAE; DIN; ANSI; ISO; TYPE: PNEUMATIC; REFERENCE NO: 190-100-202; ."]
[204,"0637560","VALVE, RELIEF: VALVE SIZE: 1 IN; SET PRESSURE: 88 BAR; TEMPERATURE RATING: 0-50 DEG C; CONNECTION: G1 IN-BSPP; BODY MATERIAL: STAINLESS STEEL; TRIM: STAINLESS STEEL; FACE TO FACE LENGTH: L SHAPE; OPERATED: AIR; ORIFICE SIZE: 1 IN; SPECIFICATION: GL1238640; APPLICATION: COMPRESSOR; GRADE: 316; STYLE: 1 WAY; SOFTGOODS: STAINLESS STEEL; DESIGN RATING: 88 BAR G; PRESSURE RANGE: IN PN 250; OUT PN 40; MANUF P/N: M33H03X00V56V66J23H01"]
[205,"0637562","VALVE, RELIEF: VALVE SIZE: 1/2 IN; SET PRESSURE: 3 BAR; TEMPERATURE RATING: 0-20 DEG C; CONNECTION: THD 1/2 IN; BODY MATERIAL: STAINLESS STEEL; TRIM: STAINLESS STEEL; FACE TO FACE LENGTH: L SHAPE; OPERATED: AIR; ORIFICE SIZE: 1 IN; SPECIFICATION: 14/980; APPLICATION: COMPRESSOR; GRADE: 316; STYLE: 1 WAY; SOFTGOODS: STAINLESS STEEL; DESIGN RATING: 3 BAR; PRESSURE RANGE: IN PN 250; OUT PN 160; MANUF P/N: M33H03X00V54V65; ."]
[206,"0638401","VALVE, BALL: VALVE SIZE: 1/2 IN; DESIGN RATING: PN30; TEMPERATURE RATING: 0-200 DEG C; CONNECTION: FEMALE THD; BODY MATERIAL: STAINLESS STEEL; FACE TO FACE LENGTH: 59 MM; OPERATED: LEVER; STYLE: 1 WAY; TRIM: BRASS; SOFTGOODS: NYLON; APPLICATION: FIRE SYSTEM; GRADE: 316; TYPE: LOCKABLE; MANUF P/N: 1610LD210"]
[207,"0638405","VALVE, ANGLE: TYPE: SUPPLY; VALVE SIZE: 80 MM; DESIGN RATING: 50 BAR; TEMPERATURE RATING: 300 DEG C; CONNECTION: THD FEMALE; BODY MATERIAL: BRASS; FACE TO FACE LENGTH: RIGHT ANGLE; OPERATED: HANDWHEEL; STYLE: 1 WAY; TRIM: RUBBER/SS; SOFTGOODS: BRASS; APPLICATION: FIRE HYDRANT; REFERENCE NO: VA001; KRS FIRE."]
[208,"0640478","VALVE, GLOBE: VALVE SIZE: 2 IN; DESIGN PRESSURE: 102 BAR; DESIGN TEMPERATURE: -29 TO 38 DEG C; FACE TO FACE LENGTH: 292.1 MM; OPERATED: HANDWHEEL, MANUAL; CONNECTION: FLANGE; BODY MATERIAL: A216 GR WCB; TRIM: A182F6; GRADE: A216 GR WCB; SOFTGOODS: PACKING GRAPHITE; STEM DESIGN: A182F6; APPLICATION: RUNNER SEAL ISOLATION; SPECIFICATION: CL 600; TYPE: ISOLATING; DESIGN RATING: ASME B19.34; TEMPERATURE RATING: ASME B16.34; CONNECTION ASME B16.5/B16.25; TESTING AND INSPECTION; API 598"]
[209,"0640479","VALVE, BUTTERFLY: TYPE: DRAIN WAFER; VALVE SIZE: DN 32; DESIGN RATING: PN25; TEMPERATURE RATING: NBR -10 TO 90 DEG C; CONNECTION: FLANGE; BODY MATERIAL: 2EN-GJS-4000-15(GGG-40) EPOXY COATED 120 UM; FACE TO FACE LENGTH: 33 MM; OPERATED: ACTUATOR PNEUMATIC; TRIM: A1.4408 INVESTMENT CASTING; SOFTGOODS: NBR; APPLICATION: SHAFT/RUNNER SEAL DRAIN; GRADE: DN 25-600; SPECIFICATION: D480; SCHEDULE: ASME B16.47; SERIES A; CL 150; SPECIAL FEATURES: BARE SHAFT; SUPPL P/N: D480 32W332A1NLF07 D11; CONNECTION TYPE; 3EN1092 PN16, OPERATING PRESSUE; 3.16 BAR, SHAFT MATERIAL; 1AISI420/1.4021, SHAFT LENGTH; 18, 18 MM, SEAT LINER; N NBR"]
[210,"0642473","VALVE: TYPE: DIRECTIONAL; VALVE SIZE: 8/4 MM; DESIGN RATING: 350 BAR; TEMPERATURE RATING: 52 DEG C; FACE TO FACE LENGTH: 49 MM; CONNECTION: BOLT BLOCK; OPERATED: PRESSURE; BODY MATERIAL: STEEL; STYLE: 1 WAY; TRIM: STAINLESS STEEL; SPECIFICATION: ISO 4401-03; SOFTGOODS: NBR; SPECIAL FEATURES: NIL; MANUF P/N: WDMFA06-AB3-G220/MD-HF1-P1AB"]
[211,"0643634","VALVE: TYPE: CONTROL; VALVE SIZE: 6 IN; DESIGN RATING: 21 BAR; TEMPERATURE RATING: 65 DEG C; FACE TO FACE LENGTH: 235 MM; CONNECTION: WAFER; OPERATED: PILOT; BODY MATERIAL: CS; SPECIFICATION: 799-D; REFERENCE NO: 139163"]
[212,"0643634","VALVE: TYPE: CONTROL; VALVE SIZE: 6 IN; DESIGN RATING: 21 BAR; TEMPERATURE RATING: 65 DEG C; FACE TO FACE LENGTH: 235 MM; CONNECTION: WAFER; OPERATED: PILOT; BODY MATERIAL: CS; SPECIFICATION: 799-D; REFERENCE NO: 139163"]
[213,"0777978","VALVE, SOLENOID: PIPE SIZE: 10 MM; STYLE: 4 PIPE CONNECTION 2 SOLENOID; POTENTIAL: 24 VDC; DESIGN RATING: 16 BAR; CONNECTION: 10 MM; BODY MATERIAL: ALUMININIUM; OPERATED: 24 V DC; ENCLOSURE RATING: 16 BAR; MEDIUM: AIR PNEUMATIC; OEM P/N: MPZWIDC.124 (0065745.002); PNEUMATIC CONTROL BLOCK, TYPE:MPZWIDC.124, ON WALL OR IN CABINET MOUNT, 2.5 KG, TWO CONTROL SOLENOIDS"]
[214,"0643976","VALVE, BALL: VALVE SIZE: DN 50; DESIGN RATING: PN200; TEMPERATURE RATING: 180 DEG C; CONNECTION: THD; BODY MATERIAL: STAINLESS STEEL; FACE TO FACE LENGTH: 140 MM; OPERATED: LEVER; STYLE: 1 WAY; TRIM: STAINLESS STEEL; SOFTGOODS: PTFE; SPECIFICATION: ISO 9001; PORT TYPE: FULL BORE; APPLICATION: VARIOUS; GRADE: 1.4408; TYPE: LOCKABLE; BODY SHAPE: SQUARE"]
[215,"0643977","VALVE, BALL: VALVE SIZE: 12 MM; DESIGN RATING: PN500; TEMPERATURE RATING: 180 DEG C; CONNECTION: 18L; BODY MATERIAL: STAINLESS STEEL; FACE TO FACE LENGTH: 115 MM; OPERATED: LEVER; STYLE: 1 WAY; TRIM: STAINLESS STEEL; SOFTGOODS: NBR; SPECIFICATION: ISO 9001; PORT TYPE: FULL BORE; APPLICATION: VARIOUS; GRADE: 1.4571; TYPE: NON LOCKABLE; MANUF P/N: KH 18L-71X; BODY SHAPE: SQUARE"]
[216,"0643978","VALVE, BALL: VALVE SIZE: 1/2 IN; DESIGN RATING: PN500; TEMPERATURE RATING: 180 DEG C; CONNECTION: THD; BODY MATERIAL: STAINLESS STEEL; FACE TO FACE LENGTH: 90 MM; OPERATED: LEVER; STYLE: 1 WAY; TRIM: STAINLESS STEEL; SOFTGOODS: PTFE; SPECIFICATION: ISO 9001; PORT TYPE: FULL BORE; APPLICATION: VARIOUS; GRADE: 1.4423; TYPE: NON LOCKABLE; MANUF P/N: KH 1/2IN 71X; BODY SHAPE: SQUARE"]
[217,"0643979","VALVE: TYPE: SHUT OFF; VALVE SIZE: DN 4; DESIGN RATING: PN250; TEMPERATURE RATING: 250 DEG C; FACE TO FACE LENGTH: 105 MM; CONNECTION: THD G1/2 IN; OPERATED: HANDWHEEL; BODY MATERIAL: BRASS; STYLE: 1 WAY; TRIM: BRASS; GRADE: C360; SPECIFICATION: ISO 9001; SOFTGOODS: BRASS; SPECIAL FEATURES: GAUGE/TRANSMITTER FITTING"]
[218,"0644167","VALVE: TYPE: STOP; VALVE SIZE: DN 50; DESIGN RATING: 16 BAR; TEMPERATURE RATING: 120 DEG C; FACE TO FACE LENGTH: 150 MM; CONNECTION: FLANGE; OPERATED: MANUAL; BODY MATERIAL: CAST IRON; GRADE: EN-JL1040; SPECIFICATION: ARI 12072; ."]
[219,"0644167","VALVE: TYPE: STOP; VALVE SIZE: DN 50; DESIGN RATING: 16 BAR; TEMPERATURE RATING: 120 DEG C; FACE TO FACE LENGTH: 150 MM; CONNECTION: FLANGE; OPERATED: MANUAL; BODY MATERIAL: CAST IRON; GRADE: EN-JL1040; SPECIFICATION: ARI 12072; ."]
[220,"0644168","VALVE: TYPE: STOP; VALVE SIZE: DN 40; DESIGN RATING: 16 BAR; TEMPERATURE RATING: 120 DEG C; FACE TO FACE LENGTH: 140 MM; CONNECTION: FLANGE 150 MM; OPERATED: MANUAL; BODY MATERIAL: CAST IRON; GRADE: EN-JL1040; SPECIFICATION: ARI 12072"]
[221,"0644168","VALVE: TYPE: STOP; VALVE SIZE: DN 40; DESIGN RATING: 16 BAR; TEMPERATURE RATING: 120 DEG C; FACE TO FACE LENGTH: 140 MM; CONNECTION: FLANGE 150 MM; OPERATED: MANUAL; BODY MATERIAL: CAST IRON; GRADE: EN-JL1040; SPECIFICATION: ARI 12072"]
[222,"0644441","VALVE: TYPE: CONTROL; VALVE SIZE: 2 IN; DESIGN RATING: 21 BAR; TEMPERATURE RATING: 65 DEG C; FACE TO FACE LENGTH: 190 MM; CONNECTION: FLANGE; OPERATED: PILOT; BODY MATERIAL: CS; SPECIFICATION: 711-D"]
[223,"0644441","VALVE: TYPE: CONTROL; VALVE SIZE: 2 IN; DESIGN RATING: 21 BAR; TEMPERATURE RATING: 65 DEG C; FACE TO FACE LENGTH: 190 MM; CONNECTION: FLANGE; OPERATED: PILOT; BODY MATERIAL: CS; SPECIFICATION: 711-D"]
[224,"0644442","VALVE: TYPE: CONTROL; VALVE SIZE: 3 IN; DESIGN RATING: 21 BAR; TEMPERATURE RATING: 65 DEG C; FACE TO FACE LENGTH: 155 MM; CONNECTION: WAFER; OPERATED: PILOT; BODY MATERIAL: CARBON STL; SPECIFICATION: 799-D"]
[225,"0644442","VALVE: TYPE: CONTROL; VALVE SIZE: 3 IN; DESIGN RATING: 21 BAR; TEMPERATURE RATING: 65 DEG C; FACE TO FACE LENGTH: 155 MM; CONNECTION: WAFER; OPERATED: PILOT; BODY MATERIAL: CARBON STL; SPECIFICATION: 799-D"]
[226,"0644443","VALVE: TYPE: CONTROL; VALVE SIZE: 4 IN; DESIGN RATING: 21 BAR; TEMPERATURE RATING: 65 DEG C; FACE TO FACE LENGTH: 187 MM; CONNECTION: WAFER; OPERATED: PILOT; BODY MATERIAL: CARBON STL; SPECIFICATION: 799-D"]
[227,"0644443","VALVE: TYPE: CONTROL; VALVE SIZE: 4 IN; DESIGN RATING: 21 BAR; TEMPERATURE RATING: 65 DEG C; FACE TO FACE LENGTH: 187 MM; CONNECTION: WAFER; OPERATED: PILOT; BODY MATERIAL: CARBON STL; SPECIFICATION: 799-D"]
[228,"0644949","VALVE, RELIEF: VALVE SIZE: 10 MM; SET PRESSURE: 65 BAR; TEMPERATURE RATING: -30 TO 80 DEG C; CONNECTION: THREADED; BODY MATERIAL: STEEL; TRIM: METAL; FACE TO FACE LENGTH: 80 MM; OPERATED: PRESSURE; ORIFICE SIZE: 5 MM; SPECIFICATION: ISO 9001; APPLICATION: VARIOUS; GRADE: 913000149; STYLE: 1 WAY; SOFTGOODS: NBR; DESIGN RATING: 25-400 BAR; PRESSURE RANGE: 0-630 BAR; MANUF P/N: R901260712; MODEL NO: DBDS 10 G19/65E"]
[229,"0644951","VALVE, RELIEF: VALVE SIZE: 30 MM; SET PRESSURE: 130 BAR; TEMPERATURE RATING: -30 TO 80 DEG C; CONNECTION: SUBPLATE; BODY MATERIAL: STEEL; TRIM: METAL; FACE TO FACE LENGTH: 80 MM; OPERATED: PRESSURE; ORIFICE SIZE: 15 MM; SPECIFICATION: ISO 9001; APPLICATION: VARIOUS; GRADE: 913000149; STYLE: 1 WAY; SOFTGOODS: NBR; DESIGN RATING: 25-400 BAR; PRESSURE RANGE: 0-350 BAR; MANUF P/N: R901341824; MODEL NO: DBDS 30 G1A/130E"]
[230,"0644953","VALVE, RELIEF: VALVE SIZE: 20 MM; SET PRESSURE: 100 BAR; TEMPERATURE RATING: -30 TO 80 DEG C; CONNECTION: SUBPLATE; BODY MATERIAL: STEEL; TRIM: METAL; FACE TO FACE LENGTH: NIL; OPERATED: PRESSURE; ORIFICE SIZE: 10 MM; SPECIFICATION: ISO 9001; APPLICATION: VARIOUS; GRADE: 913000149; STYLE: 1 WAY; SOFTGOODS: NBR; DESIGN RATING: 25-400 BAR; PRESSURE RANGE: 10-350 BAR; MANUF P/N: R900597283; MODEL NO: DR 20-5-52/100YM"]
[231,"0647409","VALVE, SOLENOID: PIPE SIZE: 6 X 4 MM; STYLE: 3/2 WAY; POTENTIAL: 230 VAC; DESIGN RATING: 0-10 BAR; CONNECTION: G1/8 IN-BSPP; BODY MATERIAL: BRASS; OPERATED: AIR; ENCLOSURE RATING: IP65; MEDIUM: NATURAL GASES; FLUIDS; POWER: 8 W; ORIFICE SIZE: 2 MM; COIL: POLYAMIDE; SOFTGOODS: FKM; APPLICATION: FIRE DAMPER"]
[232,"0647831","VALVE, BALL: VALVE SIZE: 1 IN; DESIGN RATING: 69 BAR; TEMPERATURE RATING: 50 DEG C; CONNECTION: BSP THREADED ENDS; BODY MATERIAL: STAINLESS STEEL; FACE TO FACE LENGTH: 88 MM; OPERATED: MANUAL; SOFTGOODS: PTFE; PORT TYPE: FULL BORE; GRADE: ASTM A351 GR CF8M; 2 PIECE SERIES 20"]
[233,"0647831","VALVE, BALL: VALVE SIZE: 1 IN; DESIGN RATING: 69 BAR; TEMPERATURE RATING: 50 DEG C; CONNECTION: BSP THREADED ENDS; BODY MATERIAL: STAINLESS STEEL; FACE TO FACE LENGTH: 88 MM; OPERATED: MANUAL; SOFTGOODS: PTFE; PORT TYPE: FULL BORE; GRADE: ASTM A351 GR CF8M; 2 PIECE SERIES 20"]
[234,"0647832","VALVE, BALL: VALVE SIZE: 1/2 IN; DESIGN RATING: 69 BAR; TEMPERATURE RATING: 50 DEG C; CONNECTION: BSP THREADED ENDS; BODY MATERIAL: STAINLESS STEEL; FACE TO FACE LENGTH: 65 MM; OPERATED: MANUAL; SOFTGOODS: PTFE; PORT TYPE: FULL BORE; GRADE: ASTM A351 GR CF8M; 2 PIECE SERIES 20"]
[235,"0647833","VALVE, BALL: VALVE SIZE: 3/4 IN; DESIGN RATING: 69; TEMPERATURE RATING: 50 DEG C; CONNECTION: BSP THREADED ENDS; BODY MATERIAL: STAINLESS STEEL; FACE TO FACE LENGTH: 74 MM; OPERATED: MANUAL; SOFTGOODS: PTFE; PORT TYPE: FULL BORE; GRADE: ASTM A351 GR CF8M; 2 PIECE SERIES 20"]
[236,"0647833","VALVE, BALL: VALVE SIZE: 3/4 IN; DESIGN RATING: 69; TEMPERATURE RATING: 50 DEG C; CONNECTION: BSP THREADED ENDS; BODY MATERIAL: STAINLESS STEEL; FACE TO FACE LENGTH: 74 MM; OPERATED: MANUAL; SOFTGOODS: PTFE; PORT TYPE: FULL BORE; GRADE: ASTM A351 GR CF8M; 2 PIECE SERIES 20"]
[237,"0648284","VALVE: TYPE: EMERGENCY CLOSING; VALVE SIZE: 13 MM; DESIGN RATING: 350 BAR; TEMPERATURE RATING: 200 DEG C; FACE TO FACE LENGTH: FLAT; CONNECTION: THREADED; OPERATED: PRESSURE; BODY MATERIAL: STEEL; STYLE: 2 WAY; SPECIFICATION: ISO 9001; TURBINE GOVERNOR PUMP CONTROL; KKS: MFX20AA201/219"]
[238,"0650143","VALVE, SOLENOID: PIPE SIZE: 3/4 IN; STYLE: 9 X CONNECTIONS; 3 X SOLENOID; POTENTIAL: 24 VDC; DESIGN RATING: 3 BAR; CONNECTION: BSP; BODY MATERIAL: BRASS; OPERATED: DIRECT SOLENOID; ENCLOSURE RATING: IP67; MEDIUM: WATER; POWER: 11.2 W; ORIFICE SIZE: 19 MM; COIL: DC; APPLICATION: CENTRIFUGE SEALING WATER; CLASSIFICATION: ZONE 2; SUPPL P/N: 176346680"]
[239,"0650143","VALVE, SOLENOID: PIPE SIZE: 3/4 IN; STYLE: 9 X CONNECTIONS; 3 X SOLENOID; POTENTIAL: 24 VDC; DESIGN RATING: 3 BAR; CONNECTION: BSP; BODY MATERIAL: BRASS; OPERATED: DIRECT SOLENOID; ENCLOSURE RATING: IP67; MEDIUM: WATER; POWER: 11.2 W; ORIFICE SIZE: 19 MM; COIL: DC; APPLICATION: CENTRIFUGE SEALING WATER; CLASSIFICATION: ZONE 2; SUPPL P/N: 176346680"]
[240,"0654743","VALVE, BALL: VALVE SIZE: 1/2 IN; APPLICATION: AMMONIA SOLUTION LINE TO FEEDWATER TANK; TYPE: QUICK STOP; SUPPL P/N: N300"]
[241,"0655228","VALVE, RELIEF: VALVE SIZE: G1/2 IN; SET PRESSURE: 365 KPA; TEMPERATURE RATING: -10 TO 220 DEG C; CONNECTION: G1/2 IN; BODY MATERIAL: 1.4104 (430); TRIM: METAL; FACE TO FACE LENGTH: 46 MM; OPERATED: PRESSURE; ORIFICE SIZE: 10 MM; SPECIFICATION: DIN ISO 228-1; APPLICATION: VARIOUS; GRADE: 1.4104; STYLE: 1 WAY; SOFTGOODS: 1.4404; DESIGN RATING: PN160-400; PRESSURE RANGE: 180-365 BAR; MANUF P/N: 4373.2602; REFERENCE NO: D0 10-D/G 0.5 F 0.35; ."]
[242,"0662552","VALVE, CHECK: TYPE: NON RETURN; VALVE SIZE: 80 MM; DESIGN RATING: PN40; TEMPERATURE RATING: 50 DEG C; CONNECTION: BW; BODY MATERIAL: CI; FACE TO FACE LENGTH: 173 MM; OPERATED: AUTOMATIC; TRIM: STL; APPLICATION: LIMESTONE HYDRAULIC FEEDER DRIVE; SPECIFICATION: TH-CD-2572-00-02; SUPPL P/N: 2572-00-02-14"]
[243,"0662572","VALVE, CHECK: TYPE: NON RETURN; VALVE SIZE: 100 MM; DESIGN RATING: PN25; TEMPERATURE RATING: 55 DEG C; CONNECTION: BW; BODY MATERIAL: CAST STL; FACE TO FACE LENGTH: 170 MM; OPERATED: FLOW; TRIM: STL; APPLICATION: LIMESTONE HYDRAULIC FEEDER DRIVE; SPECIFICATION: TH-CD-2572-00-02; SUPPL P/N: 2572-00-02-25"]
[244,"0664392","VALVE: TYPE: PLUG; VALVE SIZE: DN 150; DESIGN RATING: PN64; TEMPERATURE RATING: 0-100 DEG C; CONNECTION: FLANGE DN150/PN64; OPERATED: HYDRAULIC; BODY MATERIAL: CS; SUPPL P/N: 2612; VOITH RUNNER RELIEF VALVE; ORDER NUMBER: 5/5044; TYPE: 2.41-48660 PRESSURE TEST CERTIFICATES TO BE SUPPLIED WITH VALVE; VALVE DRAWING WITH BILL OF MATERIALS/PARTS LIST TO BE SUPPLIED"]
[245,"0671840","VALVE, SOLENOID: PIPE SIZE: DN15; STYLE: BLOCK; POTENTIAL: 24 VDC; DESIGN RATING: 0.2-16 BAR; CONNECTION: PLUG; BODY MATERIAL: BRASS; OPERATED: DC V; ENCLOSURE RATING: IP65; MEDIUM: AIR/WATER; POWER: 11 W; CURRENT: 0.46 A; ORIFICE SIZE: 13 MM; SOFTGOODS: SEAL NBR; APPLICATION: GAS TURBINE FIRE SYSTEM; SPECIFICATION: ISO; MANUF P/N: 840131"]
[246,"0671840","VALVE, SOLENOID: PIPE SIZE: DN15; STYLE: BLOCK; POTENTIAL: 24 VDC; DESIGN RATING: 0.2-16 BAR; CONNECTION: PLUG; BODY MATERIAL: BRASS; OPERATED: DC V; ENCLOSURE RATING: IP65; MEDIUM: AIR/WATER; POWER: 11 W; CURRENT: 0.46 A; ORIFICE SIZE: 13 MM; SOFTGOODS: SEAL NBR; APPLICATION: GAS TURBINE FIRE SYSTEM; SPECIFICATION: ISO; MANUF P/N: 840131"]
[247,"0671894","VALVE: TYPE: CHANGE OVER; VALVE SIZE: 1-1/2 IN; DESIGN RATING: 40-100 BAR; TEMPERATURE RATING: -10 TO 425 DEG C; FACE TO FACE LENGTH: 265 MM; CONNECTION: DN 40; OPERATED: HAND; BODY MATERIAL: GP 240GM + N 1.0619; STYLE: CHANGE OVER VALVE; TRIM: CR 1,4021; GRADE: CARBON STEEL; SOFTGOODS: GRAPHITE/1,4571; SPECIAL FEATURES: CHANGE OVER VALVE,3 PORTS FLANGE; PN - 300 LBS"]
[248,"0671894","VALVE: TYPE: CHANGE OVER; VALVE SIZE: 1-1/2 IN; DESIGN RATING: 40-100 BAR; TEMPERATURE RATING: -10 TO 425 DEG C; FACE TO FACE LENGTH: 265 MM; CONNECTION: DN 40; OPERATED: HAND; BODY MATERIAL: GP 240GM + N 1.0619; STYLE: CHANGE OVER VALVE; TRIM: CR 1,4021; GRADE: CARBON STEEL; SOFTGOODS: GRAPHITE/1,4571; SPECIAL FEATURES: CHANGE OVER VALVE,3 PORTS FLANGE; PN - 300 LBS"]
[249,"0688401","VALVE, RELIEF: VALVE SIZE: 100 X 125 MM; SET PRESSURE: 25-2400 KPA G; TEMPERATURE RATING: -4 TO -230 DEG C; CONNECTION: FLANGE; BODY MATERIAL: CS; TRIM: DISC ST/ST; FACE TO FACE LENGTH: 187/165 MM; OPERATED: SPRING; ORIFICE SIZE: SQ 2027 MM; SPECIFICATION: BS 6759-3:1984; APPLICATION: BFPT LUB OIL BYPASS PRESSURE; SOFTGOODS: GASKET INORGANIC FIBRE WITH NITRILE BINDER; DESIGN RATING: 2.4 MPA; REFERENCE NO: 693; SC81S503 & SC71S09; INLET FACE TO OUTLET CENTRE 187 MM; OUTLET FACE TO INLET CENTRE 16 5 MM; CAST STEEL SINGLE SPRING HIGH LIFT SAFETY RELIEF VALVE; INLET FLANGE DN 100 BS10-H; OUTLET FLANGE DN125 BS10-F; SPRING OPERATED TO OPEN WHEN SET SPRING TENSION IS OVERCOME BY SYSTEM PRESSURE; SEAT RING ST/ST; SPRING STEEL; ALL OTHER DIMENSIONS TO BS 6759-3:1984; VALVE TO BE SUPPLIED WITH A SET PRESSURE CERTIFICATE; FLANGES TO BE COVERED OR PLUGGED TO PREVENT FOREIGN MATERIAL FROM ENTERING, AND PROTECTED FROM THE ELEMENTS WITH A SUITABLE CORROSION INHIBITOR; A TECHNICAL EVALUATION NEEDS TO BE DONE PRIOR TO ORDER PLACEMENT; THE FOLLOWING DOCUMENTS ARE REQUIRED FOR THE TECHNICAL EVALUATION (1) GENERAL VALVE ASSEMBLY DRAWING (2) VALVE BROCHURE/INFORMATION; SIGNED ASSEMBLY DRAWING BY THE SUPPLIER WILL SERVE AS PROOF FOR THE CORRECT ITEM TO BE SUPPLIED; NO QUALITY CHECK WILL BE DONE WITHOUT A TECHNICAL EVALUATION BEING DONE DURING THE TENDERING STAGE; FOR VALVES THAT ARE TO BE REFURBISHED, A REFURBISHED SOW MUST BE SUBMITTED BY TURBINE ENGINEERING; THIS SOW MUST BE ISSUED WITH THE TENDERS; NO REPAIRS WILL BE PERMITTED OR ACCEPTED WITHOUT THE ENGINEERING SOW BEING SUPPLIED AND ADHERED TO"]
[250,"0688633","VALVE: TYPE: KNIFE GATE; VALVE SIZE: 450 MM; DESIGN RATING: 7 BAR; TEMPERATURE RATING: 50 DEG C; FACE TO FACE LENGTH: 143 MM; CONNECTION: FLANGE; OPERATED: HYDRAULIC ACTUATOR; BODY MATERIAL: CS; 16-HOLE EQUI-SPACED, OFF CRS ON A 585 PCD; 10-HOLES DRILL DIAMETER 26 THRU; 6-HOLES DRILL AND TAP M24 X 30 DEEP"]
[251,"0692543","VALVE: TYPE: NON RETURN; VALVE SIZE: 20 MM; TEMPERATURE RATING: -10 TO 100 DEG C; CONNECTION: 1/2 IN-BSP; OPERATED: AIR; BODY MATERIAL: STAINLESS STEEL; OEM P/N: 033930"]
[252,"0692898","VALVE, SOLENOID: PIPE SIZE: 1/2 IN; STYLE: 1/1; POTENTIAL: 220 VDC; DESIGN RATING: 0-1.5 MPA; CONNECTION: BSPF; BODY MATERIAL: BRASS; OPERATED: SOLENOID; ENCLOSURE RATING: IP65; MEDIUM: AIR; ORIFICE SIZE: 3 MM; COIL: SINGLE; APPLICATION: MECHANICAL AIR BRAKE SYSTEM; OEM P/N: VS3P-4030-10G HMJ-X"]
[253,"0694573","VALVE, SOLENOID: PIPE SIZE: 1 IN; STYLE: 1/1; POTENTIAL: 24 VDC; DESIGN RATING: 10 BAR; CONNECTION: FNPT; BODY MATERIAL: STAINLESS STEEL; OPERATED: COIL SOLENOID VALVE; ENCLOSURE RATING: IP65; MEDIUM: DIESEL; ORIFICE SIZE: 15-25 MM; COIL: SINGLE; SOFTGOODS: O RING; APPLICATION: DIESEL; MODEL NO 2W-160-15, BOTH VALVE PORT; SIZE 1 IN"]
[254,"0696638","VALVE, BUTTERFLY: TYPE: CENTERED DISC; VALVE SIZE: 3 IN; DESIGN RATING: PN35; TEMPERATURE RATING: 0-100 DEG C; CONNECTION: BW; BODY MATERIAL: 1.4571; FACE TO FACE LENGTH: 400 MM; OPERATED: MANUAL; TRIM: STL; SOFTGOODS: GASKETS; APPLICATION: DRAIN VALVE 1 TURBINE HOUSE UNIT 4; 4 0LCE10 AA401; SPECIFICATION: AV-25-63-SE-HR-G-XX-00; SUPPL P/N: 63906F3C7C3F09C3E0401EAC37FA0A05"]
[255,"0708469","VALVE: TYPE: DELUGE; VALVE SIZE: 3 IN; DESIGN RATING: 21 BAR; TEMPERATURE RATING: 65 DEG C; CONNECTION: WAFER; OPERATED: ACTUATOR HYDRAULIC; BODY MATERIAL: FORGED STEEL SAE1021; INBAL MODEL 799DG-04-A01 HYDRAULIC DELGE VALVE- WAGER PATTERN ENDS RATED TO 21 TO OPEN WHEN PRESSURE IS LOST IN THE LINE, LATCH IN OPEN POSITION, LOCAL RESET COMPLETE WITH ALL NECESSARY TRIM VALVE ENDS AND WATER FLOW TEST & DRAIN ENDS DUCTILE (ASTM A53665-45-12), SLEEVE SMR5 ELATOMER REINFORCED WITH POLYESTER AND KEVLAR, CONTROL TRIM BRASS NICKEL CHROME PLATED STAINLESS STEEL AND GALVANISED STEEL"]
[256,"0708469","VALVE: TYPE: DELUGE; VALVE SIZE: 3 IN; DESIGN RATING: 21 BAR; TEMPERATURE RATING: 65 DEG C; CONNECTION: WAFER; OPERATED: ACTUATOR HYDRAULIC; BODY MATERIAL: FORGED STEEL SAE1021; INBAL MODEL 799DG-04-A01 HYDRAULIC DELGE VALVE- WAGER PATTERN ENDS RATED TO 21 TO OPEN WHEN PRESSURE IS LOST IN THE LINE, LATCH IN OPEN POSITION, LOCAL RESET COMPLETE WITH ALL NECESSARY TRIM VALVE ENDS AND WATER FLOW TEST & DRAIN ENDS DUCTILE (ASTM A53665-45-12), SLEEVE SMR5 ELATOMER REINFORCED WITH POLYESTER AND KEVLAR, CONTROL TRIM BRASS NICKEL CHROME PLATED STAINLESS STEEL AND GALVANISED STEEL"]
[257,"0708473","VALVE: TYPE: DELUGE; VALVE SIZE: 4 IN; DESIGN RATING: 21 BAR; TEMPERATURE RATING: 65 DEG C; CONNECTION: WAFER; OPERATED: ACTUATOR HYDRAULIC; BODY MATERIAL: FORGED STEEL SAE1021; INBAL MODEL 799DG-04-A01 HYDRAULIC DELGE VALVE- WAGER PATTERN ENDS RATED TO 21 TO OPEN WHEN PRESSURE IS LOST IN THE LINE, LATCH IN OPEN POSITION, LOCAL RESET COMPLETE WITH ALL NECESSARY TRIM VALVE ENDS AND WATER FLOW TEST & DRAIN ENDS DUCTILE (ASTM A53665-45-12), SLEEVE SMR5 ELATOMER REINFORCED WITH POLYESTER AND KEVLAR, CONTROL TRIM BRASS NICKEL CHROME PLATED STAINLESS STEEL AND GALVANISED STEEL"]
[258,"0708473","VALVE: TYPE: DELUGE; VALVE SIZE: 4 IN; DESIGN RATING: 21 BAR; TEMPERATURE RATING: 65 DEG C; CONNECTION: WAFER; OPERATED: ACTUATOR HYDRAULIC; BODY MATERIAL: FORGED STEEL SAE1021; INBAL MODEL 799DG-04-A01 HYDRAULIC DELGE VALVE- WAGER PATTERN ENDS RATED TO 21 TO OPEN WHEN PRESSURE IS LOST IN THE LINE, LATCH IN OPEN POSITION, LOCAL RESET COMPLETE WITH ALL NECESSARY TRIM VALVE ENDS AND WATER FLOW TEST & DRAIN ENDS DUCTILE (ASTM A53665-45-12), SLEEVE SMR5 ELATOMER REINFORCED WITH POLYESTER AND KEVLAR, CONTROL TRIM BRASS NICKEL CHROME PLATED STAINLESS STEEL AND GALVANISED STEEL"]
[259,"0713424","VALVE: TYPE: ISOLATING; VALVE SIZE: G1/2 IN; DESIGN RATING: 400 BAR; TEMPERATURE RATING: -20 TO 200 DEG C; FACE TO FACE LENGTH: 100 MM; CONNECTION: G1/2 IN; OPERATED: INSTRUMENT VALVE; BODY MATERIAL: STAINLESS STEEL; STYLE: VALVE WITH TEST PORT; TRIM: NEEDLE AND SEATING; GRADE: 1.4571; SPECIFICATION: DIN 16271; SOFTGOODS: CORROSION AND ACID RESISTANT; MANUF P/N: 9091157; SHUT-OFF VALVE WITH HEAT RESISTANT PLASTIC KNOB AND TEST PORT CONNECTION ,M20 X 1.5"]
[260,"0714976","VALVE, PLUG: VALVE SIZE: 80; DESIGN RATING: PN40; TEMPERATURE RATING: -10 TO 100 CELSIUS; CONNECTION: THREADED CONNECTION (G1/2); BODY MATERIAL: CARBON STEEL; FACE TO FACE LENGTH: 155 MM; OPERATED: HYDRAULIC; SOFTGOODS: O-RING RUBBER 85X3 / O-RING RUBBER 102X3 / MANTEL-RING TFMA 90X88X7.3 / NUT-RINGB12X24X10 / SCRAPER-RING B12X22; CONFIGURATION: FLANGE; APPLICATION: COMPRESSED AIR; TYPE: BLOWDOWN; MANUF P/N: 2.49-581"]
[261,"0715945","VALVE, CHECK: TYPE: NON-RETURN; VALVE SIZE: 650 MM; DESIGN RATING: Y 0.35 AND VACUUM MPA; TEMPERATURE RATING: 200 DEG C; CONNECTION: BUTT-WELDED; BODY MATERIAL: STEEL ASTM A216-WCB; FACE TO FACE LENGTH: 1448 MM; OPERATED: AUTO; TRIM: STEEL; APPLICATION: CHECK VALVE LBS30AA501; SPECIFICATION: ANSI B16 34 CLASS 150; DRAWING NO: FB21EV650NFDA ITEM DEWRANCE; BLED STEAM CHECK VALVE, BODY: WBC, SEAT: CR13, DISK: CR18"]
[262,"0726792","VALVE, SOLENOID: PIPE SIZE: 28 MM; STYLE: COAXIAL 3/2 WAY DIRECT ACTING; POTENTIAL: 230 VAC; DESIGN RATING: 100 BAR; CONNECTION: G3/4 IN FEMALE; BODY MATERIAL: BRASS; OPERATED: SOLENOID; ENCLOSURE RATING: IP65; MEDIUM: AIR; POWER: 0.4 W; CURRENT: 0.15 A; ORIFICE SIZE: 15 MM; SOFTGOODS: NBR ORING; APPLICATION: DRAIN VALVE; MANUF P/N: 039599; STAGE 3 DRAIN VALVE"]
[263,"0728675","VALVE, RELIEF: VALVE SIZE: 1 IN; SET PRESSURE: 64 BAR; TEMPERATURE RATING: -30 TO 100 DEG C; CONNECTION: G1 IN; BODY MATERIAL: FREE CUTTING STEEL; TRIM: FREE CUTTING STEEL; FACE TO FACE LENGTH: 115 MM; OPERATED: PILOT; APPLICATION: HYDRAULIC PUMP; STYLE: SPOOL TYPE; SOFTGOODS: NBR O-RINGS; DESIGN RATING: 125 BAR; PRESSURE RANGE: 5 -125 BAR; MANUF P/N: DB16P; MODEL NO: DB16P-01-C-N-190V"]
[264,"0731743","VALVE, CHECK: TYPE: SWING DISK NRV; VALVE SIZE: 3 IN; DESIGN RATING: PN 16; TEMPERATURE RATING: 0 TO 100 DEG C; CONNECTION: FLANGED; BODY MATERIAL: ASTM 216; FACE TO FACE LENGTH: 66 MM; OPERATED: SPRING ACTUATED; STYLE: WAFER TYPE SWING CHECK; SPECIFICATION: FM,UL,CUL APPROVED; MANUF P/N: V03312; PRESSURE TEST AND MATERIAL TEST CERTIFICATES TO BE SUPPLIED UPON DELIVERY OF THE VALVES."]
[265,"0731847","VALVE, RELIEF: VALVE SIZE: G 1/4 IN; SET PRESSURE: 11 BAR; TEMPERATURE RATING: -20 TO 200 DEG C; CONNECTION: THREADED; BODY MATERIAL: BRASS; TRIM: BRASS - STAINLESS STEEL; FACE TO FACE LENGTH: 65 MM; OPERATED: SPRING LOADED - MECHANICALLY; ORIFICE SIZE: 38.47 MM2; SPECIFICATION: ASME VIII DIV. 1; APPLICATION: COMPRESSED AIR; STYLE: FREE DISCHARGE - D7; SOFTGOODS: N.B.R.(STD) -10 / + 100 °C; DESIGN RATING: PN60; PRESSURE RANGE: 8 - 12 BAR; MANUF P/N: D7CW614N; SAFETY VALVE TO BE SET AT 11 BAR (COLD SET PRESSURE). SAFETY VALVE TO BE TAGGED AND LED SEALED. INFORMATION ON TAG SHOULD CONTAIN:VALVE SERIAL NUMBER, SET PRESSURE, TEST DATE AND DUE DATE. DUE DATE SHOULD BE 3 YEARS FROM TEST DATE. VALVE. TEST REPORT TO BE SUPPLIED ALONG WITH VALVE.TEST REPORT TO DETAIL TO CORRESPOND WITH VALVE INFO"]
[266,"0738822","VALVE: TYPE: INJECTION; VALVE SIZE: 6/4 - R 1/2 IN; DESIGN RATING: 7-16 BAR; TEMPERATURE RATING: 25-40 DEG; CONNECTION: 6 MM COMPRESSION; OPERATED: STANDARD; BODY MATERIAL: PVC; ."]
[267,"0738824","VALVE: TYPE: FOOT; VALVE SIZE: 20 MM; DESIGN RATING: 7-16 BAR; TEMPERATURE RATING: 40 DEG; CONNECTION: 6 MM COMPRESSION; OPERATED: STANDARD; BODY MATERIAL: PVDF PTFE"]
[268,"0754488","VALVE, SOLENOID: PIPE SIZE: G1/2 Thread ACRE; STYLE: 2/2-WAYS, NORMALLY CLOSED; POTENTIAL: 24 VDC; DESIGN RATING: PN 80 BAR; CONNECTION: GM84 - G1/2 THREADED PORT; BODY MATERIAL: MS BRASS; OPERATED: VOLTAGE; ENCLOSURE RATING: IP65; MEDIUM: WATER. AIR AND HYDRAULIC FLUIDS; POWER: 24 VDC; SUPPL P/N: 5404-A12,0EFMSGM84-C024/DC-12; BURKERT: 2/2-WAY-SOLENOID VALVE; SERVO-POSITION, 5404-A12,0EFMSGM84-C024/DC-12\nA 2/2-WAYS;NORMALY CLOSED, ORIFICE SIZE - EF PTFE-SEAT-SEALING + FKM, MATERIAL - MS BRASS, PORT CONNECTION - GM84 G1/2\nTHREADED PORT, COIL SIZE - C 40 X 40, VOLTAGE - 024 24VOLTS, FREQUENCY - DC, POWER CONSUMPTION - 12 WATT, SPECIAL FEATURE\nMX13 PN 80 BAR RATED"]
[269,"0754499","VALVE, CHECK: TYPE: CHECK VALVE; VALVE SIZE: ¼  BSPT MALE DOWNSTREAM / 8L MALE UPSTREAM IN; DESIGN RATING: 500 BAR; TEMPERATURE RATING: -10 to +100 DEG C; CONNECTION: ¼ INCH BSPT MALE DOWNSTREAM / 8L MALE UPSTREAM; BODY MATERIAL: STAINLESS STEEL; FACE TO FACE LENGTH: 47.5 MM; OPERATED: PRESSURE; STYLE: HYDRAULIC; TRIM: STELLITED; APPLICATION: GREASE SYSTEM; SPECIFICATION: RHZ-R-ED"]
[270,"0758582","VALVE: TYPE: NRV; VALVE SIZE: 3/8 IN; DESIGN RATING: 700 BAR; TEMPERATURE RATING: 0 to 80 DEG; FACE TO FACE LENGTH: 11.7 MM; CONNECTION: THREAD 1/4 INCH BSP; OPERATED: BALL, SPRING; BODY MATERIAL: STAINLESS STEEL; STYLE: 1 WAY; SPECIFICATION: HAWE HYDRAULICS RB2 NRV SIZE: 3/8” BSPP; SOFTGOODS: 0-RINGS, SPRINGS; SPECIAL FEATURES: HAWE HYDRAULICS RB2 NRV SIZE: 3/8” BSPP"]
[271,"0765058","VALVE: TYPE: RELIEF; VALVE SIZE: 25 MM; DESIGN RATING: 30 BAR; TEMPERATURE RATING: 170 DEG C; CONNECTION: FLANGE MM; OPERATED: SPRING; BODY MATERIAL: CARBON"]
[272,"0767444","VALVE: TYPE: PRESSURE RELIEF; VALVE SIZE: 1/4 IN; DESIGN RATING: 0.3-10 BAR; TEMPERATURE RATING: -34 TO 65 DEG C; CONNECTION: G1/4 IN; OPERATED: 10BAR; BODY MATERIAL: ZINC ALLOY; MANUF P/N: V07-200NGMG; V07; NORGREN, MINIATURE PORTED"]
[273,"0028911","BELT: TYPE: VALVE; FIG NO: 2396C.S. SA1253 B77; REFERENCE NO: 44411-006B; FOR 3 INCH HOPKINSON VALVE; USED FOR SOOTBLOWER REHEAT SECTION; VENDORS ARE RESPONSIBLE FOR ENSURING THAT THEY ARE PERFORMING AGAINST THE CORRECT DRAWING REVISION NUMBER (IF APPLICABLE)."]
[274,"0068400","VALVE, CHECK: VALVE SIZE: 20 MM; DESIGN RATING: 20 BAR; TEMPERATURE RATING: 9 BAR AT 180 DEG C; CONNECTION: THD FEMALE; BODY MATERIAL: BRZ; STYLE: THD CAP; TRIM: DISC BRZ; MODEL NO: SS3501/M; REFERENCE NO: ES701; TYPE LIFT; IN LINE; CKI; FOR USE ON BOILER; MATERIAL AND TEST CERTIFICATES, TO DIN 50049/3.1B, ARE TO BE SUPPLIED ON DELIVERY"]
[275,"0068955","VALVE, CHECK: TYPE: SWING; VALVE SIZE: 280 MM; TEMPERATURE RATING: 200 DEG C; CONNECTION: BW; STYLE: BOLTED CAP; TRIM: DISC/SEAT 13CRS; GRADE: WCB; WEIGHT ASSISTED; BODY 37.5BAR; SEAT 25BAR"]
[276,"0515330","MASK: TYPE: DUST; DIMENSIONS: 207 MM; PROTECTION FOR WHICH DESIGNED: DUST; SPECIAL FEATURES: WITH VALVE; SUPPL P/N: FFP2; PPE"]
[277,"0751707","VALVE, GATE: VALVE SIZE: DN150 MM; TYPE: WEDGE; DESIGN PRESSURE: 16 BAR; DESIGN TEMPERATURE: +/- 80 DEG C; CONNECTION: FLANGE; FACE TO FACE LENGTH: 210 MM; BODY MATERIAL: CAST IRON; TRIM: WEDGE; OPERATED: HANDWHEEL; STEM DESIGN: RISING SPINDLE; TEMPERATURE RATING: +/- 80 DEG C; APPLICATION: COOLING TOWERS ISOLATION; DESIGN RATING: 16 BAR; OPERATED: HANDWHEEL RISING SPINDLE; DESIGN RATING: 16 BAR; DRILING: SANS1123 – TABLE 600"]
[278,"0751861","VALVE, CHECK: TYPE: WAFER; VALVE SIZE: 400 MM; DESIGN RATING: 1600 KPA; TEMPERATURE RATING: 0 TO 100 DEG C; CONNECTION: FLANGE; BODY MATERIAL: CF8M; FACE TO FACE LENGTH: 108 MM; OPERATED: SPRING ACTUATED; STYLE: WAFER; TRIM: CF8M; SOFTGOODS: NITRILE; OEM P/N: 16DMZ; MODEL NO: 16DMZ; FIG NO: 16DMZ, SERIAL NO:821186, PRESSURE TEST AND MATERIAL TEST CERTIFICATES TO BE SUPPLIED WITH VALVES."]
[279,"0762729","VALVE, RELIEF: VALVE SIZE: 172 X 90 MM; SET PRESSURE: 8  PSI; TEMPERATURE RATING: -30 TO -120 DEG C; CONNECTION: FLANGE; BODY MATERIAL: WEATHERPROOF AND TRANSFORMER OIL RESISTANT ALUMINIUM; TRIM: SPRING STEEL EN 10270-1; OPERATED: SPRING; SPECIFICATION: IEC 60947-5-1 AC-15 / DC-13; APPLICATION: PALMIET GEN TRANSFORMER; STYLE: SIGNAL PIN INDICATOR; SOFTGOODS: MOUNTING GASKET 200 X 178.5 X 4.25 MM"]
[280,"0778355","PROTECTOR: TYPE: SHUTTER VALVE; DIMENSIONS: 80 MM; MATERIAL: ALUMINIUM; MANUF P/N: 1RDR100800; POWER SUPPLY 220V AC OR DC, BREAKING CAPACITY 2A, RATED CURRENT 0.5A FOR 10.000 MANOEUVERS"]
[281,"0717459","VALVE: TYPE: HYDRAULIC; VALVE SIZE: 0.5 MM; DESIGN RATING: 65 BAR; TEMPERATURE RATING: -10 TO 100 BAR; FACE TO FACE LENGTH: 286 MM; CONNECTION: BSP 1/4 IN / 1/2 BSP IN; OPERATED: HYDRAULIC; BODY MATERIAL: CARBON STEEL-UPPER AND MIDDLE BLOCK BRASS -; STYLE: UPPER BLOCK COMPRESSION SPRING - MIDDLE BLOCK HYDRAULIC -LOWER BLOCK WATER; TRIM: COMPRESSION SPRING 35X45X100 - WIRE 5MM - COILS 8; SOFTGOODS: 8X2NBR70 ORINGS -32X3NBR ORINGS -20X3BNR70 ORINGS; SPECIAL FEATURES: HYDRAULIC TELL TALE HOLES,PILOTED WITH WATER; MANUF P/N: 3/5010 2.41-32489; SQUARE TYPE O RING,TAPPERED BOTTOM THICKNESS 4MM PAPER 5.3 - 6.3 MM ID 11 MM OD 21 MM TAPERED BOTTOM 21.6 PAPERED TOP 11 MM, MANTEL RING TFMI 16X18X3/19X2.5 MM O-RING HYDRAULIC MIDDLE SECTION M10 MOUTING HOLES"]
[282,"0041764","VALVE: TYPE: UNLOADING; FOR CONDENSATE B/DOWN"]
[283,"0041832","VALVE: TYPE: COMPRESSOR; VALVE SIZE: 280 MM; OPERATED: PRESSURE; BODY MATERIAL: STL; TRIM: DISC SS; 1ST STAGE CONCENTRIC"]
[284,"0041833","VALVE: TYPE: COMPRESSOR; VALVE SIZE: 175 MM; OPERATED: PRESSURE; BODY MATERIAL: STL; TRIM: DISC SS; 2ND STAGE CONCENTRIC"]
[285,"0041834","VALVE: TYPE: COMPRESSOR; VALVE SIZE: 95 MM; OPERATED: PRESSURE; BODY MATERIAL: STL; TRIM: DISC SS; 3RD STAGE CONCENTRIC"]
[286,"0050087","VALVE, SOLENOID: PIPE SIZE: 15 MM; STYLE: 2 WAY; CONNECTION: FNPT; BODY MATERIAL: STEEL; MEDIUM: OIL; SUPPL P/N: 2VA2/43A-002/1 T6; DISTRIBUTION BLOCK"]
[287,"0050088","VALVE, SOLENOID: PIPE SIZE: 12 MM; STYLE: 4 WAY; CONNECTION: FNPT; BODY MATERIAL: STEEL; MEDIUM: OIL; SUPPL P/N: ZVA 2/22A-002/1 T6; DISTRIBUTION BLOCK 1 WAY"]
[288,"0050089","VALVE, SOLENOID: PIPE SIZE: 12 MM; STYLE: 3 WAY; CONNECTION: FNPT; BODY MATERIAL: STEEL; MEDIUM: OIL; SUPPL P/N: ZA2-66A-002/1 T6; DISTRIBUTION BLOCK"]
[289,"0050090","VALVE, SOLENOID: PIPE SIZE: 15 MM; STYLE: 2 WAY; CONNECTION: FNPT; BODY MATERIAL: STEEL; MEDIUM: OIL; SUPPL P/N: ZVA2-44A-002-1 T6; DISTRIBUTION BLOCK"]
[290,"0050092","VALVE, SOLENOID: PIPE SIZE: 12 MM; STYLE: 4 WAY; CONNECTION: FNPT; BODY MATERIAL: STEEL; MEDIUM: OIL; SUPPL P/N: ZVA2-88A-002-1 T6; DISTRIBUTION BLOCK"]
[291,"0069346","VALVE, RELIEF: VALVE SIZE: 30 X 15 MM; SET PRESSURE: 64 BAR; CONNECTION: NPT X FNPT; BODY MATERIAL: STL; TRIM: DISC SS; SPRING STL; OPERATED: PRESSURE, SPRING; FULL STROKE SPRING TYPE SAFETY; GEBR LESER TYPE 561; D/G 0.8; BEST NUMBER: 615875/5003"]
[292,"0069359","VALVE, PLUG: VALVE SIZE: 15 MM; CONNECTION: FNPT; BODY MATERIAL: BRASS; OPERATED: HANDWHEEL; STYLE: THD BONNET; TRIM: BONNET/PLUG BRS; TYPE: SHUT OFF; DRAWING NO: M096-84176222/23P9 REV 1; REFERENCE NO: NBV1003GX; PACKLESS; RIGHT - LEFT OPEN INDICATION; 3/8 INCH; MP 30KG/CM"]
[293,"0142398","CLUTCH: TYPE: SOLENOID VALVE; BORE: 19 MM; DRAWING NO: HATM 302903 P001 REV 1; 110 VOLT; SIZE OD 85.7 X WD 38.4MM; VENDORS ARE RESPONSIBLE FOR ENSURING THAT THEY ARE PERFORMING AGAINST THE CORRECT DRAWING REVISION NUMBER (IF APPLICABLE)."]
[294,"0655128","VALVE, BUTTERFLY: TYPE: STRAINER; VALVE SIZE: DN50; DESIGN RATING: 16 BAR; TEMPERATURE RATING: -10 TO 110 DEG C; CONNECTION: MALE COUPLING; BODY MATERIAL: CI; FACE TO FACE LENGTH: 45 MM; OPERATED: ACTUATOR; TRIM: DISC SS; SHAFT SS;BODY SEAT EPDM; SOFTGOODS: RUBBER; SUPPL P/N: IBF3SS"]
[295,"0725188","VALVE: TYPE: AIR VENT; VALVE SIZE: 3/4 X 3/8 IN; DESIGN RATING: 16 BAR; TEMPERATURE RATING: 120 DEG C; FACE TO FACE LENGTH: 1.5 MM; CONNECTION: INLET 3/4 NPT FEMALE X EXHAUSE 3/8 NPP FEMALE STRAIGHT; OPERATED: AIR; BODY MATERIAL: BRASS,INTERNAL: STAINLESS, SEAL :PEAK,NBR FKM; STYLE: POT SHAPED; TRIM: FLOAT TYPE AUTOMATIC; SOFTGOODS: O RING RUBBER; SPECIAL FEATURES: CALEFFI; MANUF P/N: 501500; ART 501"]
[296,"0727285","VALVE: TYPE: FREE FLOATING LEVER AIR VENT; VALVE SIZE: 3/4 X 1/2 IN; DESIGN RATING: 21 BAR; TEMPERATURE RATING: 93 DEG C; FACE TO FACE LENGTH: 10.6 MM; CONNECTION: INLET 3/4 OUTLET 1/2 INCH; OPERATED: FLOAT; BODY MATERIAL: CAST IRON; STYLE: BOWL; SOFTGOODS: GRAPHITE GASKET (ITEM 9), 1.4301 WASHER (ITEM 14); MANUF P/N: 1AV ; SEAT, LEVERAGE SYSTEM, FLOAT STAINLESS STEEL, BODY AND CAP ASTM A48 CLASS 30 CAST IRON, GASKET GRAPHITE 60 X 75X 1 MM, BLOTS ASTM A193 GR B7, NUTS ASTM A563 GR A"]
[297,"0738906","KIT, COMPRESSOR REPAIR: TYPE: SERVICE; APPLICATION: SPHERICAL VALVE; SPECIFICATION: ELECTRIC; COMPRISING: PISTON RINGS & GASKETS; MANUF P/N: 32226342; TYPE 30 MODEL 15T2, COMPRESSION STAGES 1, 2 AND 3, INGERSOLL RAND"]
[298,"0751644","VALVE, BALL: VALVE SIZE: 12 MM; DESIGN RATING: 400 BAR; TEMPERATURE RATING: -10 to +100 DEG C; CONNECTION: 1/2 IN; BODY MATERIAL: CARBON STEEL; FACE TO FACE LENGTH: 100 MM; OPERATED: LEVER; STYLE: SQUARE; TRIM: CARBON STEEL; SOFTGOODS: NONE; SPECIFICATION: 4 WAY BALL; PORT TYPE: STRAIGHT 1/2 INCH FITTING MALE TO FEMALE; APPLICATION: MAINTENANCE SEAL OPERATION"]
[299,"0751649","VALVE, BALL: VALVE SIZE: 12 MM; DESIGN RATING: 400 BAR; TEMPERATURE RATING: -10 to +100 DEG C; CONNECTION: 1/2'' STRAIGHT FEMALE FITTING; BODY MATERIAL: CS/CS-CS-POM; FACE TO FACE LENGTH: 100 MM; OPERATED: LEVER; STYLE: 3 WAY; TRIM: CARBON STEEL BALL ELEMENT; SOFTGOODS: NONE; SPECIFICATION: MULTI WAY BALL VALVE; PORT TYPE: 1/2 INCH FULL PORT IN; APPLICATION: OPERATING SEAL OPERATION; TYPE: ARGUS MW8"]
[300,"0783654","VALVE, GATE: VALVE SIZE: 80 MM; TYPE: GATE; DESIGN PRESSURE: 18 BAR; DESIGN TEMPERATURE: -120 TO 200 DEG C; CONNECTION: FLANGED DRILLED TO BS4504 PN 16; FACE TO FACE LENGTH: 223 MM; BODY MATERIAL: CAST IRON; TRIM: 8; OPERATED: HANDWHEEL; STEM DESIGN: RISING STEM; SPECIAL FEATURES: RESILIENT SEAT VALVE; AINSWORTH ,RAISED FACE,FIRE HYDRANT ,PRESSURE TESTING AND MATERIAL CERTIFICATES TO BE SUPPLIED UPON DELIVERY"]
[301,"0783433","VALVE, GATE: VALVE SIZE: 150 MM; TYPE: SOLID WEGDE; DESIGN PRESSURE: 64 BAR; DESIGN TEMPERATURE: -20 to 200 DEG C; CONNECTION: FLANGED; FACE TO FACE LENGTH: 447 MM; BODY MATERIAL: CARBON STEEL; TRIM: 8; OPERATED: MANUAL HANDWHEEL; DIN 3352 T7,SPIRAL CASE DRAINAGE , PRESSURE TESTING AND MATERIAL CERTIFICATES TO BE SUPPLIED UPON DELIVERY."]
[302,"0783757","VALVE, DIAPHRAGM: TYPE: A; VALVE SIZE: 15 MM; DESIGN RATING: 16 BAR; TEMPERATURE RATING: -5 TO 100 DEG C; CONNECTION: SCREWED BSP THREADED FEMALE; BODY MATERIAL: CAST IRON; DIAPHRAGM MATERIAL: DIAPHRAGM GRADE Q; FACE TO FACE LENGTH: 64 MM; OPERATED: MANUAL; STYLE: TYPE A; SPECIFICATION: COATED; WATR TREATMENT, SAUNDERS WIER TYPE, SUPPLIER TO PROVIDE WITH THE PRESSURE TEST AND MATERIAL PROPERTIES CERTIFICATES."]
[303,"0783432","VALVE, GATE: VALVE SIZE: 300 MM; TYPE: SOLID WEDGE WITH BYPASS; DESIGN PRESSURE: 63 BAR; DESIGN TEMPERATURE: -20 to 200 DEG C; CONNECTION: FLANGE FLAT FACE WITH O-RING GROOVE; FACE TO FACE LENGTH: 750 MM; BODY MATERIAL: CARBON STEEL; TRIM: 8; OPERATED: HANDWHEEL ACTUATED; STEM DESIGN: RISING STEM; APPLICATION: MANUAL BYPASS ISOLATING VALVE; SPECIAL FEATURES: WITH OPEN / CLOSE LEVEL INDICATOR; MANUF P/N: TYPE B3.35461; PRESSURE TESTING AND MATERIAL CERTIFICATE TO BE SUPPLIED UPON DELIVERY."]
[304,"0783755","VALVE, BALL: VALVE SIZE: 12 MM; DESIGN RATING: 500 BAR; TEMPERATURE RATING: -45 TO 121 DEG C; CONNECTION: SCREWED TO BDP THREADED FEMALE; BODY MATERIAL: CARBON STEEL; FACE TO FACE LENGTH: 80 MM; OPERATED: MANUAL; TYPE: 2- WAY BALL VALVE; GOVE RECEIVER, PRESSURE TEST AND MATERIAL PROPERTIES CERTIFICATES."]
[305,"0783664","VALVE: TYPE: 2-WAY; VALVE SIZE: 20 MM; DESIGN RATING: 420 BAR; TEMPERATURE RATING: -10 TO 80 DEG C; FACE TO FACE LENGTH: 95 MM; CONNECTION: SCREWED TO BSP THREADED FEMALE; OPERATED: MANUAL; BODY MATERIAL: CARBON STEEL; STYLE: BLOCK TYPE; GOV REC, THREADED FEMALE, SUPPLIER TO SUPPLY WITH THE PRESSURE TEST AND MATERIAL PROPERTIES CERTIFICATES."]
[306,"0783762","VALVE, DIAPHRAGM: TYPE: A; VALVE SIZE: 25 MM; DESIGN RATING: 16 BAR; TEMPERATURE RATING: -5 TO 100 DEG C; CONNECTION: SCREWED TO BSP THREADED FEMALE; BODY MATERIAL: CAST IRON; DIAPHRAGM MATERIAL: GRADE 1; FACE TO FACE LENGTH: 108 MM; OPERATED: MANUAL; STYLE: TYPE A; SPECIFICATION: COATED; WATER TREATMENT, SAUNDERS WEIR TYPE, Q DIAPHRAGM, SUPPLIER TO SUPPLY WITH THE PRESSURE TEST AND MATERIAL PROPERTIES CERTIFICATES."]
[307,"0750298","VALVE, RELIEF: VALVE SIZE: G3/4; SET PRESSURE: 48.5 BAR; TEMPERATURE RATING: -15 TO 200 DEG C; CONNECTION: G3/4 IN; BODY MATERIAL: BRASS; TRIM: BRASS; OPERATED: PRESSURE SPRING LOADED; MANUF P/N: PSB013-075; SAFETY VALVE TO BE SET AT 11 BAR (COLD SET PRESSURE). SAFETY VALVE TO BE TAGGED AND LED SEALED. INFORMATION ON TAG SHOULD CONTAIN:VALVE SERIAL NUMBER, SET PRESSURE, TEST DATE AND DUE DATE. DUE DATE SHOULD BE 3 YEARS FROM TEST DATE. VALVE. TEST REPORT TO BE SUPPLIED ALONG WITH VALVE.TEST REPORT TO DETAIL TO CORRESPOND WITH VALVE INFO"]
[308,"0783431","VALVE: TYPE: PLUG; VALVE SIZE: 300 MM; DESIGN RATING: 50 BAR; TEMPERATURE RATING: -20 to 200 DEG C; CONNECTION: FLANGED FLAT FACE WITH O-RING GROOVE; OPERATED: HYDRAULIC; BODY MATERIAL: CARBON STEEL; TRIM: 8; MANUF P/N: 2.53-18555; SPHERICAL VALVE BYPASS VALVE.PRESSURE TESTING AND MATERIAL CERTIFICATES TO BE SUPPLIED UPON DELIVERY"]
[309,"0783759","VALVE, DIAPHRAGM: TYPE: A; VALVE SIZE: 50 MM; DESIGN RATING: 16 BAR; TEMPERATURE RATING: -5 TO 100 DEG C; CONNECTION: SCREWED T BSP THREADED FEMALE; BODY MATERIAL: CAST IRON; DIAPHRAGM MATERIAL: DIAPHRAGM GRADE Q; FACE TO FACE LENGTH: 165 MM; OPERATED: MANUAL; STYLE: TYPE A; SPECIFICATION: COATED; WATER TREATMENT, SAUNDERS WEIR TYPE, Q DIAPHRAGM, SUPPLIER TO SUPPLY WITH THE PRESSURE TEST AND MATERIAL PROPERTIES CERTIFICATES"]
[310,"0765642","VALVE, GATE: VALVE SIZE: 100 MM; TYPE: SOLID WEDGE; DESIGN PRESSURE: 64 BAR; DESIGN TEMPERATURE: -20 to +400 DEG C; CONNECTION: FLANGED DIN 2513 FEMALE JOINT FLANGE ENDS; FACE TO FACE LENGTH: 350 MM; BODY MATERIAL: STAINLESS STEEL 304; TRIM: BODY SS304 ; BONNET SS304 ; WEDGE : SS304 ; SEAT : SS304 ; STEM : SS304; OPERATED: HANDWHEEL RISING SPINDLE; APPLICATION: PALMIET LABYRINTH SUPPLY ISOLATION; SPECIFICATION: DESIGN AS PER DIN3352 / EN1171; SPECIAL FEATURES: TO BE SUPPLIED WITH PRESSURE TEST AND MATERIAL CERTIFICATES; GRADE: STAINLESS STEEL 304"]
[311,"0780490","MANIFOLD: TYPE: 2 WAY VALVE MANIFOLD; MATERIAL: STAINLESS STEEL; MANUF P/N: P2/W4GW4GTV2AH-R; 2 VALVE BLOCK AND VENT GAUGE VALVE, PROCESS CONNECTION FEMALE 1/2” BSPG, INSTRUMENT CONNECTION FEMALE 1/2” BSPG, PTFE PACKING,1/4” NPT VENT PORT, ALL TAPS ANTI-TAMPER, 6000 PSI, 316 SS, M6 X 16MM PCD MOUNTING HOLES; VENDORS ARE RESPONSIBLE FOR ENSURING THAT THEY ARE PERFORMING AGAINST THE CORRECT DRAWING REVISION NUMBER (IF APPLICABLE)."]
[312,"0783419","VALVE, GATE: VALVE SIZE: 50 MM; TYPE: GATE VALVE; DESIGN PRESSURE: 10 BAR; DESIGN TEMPERATURE: -29 TO 400 DEG C; CONNECTION: FLANGE DRILLED TO JIS 10K50; FACE TO FACE LENGTH: 140 MM; BODY MATERIAL: FCMB-535; TRIM: TRIM 8; OPERATED: MANUAL; HP INLET, GATE VALVE, SUPPLIER TO PROVE PRESSURE TEST CERTIFICATE AND THE MATERIAL PROPERTIES ON DELIVERY."]
[313,"0783758","VALVE, DIAPHRAGM: TYPE: A; VALVE SIZE: 40 MM; DESIGN RATING: 16 BAR; TEMPERATURE RATING: -5 TO 100 DEG C; CONNECTION: FLANGE DRILLED TO BS4504 T16; BODY MATERIAL: CAST IRON; DIAPHRAGM MATERIAL: DIAPHRAGM GRADE Q; FACE TO FACE LENGTH: 165 MM; OPERATED: MANUAL; STYLE: TYPE A; SPECIFICATION: COATED; WATER TREATMENT, SAUNDERS WEIR TYPE, Q DIAPHRAGM, SUPPLIER TO SUPPLY WITH THE PRESSURE TEST AND MATERIAL PROPERTIES CERTIFICATES"]
[314,"0780491","MANIFOLD: TYPE: 3 VALVE DIRECT MOUNT MANIFOLD; MATERIAL: STAINLESS STEEL; MANUF P/N: S3/FTHAX-ZH; 3 WAY DIRECT MOUNT MANIFOLD, PTFE PACKING AND GASKET, 6000 PSI, 316 SS, ALL TAPS ANTI-TAMPER, O-RING TX HOOK-UP, 316 SS ASSEMBLY BOLT KIT INCLUDED; VENDORS ARE RESPONSIBLE FOR ENSURING THAT THEY ARE PERFORMING AGAINST THE CORRECT DRAWING REVISION NUMBER (IF APPLICABLE)."]
[315,"0783503","VALVE, GLOBE: VALVE SIZE: 80 MM; DESIGN PRESSURE: 2 - 21 BAR; DESIGN TEMPERATURE:  82 DEG C; FACE TO FACE LENGTH: 336 MM; OPERATED: SELF OPERATED; CONNECTION: FLANGE DRILLED TO BS4504 T16; BODY MATERIAL: STAINLESS STEEL; TRIM: STAINLESS STEEL; TYPE: PRESURE REDUCING GLOBE VALVE; MANUF P/N: 20868931A; OIL PURIFY BYPASS, PRESSURE REDUCING VALVE, FLANGE THICKNESS: 30MM, 8 BOLTS, CLA-VAL.CO, THIS VALVE INCLUDE 1 PRESSURE GAUGE, SST CRD PILOT AND TRIM & POSITION INDICATOR, SUPPLIER TO PROVIDE THE FOLLOWING ON DELIVERY: PRESURE TEST CERTIFICATE & MATERIAL PROPERTIES CERTIFICATE."]
[316,"0683354","FLANGE: TYPE: DIESEL ENGINE AIR STARTING VALVE; DIMENSIONS: OD 152.4 MM; MATERIAL: CARBON STEEL; STYLE: RAISED FACE; GRADE: 304; SPECIFICATION: SABS 1123 1600/3; RAISED FACE = 3MM, OD = 152.4MM, ID = TO SUIT 50NB PIPE, PCD = 120.6MM, FLANGE THICKNESS = 25MM, NUMBER OF HOLES = 4, DIAMETER OF BOLT HOLES = 18MM"]
[317,"0783425","VALVE, CHECK: TYPE: CHECK VALVE; VALVE SIZE: 100 MM; DESIGN RATING: 40 BAR; TEMPERATURE RATING: -20 TO 120 DEG C; CONNECTION: FLANGE DRILLED TO BS4504 TABLE 40; BODY MATERIAL: WCB; FACE TO FACE LENGTH: 344 MM; OPERATED: SELF (SWING CHECK); BLOWDOWN AIR NON-RETURN VALVE, PERSTA, MODEL 240MT11.1, PRESSURE TESTING AND MATERIAL PROPERTIES TO SUPPLIED ON DELIVERY BY THE SUPPLIER."]
[318,"0783437","VALVE: TYPE: GLOBE; VALVE SIZE: 100 MM; DESIGN RATING: 64 BAR; TEMPERATURE RATING: -20 TO 200 DEG C; FACE TO FACE LENGTH: 430 MM; CONNECTION: FLANGED & DRILLED TO EN1092-1; OPERATED: HYDRAULIC ACTUATOR WITH OPEN AND CLOSED POSITION SWITCH; BODY MATERIAL: CARBON STEEL; TRIM: 8; MANUF P/N: 2.41-48223; LABYRINTH COOLING WATER HYDRAULIC VALVE , PRESSURE TESTING AND MATERIAL CERTIFICATES TO BE SUPPLIED UPON DELIVERY."]
[319,"0783422","VALVE, GLOBE: VALVE SIZE: 50 MM; DESIGN PRESSURE: 40 BAR; DESIGN TEMPERATURE: -196 to 573 DEG C; FACE TO FACE LENGTH: 224 MM; OPERATED: MANUAL; CONNECTION: FLANGE DRILLED TO EN1092-1 TABLE 40; BODY MATERIAL: STAINLESS STEEL; TRIM: STAINLESS STEEL; INNER AND OUTER LAYBYRINTH, RAISED FACE WITH O-RING GROOVE, NON-RISING STEM, 200AF211, 1.0460, PRESSURE TEST AND MATERIAL PROPERTIES CERTIFICATE ON DELIVERY."]
[320,"0783760","VALVE, DIAPHRAGM: TYPE: A; VALVE SIZE: 80 MM; DESIGN RATING: 16 BAR; TEMPERATURE RATING: -5 to 100 DEG; CONNECTION: FLANGE DRILLED TO BS4504 T16; BODY MATERIAL: CAST IRON; DIAPHRAGM MATERIAL: DIAPHRAGM GRADE Q; FACE TO FACE LENGTH: 260 MM; OPERATED: MANUAL; STYLE: TYPE A; SPECIFICATION: COATED; WATER TREATMENT, SAUNDERS WEIR TYPE, Q DIAPHRAGM, SUPPLIER TO SUPPLY WITH THE PRESSURE TEST AND MATERIAL PROPERTIES CERTIFICATES"]
[321,"0783426","VALVE, BALL: VALVE SIZE: 80 MM; DESIGN RATING: 40 BAR; TEMPERATURE RATING: -40 TO 200 DEG C; CONNECTION: FLANGE DRILLED TO EN1092-1; BODY MATERIAL: STAINLESS STEEL; FACE TO FACE LENGTH: 180 MM; OPERATED: MANUAL; LEVEL INDICATOR L5 DRAFT TUBE, MODENTIC MD-27, DIN2635, RAISED FACE, PRESSURE TEST CERTIFICATE AND MATERIAL PROPERTIES CERTIFICATE TO BE SUPPLIED ON DELIVERY."]
[322,"0783761","VALVE, DIAPHRAGM: TYPE: A; VALVE SIZE: 20 MM; DESIGN RATING: 16 BAR; TEMPERATURE RATING: -5 TO 100 DEG C; CONNECTION: SCREWED TO BSP THREADED FEMALE; BODY MATERIAL: CAST IRON; DIAPHRAGM MATERIAL: GRADE Q; FACE TO FACE LENGTH: 83 MM; OPERATED: MANUAL; STYLE: TYPE A; SPECIFICATION: COATED; WATER TREATMENT, SAUNDERS WEIR TYPE, Q DIAPHRAGM, SUPPLIER TO SUPPLY WITH THE PRESSURE TEST AND MATERIAL PROPERTIES CERTIFICATES"]
[323,"0783505","VALVE, BALL: VALVE SIZE: 50 MM; DESIGN RATING: 19 BAR; TEMPERATURE RATING: 5 - 75 DEG C; CONNECTION: FLANGED DRILLED TO BS4504 T16; BODY MATERIAL: WCB; FACE TO FACE LENGTH: 178 MM; OPERATED: MANUAL; TRIM: STAINLESS STEEL; TYPE: REDUCED BORE; OIL PURIFY, REDUCED BORE VALL VALE, CLASS 150, SERIES 500 BALL VALVE, IPVI, SUPPLIER TO PROVIDE WITH THE PRESSURE TEST CERTIFICATE AND A MATERIAL PROPERTIES CERTIFICATE."]
[324,"0783430","VALVE: TYPE: GLOBE; VALVE SIZE: 100 MM; DESIGN RATING: 40 BAR; TEMPERATURE RATING: -20 to 200 DEG C; FACE TO FACE LENGTH: 340 MM; CONNECTION: FLANGED DRILLED TO BS4504 TABLE 40; OPERATED: MANUAL HANDWHEEL; BODY MATERIAL: CARBON STEEL; TRIM: 8; BLOWDOWN AIR RECEIVER ISOLATION VALVE , PRESSURE TESTING AND MATERIAL CERTIDFICATES TO BE SUPPLIED UPON DELIVERY."]
[325,"0783427","VALVE: TYPE: PLUG; VALVE SIZE: 40 MM; DESIGN RATING: 100 BAR; TEMPERATURE RATING: -20 to 200 DEG C; CONNECTION: FLANGED DRILLED TO EN1092-1; OPERATED: HYDRAULIC ACTUATOR WITH OPEN AND CLOSED POSITION SWITCH; BODY MATERIAL: CARBON STEEL; TRIM: 8; MANUF P/N: 2.41-48231; PRESSURE TESTING AND MATERIAL CERTIFICATES TO BE SUPPLIED UPON DELIVERY.SHAFT SEAL HYDRAULIC VALVE"]
[326,"0768522","VALVE, GLOBE: VALVE SIZE: 15 MM; DESIGN PRESSURE: 10 KG/CM2; DESIGN TEMPERATURE: 180 DEG C; FACE TO FACE LENGTH: 85 MM; OPERATED: HANDWHEEL; CONNECTION: FLANGE; BODY MATERIAL: SCS13; TRIM: 18CR-8NI; SPECIFICATION: 10K-15 , KITZ , GLOBE VALVE"]
[327,"0783792","VALVE, GATE: VALVE SIZE: 250 MM; TYPE: SOLID WEDGE; DESIGN PRESSURE: 16 BAR; DESIGN TEMPERATURE: 5 TO 40 DEG C; CONNECTION: FLANGED DRILLED TO BS4504 T16; FACE TO FACE LENGTH: 356 MM; BODY MATERIAL: CAST STEEL; TRIM: GUNMETAL; OPERATED: MANUAL HANDWHEEL; SPECIAL FEATURES: COPON LINED; DEWATERING, AINSWORTH RESILIENT SEAL GATE VALVE, NON-RISING SPINDLE WITH POSITION INDICATOR, PRESSURE TEST AND MATERIAL PROPERTIES CERTIFICATE TO BE SUPPLIED BY THE SUPPLIER ON DELIVERY."]
[328,"0783434","VALVE, GATE: VALVE SIZE: 300 MM; TYPE: SOLID WEDGE; DESIGN PRESSURE: 25 BAR; DESIGN TEMPERATURE: -20 to 200 DEG C; CONNECTION: FLANGED , DRILLED TO BS4504 PN25; FACE TO FACE LENGTH: 345 MM; BODY MATERIAL: CARBON STEEL; TRIM: 8; OPERATED: MANUAL HANDWHEEL; SPECIAL FEATURES: INTERNAL EPOXY COATED TO 400 UM; MANUF P/N: D300TS564CSEPO; UNIT CW , PRESSURE TESTING AND MATERIAL CERTIIFICATES TO BE SUPPLIED UPON DELIVERY."]
[329,"0750300","VALVE, RELIEF: VALVE SIZE: DN 25; SET PRESSURE: 16.9 BAR; TEMPERATURE RATING: -15/200 DEG C; CONNECTION: 1\" BSP; BODY MATERIAL: BRASS; TRIM: BRASS; OPERATED: AUTOMATIC RELIEF AT SET PRESSURE; MANUF P/N: PSB013-074; SAFETY VALVE TO BE SET AT 16.94 BAR (COLD SET PRESSURE). SAFETY VALVE TO BE TAGGED AND LED SEALED. INFORMATION ON TAG SHOULD CONTAIN: VALVE SERIAL NUMBER, SET PRESSURE, TEST DATE AND DUE DATE. DUE DATE SHOULD BE 3 YEARS FROM TEST DATE. VALVE. TEST REPORT TO BE SUPPLIED ALONG WITH VALVE.TEST REPORT TO DETAIL TO CORRESPOND WITH VALVE INFO. TO SUIT 2ND STAGE ON COMPRESSOR MODEL V250-12-3N"]
[330,"0783756","VALVE, BALL: VALVE SIZE: 25 MM; DESIGN RATING: 420 BAR; TEMPERATURE RATING: -4 TO 121 DEG; CONNECTION: SCREWED TO BSP THREADED FEMALE; BODY MATERIAL: CARBON STEEL; FACE TO FACE LENGTH: 110 MM; OPERATED: MANUAL; GOV REC, THREADED FEMALE, PRESSURE TEST AND MATERIAL PROPERTIES CERTIFICATES TO BE SUPPLIED."]
[331,"0783435","VALVE: TYPE: PLUG; VALVE SIZE: 150 MM; DESIGN RATING: 64 BAR; TEMPERATURE RATING: -20 to 200 DEG C; CONNECTION: FLANGED & DRILLED TO EN1092-1; OPERATED: HYDRAULIC ACTUATOR WITH OPEN AND CLOSED POSITION SWITCH; BODY MATERIAL: CARBON STEEL; MANUF P/N: 2.41-48660; RUNNER BAND DRAIN HYDRAULIC VALVES , PRESSURE TESTING AND MATERIAL CERTIFICATES TO BE SUPPLIED UPON DELIVERY"]
[332,"0783423","VALVE, GATE: VALVE SIZE: 200 MM; TYPE: GATE VALVE; DESIGN PRESSURE: 10 BAR; DESIGN TEMPERATURE: -40 to 120 DEG C; CONNECTION: FLANGED; FACE TO FACE LENGTH: 290 MM; BODY MATERIAL: DUCTILE IRON; TRIM: STAINLESS STEEL; OPERATED: MANUAL; TGB ISOLATOR OIL, WORM & WHEEL GEAR STEM HANDLE WITH POSITION INDICATOR, RAISED FACE, BA-04P-P/N, SUMPLIER TO PROVIDE WITH THE PRESSURE TESTING & MATERIAL PROPERTIES CERTIFICATES."]
[333,"0783754","VALVE, BALL: VALVE SIZE: 06 MM; DESIGN RATING: 500 BAR; TEMPERATURE RATING: -20 TO 60 DEG C; CONNECTION: THREADED FEMALE; BODY MATERIAL: STAINLESS STEEL; FACE TO FACE LENGTH: 70 MM; OPERATED: MANUAL; GOV COMPRESSOR BALL VALVE, PRESSURE TEST AND MATERIAL PROPERTIES"]
[334,"0783421","VALVE, GATE: VALVE SIZE: 32 MM; TYPE: GATE VALVE; DESIGN PRESSURE: 10 BAR; DESIGN TEMPERATURE: -29 to 425 DEG C; CONNECTION: FLANGE DRILLED TO JIS 10K50; FACE TO FACE LENGTH: 120 MM; BODY MATERIAL: FCMB-535; TRIM: TRIM 8; OPERATED: MANUAL; HP OUTLET VALVE, PRESSURE TEST AND MATERIAL PROPERTIES CERTIFICATE ON DELIVERY."]
[335,"0684520","VALVE: TYPE: SCREW DOWN NON-RETURN; VALVE SIZE: 1 IN; DESIGN RATING: 38 BAR; TEMPERATURE RATING: 100 DEG C; FACE TO FACE LENGTH: 241 MM; CONNECTION: FLANGED ENDS TO ANSI-300 LB; OPERATED: SWING, DISK; BODY MATERIAL: FORGED STEEL; STYLE: FLANGE BOLTED; TRIM: PLATNAM; SPECIFICATION: ANSI-300 LB (ASA); SOFTGOODS: GRAPHITE; SWING DISK"]
[336,"0783436","VALVE: TYPE: GLOBE; VALVE SIZE: 65 MM; DESIGN RATING: 16 BAR; TEMPERATURE RATING: -20 to 200 DEG C; FACE TO FACE LENGTH: 288 MM; CONNECTION: FLANGED , DRILLED TO BS4504 TABLE 16; OPERATED: MANUAL HANDWHEEL; BODY MATERIAL: CARBON STEEL; TRIM: 8; PT GUIDE BEARING OIL ISOLATING VALVES , PRESSURE TESTING AND MATERIAL CERTIFICATES TO BE SUPPLIED UPON DELIVERY."]
[337,"0783424","VALVE, GLOBE: VALVE SIZE: 25 MM; DESIGN PRESSURE: 40 BAR; DESIGN TEMPERATURE: -20 TO 120 DEG C; FACE TO FACE LENGTH: 155 MM; OPERATED: MANUAL; CONNECTION: FLANGE DRILLED TO BS4504 TYPE 40/2; BODY MATERIAL: STAINLESS STEEL; TRIM: STAINLESS STEEL; SHAFT SEAL VALVE, GLOBE VALVE, NON-RISING STEM, RAISED FACE, MODEL:200AE85.1, PRESSURE TEST AND MATERIAL PROPERTIES CERTIFICATE ON DELIVERY."]
[338,"0042716","BODY: TYPE: PILOT VALVE; DIMENSIONS: DIA 15.5 X LG 36.4 MM; MATERIAL: BRASS; MODEL NO: 41; REFERENCE NO: 3W63625 T30; COMP; VENDORS ARE RESPONSIBLE FOR ENSURING THAT THEY ARE PERFORMING AGAINST THE CORRECT DRAWING REVISION NUMBER (IF APPLICABLE)."]
[339,"0041833","VALVE: TYPE: COMPRESSOR; VALVE SIZE: 175 MM; OPERATED: PRESSURE; BODY MATERIAL: STL; TRIM: DISC SS; 2ND STAGE CONCENTRIC"]
[340,"0041913","ASSEMBLY: TYPE: PILOT VALVE; SUPPL P/N: R53608T10; REFERENCE NO: 10-11; COMPLETE; FOR DIESEL GENERATOR AIR STATOR COMPRESSOR; INGERSOLL RAND TYPE 30 MODEL 41"]
[341,"0043215","VALVE: VALVE SIZE: 68 MM; CONNECTION: COMPRESSION; OPERATED: PRESSURE; BODY MATERIAL: STL; TRIM: DISC STL; SUPPL P/N: 22K1R; REFERENCE NO: 30220479; COMPLETE; FOR TYPE 30 MODEL 41 ING-RAND AIR COMPRESSOR; SIZE 25.5MM THK"]
[342,"0043216","VALVE: TYPE: DISCHARGE; VALVE SIZE: 68 MM; CONNECTION: COMPRESSION; OPERATED: PRESSURE; BODY MATERIAL: STL; TRIM: DISC STL; SUPPL P/N: CPN 30217947; REFERENCE NO: 30217947; 22K2R; SIZE 26.4MM THK; COMPLETE; FOR TYPE 30 MODEL 41 ING- RAND AIR COMPRESSOR"]
[343,"0043234","KIT, COMPRESSOR REPAIR: TYPE: TUNE UP/RING/VALVE; MODEL NO: 15T2; REFERENCE NO: 32226342; 32133951; FOR TYPE 30 COMPRESSOR"]
[344,"0043262","VALVE: TYPE: SUCTION; VALVE SIZE: 144 MM; CONNECTION: COMPRESSION; OPERATED: PRESSURE; BODY MATERIAL: STAINLESS STEEL; TRIM: DISC STL; REFERENCE NO: HT303811; 2ND STAGE; 20P-4PORTS; 46.3MM THK PLATE; 88MM THK O/A; WITH HEX NUT, WASHER AND SPLIT PIN"]
[345,"0043263","VALVE: TYPE: SUCTION; VALVE SIZE: 104 MM; CONNECTION: COMPRESSION; OPERATED: PRESSURE; BODY MATERIAL: STL; STYLE: 2 PORT; TRIM: DISC STL; REFERENCE NO: HT303813; ASSY; 3RD STAGE 20P-2PORTS; 104MM DIA; 44.3MM THK PLATE; 88MM THK O/A; WITH HEX NUT; WASHER AND SPLIT PIN"]
[346,"0042019","VALVE: VALVE SIZE: 10 MM; CONNECTION: COMPRESSION; OPERATED: PRESSURE; BODY MATERIAL: STL; STYLE: 5 WAY; TRIM: BONNET STL; REFERENCE NO: TC2G0340; THROTTLE AND CHECK MODULE"]
[347,"0042712","CAP: TYPE: VALVE CAGE; DIMENSIONS: DIA 39 X HT 22 MM; MATERIAL: STL; REFERENCE NO: 3W75338; FOR 8K AIR HEAD ASSEMBLY; TYPE 30 MODEL 41 ING- RAND AIR COMPRESSOR"]
[348,"0043264","VALVE: TYPE: SUCTION; VALVE SIZE: 104 MM; CONNECTION: COMPRESSION; OPERATED: PRESSURE; BODY MATERIAL: STAINLESS STEEL; TRIM: DISC STL; REFERENCE NO: HT303815; 4TH STAGE; 20P-2PORTS; 46.3MM THK PLATE; 89MM THK O/A; WITH HEX NUT, WASHER AND SPLIT PIN"]
[349,"0043265","VALVE: TYPE: DISCHARGE; VALVE SIZE: 164 MM; CONNECTION: COMPRESSION; OPERATED: PRESSURE; BODY MATERIAL: STAINLESS STEEL; TRIM: DISC STL; REFERENCE NO: HT303810; ASSY; 1ST STAGE 20P- 5PORTS; 46.0MM THK PLATE; 70MM THK O/A; WITH HEX NUT AND SPLIT PIN"]
[350,"0043268","VALVE: TYPE: DISCHARGE; REFERENCE NO: HT303799; 34-00; 2ND STAGE; RETAINER ASSY"]
[351,"0043269","VALVE: TYPE: SUCTION; DRAWING NO: HT 303857 REV 1; REFERENCE NO: 35-00; 3RD STAGE; RETAINER ASSY"]
[352,"0043270","VALVE: TYPE: DISCHARGE; REFERENCE NO: HT303800; 36-00; 3RD STAGE; RETAINER ASSY"]
[353,"0043271","VALVE: TYPE: SUCTION; REFERENCE NO: 37-00; HT303858; 4TH STAGE; RETAINER ASSY"]
[354,"0062413","VALVE, SOLENOID: PIPE SIZE: 12 MM; STYLE: 4 WAY; POTENTIAL: 240 - 250 VDC; DESIGN RATING: 70-700 KPA; CONNECTION: FNPT; BODY MATERIAL: BRASS; OPERATED: PRESSURE; ENCLOSURE RATING: IP65 EN 60529; MEDIUM: AIR/OIL/WATER; POWER: 11.2 W; APPLICATION: BLOWDOWN COMPRESSOR; REFERENCE NO: WP8345E001; GENERAL PURPOSE ENCLOSURE; 240 VDC COIL"]
[355,"0044480","CONTROL: TYPE: PUMP VALVE ASSY"]
[356,"0061543","ADAPTOR: TYPE: PILOT VALVE; MATERIAL: BRASS; REFERENCE NO: 3W39895; FOR TYPE 30 MODEL 15T2 ING-RAND AIR COMPRESSOR; SIZE 20MM DIA X 60MM LG"]
[357,"0062540","VALVE, SOLENOID: POTENTIAL: 220 V; SUPPL P/N: S2155"]
[358,"0062568","VALVE, SOLENOID: PIPE SIZE: 10 MM; STYLE: 2 WAY; POTENTIAL: 220 VDC; DESIGN RATING: 100 BAR; CONNECTION: FNPT; BODY MATERIAL: BRASS; OPERATED: NC; ENCLOSURE RATING: IP65; MEDIUM: GAS/LIQUID; POWER: 16 W; REFERENCE NO: 9107500/0701"]
[359,"0063087","VALVE, SOLENOID: PIPE SIZE: 10 MM; STYLE: 5 WAY; BODY MATERIAL: STEEL; OPERATED: DOUBLE ACTING; MEDIUM: LIQUID; YUKEN; ENCLOSURE: GENERAL PURPOSE; CONNECTION MANIFOLD"]
[360,"0063152","VALVE, GATE: VALVE SIZE: 3/4 IN; TYPE: SOLID WEDGE; CONNECTION: FLANGE; BODY MATERIAL: BRASS; TRIM: DISC BRS; OPERATED: HANDWHEEL; STEM DESIGN: INSIDE SCREW; STYLE: THD BONNET; NEEDLE VALVE; FLANGE SIZE 105MM O/D; 4 HOLES 14MM DIA PCD 75MM; BS 2060"]
[361,"0065785","VALVE: TYPE: IMPULSE; VALVE SIZE: 15 MM; CONNECTION: THD FEMALE; OPERATED: PRESSURE; BODY MATERIAL: STL; TRIM: DISC STL; DRAWING NO: MB9-642.6350B REV 1; MANIFOLD; SIZE 18MM THK"]
[362,"0065786","VALVE, GATE: VALVE SIZE: 250 MM; TYPE: SPHERICAL MANUAL BYPASS; CONNECTION: FLANGE; FACE TO FACE LENGTH: 250 MM; BODY MATERIAL: STEEL; OPERATED: HANDWHEEL; TEMPERATURE RATING: 16 DEG C; DESIGN RATING: 7.2 MPA; MAIN BY-PASS VALVE VOEST-ALPINE TYPE MB9-642-5320A ESKOM NO. 0.48/1121 DESIGNE PRESSURE = 7.2 MPA VALVE, BYPASS MAIN 5320 A"]
[363,"0063285","VALVE, RELIEF: VALVE SIZE: 12 MM; CONNECTION: FNPT; BODY MATERIAL: STL; TRIM: SPRING STL; OPERATED: PRESSURE; REFERENCE NO: M67E; HP UNIT PILOT; DAIKIN"]
[364,"0063348","VALVE, BALL: VALVE SIZE: 3/4 IN; DESIGN RATING: 1000 KPA; CONNECTION: FEMALE THD; OPERATED: LEVER; STYLE: 3 WAY; 3 PIECE; TRIM: BALL SS GR 316; SOFTGOODS: SEALS PTFE; GRADE: CF8M; ACID WATER OIL AND GAS; THROUGHWAY IN BALL TO BE 20 MM"]
[365,"0063385","SEAT: TYPE: DISC SAFETY VALVE; DIMENSIONS: SQ 0.514 IN; MATERIAL: 1.4122 DIN X 35CRMO17; SUPPL P/N: 018109610; 601267620; MODEL NO: VSE2.40.25.A.50.I.22.123; USED ON SEMPELL; POSITION CODE RL01S010, RL02S009, RL03S008"]
[366,"0063532","VALVE, GATE: VALVE SIZE: 32 MM; TYPE: WEDGE; CONNECTION: THD; BODY MATERIAL: BRASS; TRIM: DISC/STEM BRS; OPERATED: HANDWHEEL; STEM DESIGN: NON RISING; STYLE: THD BONNET; TEMPERATURE RATING: 175 DEG C; DESIGN RATING: 1600 KPA; REFERENCE NO: 1001-125; SUPPLIER NOTE: TO BE SUPPLIED ACCORDING TO S.A.B.S. SPECIFICATION WITH A PRESSURE CERTIFICATE; CLASS 125"]
[367,"0065784","VALVE: TYPE: MAIN CONTROL; VALVE SIZE: 100 MM; OPERATED: PRESSURE; BODY MATERIAL: STL; STYLE: 2 WAY; TRIM: BONNET STL; REFERENCE NO: MB9-642.6300C; CONNECTION MANIFOLD"]
[368,"0065929","VALVE, RELIEF: VALVE SIZE: 25 MM; SET PRESSURE: 1015 LB; CONNECTION: FNPT; BODY MATERIAL: CI; TRIM: DISC SS; SPRING STL; OPERATED: PRESSURE, SPRING; REFERENCE NO: 83C88-81; SAFETY; SERIES 80 SRV"]
[369,"0066050","VALVE, GATE: VALVE SIZE: 1-1/2 IN; TYPE: SOLID WEDGE; CONNECTION: FNPT; BODY MATERIAL: BRASS; TRIM: DISC BRS; OPERATED: HANDWHEEL; STEM DESIGN: INSIDE SCREW; STYLE: THD BONNET; DESIGN RATING: 2000 KPA; COBRA"]
[370,"0065807","VALVE: TYPE: FLOW CONTROL; VALVE SIZE: 15 MM; CONNECTION: FNPT; OPERATED: PRESSURE; BODY MATERIAL: STL; STYLE: 2 WAY; TRIM: BONNET STL; REFERENCE NO: PCM-600; FOR HIGH PRESSURE OIL FLOW; COLORFLOW"]
[371,"0065808","VALVE, GLOBE: VALVE SIZE: 3/4 IN; OPERATED: HANDWHEEL; CONNECTION: FLANGE; BODY MATERIAL: STL; TRIM: BONNET STL; STEM DESIGN: INSIDE SCREW; STYLE: BOLTED BONNET; REFERENCE NO: Y237A-4"]
[372,"0066072","VALVE, CHECK: TYPE: PISTON; VALVE SIZE: 25 MM; CONNECTION: NPT; BODY MATERIAL: STAINLESS STEEL; STYLE: THD CAP; TRIM: DISC/CAP STL; NON-RETURN; EO; TUBE SIZE 25MM OD EO TUBE CONNECTION AT BOTH ENDS"]
[373,"0065832","VALVE: TYPE: ISOLATING; VALVE SIZE: 65 MM; CONNECTION: THD; OPERATED: HANDWHEEL; BODY MATERIAL: STL; STYLE: THD BONNET; TRIM: DISC/STEM SS; PRESS TANK PUMP UNLOADER"]
[374,"0065847","VALVE, NEEDLE: VALVE SIZE: 60 MM; BODY MATERIAL: STL; FACE TO FACE LENGTH: 120 MM; REFERENCE NO: MB9-642-5362E; NOZZLE"]
[375,"0065861","VALVE, PILOT: VALVE SIZE: 5 MM; MATERIAL: BRASS; REFERENCE NO: MB8-288-1705D; SIZE 6MM LG; CONNECTION COMPRESSION; STYLE 4 WAY; TRIM SS STEM; PRESSURE OPERATED; COMPLETE WITH PISTON; X5CRNI 189; GROUP 1700; VENDORS ARE RESPONSIBLE FOR ENSURING THAT THEY ARE PERFORMING AGAINST THE CORRECT DRAWING REVISION NUMBER (IF APPLICABLE)."]
[376,"0066073","VALVE, RELIEF: VALVE SIZE: 12 MM; SET PRESSURE: 400 BAR; CONNECTION: FNPT; BODY MATERIAL: STL; TRIM: SPRING STL; OPERATED: PRESSURE, SPRING; REXROTH PRESSURE; HYDRONORMA"]
[377,"0065917","VALVE, RELIEF: VALVE SIZE: 45 X 40 MM; SET PRESSURE: 70 BAR; CONNECTION: NPT X FNPT; BODY MATERIAL: STL; TRIM: DISC/SPRING STL; OPERATED: PRESSURE, SPRING; SAFETY"]
[378,"0066074","VALVE, BALL: VALVE SIZE: 16 MM; DESIGN RATING: 100 BAR; TEMPERATURE RATING: -200 TO 200 DEG C; CONNECTION: NPT X FNPT; BODY MATERIAL: STEEL; OPERATED: LEVER; STYLE: 4 WAY; TRIM: BALL STL; SPECIFICATION: DIN 3230; PORT TYPE: 3 X MALE; 1 X FEMALE; APPLICATION: UPSTREAM SEAL CHANGE OVER VALVE; TYPE: MANUAL OPERATED; SUPPL P/N: 1017489; REFERENCE NO: 1017489; 3 MALE X 1 FEMALE; CHANGE-OVER; BLOCK; ARGUS"]
[379,"0066234","VALVE, DIAPHRAGM: VALVE SIZE: 32 MM; CONNECTION: FNPT; BODY MATERIAL: CI; DIAPHRAGM MATERIAL: RUBBER GR Q; OPERATED: HANDWHEEL; STYLE: WEIR; SAUNDERS; TYPE A"]
[380,"0066076","VALVE, NEEDLE: VALVE SIZE: 3.5 MM; CONNECTION: THD MALE X FEMALE; BODY MATERIAL: BRASS; OPERATED: HANDWHEEL; TRIM: DISC STL; THD BONNET; BLOCKING VALVE; P.17"]
[381,"0066235","VALVE, DIAPHRAGM: VALVE SIZE: 40 MM; CONNECTION: FNPT; BODY MATERIAL: CI; DIAPHRAGM MATERIAL: RUBBER GR Q; OPERATED: HANDWHEEL; STYLE: WEIR; SAUNDERS; TYPE A"]
[382,"0066236","VALVE, DIAPHRAGM: VALVE SIZE: 50 MM; CONNECTION: FNPT; BODY MATERIAL: CI; DIAPHRAGM MATERIAL: RUBBER GR Q; OPERATED: HANDWHEEL; STYLE: WEIR; SAUNDERS"]
[383,"0066205","VALVE, RELIEF: SET PRESSURE: 60 BAR; REFERENCE NO: MB8-222-2450C60B; SAFETY"]
[384,"0066327","VALVE: TYPE: COMPENSATION; VALVE SIZE: 16 MM; CONNECTION: SLIP ON; OPERATED: LEVER; BODY MATERIAL: STAINLESS STEEL; STYLE: 3 WAY; TRIM: BONNET SS; GPS"]
[385,"0066223","VALVE, SOLENOID: PIPE SIZE: 25 MM; STYLE: 4 WAY; POTENTIAL: 110/120 VAC; DESIGN RATING: 3000 LB; BODY MATERIAL: STEEL; MEDIUM: OIL; CURRENT: 0.72-0.75 A; MODEL NO: D63W1B1Y 34; 50/60 HZ; CONNECTION MANIFOLD; GENERAL PURPOSE ENCLOSURE; DIRECTIONAL CONTROL VALVE"]
[386,"0066232","VALVE, DIAPHRAGM: VALVE SIZE: 15 MM; CONNECTION: FNPT; BODY MATERIAL: CI; DIAPHRAGM MATERIAL: RUBBER GR Q; OPERATED: HANDWHEEL; STYLE: WEIR; REFERENCE NO: A; SAUNDERS"]
[387,"0066233","VALVE, DIAPHRAGM: VALVE SIZE: 25 MM; CONNECTION: FNPT; BODY MATERIAL: CI; DIAPHRAGM MATERIAL: RUBBER GR Q; OPERATED: HANDWHEEL; STYLE: WEIR; SAUNDERS; TYPE A"]
[388,"0066493","VALVE, CHECK: TYPE: PISTON; VALVE SIZE: 12 MM; CONNECTION: NPT; BODY MATERIAL: STL; STYLE: THD CAP; TRIM: DISC STL; SUPPL P/N: RHD12-PL; NON-RETURN; EO; TUBE CONNECTION AT BOTH ENDS"]
[389,"0066494","SPOOL: TYPE: RELIEF VALVE; INSIDE DIAMETER: 108 MM; LENGTH: 153 MM; MATERIAL: STL; VENDORS ARE RESPONSIBLE FOR ENSURING THAT THEY ARE PERFORMING AGAINST THE CORRECT DRAWING REVISION NUMBER (IF APPLICABLE)."]
[390,"0066522","VALVE, GATE: VALVE SIZE: 400 MM; TYPE: SOLID WEDGE; CONNECTION: FLANGE; BODY MATERIAL: STL; TRIM: BONNET STL; OPERATED: HANDWHEEL; STEM DESIGN: RISING OUTSIDE SCREW; STYLE: BOLTED BONNET; CAST; HYDRO TEST CERTIFICATE REQUIRED"]
[391,"0066523","VALVE, GATE: VALVE SIZE: 300 MM; TYPE: SOLID WEDGE; CONNECTION: FLANGE; BODY MATERIAL: STL CAST; TRIM: BONNET STL; OPERATED: HANDWHEEL, GEAR; STEM DESIGN: RISING OS; STYLE: BOLTED BONNET; DESIGN RATING: 100 BAR; HYDRO TEST CERTIFICATE REQUIRED; REFER TO CONTRACT OPY 49218"]
[392,"0066524","VALVE, GATE: VALVE SIZE: 250 MM; TYPE: SOLID WEDGE; CONNECTION: FLANGE; BODY MATERIAL: CS; TRIM: BONNET STL; OPERATED: HANDWHEEL; STEM DESIGN: RISING OUTSIDE SCREW; STYLE: BOLTED BONNET"]
[393,"0066525","VALVE, GATE: VALVE SIZE: 200 MM; CONNECTION: FLANGE; BODY MATERIAL: STL CAST; TRIM: BONNET STL; OPERATED: HANDWHEEL; STEM DESIGN: RISING OS; STYLE: BOLTED BONNET"]
[394,"0066530","VALVE: VALVE SIZE: 250 MM; BODY MATERIAL: CS; FIG NO: 16SMZ; NON-RETURN; SIZE 10; HYDRO.TEST CERTIFICATE REQUIRED FOR ALL VALVES"]
[395,"0066527","VALVE, BUTTERFLY: TYPE: WAFER; VALVE SIZE: 400 MM; CONNECTION: FLANGE; BODY MATERIAL: CS; OPERATED: GEAR; TRIM: DISC STL RUBBERIZED; REFERENCE NO: 051100A492183; BOVING; COMPLETE WITH MASTERGEAR OPERATOR AND HANDWHEEL; HYDRO TEST CERTIFICATE REQUIRED FOR ALL VALVES"]
[396,"0066531","VALVE, CHECK: TYPE: SWING; VALVE SIZE: 80 MM; CONNECTION: COMPRESSION; BODY MATERIAL: CS; TRIM: DISC STL; FIG NO: 16SMZ; CHECKRITE NON-RETURN; HYDRO TEST CERTIFICATE REQUIRED FOR ALL VALVES"]
[397,"0066529","VALVE, CHECK: TYPE: SWING; VALVE SIZE: 400 MM; DESIGN RATING: 16 BAR; CONNECTION: FLANGE; BODY MATERIAL: CS; TRIM: BONNET/DISC STEEL; REFERENCE NO: 16SMZ; CHECKRITE NON-RETURN; HYDRO. TEST CERTIFICATE REQUIRED FOR ALL VALVES"]
[398,"0069572","VALVE, GATE: VALVE SIZE: 40 MM; CONNECTION: FLANGE; OPERATED: HANDWHEEL; FIG NO: H9-107; REFERENCE NO: W.P.9/1500; BONNEY FORGE"]
[399,"0066533","VALVE, RELIEF: VALVE SIZE: 200 MM; BODY MATERIAL: STL CAST; OPERATED: PRESSURE; CAT NO: 50A-01B; CLAYTON"]
[400,"0066534","VALVE: TYPE: DELUGE; VALVE SIZE: 150 MM; DESIGN RATING: 150 LB; CONNECTION: FLANGE; OPERATED: AIR; BODY MATERIAL: BRASS; STYLE: 2 WAY; TRIM: BONNET BRS; SPECIFICATION: BS 4504; N.P. 16/3"]
[401,"0066535","VALVE, BALL: VALVE SIZE: 1/2 IN; DESIGN RATING: 40 LB; TEMPERATURE RATING: 25 DEG C; CONNECTION: FNPT; BODY MATERIAL: STAINLESS STEEL; OPERATED: LEVER; STYLE: UNION BONNET; TRIM: BALL SS; BRASS; WITH FIXED FEMALE FLANGE EITHER END"]
[402,"0066661","VALVE, RELIEF: VALVE SIZE: 20 MM; BODY MATERIAL: STL; TRIM: BONNET/SPRING STL; OPERATED: PRESSURE; REFERENCE NO: 936-36275; L.P.; ABEX DENISON; MANIFOLD"]
[403,"0067279","VALVE, BUTTERFLY: TYPE: WAFER; VALVE SIZE: 65 MM; DESIGN RATING: 16 BAR; CONNECTION: CLAMP; BODY MATERIAL: CI; OPERATED: LEVER; TRIM: DISC/SHAFT SS GR 316; SEAT EPDM; REFERENCE NO: 065-515-6S; DISC/SHAFT HEXAGON MACHINED CENTRE HOLE; LINER: E.P.D.M; SEAT TEST PRESSURE: 18 BAR; BODY TEST PRESSURE: 24 BAR; MATERIAL AND TEST CERTIFICATES TO DIN 50049/3.1B ARE TO BE SUPPLIED ON DELIVERY"]
[404,"0068148","VALVE, RELIEF: VALVE SIZE: 50 MM; SET PRESSURE: 35 KPA; CONNECTION: THD; BODY MATERIAL: STL; TRIM: BRASS; OPERATED: SPRING; PRESSURE RANGE: 2-20 LB; REFERENCE NO: MD0014; SAFETY; TYPE 616-2; TYPE: HLP"]
[405,"0068767","VALVE: TYPE: CONTROL; VALVE SIZE: 12 MM; CONNECTION: FNPT; OPERATED: PRESSURE; BODY MATERIAL: STL; STYLE: 4 WAY; TRIM: DISC STL; REFERENCE NO: MB9-642-6500B; SIZE 15MM THK; FOR LOCKING VALVE 620/1"]
[406,"0068909","ASSEMBLY: TYPE: BFPT DISCHARGE ISOLATOR VALVE BELT; SUPPL P/N: 324-39; FIG NO: M279400W; BRISCH CODE: L9571-501 HOPKINSONS VALVE, 100NB"]
[407,"0068910","VALVE, GLOBE: VALVE SIZE: 1/2 IN; OPERATED: HANDWHEEL; CONNECTION: BW; BODY MATERIAL: CS ASTM A105; TRIM: DISC/SEAT HF; STEM SS GR 410; STEM DESIGN: RISING SPINDLE; STYLE: INTEGRAL BONNET; Y BODY; DESIGN RATING: 2500 PSI; TEMPERATURE RATING: 840 DEG F; REFERENCE NO: 578; VELAN"]
[408,"0072009","VALVE, BALL: VALVE SIZE: 16 MM; DESIGN RATING: 400 LB; CONNECTION: FNPT; BODY MATERIAL: STEEL; OPERATED: LEVER; STYLE: 2 WAY; TRIM: BALL STL; SUPPL P/N: BH-B400-716; BOHMER; BLOCK"]
[409,"0070478","VALVE, RELIEF: VALVE SIZE: 50 X 32 MM; SET PRESSURE: 600 KPA; TEMPERATURE RATING: -10 TO 14 DEG C; CONNECTION: FLANGE; BODY MATERIAL: CI; TRIM: STAINLESS STEEL; OPERATED: PRESSURE; DESIGN RATING: 16 BAR; PRESSURE RANGE: 6 BAR; FIG NO: 4411/H2; REFERENCE NO: 16; SAFETY; INLET AND OUTLET PN16; TO SIZED TO DIN3320 AND TEST APPROVED IN ACCORDANCE WITH (AD-MERKBLATT A2); FLOW CAPACITY TO BE AT LEAST 35000 KG/HR"]
[410,"0072010","VALVE, BALL: VALVE SIZE: 20 MM; DESIGN RATING: 315; CONNECTION: FNPT; BODY MATERIAL: STEEL; OPERATED: LEVER; STYLE: 2 WAY; TRIM: BALL STL; BLOCK; BOHMER"]
[411,"0072012","VALVE, BALL: VALVE SIZE: 50 MM; DESIGN RATING: 6 BAR; CONNECTION: FLANGE; BODY MATERIAL: STEEL; OPERATED: LEVER; STYLE: 2 WAY; TRIM: BALL STL; BOHMER; SERIES FK"]
[412,"0072002","VALVE, BALL: VALVE SIZE: 50 MM; DESIGN RATING: 100 BAR; CONNECTION: FLANGE; BODY MATERIAL: STEEL; OPERATED: LEVER; STYLE: 2 WAY; TRIM: BALL STL; BOHMER"]
[413,"0072004","VALVE, BALL: VALVE SIZE: 40 MM; DESIGN RATING: 100; CONNECTION: FNPT; BODY MATERIAL: STEEL; OPERATED: LEVER; STYLE: 2 WAY; TRIM: BALL STL; GRADE: C22.8; REFERENCE NO: 3101-0040-598166; SHUT-OFF; ARGUS"]
[414,"0072013","VALVE, BALL: VALVE SIZE: 10 MM; DESIGN RATING: 500 LB; CONNECTION: FNPT; BODY MATERIAL: STEEL; OPERATED: LEVER; STYLE: 2 WAY; TRIM: BALL STL; SUPPL P/N: BH-B500-710; BOHMER; BLOCK"]
[415,"0072006","VALVE, BALL: VALVE SIZE: DN 65 MM; DESIGN RATING: PN100; CONNECTION: FLANGE; REFERENCE NO: 3121-0065-530401; SHUT OFF; COMPLETE WITH HANDLE 350 K"]
[416,"0072007","VALVE, BALL: VALVE SIZE: 16 MM; DESIGN RATING: 400 LB; CONNECTION: NPT; BODY MATERIAL: STEEL; OPERATED: LEVER; STYLE: 2 WAY; TRIM: BALL STL; BOHMER BLOCK"]
[417,"0072008","VALVE, BALL: VALVE SIZE: 10 MM; DESIGN RATING: 315; CONNECTION: NPT; BODY MATERIAL: STEEL; OPERATED: LEVER; STYLE: 4 WAY; TRIM: BALL STL; SUPPL P/N: VH-VX315-210; REFERENCE NO: VX315-210; BOHMER; BLOCK"]
[418,"0072014","VALVE, BALL: VALVE SIZE: 20 MM; DESIGN RATING: 315; CONNECTION: NPT; BODY MATERIAL: STEEL; OPERATED: LEVER; STYLE: 2 WAY; TRIM: BALL STL; BLOCK; BOHMER"]
[419,"0072026","VALVE, RELIEF: VALVE SIZE: 13 MM; SET PRESSURE: 240 LB; CONNECTION: NPT; BODY MATERIAL: BRASS; TRIM: DISC BRS; SPRING STL; OPERATED: PRESSURE, SPRING; SUPPL P/N: 98650/1172; SECOND STAGE SAFETY"]
[420,"0072016","VALVE, BALL: VALVE SIZE: 8 MM; DESIGN RATING: 500 LB; CONNECTION: FNPT; BODY MATERIAL: STEEL; OPERATED: LEVER; STYLE: 2 WAY; TRIM: BALL STL; BOHMER; BLOCK"]
[421,"0072017","VALVE, BALL: VALVE SIZE: 6 MM; DESIGN RATING: 500 LB; CONNECTION: FNPT; BODY MATERIAL: STEEL; OPERATED: LEVER; STYLE: 2 WAY; TRIM: BALL STL; BOHMER; BLOCK"]
[422,"0072018","VALVE, GLOBE: VALVE SIZE: 4 MM; OPERATED: HANDWHEEL; CONNECTION: NPT; BODY MATERIAL: STL A122; TRIM: SPINDLE 4122; STEM DESIGN: INSIDE SCREW; STYLE: THD BONNET; DESIGN RATING: 400 BAR; ERMETO HIGH PRESSURE; TUBE SIZE OD 8 MM"]
[423,"0072020","VALVE, CHECK: TYPE: PISTON; VALVE SIZE: 12 MM; CONNECTION: FNPT; BODY MATERIAL: STL; STYLE: THD CAP; TRIM: DISC STL; BRAKE AIR COMPRESS"]
[424,"0072021","VALVE, RELIEF: VALVE SIZE: 12 MM; CONNECTION: NPT; BODY MATERIAL: STL; TRIM: SPRING STL; OPERATED: PRESSURE, SPRING; REFERENCE NO: 98650-1162; OIL REGULATOR"]
[425,"0072022","VALVE, RELIEF: VALVE SIZE: 12 MM; SET PRESSURE: 42 LB; CONNECTION: NPT; BODY MATERIAL: BRASS; TRIM: DISC BRS; SPRING STL; OPERATED: PRESSURE, SPRING; SUPPL P/N: 98650/1171; FIRST STAGE SAFETY; SEETRU; 311100200 C1940"]
[426,"0072023","VALVE: TYPE: DISCHARGE; VALVE SIZE: 51 MM; OPERATED: PRESSURE; BODY MATERIAL: STL; TRIM: DISC STL; SUPPL P/N: 98650/1180; CONNECTION COMPRESSION; FIRST STAGE DELIVERY"]
[427,"0072024","VALVE: TYPE: COMPRESSOR; VALVE SIZE: 8 MM; CONNECTION: THD FEMALE; OPERATED: PRESSURE; BODY MATERIAL: STL; STYLE: 6 WAY; TRIM: BONNET/DISC STL; REFERENCE NO: 98650-1161; 4TH STAGE; SIZE 11MM THK"]
[428,"0072027","VALVE, RELIEF: VALVE SIZE: 13 MM; SET PRESSURE: 1160 LB; CONNECTION: NPT; BODY MATERIAL: BRASS; TRIM: DISC BRS; SPRING STL; OPERATED: PRESSURE, SPRING; SUPPL P/N: 98650/1173; THIRD STAGE SAFETY; SEETRU"]
[429,"0072029","VALVE: TYPE: DISCHARGE; VALVE SIZE: 34 MM; CONNECTION: COMPRESSION; OPERATED: PRESSURE; BODY MATERIAL: MS; TRIM: DISC STL; SUPPL P/N: 98650/1182; SECOND STAGE DELIVERY"]
[430,"0072030","HOUSING: TYPE: VALVE; DIMENSIONS: DIA 34 X LG 62 MM; MATERIAL: ALUMINIUM; REFERENCE NO: C200604; SECOND STAGE, COVER; VENDORS ARE RESPONSIBLE FOR ENSURING THAT THEY ARE PERFORMING AGAINST THE CORRECT DRAWING REVISION NUMBER (IF APPLICABLE)."]
[431,"0072031","VALVE: TYPE: COMPRESSOR; VALVE SIZE: 9 MM; CONNECTION: THD FEMALE; OPERATED: PRESSURE; STYLE: 4 WAY; TRIM: DISC STL; SUPPL P/N: 98650/1160; THIRD STAGE VALVE; SIZE 12MM LG X 14MM THK"]
[432,"0072032","VALVE, RELIEF: VALVE SIZE: 13 MM; SET PRESSURE: 138 BAR; CONNECTION: NPT; BODY MATERIAL: STAINLESS STEEL; TRIM: BONNET SS; SPRING STL; OPERATED: PRESSURE; SUPPL P/N: 98661/1011"]
[433,"0072033","VALVE, RELIEF: VALVE SIZE: 12 MM; CONNECTION: NPT; BODY MATERIAL: STAINLESS STEEL; TRIM: SPRING STL; OPERATED: PRESSURE, SPRING; SUPPL P/N: 98261/1594/1525; SAFETY; OLD S P/N 98661/1010"]
[434,"0072034","VALVE, RELIEF: VALVE SIZE: 34 MM; CONNECTION: FLANGE; BODY MATERIAL: CI; TRIM: SPRING STL; OPERATED: PRESSURE, SPRING; ITEM 20"]
[435,"0072035","VALVE, RELIEF: REFERENCE NO: L16; L-16; 503D"]
[436,"0072036","VALVE, CHECK: VALVE SIZE: 14 X 12 MM; CONNECTION: NPT; BODY MATERIAL: BRASS; STYLE: THD CAP; TRIM: CAP/SLEEVE BRS; SUPPL P/N: SCD-6504; 633; MODEL NO: 5H12; REFERENCE NO: PT633; 32001117; TYPE LIFT; WITH SLEEVE AND 12.7MM NUT; FOR INGERSOL FIRE PROTECTION COMPRESSOR"]
[437,"0072037","VALVE: TYPE: BARE; VALVE SIZE: 48 MM; CONNECTION: FLANGE; OPERATED: PRESSURE; BODY MATERIAL: STAINLESS STEEL; TRIM: PLATE SS; REFERENCE NO: 1-32; 1095"]
[438,"0072038","VALVE, GLOBE: VALVE SIZE: 3 IN; OPERATED: HANDWHEEL; CONNECTION: FLANGE; BODY MATERIAL: CS; TRIM: DISC/SEAT 13CR; GRADE: WCB; STEM DESIGN: RISING OUTSIDE SCREW; STYLE: BOLTED BONNET; DESIGN RATING: 150 LB; REFERENCE NO: 2H18802; HIRATA"]
[439,"0072039","VALVE, GLOBE: VALVE SIZE: 4 IN; OPERATED: HANDWHEEL; CONNECTION: FLANGE; BODY MATERIAL: CS; TRIM: SEAT 13CR; GRADE: WCB; STEM DESIGN: INSIDE SCREW; STYLE: BOLTED BONNET; DESIGN RATING: 150 LB; REFERENCE NO: 2H18629; HIRATA"]
[440,"0072040","VALVE, GATE: VALVE SIZE: 3 IN; TYPE: SOLID WEDGE; CONNECTION: FLANGE; BODY MATERIAL: STEEL; TRIM: SEAT 13CR; OPERATED: HANDWHEEL; STEM DESIGN: RISING OUTSIDE SCREW; STYLE: BOLTED BONNET; GRADE: WCB; DESIGN RATING: 150 LB; REFERENCE NO: 2H27347; CAST; HIRATA"]
[441,"0072041","VALVE, GLOBE: VALVE SIZE: 2 IN; OPERATED: HANDWHEEL; CONNECTION: FLANGE; BODY MATERIAL: CS; TRIM: DISC 13CR; GRADE: WCB; STEM DESIGN: RISING OUTSIDE SCREW; STYLE: BOLTED BONNET; DESIGN RATING: 600 LB; DRAWING NO: 2H18630 REV 1; HIRATA; SIZE 50 MM"]
[442,"0072042","VALVE, CHECK: VALVE SIZE: 2 IN; DESIGN RATING: 600 LB; CONNECTION: FLANGE; BODY MATERIAL: CS; DRAWING NO: 2H33514 REV 1; TYPE LIFT; HIRATA"]
[443,"0072043","VALVE, GLOBE: VALVE SIZE: 10 MM; OPERATED: HANDWHEEL; CONNECTION: FNPT; BODY MATERIAL: STL FORGED; TRIM: SEAT 13CR; STEM DESIGN: RISING OUTSIDE SCREW; STYLE: BOLTED BONNET; DESIGN RATING: 150-800 LB; DRAWING NO: 2N18553 REV 1; HIRATA"]
[444,"0072044","VALVE, GATE: VALVE SIZE: 1/2 IN; TYPE: WEDGE; CONNECTION: THD TAPER FEMALE; BODY MATERIAL: BRS CAST; TRIM: BRASS; OPERATED: HANDWHEEL; STEM DESIGN: NON RISING; STYLE: THD BONNET; SPECIFICATION: SABS 776; DESIGN RATING: 1600 KPA; TEMP RATING 880 KPA AT 175 DEG C; FULLWAY; CLASS 8; BONNET TYPE HEAD; GUIDED; WORKING PRESSURE 880 KPA AT 100 DEG C; HYDRAULIC WORKING PRESSURE 1600 KPA; TESTED TO 2000 KPA; BEARING THE SABS MARK OF APPROVAL"]
[445,"0072045","VALVE, GLOBE: VALVE SIZE: 4 IN; OPERATED: HANDWHEEL; CONNECTION: FLANGE; BODY MATERIAL: CS; TRIM: SEAT 13CR; GRADE: WCB; STEM DESIGN: RISING OUTSIDE SCREW; STYLE: BOLTED BONNET; DESIGN RATING: 150 LB; REFERENCE NO: 2H18803; 4820-70-5093043; HIRATA; SIZE: 100 MM"]
[446,"0072046","VALVE, GATE: VALVE SIZE: 2-1/2 IN; CONNECTION: FLANGE; BODY MATERIAL: CS; DESIGN RATING: 150 LB; DRAWING NO: 2H27346 REV 1"]
[447,"0072047","VALVE, GATE: VALVE SIZE: 5 IN; CONNECTION: FLANGE; BODY MATERIAL: CS; TRIM: BONNET STL; OPERATED: HANDWHEEL; STEM DESIGN: RISING OUTSIDE SCREW; STYLE: BOLTED BONNET; DESIGN RATING: 150 LB; REFERENCE NO: 2H27348; HIRATA"]
[448,"0072048","VALVE, GATE: VALVE SIZE: 150 MM; CONNECTION: FLANGE; BODY MATERIAL: CS; TRIM: SEAT 13CR; OPERATED: HANDWHEEL; STEM DESIGN: RISING OUTSIDE SCREW; STYLE: BOLTED BONNET; GRADE: WCB; DESIGN RATING: 150 LB; REFERENCE NO: 2H27349; HIRATA"]
[449,"0072059","VALVE, GLOBE: VALVE SIZE: 1/2 IN; OPERATED: HANDWHEEL; CONNECTION: FNPT; BODY MATERIAL: STEEL; TRIM: DISC/SEAT SS GR 316; STEM DESIGN: INSIDE SCREW; STYLE: THD BONNET; DESIGN RATING: 150-200 LB; DRAWING NO: 2S18669 REV 1; HIRATA; MATERIAL SUSF316-97"]
[450,"0072050","VALVE, ANGLE: TYPE: NEEDLE; VALVE SIZE: 200 MM; DESIGN RATING: 300 LB; CONNECTION: FLANGE; BODY MATERIAL: STL CAST; OPERATED: HANDWHEEL, GEAR; STYLE: BOLTED BONNET; TRIM: BONNET/DISC STL; GRADE: WCB 8B; DRAWING NO: HIRATA 2H18923 REV 1; REFERENCE NO: 2H18923"]
[451,"0072052","VALVE, GATE: VALVE SIZE: 50 MM; TYPE: SOLID WEDGE; CONNECTION: FLANGE; BODY MATERIAL: STEEL; TRIM: DISC 13CR; OPERATED: HANDWHEEL; STEM DESIGN: RISING OUTSIDE SCREW; STYLE: BOLTED BONNET; GRADE: WCB; DESIGN RATING: 600 LB; REFERENCE NO: 2H27350; CAST; HIRATA"]
[452,"0072053","VALVE, GATE: VALVE SIZE: 3 IN; TYPE: SOLID WEDGE; CONNECTION: FLANGE; BODY MATERIAL: STEEL; TRIM: SEAT 13CR; OPERATED: HANDWHEEL; STEM DESIGN: RISING OUTSIDE SCREW; STYLE: BOLTED BONNET; GRADE: WCB; DESIGN RATING: 600 LB; REFERENCE NO: 2H27351; CAST; HIRATA"]
[453,"0072054","VALVE, GLOBE: VALVE SIZE: 100 MM; OPERATED: HANDWHEEL; CONNECTION: FLANGE; BODY MATERIAL: CS; TRIM: SEAT 13CR; GRADE: WCB; STEM DESIGN: RISING OUTSIDE SCREW; STYLE: BOLTED BONNET; DESIGN RATING: 600 LB; REFERENCE NO: 2H18626; HIRATA"]
[454,"0072055","VALVE, CHECK: TYPE: SWING; VALVE SIZE: 100 MM; DESIGN RATING: 600 LB; CONNECTION: FLANGE; BODY MATERIAL: CS; STYLE: BOLTED CAP; TRIM: BONNET STL; REFERENCE NO: 2H33536; HIRATA"]
[455,"0072056","VALVE, GATE: VALVE SIZE: 1/2 IN; TYPE: SOLID WEDGE; CONNECTION: FLANGE; BODY MATERIAL: STEEL; TRIM: SEAT 13CR; OPERATED: HANDWHEEL; STEM DESIGN: INSIDE SCREW; STYLE: BOLTED BONNET; DESIGN RATING: 150-800 LB; REFERENCE NO: 2M27352; FORGED; HIRATA"]
[456,"0072057","VALVE, GATE: VALVE SIZE: 100 MM; CONNECTION: FLANGE; BODY MATERIAL: CS; DESIGN RATING: 150 LB; REFERENCE NO: 2H27354; HIRATA"]
[457,"0072058","VALVE, GATE: VALVE SIZE: 3/8 IN; TYPE: SOLID WEDGE; CONNECTION: FNPT; BODY MATERIAL: STEEL; TRIM: SEAT 13CR; OPERATED: HANDWHEEL; STEM DESIGN: RISING OUTSIDE SCREW; STYLE: BOLTED BONNET; DESIGN RATING: 600 LB; DRAWING NO: 2N27361 REV 1; FORGED; HIRATA"]
[458,"0072060","VALVE, GLOBE: VALVE SIZE: 10 MM; OPERATED: HANDWHEEL; CONNECTION: FNPT; BODY MATERIAL: SS FORGED; TRIM: SEAT 13CR; STEM DESIGN: RISING OUTSIDE SCREW; STYLE: BOLTED BONNET; DESIGN RATING: 150 LB; DRAWING NO: 2S18670 REV 1; 3/8 INCH; HIRATA"]
[459,"0072061","VALVE, GLOBE: VALVE SIZE: 25 MM; OPERATED: HANDWHEEL; CONNECTION: FLANGE; BODY MATERIAL: STEEL; TRIM: DISC/SEAT 13CR; STEM DESIGN: RISING OUTSIDE SCREW; STYLE: BOLTED BONNET; DESIGN RATING: 150-800 LB; FUJITAT-210"]
[460,"0072062","VALVE, GLOBE: VALVE SIZE: 1/2 IN; OPERATED: HANDWHEEL; CONNECTION: FLANGE; BODY MATERIAL: STL FORGED; TRIM: SEAT 13CR; STEM DESIGN: INSIDE SCREW; STYLE: BOLTED BONNET; DESIGN RATING: 150-800 LB; DRAWING NO: 2M18627 REV 1; HIRATA"]
[461,"0072063","VALVE, GLOBE: VALVE SIZE: 3 IN; OPERATED: HANDWHEEL; CONNECTION: FLANGE; BODY MATERIAL: CS; TRIM: SEAT 13CR; GRADE: WCB; STEM DESIGN: RISING OUTSIDE SCREW; STYLE: BOLTED BONNET; DESIGN RATING: 600 LB; DRAWING NO: 952-230003 REV 1; KITAZAWA"]
[462,"0073053","VALVE, BUTTERFLY: TYPE: WAFER; VALVE SIZE: 75 MM; DESIGN RATING: 740 LB; TEMPERATURE RATING: -250 TO 500 DEG F; CONNECTION: FLANGE; BODY MATERIAL: STAINLESS STEEL; TRIM: DISC SS GR 316; ELECTRICAL; MINITORK ASSY TURB"]
[463,"0075280","VALVE, RELIEF: SET PRESSURE: 150 LB; CONNECTION: THD; BODY MATERIAL: BRASS; TRIM: CU; OPERATED: SPRING; SUPPL P/N: X1396T28-160; MODEL NO: 41; SAFETY; FOR INGERSOLL RAND COMPRESSOR; TYPE 30"]
[464,"0077118","VALVE, RELIEF: VALVE SIZE: 1/4 IN; SET PRESSURE: 60 LB; CONNECTION: NPT; BODY MATERIAL: BRASS; TRIM: SPRING STL; STEM BRS; OPERATED: PRESSURE, SPRING; SUPPL P/N: 3W123 662T2; STOP"]
[465,"0077123","VALVE: TYPE: INLET; VALVE SIZE: 27 MM; CONNECTION: COMPRESSION; OPERATED: PRESSURE; BODY MATERIAL: STL; TRIM: DISC STL; SUPPL P/N: 11458-8K1N 30220453; REFERENCE NO: 11458-8K1N; 30220453; COMPLETE; FOR TYPE 30 MOD41 ING-RAND AIR COMPRESSOR; 20.4MM THK"]
[466,"0077124","VALVE: TYPE: DISCHARGE; VALVE SIZE: 27 MM; CONNECTION: COMPRESSION; OPERATED: PRESSURE; BODY MATERIAL: STL; TRIM: DISC STL; REFERENCE NO: 30279459"]
[467,"0077126","VALVE: TYPE: INLET; SUPPL P/N: 8K6N; STOP PLATE; FOR TYPE 30 MODEL 41 ING-RAND COMPRESSOR"]
[468,"0077130","CAP: TYPE: VALVE CAGE; DIMENSIONS: DIA 85 X HT 38 MM; MATERIAL: STL; SUPPL P/N: 3W75340; MODEL NO: 41 TYPE 30; FOR 22K AIR HEAD ASSEMBLY"]
[469,"0077133","VALVE, RELIEF: VALVE SIZE: 22 X 11 MM; CONNECTION: NPT; BODY MATERIAL: ALUMINIUM; TRIM: SPRING STL; OPERATED: PRESSURE, SPRING; REFERENCE NO: 3R53608T50; PRESSURE; ING-RAND"]
[470,"0077134","VALVE, RELIEF: VALVE SIZE: 1/4 IN; SET PRESSURE: 1300 LB; CONNECTION: NPT; BODY MATERIAL: BRASS; TRIM: SPRING STL; OPERATED: PRESSURE, SPRING; MODEL NO: 15T2; REFERENCE NO: X1396T19-1300; SAFETY; FOR TYPE 30; ING-RAND COMPRESSOR"]
[471,"0077135","VALVE, RELIEF: VALVE SIZE: 1/4 IN; SET PRESSURE: 60 LB; CONNECTION: NPT; BODY MATERIAL: BRASS; TRIM: DISC BRS; SPRING STL; OPERATED: PRESSURE, SPRING; MODEL NO: 15T2; REFERENCE NO: X1396T28-60LB; COMPRESSOR 1ST STAGE INTERCOOLER SAFETY; FOR TYPE 30; AIR COMPRESSOR"]
[472,"0077136","VALVE, RELIEF: VALVE SIZE: 1/4 IN; SET PRESSURE: 260 LB; CONNECTION: NPT; BODY MATERIAL: BRASS; TRIM: STEM BRS; SPRING STL; OPERATED: PRESSURE, SPRING; REFERENCE NO: X1396T28-260LB; 2ND STAGE INTERCOOLER SAFETY; FOR TYPE 30 MODEL 15T2 ING-RAND AIR COMPRESSOR"]
[473,"0077144","VALVE, CHECK: VALVE SIZE: 4 IN; CONNECTION: FLANGE; BODY MATERIAL: STL; TRIM: DISC/SPRING STL; REFERENCE NO: MB8-223.2410B; MB9-642.7400; MB9-341.2400; FLOAT; DIGS"]
[474,"0077140","VALVE, CHECK: SUPPL P/N: 32211724; REFERENCE NO: 49815C; CONDENSATE DRAIN; AUTOMATIC; UL104C; NOT USED W/MANUAL DRAIN VALVE; CPN"]
[475,"0077145","VALVE, RELIEF: VALVE SIZE: 20 MM; SET PRESSURE: 60 BAR; CONNECTION: FNPT; BODY MATERIAL: BRASS; TRIM: DISC/SPRING STL; OPERATED: PRESSURE, SPRING; SAFETY PROPORTIONAL; I-R"]
[476,"0077142","VALVE, RELIEF: VALVE SIZE: 1/4 IN; SET PRESSURE: 1300 LB; CONNECTION: NPT; BODY MATERIAL: BRASS; TRIM: SPRING STL; STEM BRS; OPERATED: PRESSURE, SPRING; REFERENCE NO: W123662T2; SAFETY; ING-RAND"]
[477,"0077143","VALVE, BALL: VALVE SIZE: 12 MM; DESIGN RATING: 250 BAR; CONNECTION: FNPT; BODY MATERIAL: STEEL; OPERATED: LEVER; STYLE: 4 WAY; TRIM: BALL STL; SUPPL P/N: VH-VX200-716; BOHMER; BLOCK"]
[478,"0077146","VALVE, BALL: VALVE SIZE: 16 MM; DESIGN RATING: 250 LB; CONNECTION: NPT; BODY MATERIAL: STEEL; OPERATED: LEVER; STYLE: 2 WAY; TRIM: BALL STL; SUPPL P/N: BH-B400-216; BLOCK; BOHMER"]
[479,"0077148","VALVE, BALL: VALVE SIZE: 20 MM; DESIGN RATING: 200 BAR; CONNECTION: FNPT; BODY MATERIAL: BRZ; OPERATED: LEVER; STYLE: 4 WAY; TRIM: BALL BRZ; SOFTGOODS: SEAL JOINT TEFLON; BOHMER; BLOCK."]
[480,"0077149","VALVE, SOLENOID: PIPE SIZE: 10 MM; STYLE: 2/4 WAY; POTENTIAL: 220 VAC; DESIGN RATING: 315 BAR; BODY MATERIAL: STEEL; MEDIUM: GAS/LIQUID; POWER: 34 W; REFERENCE NO: S10G51 G019 011M; MB9-642.8800; CONNECTION MANIFOLD; OPERATION SOLENOID; GENERAL PURPOSE ENCLOSURE"]
[481,"0077150","VALVE, CHECK: TYPE: THROTTLE; VALVE SIZE: 15 MM; CONNECTION: FNPT; BODY MATERIAL: STL; STYLE: THD CAP; TRIM: DISC/SPRING STL; DRAWING NO: MB9-642.5820 REV 1; REFERENCE NO: DDS4Q15; VOEST-ALPINE"]
[482,"0077159","VALVE, RELIEF: VALVE SIZE: 18 X 12 MM; SET PRESSURE: 25 BAR; CONNECTION: FNPT; BODY MATERIAL: STL; TRIM: DISC/SPRING STL; OPERATED: PRESSURE, SPRING; HAWE PRE-CONTROLLED PRESSURE CONTROL"]
[483,"0077152","VALVE, CHECK: TYPE: THROTTLE; VALVE SIZE: 15 MM; CONNECTION: FNPT; BODY MATERIAL: STL; STYLE: THD CAP; TRIM: DISC/SPRING STL; REFERENCE NO: MB9-642-5360; DDS4Q10"]
[484,"0077154","VALVE, CHECK: TYPE: PISTON; VALVE SIZE: 18 MM; CONNECTION: NPT; BODY MATERIAL: STAINLESS STEEL; STYLE: THD CAP; TRIM: DISC/CAP SS; SUPPL P/N: RH18-PL; TUBE SIZE 18MM OD EO TUBE CONNECTION ON BOTH ENDS"]
[485,"0077155","VALVE, SOLENOID: PIPE SIZE: 10 MM; STYLE: 5 WAY; POTENTIAL: 220 VAC; DESIGN RATING: 315 BAR; BODY MATERIAL: STEEL; MEDIUM: OIL; REFERENCE NO: S10G51G020001100; 35 HZ; CONNECTION MANIFOLD; GENERAL PURPOSE ENCLOSURE; PUMP PILOT VALVE"]
[486,"0077156","VALVE, BALL: VALVE SIZE: 16 MM; DESIGN RATING: 63 LB; CONNECTION: NPT; BODY MATERIAL: STEEL; OPERATED: LEVER; STYLE: 2 WAY; TRIM: BALL STL; SUPPL P/N: BM-B63-216; BOHMER BLOCK"]
[487,"0077157","VALVE: TYPE: EXHAUST; VALVE SIZE: 15 MM; CONNECTION: THD FEMALE; OPERATED: PRESSURE; BODY MATERIAL: ALUMINIUM; STYLE: 3 WAY; TRIM: BONNET AL; REFERENCE NO: 3340 B 10 HD-D6461; SCHOVILL SCHREIDER QUICK SHUTTLE VALVES"]
[488,"0077160","VALVE, SOLENOID: PIPE SIZE: 8 MM; STYLE: 4 WAY; POTENTIAL: 220 VAC; DESIGN RATING: 315 BAR; BODY MATERIAL: STEEL; OPERATED: SOLENOID; MEDIUM: GAS/LIQUID; POWER: 34 W; CAT NO: 52 012 31; REFERENCE NO: S10G51G020061300; CONNECTION MANIFOLD; GUIDE VANE TIMING CONTROL; 40 L/MIN; ENCLOSURE GENERAL PURPOSE"]
[489,"0077161","VALVE, SOLENOID: PIPE SIZE: 8 MM; STYLE: 4/2 WAY; POTENTIAL: 220 VDC; BODY MATERIAL: STEEL; MEDIUM: GAS/LIQUID; POWER: 34 W; REFERENCE NO: S10G51G0200; CONNECTION MANIFOLD; GENERAL PURPOSE ENCLOSURE; CONTROL"]
[490,"0077162","VALVE, BALL: VALVE SIZE: 16 MM; DESIGN RATING: 250 LB; CONNECTION: NPT; BODY MATERIAL: BRASS; OPERATED: LEVER; STYLE: 2 WAY; TRIM: BALL STL; SUPPL P/N: BH B400-716; BOHMER; BLOCK"]
[491,"0077172","VALVE: TYPE: DIRECTIONAL; VALVE SIZE: 22 MM; OPERATED: HYDRAULIC; BODY MATERIAL: CI; STYLE: 4 WAY; TRIM: BONNET CI; DRAWING NO: K-6WO78AV8 REV 1; REFERENCE NO: DHG06/2N2/R2/40; CONNECTION MANIFOLD"]
[492,"0077164","VALVE, BALL: VALVE SIZE: 50 MM; DESIGN RATING: 64; CONNECTION: FLANGE; BODY MATERIAL: STEEL; OPERATED: LEVER; STYLE: 2 WAY; TRIM: BALL STL"]
[493,"0077165","VALVE, BALL: VALVE SIZE: 25 MM; DESIGN RATING: 315 LB; CONNECTION: FNPT; BODY MATERIAL: STEEL; OPERATED: LEVER; STYLE: 2 WAY; BOHMER BLOCK"]
[494,"0077166","VALVE, BALL: VALVE SIZE: 25 MM; DESIGN RATING: 160 LB; CONNECTION: FLANGE; BODY MATERIAL: STEEL; OPERATED: LEVER; STYLE: 2 WAY; TRIM: BALL STL; REFERENCE NO: FD; BOHMER"]
[495,"0077173","VALVE, CHECK: VALVE SIZE: 30 MM; CONNECTION: FLANGE; BODY MATERIAL: CI; STYLE: THD CAP; TRIM: DISC/SHAFT STL; REFERENCE NO: SRCF10H41; TYPE LIFT; YUKEN THROTTLE"]
[496,"0077169","VALVE, GATE: VALVE SIZE: 100 MM; TYPE: SOLID WEDGE; CONNECTION: FLANGE; BODY MATERIAL: STEEL; TRIM: BONNET STL; OPERATED: HYDRAULIC; STEM DESIGN: RISING OUTSIDE SCREW; STYLE: BOLTED BONNET; DESIGN RATING: 150 LB; REFERENCE NO: 20WRC; RUNNER COOLING WATER SUPPLY AUTO"]
[497,"0077178","JOINT, BALL: SIZE: 8 MM; CONNECTION: THD FEMALE; MATERIAL: STEEL; APPLICATION: VALVE"]
[498,"0077180","VALVE, RELIEF: VALVE SIZE: 50 MM; SET PRESSURE: 3 KGF/CM2; CONNECTION: NPT X FNPT; BODY MATERIAL: BRASS; TRIM: SPRING STL; OPERATED: PRESSURE, SPRING; REFERENCE NO: 50-01; PT2X335L; 1ST STAGE SAFETY ASSY"]
[499,"0077183","VALVE, RELIEF: VALVE SIZE: 32 MM; SET PRESSURE: 11.5 KG/CM2; CONNECTION: NPT X FNPT; BODY MATERIAL: BRASS; TRIM: SPRING STL; OPERATED: PRESSURE, SPRING; REFERENCE NO: HT403556; 50-02; PT11/2X275L; 2ND STAGE SAFETY"]
[500,"0077186","VALVE, RELIEF: VALVE SIZE: 32 MM; SET PRESSURE: 11.5 KG/CM2; CONNECTION: NPT X FNPT; BODY MATERIAL: BRASS; TRIM: SPRING STL; OPERATED: PRESSURE, SPRING; REFERENCE NO: 50-03; PT3/4X210L; HT403557; 3RD STAGE SAFETY"]
[501,"0077189","VALVE, RELIEF: VALVE SIZE: 12 MM; SET PRESSURE: 8.8 KG/CM2; CONNECTION: NPT X FNPT; BODY MATERIAL: BRASS; TRIM: SPRING STL; OPERATED: PRESSURE, SPRING; REFERENCE NO: 50-04; PT3/4X280L; HT403558; 4TH STAGE SAFETY"]
[502,"0077202","VALVE: TYPE: DISCHARGE; VALVE SIZE: 103.7 MM; DESIGN RATING: 0-250 DEG C; TEMPERATURE RATING: 0-250 DEG C; CONNECTION: COMPRESSION; OPERATED: PRESSURE; BODY MATERIAL: STL; TRIM: DISC STL; REFERENCE NO: HT303814; ASSEMBLY; 3RD STAGE"]
[503,"0077194","PISTON: DIMENSIONS: DIA 180 X THK 30 MM; MATERIAL: STL; APPLICATION: VALVE; DRAWING NO: HT 404769 REV 1; REFERENCE NO: 20; VENDORS ARE RESPONSIBLE FOR ENSURING THAT THEY ARE PERFORMING AGAINST THE CORRECT DRAWING REVISION NUMBER (IF APPLICABLE)."]
[504,"0077195","VALVE, BALL: VALVE SIZE: 3 IN; DESIGN RATING: 150 LB; CONNECTION: FLANGE; BODY MATERIAL: STEEL; OPERATED: ACTUATOR; STYLE: BOLTED BONNET; TRIM: BALL STL; DRAWING NO: HT303978 REV 1; REFERENCE NO: 53-50; AG-13 TORQUE CYLINDER EQ 105"]
[505,"0077196","CONNECTOR: TYPE: VALVE; DIMENSIONS: DIA (43-48) X LG 63 MM; MATERIAL: STL; DRAWING NO: HT 303978 REV 1; TORQUE CYLINDER"]
[506,"0077200","VALVE: TYPE: SUCTION; VALVE SIZE: 167 MM; CONNECTION: COMPRESSION; OPERATED: PRESSURE; BODY MATERIAL: STL; TRIM: DISC STL; REFERENCE NO: HT303809; 1ST STAGE"]
[507,"0077201","VALVE: TYPE: DISCHARGE; VALVE SIZE: 145 MM; CONNECTION: COMPRESSION; OPERATED: PRESSURE; BODY MATERIAL: STL; TRIM: DISC STL; REFERENCE NO: HT303812; ASSEMBLY; 2ND STAGE"]
[508,"0077203","VALVE: TYPE: DISCHARGE; VALVE SIZE: 104.4 MM; CONNECTION: COMPRESSION; OPERATED: PRESSURE; BODY MATERIAL: STL; TRIM: DISC STL; REFERENCE NO: HT303816; ASSEMBLY; 4TH STAGE"]
[509,"0077212","VALVE, ANGLE: TYPE: NEEDLE; VALVE SIZE: 1/4 IN; CONNECTION: NPT; BODY MATERIAL: BRASS; OPERATED: HANDWHEEL; STYLE: THD BONNET; TRIM: STEM SS; REFERENCE NO: MB8-228.7553; T HANDLE"]
[510,"0077224","VALVE, GATE: VALVE SIZE: 65 MM; CONNECTION: FLANGE; SLUICE 2-1/2 X 5K"]
[511,"0077226","VALVE, GATE: VALVE SIZE: 50 MM; TYPE: SOLID WEDGE; CONNECTION: FNPT; BODY MATERIAL: BRASS; TRIM: DISC BRS; OPERATED: HANDWHEEL; STEM DESIGN: INSIDE SCREW; STYLE: 2 WAY; BONNET ROCK SEALED; DESIGN RATING: 10 BAR; REFERENCE NO: 2BX10K"]
[512,"0077215","VALVE: TYPE: DISCHARGE; REFERENCE NO: HT303798; 32-00; 1ST STAGE; RETAINER ASSY"]
[513,"0077216","VALVE: REFERENCE NO: 33-00; HT303856; 2ND STAGE SUCTION; RETAINER ASSY"]
[514,"0077227","VALVE, GATE: VALVE SIZE: 1/2 IN; TYPE: SOLID WEDGE; CONNECTION: FNPT; BODY MATERIAL: BRASS; TRIM: DISC BRS; OPERATED: HANDWHEEL; STEM DESIGN: INSIDE SCREW; STYLE: THD BONNET; DESIGN RATING: 10 BAR"]
[515,"0077228","VALVE, GLOBE: VALVE SIZE: 15 MM; OPERATED: HANDWHEEL; CONNECTION: FLANGE; BODY MATERIAL: BRASS; TRIM: BONNET BRS; STEM DESIGN: INSIDE SCREW; STYLE: THD BONNET; DESIGN RATING: 10 BAR; 1/2BX10K"]
[516,"0077220","VALVE, RELIEF: VALVE SIZE: 3/8 IN; SET PRESSURE: 1750 KPA; CONNECTION: BSP; BODY MATERIAL: BRASS; TRIM: SPRING STL; OPERATED: SPRING; AIR SAFETY"]
[517,"0077221","VALVE: TYPE: LOW PRESSURE; VALVE SIZE: 100.5 MM; CONNECTION: COMPRESSION; OPERATED: PRESSURE; BODY MATERIAL: STAINLESS STEEL; TRIM: DISC SS; REFERENCE NO: L.P.HTWT409571; L.P.; BA COMP 26/4"]
[518,"0077229","VALVE, GLOBE: VALVE SIZE: 20 MM; OPERATED: HANDWHEEL; CONNECTION: FLANGE; BODY MATERIAL: BRASS; TRIM: BONNET BRS; STEM DESIGN: INSIDE SCREW; STYLE: THD BONNET; DESIGN RATING: 150 LB; FIG NO: 1035"]
[519,"0077240","VALVE, CHECK: TYPE: SWING; VALVE SIZE: 10 IN; DESIGN RATING: 10 BAR; CONNECTION: FLANGE; BODY MATERIAL: STEEL; STYLE: BOLTED CAP; TRIM: BONNET/DISC STL; REFERENCE NO: K2N078015"]
[520,"0077231","VALVE, GLOBE: VALVE SIZE: 40 MM; OPERATED: HANDWHEEL; CONNECTION: FLANGE; BODY MATERIAL: BRASS; TRIM: BONNET BRS; STEM DESIGN: INSIDE SCREW; STYLE: THD BONNET; DESIGN RATING: 5 BAR"]
[521,"0077233","VALVE, CHECK: VALVE SIZE: 50 MM; CONNECTION: FLANGE; BODY MATERIAL: CI; STYLE: BOLTED CAP; TRIM: DISC STL; REFERENCE NO: CRF15; K2N170038; TYPE LIFT; YUKEN RIGHT ANGLE"]
[522,"0077242","VALVE, ANGLE: TYPE: GLOBE; VALVE SIZE: 100 MM; DESIGN RATING: 600 LB; CONNECTION: FLANGE; BODY MATERIAL: STL; OPERATED: HYDRAULIC; STYLE: BOLTED BONNET; TRIM: BONNET/STEM STL; DRAWING NO: M-6WO78AG8 REV 1; REFERENCE NO: 20DA1/2; AIR ADMISSION; FOR TAIL WATER DEPRESSING"]
[523,"0077243","VALVE, GLOBE: VALVE SIZE: 38 MM; OPERATED: HANDWHEEL; CONNECTION: FNPT; BODY MATERIAL: STL; TRIM: BONNET STL; GRADE: 1.4021; STEM DESIGN: INSIDE SCREW; STYLE: THD BONNET; REFERENCE NO: 1-4021; NEEDLE; FOR HYDRAULIC STRUCTURES; SIZE 40MM"]
[524,"0077236","VALVE, GLOBE: VALVE SIZE: 2 IN; OPERATED: HANDWHEEL; CONNECTION: FLANGE; BODY MATERIAL: STL; TRIM: BONNET STL; STEM DESIGN: INSIDE SCREW; STYLE: BOLTED BONNET; REFERENCE NO: 790852-2"]
[525,"0077237","VALVE, GATE: VALVE SIZE: 150 MM; TYPE: SOLID WEDGE; CONNECTION: FLANGE; BODY MATERIAL: CI; TRIM: BONNET/DISC CI; OPERATED: HANDWHEEL; STEM DESIGN: RISING OUTSIDE SCREW; STYLE: BOLTED BONNET; REFERENCE NO: 6BX10K"]
[526,"0077238","VALVE, GATE: VALVE SIZE: 200 MM; TYPE: SOLID WEDGE; CONNECTION: FLANGE; BODY MATERIAL: STL; TRIM: BONNET STL; OPERATED: HANDWHEEL, GEAR; STEM DESIGN: RISING OUTSIDE SCREW; STYLE: BOLTED BONNET; REFERENCE NO: 8BX10K"]
[527,"0077244","VALVE, BALL: VALVE SIZE: 30 MM; DESIGN RATING: 315 BAR; CONNECTION: FNPT; BODY MATERIAL: STEEL; OPERATED: LEVER; STYLE: 2 WAY; TRIM: BALL SS; REFERENCE NO: KHR1; LINE MOUNTED; NW25; FOR HYDRAULIC STEEL STRUCTURES"]
[528,"0077245","VALVE, BALL: VALVE SIZE: 45 MM; DESIGN RATING: 200 BAR; CONNECTION: FNPT; BODY MATERIAL: STEEL; OPERATED: LEVER; STYLE: 2 WAY; TRIM: BALL STL; LINE MOUNTED; 1-1/2 IN (NW40); 8/81 Z"]
[529,"0077246","VALVE, CHECK: TYPE: PISTON; VALVE SIZE: 3/4 IN; CONNECTION: FNPT; BODY MATERIAL: STL; STYLE: THD CAP; TRIM: DISC STL; REFERENCE NO: 1VR06R; LINE MOUNTED; FOR HYDRAULIC STEEL STRUCTURES"]
[530,"0077247","VALVE, CHECK: TYPE: PISTON; VALVE SIZE: 1-1/2 IN; CONNECTION: FNPT; BODY MATERIAL: STL; STYLE: THD CAP; TRIM: DISC STL; REFERENCE NO: 1V12; LINE MOUNTED; FOR HYDRAULIC STEEL STRUCTURES"]
[531,"0077248","VALVE, RELIEF: VALVE SIZE: 22 MM; BODY MATERIAL: STL; TRIM: SPRING STL; OPERATED: PRESSURE; ABEX DENISON FOR HYDRAULIC STEEL STRUCTURES; MANIFOLD"]
[532,"0077249","VALVE: TYPE: FLOW CONTROL; VALVE SIZE: 27 MM; OPERATED: PRESSURE; BODY MATERIAL: CI; STYLE: 2 WAY; TRIM: BONNET CI; CONNECTION MANIFOLD; FOR HYDRAULIC STEEL STRUCTURES"]
[533,"0078752","BELLOWS: TYPE: VALVE SAFETY RELIEF EMNIBC0080E; MATERIAL: SS Z6CNDT17-12; VENDORS ARE RESPONSIBLE FOR ENSURING THAT THEY ARE PERFORMING AGAINST THE CORRECT DRAWING REVISION NUMBER (IF APPLICABLE)."]
[534,"0085607","BOLT: TYPE: VALVE; DIAMETER: 3/4 IN; LENGTH: 3-1/4 IN; HEAD: RD; MATERIAL: STL; THREAD: 16UNF; REFERENCE NO: 3W21453; FOR TYPE 30 MODEL 15T2 ING-RAND AIR COMPRESSOR"]
[535,"0085608","BOLT: TYPE: VALVE; DIAMETER: 5/8 IN; LENGTH: 3 IN; HEAD: RD; MATERIAL: STL; THREAD: 18UNF; MODEL NO: 15T2; REFERENCE NO: 3W21454; TYPE 30"]
[536,"0085609","BOLT: TYPE: VALVE; DIAMETER: 5/8 IN; LENGTH: 2-5/8 IN; HEAD: RD; MATERIAL: STL; THREAD: 18UNF; REFERENCE NO: 3W21942; FOR TYPE 30 MODEL 15T2; ING-RAND COMPRESSOR"]
[537,"0102600","KIT: TYPE: OVERHAUL; APPLICATION: SAFETY VALVE; KIT CONSISTS: SPRING ITEM 46; PISTON ITEM 11; JOINT METAL O-RING ITEM 40XX2; JOINT METAL O-RING ITEM 43; SEAT ITEM 6; JOINT O-RING ITEM 89; SEAL ITEM 99"]
[538,"0107087","GASKET, PRE CUT: TYPE: VALVE CAGE CAP; REFERENCE NO: X1014T5; L.P, FOR TYPE 30 MODEL 41 ING-RAND COMPRESSOR 30550784"]
[539,"0109457","HANDLE: TYPE: VALVE; DIMENSIONS: LG 750 MM; MATERIAL: STL; REFERENCE NO: SW22; VENDORS ARE RESPONSIBLE FOR ENSURING THAT THEY ARE PERFORMING AGAINST THE CORRECT DRAWING REVISION NUMBER (IF APPLICABLE)."]
[540,"0127130","SOLENOID, ELECTRICAL: DUTY TYPE: VALVE; COIL VOLTAGE: 220 VAC; REFERENCE NO: 7601-0476; SOLENOIDS, 20 PU, 220V DC, 35VA"]
[541,"0111786","SPRING: TYPE: VALVE; DIMENSIONS: DIA 14 X LG 67 MM; MATERIAL: SPRING STL; MODEL NO: 41; REFERENCE NO: X1091PP 556; UNLOADER PLUNGER; FOR TYPE 30 AIR COMPRESSOR"]
[542,"0111801","SPRING: TYPE: VALVE; DIMENSIONS: DIA (6 X 6.6) X LG 14.7 X THK 1 MM; MATERIAL: SPRING STL; REFERENCE NO: HT403875; FOR PLATE; 2ND, 3RD, 4TH STAGE; STAINLESS STEEL WIRE"]
[543,"0111803","SPRING: TYPE: VALVE; DIMENSIONS: DIA (6.5 X 7) X LG 11.8 X THK 1 MM; MATERIAL: SPRING STL; REFERENCE NO: HT403877; FOR BACKING PLATE; 2ND,3RD,4TH STAGE; STAINLESS STEEL WIRE"]
[544,"0128439","SOLENOID, ELECTRICAL: DUTY TYPE: VALVE; COIL VOLTAGE: 24 VDC; REFERENCE NO: GS 40-4N-B; SINGLE DIRECT CONTROL, 100 PCTED, 0.79A, 3-13533-41, 21/80, HYDRONORMA"]
[545,"0123504","VALVE, SOLENOID: PIPE SIZE: 8 MM; STYLE: 3 WAY; POTENTIAL: 24 VDC; BODY MATERIAL: STEEL; MEDIUM: OIL; CURRENT: 0.79 A; CONNECTION MANIFOLD; GENERAL PURPOSE ENCLOSURE; CONTROL"]
[546,"0125604","SOLENOID, ELECTRICAL: DUTY TYPE: VALVE; COIL VOLTAGE: 220 VAC; REFERENCE NO: 331B21; LUCIFER, 15 BAR, 3 WAY"]
[547,"0126169","SOLENOID, ELECTRICAL: DUTY TYPE: AIR VALVE; COIL VOLTAGE: 220 VAC; SUPPL P/N: FF32-35; 617194; REFERENCE NO: PN 617194; 617194; FOR AIR VALVE FF32/35, 50 HZ, 100PCT ED, IP65, ASH HANDLING PLANT EQUIPMENT INCLUDING LIFTING DEVICE AND IMMERSION DAMPERS FF31/35, 55 VA"]
[548,"0177811","VALVE, ANGLE: TYPE: GLOBE; VALVE SIZE: 150 MM; DESIGN RATING: 150 LB; CONNECTION: FLANGE; BODY MATERIAL: STL; OPERATED: HYDRAULIC; STYLE: BOLTED BONNET; TRIM: SEAT HF; GRADE: SCPH2; AIR EXHAUST; AUTOMATIC; FOR DEWATERING AIR EXHAUST PIPE LINE"]
[549,"0502387","VALVE: TYPE: COMPRESSOR 3RD STAGE; OPERATED: AUTOMATIC; BODY MATERIAL: STL; SUPPL P/N: 31517725"]
[550,"0178035","VALVE, RELIEF: REFERENCE NO: 0523C"]
[551,"0178037","VALVE, GATE: VALVE SIZE: 4 IN; DRAWING NO: MB9-341.3200B REV 1; RELAY; ASSEMBLY 4"]
[552,"0502388","VALVE: TYPE: COMPRESSOR 2ND STAGE; OPERATED: AUTOMATIC; BODY MATERIAL: STL; SUPPL P/N: 37004827"]
[553,"0178437","VALVE, NEEDLE: VALVE SIZE: 6 IN; CONNECTION: FLANGE; BODY MATERIAL: STL"]
[554,"0178522","VALVE, ANGLE: TYPE: PLUG; VALVE SIZE: 100 MM; CONNECTION: FLANGE; BODY MATERIAL: CI; OPERATED: HYDRAULIC; STYLE: BOLTED BONNET; TRIM: DISC STL"]
[555,"0178523","VALVE, ANGLE: TYPE: PLUG; VALVE SIZE: 250 MM; CONNECTION: FLANGE; BODY MATERIAL: STL; OPERATED: HYDRAULIC; STYLE: BOLTED BONNET; TRIM: DISC STL"]
[556,"0205470","KIT: TYPE: SEALS; APPLICATION: SPH/VALVE OPERATOR; COMPRISING: ROOF TYPE LIP RING; SUPPORTING RING; THRUST RING; REFERENCE NO: 1162-015.532; 1160-014.832; 1161-015.229; CONSISTS OF ON3 OF 3; SIZE ID 250 X OD 280 MM"]
[557,"0401291","VALVE, BALL: VALVE SIZE: 3/4 IN; OPERATED: HANDLE; TYPE: STOP"]
[558,"0502390","VALVE: CONNECTION: COMPRESSION; OPERATED: AUTOMATIC; BODY MATERIAL: STEEL; TRIM: DISC STL; SOFTGOODS: GASKET; MANUF P/N: 32134058"]
[559,"0502396","VALVE: TYPE: 1ST STAGE; VALVE SIZE: 164MM X 85 IN; TEMPERATURE RATING: 0-250 DEG C; CONNECTION: COMPRESSION; OPERATED: AUTOMATIC; BODY MATERIAL: STEEL; MANUF P/N: 37101946"]
[560,"0594825","KIT: TYPE: REPAIR T125; APPLICATION: PRESSURE RELIEF VALVE"]
[561,"0621290","KIT, VALVE REPAIR: TYPE: BALL VALVE 1/2 IN; APPLICATION: VALVE INTERNAL; SPECIFICATION: B16; COMPRISING: BODY SEAL; SEALS; STEM BEARING; STEM PACKING; SUPPL P/N: 23804289"]
[562,"0621484","VALVE, BUTTERFLY: TYPE: LUG WAFER; VALVE SIZE: 150 MM; DESIGN RATING: PN16; TEMPERATURE RATING: 0-120 DEG C; CONNECTION: LUG; BODY MATERIAL: DI; FACE TO FACE LENGTH: 59 MM; OPERATED: ACTUATOR; TRIM: RUBBER LINED; SOFTGOODS: SEAL; APPLICATION: TURBINE PROTECTION; GRADE: GGG40; SHAFT CONNECTION: DIA 14MM"]
[563,"0628662","VALVE: TYPE: SAFETY; VALVE SIZE: 4 IN; DESIGN RATING: 53 BAR; TEMPERATURE RATING: 538 DEG C; CONNECTION: FLANGE; OPERATED: PRESSURE, SPRING, 0-35 LB; BODY MATERIAL: BS 1504-240; STYLE: ANGLE PATTERN; TRIM: PT; OEM P/N: 4\"707 SD; DRAWING NO: F5217/5 REV 0; ."]
[564,"0637382","VALVE: TYPE: CONCENTRIC; VALVE SIZE: OD 225 X THK 30 MM; DESIGN RATING: 380 BAR; TEMPERATURE RATING: -28 TO 425 DEG C; CONNECTION: SEAT; OPERATED: MECHANICAL; BODY MATERIAL: STAINLESS STEEL; STYLE: LEAF; MANUF P/N: 37134; MODEL NO: WP6310; FOR USE ON JP SAUER AND SOHN COMPRESSOR"]
[565,"0640478","VALVE, GLOBE: VALVE SIZE: 2 IN; DESIGN PRESSURE: 102 BAR; DESIGN TEMPERATURE: -29 TO 38 DEG C; FACE TO FACE LENGTH: 292.1 MM; OPERATED: HANDWHEEL, MANUAL; CONNECTION: FLANGE; BODY MATERIAL: A216 GR WCB; TRIM: A182F6; GRADE: A216 GR WCB; SOFTGOODS: PACKING GRAPHITE; STEM DESIGN: A182F6; APPLICATION: RUNNER SEAL ISOLATION; SPECIFICATION: CL 600; TYPE: ISOLATING; DESIGN RATING: ASME B19.34; TEMPERATURE RATING: ASME B16.34; CONNECTION ASME B16.5/B16.25; TESTING AND INSPECTION; API 598"]
[566,"0640479","VALVE, BUTTERFLY: TYPE: DRAIN WAFER; VALVE SIZE: DN 32; DESIGN RATING: PN25; TEMPERATURE RATING: NBR -10 TO 90 DEG C; CONNECTION: FLANGE; BODY MATERIAL: 2EN-GJS-4000-15(GGG-40) EPOXY COATED 120 UM; FACE TO FACE LENGTH: 33 MM; OPERATED: ACTUATOR PNEUMATIC; TRIM: A1.4408 INVESTMENT CASTING; SOFTGOODS: NBR; APPLICATION: SHAFT/RUNNER SEAL DRAIN; GRADE: DN 25-600; SPECIFICATION: D480; SCHEDULE: ASME B16.47; SERIES A; CL 150; SPECIAL FEATURES: BARE SHAFT; SUPPL P/N: D480 32W332A1NLF07 D11; CONNECTION TYPE; 3EN1092 PN16, OPERATING PRESSUE; 3.16 BAR, SHAFT MATERIAL; 1AISI420/1.4021, SHAFT LENGTH; 18, 18 MM, SEAT LINER; N NBR"]
[567,"0647409","VALVE, SOLENOID: PIPE SIZE: 6 X 4 MM; STYLE: 3/2 WAY; POTENTIAL: 230 VAC; DESIGN RATING: 0-10 BAR; CONNECTION: G1/8 IN-BSPP; BODY MATERIAL: BRASS; OPERATED: AIR; ENCLOSURE RATING: IP65; MEDIUM: NATURAL GASES; FLUIDS; POWER: 8 W; ORIFICE SIZE: 2 MM; COIL: POLYAMIDE; SOFTGOODS: FKM; APPLICATION: FIRE DAMPER"]
[568,"0654743","VALVE, BALL: VALVE SIZE: 1/2 IN; APPLICATION: AMMONIA SOLUTION LINE TO FEEDWATER TANK; TYPE: QUICK STOP; SUPPL P/N: N300"]
[569,"0655344","CONE: TYPE: SHUT-OFF VALVE; SUPPL P/N: SP-KUS-F2-16433; VENDORS ARE RESPONSIBLE FOR ENSURING THAT THEY ARE PERFORMING AGAINST THE CORRECT DRAWING REVISION NUMBER (IF APPLICABLE)."]
[570,"0662034","VALVE, RELIEF: VALVE SIZE: 20 MM; SET PRESSURE: 7000 KPA; TEMPERATURE RATING: -25 TO 400 DEG C; CONNECTION: HEX NIPPLE 20 MM; BODY MATERIAL: BRONZE; TRIM: CRNI STEEL BRONZE; FACE TO FACE LENGTH: S1=36; S2=44 MM; OPERATED: SPRING; SPECIFICATION: DIN 3230; APPLICATION: SV AIR MAKE-UP VESSEL; PRESSURE RANGE: 0-90 BAR; SPHERICAL VALVE AIR MAKE-UP VESSEL SAFETY VALVE"]
[571,"0662552","VALVE, CHECK: TYPE: NON RETURN; VALVE SIZE: 80 MM; DESIGN RATING: PN40; TEMPERATURE RATING: 50 DEG C; CONNECTION: BW; BODY MATERIAL: CI; FACE TO FACE LENGTH: 173 MM; OPERATED: AUTOMATIC; TRIM: STL; APPLICATION: LIMESTONE HYDRAULIC FEEDER DRIVE; SPECIFICATION: TH-CD-2572-00-02; SUPPL P/N: 2572-00-02-14"]
[572,"0662572","VALVE, CHECK: TYPE: NON RETURN; VALVE SIZE: 100 MM; DESIGN RATING: PN25; TEMPERATURE RATING: 55 DEG C; CONNECTION: BW; BODY MATERIAL: CAST STL; FACE TO FACE LENGTH: 170 MM; OPERATED: FLOW; TRIM: STL; APPLICATION: LIMESTONE HYDRAULIC FEEDER DRIVE; SPECIFICATION: TH-CD-2572-00-02; SUPPL P/N: 2572-00-02-25"]
[573,"0688832","VALVE, RELIEF: VALVE SIZE: 1/2 X 3/4 IN; SET PRESSURE: 1100 KPA; TEMPERATURE RATING: -10 TO 300 DEG C; CONNECTION: MALE 0.5 IN; BODY MATERIAL: BRASS; TRIM: BRASS; FACE TO FACE LENGTH: 50X35 MM; OPERATED: LEVER; APPLICATION: COMPRESSOR; DESIGN RATING: 4314.93 KPA; TEST CERTIFICATE REQUIRED"]
[574,"0696638","VALVE, BUTTERFLY: TYPE: CENTERED DISC; VALVE SIZE: 3 IN; DESIGN RATING: PN35; TEMPERATURE RATING: 0-100 DEG C; CONNECTION: BW; BODY MATERIAL: 1.4571; FACE TO FACE LENGTH: 400 MM; OPERATED: MANUAL; TRIM: STL; SOFTGOODS: GASKETS; APPLICATION: DRAIN VALVE 1 TURBINE HOUSE UNIT 4; 4 0LCE10 AA401; SPECIFICATION: AV-25-63-SE-HR-G-XX-00; SUPPL P/N: 63906F3C7C3F09C3E0401EAC37FA0A05"]
[575,"0708296","VALVE: TYPE: BYPASS; VALVE SIZE: 450 X 350 MM; DESIGN RATING: 7.2 MPA; TEMPERATURE RATING: 50 DEG C; FACE TO FACE LENGTH: 1070 MM; CONNECTION: 3/4 IN-BSP; OPERATED: HYDRAULIC; BODY MATERIAL: STAINLESS STEEL; STYLE: CYLINDRICAL; SOFTGOODS: O RINGS/GASKETS; OEM P/N: 891215705"]
[576,"0715945","VALVE, CHECK: TYPE: NON-RETURN; VALVE SIZE: 650 MM; DESIGN RATING: Y 0.35 AND VACUUM MPA; TEMPERATURE RATING: 200 DEG C; CONNECTION: BUTT-WELDED; BODY MATERIAL: STEEL ASTM A216-WCB; FACE TO FACE LENGTH: 1448 MM; OPERATED: AUTO; TRIM: STEEL; APPLICATION: CHECK VALVE LBS30AA501; SPECIFICATION: ANSI B16 34 CLASS 150; DRAWING NO: FB21EV650NFDA ITEM DEWRANCE; BLED STEAM CHECK VALVE, BODY: WBC, SEAT: CR13, DISK: CR18"]
[577,"0738160","VALVE: TYPE: NRV NON RETURN; VALVE SIZE: 1/2 IN; DESIGN RATING: 16 BAR; TEMPERATURE RATING: -198 TO 260 DEG C; CONNECTION: 1/2 IN; OPERATED: FLOW; BODY MATERIAL: STAINLESS STEEL 316; STYLE: 1 WAY; SOFTGOODS: GASKET; MANUF P/N: 111929400252002+00; REFERENCE NO: FTTPDS48E 01; SERGI FRANCE"]
[578,"0738822","VALVE: TYPE: INJECTION; VALVE SIZE: 6/4 - R 1/2 IN; DESIGN RATING: 7-16 BAR; TEMPERATURE RATING: 25-40 DEG; CONNECTION: 6 MM COMPRESSION; OPERATED: STANDARD; BODY MATERIAL: PVC; ."]
[579,"0738824","VALVE: TYPE: FOOT; VALVE SIZE: 20 MM; DESIGN RATING: 7-16 BAR; TEMPERATURE RATING: 40 DEG; CONNECTION: 6 MM COMPRESSION; OPERATED: STANDARD; BODY MATERIAL: PVDF PTFE"]
[580,"0738906","KIT, COMPRESSOR REPAIR: TYPE: SERVICE; APPLICATION: SPHERICAL VALVE; SPECIFICATION: ELECTRIC; COMPRISING: PISTON RINGS & GASKETS; MANUF P/N: 32226342; TYPE 30 MODEL 15T2, COMPRESSION STAGES 1, 2 AND 3, INGERSOLL RAND"]
[581,"0628695","VALVE, BALL: VALVE SIZE: 20 MM; DESIGN RATING: 40 BAR; TEMPERATURE RATING: 200 DEG C; CONNECTION: FLANGED; BODY MATERIAL: STAINLESS STEEL; FACE TO FACE LENGTH: 44 MM; OPERATED: HAND; STYLE: 1 WAY; TRIM: STAINLESS STEEL; SOFTGOODS: PTFE; SPECIFICATION: K6HT; PORT TYPE: BALL; APPLICATION: VARIOUS; GRADE: 1.4408; TYPE: ISOLATING"]
[582,"0620405","VALVE, BALL: VALVE SIZE: 200 MM; DESIGN RATING: JIS 10 K; TEMPERATURE RATING: 10 K; CONNECTION: FLANGE; BODY MATERIAL: SS GR 304; FACE TO FACE LENGTH: 455 MM; OPERATED: ACTUATOR, HANDWHEEL; STYLE: 1 WAY; SOFTGOODS: PTFE; APPLICATION: GENERATOR; TYPE: ISOLATING; ."]
[583,"0620406","VALVE, BALL: VALVE SIZE: 200 MM; DESIGN RATING: JIS 10 K; TEMPERATURE RATING: 10 K; CONNECTION: FLANGE; BODY MATERIAL: SS GR 304; FACE TO FACE LENGTH: 455 MM; OPERATED: ACTUATOR, CHAIN; STYLE: 1 WAY; SOFTGOODS: PTFE; APPLICATION: GENERATOR; TYPE: ISOLATING"]
[584,"0692543","VALVE: TYPE: NON RETURN; VALVE SIZE: 20 MM; TEMPERATURE RATING: -10 TO 100 DEG C; CONNECTION: 1/2 IN-BSP; OPERATED: AIR; BODY MATERIAL: STAINLESS STEEL; OEM P/N: 033930"]
[585,"0628696","VALVE, BALL: VALVE SIZE: 1/2 IN; DESIGN RATING: 2000 KPA; TEMPERATURE RATING: 200 DEG C; CONNECTION: FEMALE THD; BODY MATERIAL: STAINLESS STEEL; FACE TO FACE LENGTH: 75 MM; OPERATED: HAND; STYLE: 1 WAY; TRIM: STAINLESS STEEL; SOFTGOODS: PTFE; SPECIFICATION: 5BDB 5BEE; PORT TYPE: BALL; APPLICATION: VARIOUS; GRADE: 1.4408; TYPE: ISOLATING; MANUF P/N: CF8M"]
[586,"0643978","VALVE, BALL: VALVE SIZE: 1/2 IN; DESIGN RATING: PN500; TEMPERATURE RATING: 180 DEG C; CONNECTION: THD; BODY MATERIAL: STAINLESS STEEL; FACE TO FACE LENGTH: 90 MM; OPERATED: LEVER; STYLE: 1 WAY; TRIM: STAINLESS STEEL; SOFTGOODS: PTFE; SPECIFICATION: ISO 9001; PORT TYPE: FULL BORE; APPLICATION: VARIOUS; GRADE: 1.4423; TYPE: NON LOCKABLE; MANUF P/N: KH 1/2IN 71X; BODY SHAPE: SQUARE"]
[587,"0637420","VALVE, BALL: VALVE SIZE: DN 50; DESIGN RATING: PN100; TEMPERATURE RATING: 0-30 DEG C; CONNECTION: FLANGE; BODY MATERIAL: 1.4571; OPERATED: LEVER; SPECIFICATION: SAE; DIN; ANSI; ISO; TYPE: HYDRAULIC; REFERENCE NO: 190-050-138"]
[588,"0643976","VALVE, BALL: VALVE SIZE: DN 50; DESIGN RATING: PN200; TEMPERATURE RATING: 180 DEG C; CONNECTION: THD; BODY MATERIAL: STAINLESS STEEL; FACE TO FACE LENGTH: 140 MM; OPERATED: LEVER; STYLE: 1 WAY; TRIM: STAINLESS STEEL; SOFTGOODS: PTFE; SPECIFICATION: ISO 9001; PORT TYPE: FULL BORE; APPLICATION: VARIOUS; GRADE: 1.4408; TYPE: LOCKABLE; BODY SHAPE: SQUARE"]
[589,"0657951","VALVE, BALL: VALVE SIZE: DN 80; DESIGN RATING: PN100; TEMPERATURE RATING: 0-30 DEG C; CONNECTION: FLANGE; BODY MATERIAL: STAINLESS STEEL; FACE TO FACE LENGTH: 160 MM; OPERATED: ACTUATOR; STYLE: 1 WAY; TRIM: STAINLESS STEEL; SOFTGOODS: PTFE; SPECIFICATION: ISO 9001; PORT TYPE: SCREW; APPLICATION: TURBINE; GRADE: 1.4301; TYPE: SHUT OFF; MODEL NO: FCKH; REFERENCE NO: 9423 107/15; PISTER"]
[590,"0657952","VALVE, BALL: VALVE SIZE: DN 80; DESIGN RATING: PN100; TEMPERATURE RATING: 0-40 DEG C; CONNECTION: FLANGE; BODY MATERIAL: STAINLESS STEEL; FACE TO FACE LENGTH: 160 MM; OPERATED: ACTUATOR/LEVER; STYLE: 1 WAY; TRIM: STAINLESS STEEL; SOFTGOODS: PTFE; SPECIFICATION: ISO 9001; PORT TYPE: SCREW; APPLICATION: TURBINE; GRADE: 1.4301; TYPE: SHUT OFF; MODEL NO: FCKH; REFERENCE NO: 9423 279/13; COMPLETE WITH EXTENSION; PISTER"]
[591,"0657953","VALVE, BALL: VALVE SIZE: DN 80; DESIGN RATING: PN100; TEMPERATURE RATING: 0-40 DEG C; CONNECTION: FLANGE; BODY MATERIAL: STAINLESS STEEL; FACE TO FACE LENGTH: 160 MM; OPERATED: ACTUATOR/LEVER; STYLE: 1 WAY; TRIM: STAINLESS STEEL; SOFTGOODS: PTFE; SPECIFICATION: ISO 9001; PORT TYPE: SCREW; APPLICATION: TURBINE; GRADE: 1.4301; TYPE: SHUT OFF; MODEL NO: FCKH; REFERENCE NO: 9423 452/13; PISTER"]
[592,"0628693","VALVE, BALL: VALVE SIZE: 25 MM; DESIGN RATING: 63; TEMPERATURE RATING: 200 DEG C; CONNECTION: FEMALE THD; BODY MATERIAL: STAINLESS STEEL; FACE TO FACE LENGTH: 90 MM; OPERATED: HAND; STYLE: 1 WAY; TRIM: STAINLESS STEEL; SOFTGOODS: PTFE; SPECIFICATION: JT97AN; PORT TYPE: BALL; APPLICATION: VARIOUS; GRADE: 1.4408; TYPE: ISOLATING"]
[593,"0619983","VALVE, BALL: VALVE SIZE: 50 MM; DESIGN RATING: 10 KPA; TEMPERATURE RATING: JIS10K; CONNECTION: FLANGED; BODY MATERIAL: SCPH2/304; FACE TO FACE LENGTH: 175 MM; OPERATED: LEVER; STYLE: DIRECTIONAL; TRIM: STL; SOFTGOODS: PTFE; APPLICATION: UPPER OIL COOLER; TYPE: ISOLATING"]
[594,"0628694","VALVE, BALL: VALVE SIZE: 50 MM; DESIGN RATING: 63 BAR; TEMPERATURE RATING: 200 DEG C; CONNECTION: FEMALE THD; BODY MATERIAL: STAINLESS STEEL; FACE TO FACE LENGTH: 140 MM; OPERATED: HAND; STYLE: 1 WAY; TRIM: STAINLESS STEEL; SOFTGOODS: PTFE; SPECIFICATION: JT97AN; PORT TYPE: BALL; APPLICATION: VARIOUS; GRADE: 1.4408; TYPE: ISOLATING"]
[595,"0637421","VALVE, BALL: VALVE SIZE: DN 100; DESIGN RATING: PN100; TEMPERATURE RATING: -10 TO 50 DEG C; CONNECTION: FLANGE; BODY MATERIAL: 1.4571; OPERATED: LEVER; SPECIFICATION: SAE; DIN; ANSI; ISO; TYPE: PNEUMATIC; REFERENCE NO: 190-100-202; ."]
[596,"0648284","VALVE: TYPE: EMERGENCY CLOSING; VALVE SIZE: 13 MM; DESIGN RATING: 350 BAR; TEMPERATURE RATING: 200 DEG C; FACE TO FACE LENGTH: FLAT; CONNECTION: THREADED; OPERATED: PRESSURE; BODY MATERIAL: STEEL; STYLE: 2 WAY; SPECIFICATION: ISO 9001; TURBINE GOVERNOR PUMP CONTROL; KKS: MFX20AA201/219"]
[597,"0646934","VALVE: TYPE: DIRECTIONAL; VALVE SIZE: NG 6; DESIGN RATING: 350 BAR; TEMPERATURE RATING: -25 TO 70 DEG C; FACE TO FACE LENGTH: FLANGE; CONNECTION: SUBPLATE; OPERATED: HAND; BODY MATERIAL: CARBON STEEL; STYLE: 4/2 WAY; TRIM: STAINLESS STEEL; SPECIFICATION: ISO 4401-03; SOFTGOODS: NBR; MANUF P/N: AH4Z60A/R-Z80"]
[598,"0642473","VALVE: TYPE: DIRECTIONAL; VALVE SIZE: 8/4 MM; DESIGN RATING: 350 BAR; TEMPERATURE RATING: 52 DEG C; FACE TO FACE LENGTH: 49 MM; CONNECTION: BOLT BLOCK; OPERATED: PRESSURE; BODY MATERIAL: STEEL; STYLE: 1 WAY; TRIM: STAINLESS STEEL; SPECIFICATION: ISO 4401-03; SOFTGOODS: NBR; SPECIAL FEATURES: NIL; MANUF P/N: WDMFA06-AB3-G220/MD-HF1-P1AB"]
[599,"0637416","VALVE: TYPE: SAFETY; VALVE SIZE: DN40; DESIGN RATING: 35 BAR; TEMPERATURE RATING: 20 DEG C; CONNECTION: FLANGE INLET P 40, OUTLET PN16; OPERATED: HAND LEVER; BODY MATERIAL: 1.4408; SPECIFICATION: 4414.4664; REFERENCE NO: 10944010; CENTER TO FACE: INLET 140 MM, OUTLET 115 MM"]
[600,"0630729","VALVE: TYPE: ISOLATING GAUGE; VALVE SIZE: DN 4; DESIGN RATING: PN400; TEMPERATURE RATING: -20 TO 200 DEG C; FACE TO FACE LENGTH: 140 MM; CONNECTION: THD MALE X FEMALE; OPERATED: HANDWHEEL; BODY MATERIAL: STAINLESS STEEL; STYLE: 2 WAY; GRADE: 1.4571; SPECIAL FEATURES: VENT SCREW"]
[601,"0630728","VALVE: TYPE: ISOLATING GAUGE; VALVE SIZE: DN 4; TEMPERATURE RATING: -20 TO 200 DEG C; FACE TO FACE LENGTH: 140 MM; CONNECTION: THD MALE X FEMALE; OPERATED: HANDWHEEL; BODY MATERIAL: STAINLESS STEEL; STYLE: 3 WAY; GRADE: 1.4571; SPECIAL FEATURES: VENT SCREW"]
[602,"0072645","VALVE: TYPE: HYDRAULIC; VALVE SIZE: 3/4 IN"]
[603,"0644906","VALVE, CHECK: TYPE: DUAL PURPOSE; VALVE SIZE: 1-1/2 IN; DESIGN RATING: 3000 PSI; TEMPERATURE RATING: -30 TO 80 DEG C; CONNECTION: INSERT; BODY MATERIAL: STEEL; FACE TO FACE LENGTH: 65 MM; OPERATED: PRESSURE; STYLE: 1 WAY; TRIM: BRASS; SOFTGOODS: NITRILE; APPLICATION: SAE FLANGE PORT; SPECIFICATION: ISO 9001; GRADE: HT; MANUF P/N: RVSAE3-112-5 13K"]
[604,"0628680","VALVE, CHECK: TYPE: DISC; VALVE SIZE: DN 80; DESIGN RATING: PN40; TEMPERATURE RATING: -200 TO 550 DEG C; CONNECTION: FLANGE; BODY MATERIAL: CI 300; FACE TO FACE LENGTH: 50 MM; OPERATED: FLOW; STYLE: 1 WAY; TRIM: STAINLESS STEEL; SOFTGOODS: STAINLESS STEEL; APPLICATION: VARIOUS; SPECIFICATION: (PED) 97/23/EC; GRADE: 1.4408; MANUF P/N: RK86A; WITH BODY CENTERING CAMS; FLOWSERVE"]
[605,"0644902","VALVE: TYPE: DIRECTIONAL PISTON; VALVE SIZE: NG10; DESIGN RATING: 315 BAR; TEMPERATURE RATING: -5 TO 50 DEG C; FACE TO FACE LENGTH: NIL; CONNECTION: MOUNTING PLATE; OPERATED: ELECTRIC; BODY MATERIAL: CAST IRON; STYLE: 4/2 WAY; TRIM: STAINLESS STEEL; GRADE: NIL; SPECIFICATION: ISO 9001; SOFTGOODS: NBR; SPECIAL FEATURES: NIL; MANUF P/N: WE02-10P100E220/CHN"]
[606,"0623858","VALVE, CHECK: TYPE: FLOW CONTROL; VALVE SIZE: NS16; DESIGN RATING: 1.5 BAR; TEMPERATURE RATING: -20 TO 80 DEG C; CONNECTION: FLANGE; BODY MATERIAL: CI; FACE TO FACE LENGTH: 70 MM; OPERATED: PILOT; STYLE: 2 WAY; APPLICATION: SURGE CHAMBER HOIST; SPECIFICATION: DIN 51524; OEM P/N: 2FRM16-32/160L, OEM: BOSCH REXROTH; LOCKABLE; FLOW RATE: 160 L/MIN."]
[607,"0623859","VALVE, CHECK: TYPE: FLOW CONTROL; VALVE SIZE: NS10; DESIGN RATING: 1.5 BAR; TEMPERATURE RATING: -20 TO 80 DEG C; CONNECTION: FLANGE; BODY MATERIAL: CI; FACE TO FACE LENGTH: 55 MM; OPERATED: PILOT; STYLE: 2 WAY; APPLICATION: SURGE CHAMBER HOIST; SPECIFICATION: DIN 51524; OEM P/N: 2FRM10-31/50L, OEM: BOSCH REXROTH; LOCKABLE; FLOW RATE: 50 L/MIN."]
[608,"0178003","VALVE, CHECK: VALVE SIZE: 100 MM; DESIGN RATING: 3-8 BAR; TEMPERATURE RATING: 50-100 DEG C; MANUF P/N: NINSSC 0100; ."]
[609,"0628204","VALVE, BUTTERFLY: TYPE: WAFER; VALVE SIZE: DN65; DESIGN RATING: 16 BAR; TEMPERATURE RATING: -40 TO 200 DEG C; CONNECTION: CENTER FLANGE; BODY MATERIAL: CI; FACE TO FACE LENGTH: 46 MM; OPERATED: LEVERLOCK; TRIM: STAINLESS STEEL; SOFTGOODS: NBR; APPLICATION: WATER; GRADE: 1.4409; SPECIFICATION: EN ISO 5211; STYLE: CENTERED DISC; SCHEDULE: EN 558 SERIES 20; SPECIAL FEATURES: NONE; MANUF P/N: Z011-A"]
[610,"0643980","VALVE, BUTTERFLY: TYPE: WAFER; VALVE SIZE: DN40; DESIGN RATING: 16 BAR; TEMPERATURE RATING: 200 DEG C; CONNECTION: FLANGE; BODY MATERIAL: STAINLESS STEEL; FACE TO FACE LENGTH: 33 MM; OPERATED: LEVER; TRIM: STAINLESS STEEL; SOFTGOODS: EPDM; APPLICATION: BLOWDOWN; GRADE: 1.4408; SPECIFICATION: EN 1092-1; STYLE: 1 WAY; SPECIAL FEATURES: ADJUSTABLE POSITION; MANUF P/N: Z011-A; CF8M; EBRO"]
[611,"0623861","VALVE, CHECK: TYPE: FLOW CONTROL; VALVE SIZE: 1 IN; DESIGN RATING: 320 BAR; TEMPERATURE RATING: -20 TO 100 DEG C; CONNECTION: THD; BODY MATERIAL: STEEL; FACE TO FACE LENGTH: 117 MM; OPERATED: PRESSURE, 0 BAR; STYLE: 1 WAY; APPLICATION: SURGE CHAMBER HOIST; SPECIFICATION: EN 10083; OEM P/N: FT257/6 100 0 BAR; SPRING REMOVED"]
[612,"0692898","VALVE, SOLENOID: PIPE SIZE: 1/2 IN; STYLE: 1/1; POTENTIAL: 220 VDC; DESIGN RATING: 0-1.5 MPA; CONNECTION: BSPF; BODY MATERIAL: BRASS; OPERATED: SOLENOID; ENCLOSURE RATING: IP65; MEDIUM: AIR; ORIFICE SIZE: 3 MM; COIL: SINGLE; APPLICATION: MECHANICAL AIR BRAKE SYSTEM; OEM P/N: VS3P-4030-10G HMJ-X"]
[613,"0692543","VALVE: TYPE: NON RETURN; VALVE SIZE: 20 MM; TEMPERATURE RATING: -10 TO 100 DEG C; CONNECTION: 1/2 IN-BSP; OPERATED: AIR; BODY MATERIAL: STAINLESS STEEL; OEM P/N: 033930"]
[614,"0628662","VALVE: TYPE: SAFETY; VALVE SIZE: 4 IN; DESIGN RATING: 53 BAR; TEMPERATURE RATING: 538 DEG C; CONNECTION: FLANGE; OPERATED: PRESSURE, SPRING, 0-35 LB; BODY MATERIAL: BS 1504-240; STYLE: ANGLE PATTERN; TRIM: PT; OEM P/N: 4\"707 SD; DRAWING NO: F5217/5 REV 0; ."]
[615,"0619975","VALVE: TYPE: SHUT OFF; VALVE SIZE: 3/8 IN; DESIGN RATING: 200 BAR; TEMPERATURE RATING: -10 TO 120 DEG C; FACE TO FACE LENGTH: 55 MM; CONNECTION: BSP SCREW; OPERATED: HAND; BODY MATERIAL: BRASS; STYLE: 3 WAY; OEM P/N: CA200MP; TYPE ASK"]
[616,"0041833","VALVE: TYPE: COMPRESSOR; VALVE SIZE: 175 MM; OPERATED: PRESSURE; BODY MATERIAL: STL; TRIM: DISC SS; 2ND STAGE CONCENTRIC"]
[617,"0637382","VALVE: TYPE: CONCENTRIC; VALVE SIZE: OD 225 X THK 30 MM; DESIGN RATING: 380 BAR; TEMPERATURE RATING: -28 TO 425 DEG C; CONNECTION: SEAT; OPERATED: MECHANICAL; BODY MATERIAL: STAINLESS STEEL; STYLE: LEAF; MANUF P/N: 37134; MODEL NO: WP6310; FOR USE ON JP SAUER AND SOHN COMPRESSOR"]
[618,"0701459","VALVE: TYPE: CONTROL; VALVE SIZE: NG10; DESIGN RATING: 120 BAR; TEMPERATURE RATING: 20-60 DEG C; CONNECTION: FLANGE; OPERATED: CONTINUOUSLY; BODY MATERIAL: STEEL; STYLE: BLOCK CM2; PROFIBUS DP STANDARD I6C61158 R24KX2F3H592-BDK2D1 MODEL: D637-1033-0001"]
[619,"0644954","VALVE: TYPE: DIRECTIONAL CONTROL; VALVE SIZE: 6 MM; DESIGN RATING: 350 BAR; TEMPERATURE RATING: -30 TO 80 DEG C; FACE TO FACE LENGTH: NIL; CONNECTION: SUBPLATE; OPERATED: SOLENOID; BODY MATERIAL: STEEL; STYLE: 4/2 WAY; TRIM: METAL; SPECIFICATION: ISO 9001; SOFTGOODS: NBR; SPECIAL FEATURES: WITH RNEH5-162R11/22000E1 SUBPLATE; MANUF P/N: RPE3-06R11/22000E1"]
[620,"0623860","VALVE, CHECK: TYPE: FLOW CONTROL; VALVE SIZE: 1-1/4 IN; DESIGN RATING: 320 BAR; TEMPERATURE RATING: -20 TO 100 DEG C; CONNECTION: THD; BODY MATERIAL: STEEL; FACE TO FACE LENGTH: 134.5 MM; OPERATED: PRESSURE, 1 BAR; STYLE: 1 WAY; APPLICATION: SURGE CHAMBER HOIST; SPECIFICATION: EN 10083; OEM P/N: FT257/6 114 1 BAR"]
[621,"0731181","VALVE, CHECK: TYPE: E65; VALVE SIZE: DN25 MM; DESIGN RATING: PN40; TEMPERATURE RATING: -20to70 degree; CONNECTION: FLANGE; BODY MATERIAL: CAST IRON; FACE TO FACE LENGTH: 0.01 M; OPERATED: ELECTRICAL ACTUATOR"]
[622,"0644907","VALVE, CHECK: TYPE: DUAL PURPOSE; VALVE SIZE: 2-1/2 IN; DESIGN RATING: 3000 PSI; TEMPERATURE RATING: -30 TO 80 DEG C; CONNECTION: INSERT; BODY MATERIAL: STEEL; FACE TO FACE LENGTH: 85 MM; OPERATED: PRESSURE; STYLE: 1 WAY; TRIM: BRASS; SOFTGOODS: NITRILE; APPLICATION: SAE FLANGE PORT; SPECIFICATION: ISO 9001; GRADE: HT; MANUF P/N: RVSAE3DS-212-4"]
[623,"0655868","VALVE, BUTTERFLY: TYPE: WAFER; VALVE SIZE: 250 MM; DESIGN RATING: PN100; TEMPERATURE RATING: -20 TO 200 DEG F; CONNECTION: FLANGE; BODY MATERIAL: STAINLESS STEEL; FACE TO FACE LENGTH: 235 MM; OPERATED: HANDWHEEL/GEARBOX; TRIM: STAINLESS STEEL; SOFTGOODS: PTFE; APPLICATION: VARIOUS; GRADE: 1.4408; STYLE: 1 WAY; REFERENCE NO: 1-MF-A10-060 G00; COMPLETE WITH ROTORK GEARBOX AB880N; LEUSCH LTR43"]
[624,"0628207","VALVE, BUTTERFLY: TYPE: WAFER; VALVE SIZE: DN125; DESIGN RATING: 16 BAR; TEMPERATURE RATING: -40 TO 200 DEG C; CONNECTION: CENTER FLANGE; BODY MATERIAL: CI; FACE TO FACE LENGTH: 56 MM; OPERATED: LEVERLOCK; TRIM: STAINLESS STEEL; SOFTGOODS: NBR; APPLICATION: WATER; GRADE: 1.4409; SPECIFICATION: EN ISO 5211; STYLE: CENTERED DISC; SCHEDULE: EN 558 SERIES 20; SPECIAL FEATURES: NONE; MANUF P/N: Z011-A"]
[625,"0628203","VALVE, BUTTERFLY: TYPE: WAFER; VALVE SIZE: DN 50; DESIGN RATING: 10 BAR; TEMPERATURE RATING: -40 TO 200 DEG C; CONNECTION: CENTER FLANGE; BODY MATERIAL: CI; FACE TO FACE LENGTH: 43 MM; OPERATED: LEVERLOCK; TRIM: STAINLESS STEEL; SOFTGOODS: NBR; APPLICATION: WATER; GRADE: 1.4409; SPECIFICATION: EN ISO 5211; STYLE: CENTERED DISC; SCHEDULE: EN 558 SERIES 20; SPECIAL FEATURES: NONE; MANUF P/N: Z011-A; ."]
[626,"0628205","VALVE, BUTTERFLY: TYPE: WAFER; VALVE SIZE: 80 MM; DESIGN RATING: 10 BAR; TEMPERATURE RATING: -40 TO 200 DEG C; CONNECTION: CENTER FLANGE; BODY MATERIAL: CI; FACE TO FACE LENGTH: 46 MM; OPERATED: LEVERLOCK; TRIM: STAINLESS STEEL; SOFTGOODS: NBR; APPLICATION: WATER; GRADE: 1.4409; SPECIFICATION: EN ISO 5211; STYLE: CENTERED DISC; SCHEDULE: EN 558 SERIES 20; SPECIAL FEATURES: NONE; MANUF P/N: Z011-A"]
[627,"0657949","VALVE, BALL: VALVE SIZE: DN125; DESIGN RATING: PN16; TEMPERATURE RATING: 40 DEG C; CONNECTION: FLANGE; BODY MATERIAL: STAINLESS STEEL; FACE TO FACE LENGTH: 235 MM; OPERATED: ACTUATOR; STYLE: 1 WAY; TRIM: STAINLESS STEEL; SOFTGOODS: PTFE; SPECIFICATION: ISO 9001; PORT TYPE: SCREW; APPLICATION: TURBINE; GRADE: 1.4301; TYPE: SHUT OFF; MODEL NO: FCKH; REFERENCE NO: 4423; WITH ROTORK ACTUATOR MODEL AB880M; PISTER."]
[628,"0657948","VALVE, BALL: VALVE SIZE: DN125; DESIGN RATING: PN100; TEMPERATURE RATING: 2-40 DEG C; CONNECTION: FLANGE; BODY MATERIAL: STAINLESS STEEL; FACE TO FACE LENGTH: 400 MM; OPERATED: ACTUATOR; STYLE: 1 WAY; TRIM: STAINLESS STEEL; SOFTGOODS: PTFE; SPECIFICATION: ISO 9001; PORT TYPE: SCREW; APPLICATION: TURBINE; GRADE: 1.4301; TYPE: SHUT OFF; MODEL NO: FCKH; REFERENCE NO: 9423 486/13; COMPLETE WITH EXTENSION PART NUMBER 98651 P1 AND ROTORK ACTUATOR MODEL AB880M; PISTER."]
[629,"0657950","VALVE, BALL: VALVE SIZE: DN65; DESIGN RATING: PN100; TEMPERATURE RATING: 0-40 DEG C; CONNECTION: FLANGE; BODY MATERIAL: STAINLESS STEEL; FACE TO FACE LENGTH: 130 MM; OPERATED: ACTUATOR/LEVER; STYLE: 1 WAY; TRIM: STAINLESS STEEL; SOFTGOODS: PTFE; SPECIFICATION: ISO 9001; PORT TYPE: SCREW; APPLICATION: TURBINE; GRADE: 1.4301; TYPE: SHUT OFF; MODEL NO: FCKH; REFERENCE NO: 9423 453/13; PISTER."]
[630,"0655832","VALVE, BUTTERFLY: TYPE: WAFER; VALVE SIZE: 200 MM; DESIGN RATING: PN 16; TEMPERATURE RATING: -20 TO 200 DEG C; CONNECTION: FLANGE; BODY MATERIAL: CI; FACE TO FACE LENGTH: 60 MM; OPERATED: HANDWHEEL; TRIM: STAINLESS STEEL; SOFTGOODS: NBR; APPLICATION: VARIOUS; GRADE: 316; SPECIFICATION: ISO 9001; STYLE: 1 WAY; EBRO ARMATUREN"]
[631,"0655865","VALVE, BUTTERFLY: TYPE: WAFER; VALVE SIZE: 150 MM; DESIGN RATING: PN40; TEMPERATURE RATING: -20 TO 200 DEG F; CONNECTION: FLANGE; BODY MATERIAL: STAINLESS STEEL; FACE TO FACE LENGTH: 55 MM; OPERATED: HANDWHEEL; TRIM: STAINLESS STEEL; SOFTGOODS: PTFE; APPLICATION: VARIOUS; GRADE: 1.4408; STYLE: 1 WAY; EBRO ARMATUREN"]
[632,"0620187","VALVE, BALL: VALVE SIZE: 1/2 IN; DESIGN RATING: 1 MPA; TEMPERATURE RATING: 100 DEG C; CONNECTION: MALE X FEMALE 1/2 IN; BODY MATERIAL: STEEL; FACE TO FACE LENGTH: 90 MM; OPERATED: LEVER; TYPE: SHUT OFF; OEM P/N: X13W-40P; YONP"]
[633,"0655834","VALVE, BUTTERFLY: TYPE: WAFER; VALVE SIZE: 600 MM; DESIGN RATING: PN 16; TEMPERATURE RATING: -20 TO 200 DEG C; CONNECTION: FLANGE; BODY MATERIAL: CI; FACE TO FACE LENGTH: 140 MM; OPERATED: HANDWHEEL; TRIM: STAINLESS STEEL; SOFTGOODS: EPDM 80 KTW; APPLICATION: VARIOUS; GRADE: 316; SPECIFICATION: ISO 9001; STYLE: 1 WAY; COMPLETE WITH ROTORK GEARBOX MODEL AB8600N/SP4; EBRO ARMATUREN"]
[634,"0655831","VALVE, BUTTERFLY: TYPE: WAFER; VALVE SIZE: 300 MM; DESIGN RATING: PN 16; TEMPERATURE RATING: -20 TO 200 DEG C; CONNECTION: FLANGE; BODY MATERIAL: CI; FACE TO FACE LENGTH: 90 MM; OPERATED: HANDWHEEL; TRIM: STAINLESS STEEL; SOFTGOODS: NBR; APPLICATION: VARIOUS; GRADE: 316; SPECIFICATION: ISO 9001; STYLE: 1 WAY; EBRO ARMATUREN"]
[635,"0655867","VALVE, BUTTERFLY: TYPE: WAFER; VALVE SIZE: 300 MM; DESIGN RATING: PN25; TEMPERATURE RATING: -20 TO 200 DEG F; CONNECTION: FLANGE; BODY MATERIAL: STAINLESS STEEL; FACE TO FACE LENGTH: 77 MM; OPERATED: HANDWHEEL; TRIM: STAINLESS STEEL; SOFTGOODS: PTFE; APPLICATION: VARIOUS; GRADE: 1.4408; STYLE: 1 WAY; EBRO ARMATUREN"]
[636,"0655833","VALVE, BUTTERFLY: TYPE: WAFER; VALVE SIZE: 150 MM; DESIGN RATING: PN 16; TEMPERATURE RATING: -20 TO 200 DEG C; CONNECTION: FLANGE; BODY MATERIAL: CI; FACE TO FACE LENGTH: 55 MM; OPERATED: LEVER; TRIM: STAINLESS STEEL; SOFTGOODS: NBR; APPLICATION: VARIOUS; GRADE: 316; SPECIFICATION: ISO 9001; STYLE: 1 WAY; EBRO ARMATUREN"]
[637,"0655866","VALVE, BUTTERFLY: TYPE: WAFER; VALVE SIZE: 200 MM; DESIGN RATING: PN40; TEMPERATURE RATING: -20 TO 200 DEG F; CONNECTION: FLANGE; BODY MATERIAL: STAINLESS STEEL; FACE TO FACE LENGTH: 60 MM; OPERATED: HANDWHEEL; TRIM: STAINLESS STEEL; SOFTGOODS: PTFE; APPLICATION: VARIOUS; GRADE: 1.4408; STYLE: 1 WAY; EBRO ARMATUREN"]
[638,"0628206","VALVE, BUTTERFLY: TYPE: WAFER; VALVE SIZE: DN 100; DESIGN RATING: 10 BAR; TEMPERATURE RATING: -40 TO 200 DEG C; CONNECTION: CENTER FLANGE; BODY MATERIAL: CI; FACE TO FACE LENGTH: 52 MM; OPERATED: LEVERLOCK; TRIM: STAINLESS STEEL; SOFTGOODS: NBR; APPLICATION: WATER; GRADE: 1.4409; SPECIFICATION: EN ISO 5211; STYLE: CENTERED DISC; SCHEDULE: EN 558 SERIES 20; SPECIAL FEATURES: NONE; MANUF P/N: Z011-A; ."]
[639,"0637555","VALVE, CHECK: TYPE: NON RETURN; VALVE SIZE: G 3/4 IN; DESIGN RATING: 1 BAR; TEMPERATURE RATING: 0-100 DEG C; CONNECTION: THD; BODY MATERIAL: STAINLESS STEEL; FACE TO FACE LENGTH: 76 MM; OPERATED: AIR; STYLE: 1 WAY; TRIM: STAINLESS STEEL; SOFTGOODS: STAINLESS STEEL; APPLICATION: COMPRESSOR; SPECIFICATION: V592; GRADE: 316; MANUF P/N: RHD20SOMD71; MODEL NO: WP6310; FOR USE ON JP SAUER AND SOHN COMPPRESSOR"]
[640,"0715945","VALVE, CHECK: TYPE: NON-RETURN; VALVE SIZE: 650 MM; DESIGN RATING: Y 0.35 AND VACUUM MPA; TEMPERATURE RATING: 200 DEG C; CONNECTION: BUTT-WELDED; BODY MATERIAL: STEEL ASTM A216-WCB; FACE TO FACE LENGTH: 1448 MM; OPERATED: AUTO; TRIM: STEEL; APPLICATION: CHECK VALVE LBS30AA501; SPECIFICATION: ANSI B16 34 CLASS 150; DRAWING NO: FB21EV650NFDA ITEM DEWRANCE; BLED STEAM CHECK VALVE, BODY: WBC, SEAT: CR13, DISK: CR18"]
[641,"0655823","VALVE, CHECK: TYPE: PRESSURE; VALVE SIZE: DN400; DESIGN RATING: 16 BAR; TEMPERATURE RATING: -20 TO 200 DEG C; CONNECTION: FLANGED; BODY MATERIAL: CI; FACE TO FACE LENGTH: 480 MM; OPERATED: WATER; STYLE: 1 WAY; TRIM: 315E; SOFTGOODS: STAINLESS STEEL; APPLICATION: VARIOUS; SPECIFICATION: EN558/8; GRADE: GSC25; PERNOW"]
[642,"0623866","VALVE, SOLENOID: PIPE SIZE: PORT  7.5 MM; STYLE: 3/2; POTENTIAL: 24 VDC; DESIGN RATING: 350 BAR; CONNECTION: FLANGE; BODY MATERIAL: CI; OPERATED: PRESSURE; ENCLOSURE RATING: IP65; MEDIUM: OIL; POWER: 30 W; CURRENT: 1.25 A; APPLICATION: INTAKE EMERGENCY GATE HOIST; OEM P/N: M-3SED6UK13/350CG24N9K4, OEM: BOSCH REXROTH"]
[643,"0623874","VALVE, SOLENOID: PIPE SIZE: PORT 11 MM; STYLE: 4 WAY; POTENTIAL: 24 VDC; DESIGN RATING: 350 BAR; CONNECTION: FLANGE; BODY MATERIAL: CI; OPERATED: PRESSURE; ENCLOSURE RATING: IP65; MEDIUM: OIL; POWER: 40 W; CURRENT: 1.61 A; SOFTGOODS: SEALS NBR; APPLICATION: INTAKE HYDRAULIC POWER UNIT; SPECIFICATION: ISO 4401-05-04-0-05; OEM P/N: 4WE10C50/EG24N9K4/M, OEM: BOSCH REXROTH"]
[644,"0726792","VALVE, SOLENOID: PIPE SIZE: 28 MM; STYLE: COAXIAL 3/2 WAY DIRECT ACTING; POTENTIAL: 230 VAC; DESIGN RATING: 100 BAR; CONNECTION: G3/4 IN FEMALE; BODY MATERIAL: BRASS; OPERATED: SOLENOID; ENCLOSURE RATING: IP65; MEDIUM: AIR; POWER: 0.4 W; CURRENT: 0.15 A; ORIFICE SIZE: 15 MM; SOFTGOODS: NBR ORING; APPLICATION: DRAIN VALVE; MANUF P/N: 039599; STAGE 3 DRAIN VALVE"]
[645,"0062540","VALVE, SOLENOID: POTENTIAL: 220 V; SUPPL P/N: S2155"]
[646,"0668248","VALVE, SOLENOID: PIPE SIZE: 1-1/2 IN; STYLE: PLUNGER; POTENTIAL: 230 V; DESIGN RATING: 16 BAR; CONNECTION: THREADED; BODY MATERIAL: BRONZE; OPERATED: SOLENOID; ENCLOSURE RATING: NONE; MEDIUM: AIR; POWER: 16 W; CURRENT: 0.07 A; ORIFICE SIZE: 1-1/2 IN; APPLICATION: AUTO DRAIN"]
[647,"0617885","VALVE, SOLENOID: PIPE SIZE: 1/4 IN; STYLE: 2/1; POTENTIAL: 220 VDC; DESIGN RATING: 2 MPA; CONNECTION: IN; BODY MATERIAL: STEEL; OPERATED: SOLENOID TO OPEN, SPRING TO CLOSE; ENCLOSURE RATING: IP65; MEDIUM: GAS/LIQUID/OIL; POWER: 10 W; CURRENT: 22 A; DRAWING NO: M795-5E4971 REV 0; CAT NO: YS301GH27N9BC7"]
[648,"0668261","VALVE, SOLENOID: PIPE SIZE: 1 IN; STYLE: PLUNGER; POTENTIAL: 230 V; DESIGN RATING: 33 BAR; CONNECTION: THREADED; BODY MATERIAL: BRONZE; OPERATED: SOLENOID; ENCLOSURE RATING: NONE; MEDIUM: AIR; POWER: 16 W; CURRENT: 0.07 A; ORIFICE SIZE: 1 IN; APPLICATION: AUTO DRAIN"]
[649,"0694573","VALVE, SOLENOID: PIPE SIZE: 1 IN; STYLE: 1/1; POTENTIAL: 24 VDC; DESIGN RATING: 10 BAR; CONNECTION: FNPT; BODY MATERIAL: STAINLESS STEEL; OPERATED: COIL SOLENOID VALVE; ENCLOSURE RATING: IP65; MEDIUM: DIESEL; ORIFICE SIZE: 15-25 MM; COIL: SINGLE; SOFTGOODS: O RING; APPLICATION: DIESEL; MODEL NO 2W-160-15, BOTH VALVE PORT; SIZE 1 IN"]
[650,"0659669","VALVE, RELIEF: VALVE SIZE: 1 IN; SET PRESSURE: 0.025-0.08 BAR; TEMPERATURE RATING: -10 TO 100 DEG C; CONNECTION: 1 X 1-1/2 IN; BODY MATERIAL: DIE-CAST AL; TRIM: OT 58 UNI 2012 BRS; FACE TO FACE LENGTH: 90 DEG; OPERATED: SPRING-LOADED; ORIFICE SIZE: 32 MM; SPECIFICATION: ISO 9001; APPLICATION: VARIOUS; STYLE: ONE WAY; SOFTGOODS: BUNA-N; DESIGN RATING: 6 BAR; PRESSURE RANGE: 0-6 BAR; OEM P/N: V/50; TARTARINI"]
[651,"0623862","VALVE, CHECK: TYPE: FLOW CONTROL; VALVE SIZE: 1-1/4 IN; DESIGN RATING: 320 BAR; TEMPERATURE RATING: -20 TO 100 DEG C; CONNECTION: THD; BODY MATERIAL: STEEL; FACE TO FACE LENGTH: 134.5 MM; OPERATED: PRESSURE, 8 BAR; STYLE: 1 WAY; APPLICATION: SURGE CHAMBER HOIST; SPECIFICATION: EN 10083; OEM P/N: FT257/6 114 8 BAR"]
[652,"0637556","VALVE, CHECK: TYPE: NON RETURN; VALVE SIZE: 1-5/8 IN; DESIGN RATING: 10 BAR; TEMPERATURE RATING: 0-100 DEG C; CONNECTION: THD; BODY MATERIAL: STAINLESS STEEL; FACE TO FACE LENGTH: 118 MM; OPERATED: AIR; STYLE: 1 WAY; TRIM: STAINLESS STEEL; SOFTGOODS: STAINLESS STEEL; APPLICATION: COMPRESSOR; SPECIFICATION: V592; GRADE: 42/L; MANUF P/N: 036471; MODEL NO: WP6310; FOR USE ON JP SAUER AND SOHN COMPRESSOR."]
[653,"0637558","VALVE, CHECK: TYPE: NON RETURN; VALVE SIZE: DIN 50; DESIGN RATING: PN40; TEMPERATURE RATING: 0-100 DEG C; CONNECTION: THD FEMALE; BODY MATERIAL: STAINLESS STEEL; FACE TO FACE LENGTH: 150 MM; OPERATED: WATER; STYLE: 2 WAY; TRIM: STAINLESS STEEL; SOFTGOODS: STAINLESS STEEL; APPLICATION: COMPRESSOR; SPECIFICATION: CE0062; GRADE: 1.4408; REFERENCE NO: M410; END ARMATUREN"]
[654,"0628742","VALVE, CHECK: TYPE: NON RETURN; VALVE SIZE: DN 100; DESIGN RATING: PN40; TEMPERATURE RATING: -200 TO 550 DEG C; CONNECTION: FLANGE; BODY MATERIAL: CI 300; FACE TO FACE LENGTH: 60 MM; OPERATED: HAND; STYLE: 1 WAY; TRIM: STAINLESS STEEL; APPLICATION: VARIOUS; SPECIFICATION: (PED) 97/23/EC; GRADE: 1.4408; MANUF P/N: RK86A; WITH BODY CENTERING CAMS; FLOWSERVE"]
[655,"0637559","VALVE, CHECK: TYPE: NON RETURN; VALVE SIZE: DN 80; DESIGN RATING: PN100-160; TEMPERATURE RATING: 0-100 DEG C; CONNECTION: FLANGE; BODY MATERIAL: STAINLESS STEEL; FACE TO FACE LENGTH: 71 MM; OPERATED: WATER; STYLE: 1 WAY; TRIM: STAINLESS STEEL; SOFTGOODS: STAINLESS STEEL; APPLICATION: COMPRESSOR; SPECIFICATION: CE 0525 05.14; GRADE: 1.4404; MANUF P/N: SR30.160"]
[656,"0655829","VALVE, DIAPHRAGM: TYPE: WET PILOT ACTUATION; VALVE SIZE: 6 IN; DESIGN RATING: 250 PSI; TEMPERATURE RATING: -20 TO 200 DEG C; CONNECTION: FLANGED; BODY MATERIAL: CI; DIAPHRAGM MATERIAL: BUNA; FACE TO FACE LENGTH: 470 MM; OPERATED: PRESSURE; STYLE: 1 WAY; SOFTGOODS: BUNA; APPLICATION: SPRAY WATER; SPECIFICATION: ISO 9001; GRADE: 9YA4; MANUF P/N: DV506FS2"]
[657,"0657954","VALVE, FLAPPER: TYPE: CHECK; BORE DIAMETER: DN65; CONNECTION: FLANGE; MATERIAL: STAINLESS STEEL; APPLICATION: TURBINE; SPECIFICATION: ISO 9001; MANUF P/N: 5N546CL; PRESSURE RATING: PN100; MATERIAL GRADE: 1.4408"]
[658,"0657955","VALVE, FLAPPER: TYPE: CHECK; BORE DIAMETER: DN80; CONNECTION: FLANGE; MATERIAL: STAINLESS STEEL; APPLICATION: TURBINE; SPECIFICATION: ISO 9001; MANUF P/N: 4N602CL; PRESSURE RATING: PN160; MATERIAL GRADE: 1.4408"]
[659,"0620393","VALVE, GATE: VALVE SIZE: 100 MM; TYPE: ISOLATING; CONNECTION: FLANGE; FACE TO FACE LENGTH: 300 MM; BODY MATERIAL: SCS13; TRIM: SS GR 304; OPERATED: HANDWHEEL; STEM DESIGN: RISING; STYLE: 1 WAY; TEMPERATURE RATING: 20 K; APPLICATION: AIR COOLER; DESIGN RATING: JIS 20 K"]
[660,"0620394","VALVE, GATE: VALVE SIZE: 1-1/2 IN; TYPE: ISOLATING; CONNECTION: FLANGE; FACE TO FACE LENGTH: 160 MM; BODY MATERIAL: A105; TRIM: 13CR; OPERATED: HANDWHEEL; STEM DESIGN: RISING; STYLE: 1 WAY; TEMPERATURE RATING: 840 DEG F; APPLICATION: OIL LEVEL; DESIGN RATING: JIS 10K; ."]
[661,"0620397","VALVE, GATE: VALVE SIZE: 200 MM; TYPE: ISOLATING; CONNECTION: FLANGE; FACE TO FACE LENGTH: 450 MM; BODY MATERIAL: SCS13; TRIM: SS GR 304; OPERATED: CHAIN, HANDWHEEL; STEM DESIGN: RISING; STYLE: 1 WAY; TEMPERATURE RATING: 20K DEG F; APPLICATION: AIR COOLER; DESIGN RATING: JIS 20 K"]
[662,"0620398","VALVE, GATE: VALVE SIZE: 200 MM; TYPE: ISOLATING; DESIGN PRESSURE: JIS 20 K; DESIGN TEMPERATURE: 20 K; CONNECTION: FLANGE; FACE TO FACE LENGTH: 450 MM; BODY MATERIAL: SCS13; TRIM: SS GR 304; OPERATED: HANDWHEEL; STEM DESIGN: RISING; STYLE: 1 WAY; TEMPERATURE RATING: 20K DEG F; APPLICATION: OIL COOLER; DESIGN RATING: JIS 20K K"]
[663,"0620391","VALVE, GATE: VALVE SIZE: 250 MM; TYPE: ISOLATING; DESIGN PRESSURE: 2-2.8 MPA; DESIGN TEMPERATURE: 220-350 DEG C; CONNECTION: FLANGE; FACE TO FACE LENGTH: 455 MM; BODY MATERIAL: STAINLESS STEEL; TRIM: HF; OPERATED: ACTUATOR; STEM DESIGN: NON RISING; STYLE: 1 WAY; TEMPERATURE RATING: 20 K; PORT TYPE: STANDARD; APPLICATION: TURBINE; SPECIFICATION: ISO 9001; SPECIAL FEATURES: NONE; GRADE: 304; DESIGN RATING: JIS 20K"]
[664,"0655828","VALVE, DIAPHRAGM: TYPE: WET PILOT ACTUATION; VALVE SIZE: 4 IN; DESIGN RATING: 250 PSI; TEMPERATURE RATING: -20 TO 200 DEG C; CONNECTION: FLANGED; BODY MATERIAL: CI; DIAPHRAGM MATERIAL: BUNA; FACE TO FACE LENGTH: 400 MM; OPERATED: PRESSURE; STYLE: 1 WAY; SOFTGOODS: BUNA; APPLICATION: SPRAY WATER; SPECIFICATION: ISO 9001; GRADE: 9YA4; MANUF P/N: DV504FS2"]
[665,"0637405","VALVE, CHECK: TYPE: RIGHT ANGLE; VALVE SIZE: 3 IN; DESIGN RATING: 21 MPA; TEMPERATURE RATING: -15 TO 75 DEG C; CONNECTION: BOLTED; BODY MATERIAL: STL ALLOY; FACE TO FACE LENGTH: 72.5 X 87 MM; OPERATED: SPRING; MODEL NO: C2G-805-S3"]
[666,"0721178","VALVE, CHECK: TYPE: TL34; VALVE SIZE: 3 IN; DESIGN RATING: 2 BAR; TEMPERATURE RATING: -40-100 DEG C; CONNECTION: DN 80, 3 IN PIPE; BODY MATERIAL: ALSI7MG0.65T685HBS; FACE TO FACE LENGTH: 1.00 M; OPERATED: 250 VDC SUPPLY; TL34 CONSERVATOR SHUTTER VALVE; MAXIMUM SWITCHING, VOLTAGE 250 VDC; BODY MATERIAL: ALSI7MG0.6ST685 HBS; 3 IN; SIZE: DN80; SERGI (FRANCE)"]
[667,"0731175","VALVE, CHECK: TYPE: TL34; VALVE SIZE: DN80; DESIGN RATING: 2 BAR; TEMPERATURE RATING: -40 to 100 DEG C; CONNECTION: SIZE 0 GLAND; BODY MATERIAL: CAST IRON; FACE TO FACE LENGTH: 210.5 MM; OPERATED: 220VDC"]
[668,"0635725","VALVE, CHECK: TYPE: WAFER; VALVE SIZE: DN65; DESIGN RATING: 20 BAR; TEMPERATURE RATING: 0-120 DEG C; CONNECTION: FLANGE; BODY MATERIAL: GGG40; FACE TO FACE LENGTH: 46 MM; OPERATED: FLOW; STYLE: 1 WAY; TRIM: STAINLESS STEEL; SOFTGOODS: EPDM; APPLICATION: CHILLER; GRADE: 1.4401; MANUF P/N: 915S25/1/E; DUAL WAFER"]
[669,"0623867","VALVE, CHECK: TYPE: SUBPLATE; VALVE SIZE: NS10; DESIGN RATING: 350 BAR; TEMPERATURE RATING: -20 TO 80 DEG C; CONNECTION: FLANGE; BODY MATERIAL: CI; FACE TO FACE LENGTH: 50 MM; OPERATED: OIL PRESSURE; STYLE: 1/1; SOFTGOODS: FKM; APPLICATION: INTAKE HYDRAULIC POWER UNIT; SPECIFICATION: DIN 51524; OEM P/N: Z1S10B05-2-41/F, OEM: BOSCH REXROTH"]
[670,"0623870","VALVE, CHECK: TYPE: TWIN THROTTLE; VALVE SIZE: NS6; DESIGN RATING: 315 BAR; TEMPERATURE RATING: -20 TO 80 DEG C; CONNECTION: FLANGE; BODY MATERIAL: CI; FACE TO FACE LENGTH: 40 MM; OPERATED: OIL PRESSURE; SOFTGOODS: SEALS FKM; APPLICATION: INTAKE HYDRAULIC POWER UNIT; SPECIFICATION: DIN 51524; OEM P/N: Z2FS6-2-44/2QV, OEM: BOSCH REXROTH; ."]
[671,"0620183","VALVE, GLOBE: VALVE SIZE: 1/2 IN; DESIGN PRESSURE: 2.0 MPA; DESIGN TEMPERATURE: <100 DEG C; FACE TO FACE LENGTH: 150 MM; OPERATED: HANDWHEEL; CONNECTION: FLANGED; BODY MATERIAL: F304; TRIM: SS GR 304/STL; GRADE: ASTM A182 F304; SOFTGOODS: NEOPRENE; STEM DESIGN: RISING SPINDLE; STYLE: DIRECTIONAL; APPLICATION: DRAIN AIR/OIL COOLER; SPECIFICATION: ISO9001; TYPE: SHUT OFF; DESIGN RATING: JIS 20K; S AND S VALVE"]
[672,"0064665","VALVE, GLOBE: VALVE SIZE: 15 MM; OPERATED: MANUAL; CONNECTION: SW; BODY MATERIAL: CS; DESIGN RATING: 600 LB; MANUF P/N: SASSWJ0015BR"]
[673,"0620408","VALVE, GLOBE: VALVE SIZE: 2 IN; FACE TO FACE LENGTH: 200 MM; OPERATED: HANDWHEEL; CONNECTION: FLANGE; BODY MATERIAL: A105; TRIM: 13CR; STEM DESIGN: RISING; STYLE: 1 WAY; APPLICATION: DRAIN; TYPE: ISOLATING; DESIGN RATING: JIS 10K; TEMPERATURE RATING: 840 DEG F"]
[674,"0620407","VALVE, GLOBE: VALVE SIZE: 50 MM; FACE TO FACE LENGTH: 200 MM; OPERATED: HANDWHEEL; CONNECTION: FLANGE; BODY MATERIAL: SCS13; TRIM: SS GR 304; STEM DESIGN: RISING; STYLE: 1 WAY; APPLICATION: DRAIN; TYPE: ISOLATING; DESIGN RATING: JIS 20K; TEMPERATURE RATING: 20K"]
[675,"0620181","VALVE, GLOBE: VALVE SIZE: 1/2 IN; DESIGN PRESSURE: 1 TO 1.2 MPA; DESIGN TEMPERATURE: 220 TO 300 DEG C; FACE TO FACE LENGTH: 105 MM; OPERATED: HANDWHEEL; CONNECTION: FLANGED; BODY MATERIAL: A105; TRIM: STL 13CR; GRADE: ASTM A105; SOFTGOODS: NEOPRENE; STEM DESIGN: RISING SPINDLE; STYLE: DIRECTIONAL; APPLICATION: OIL DRAIN; SPECIFICATION: ISO 9001; TYPE: SHUT OFF; DESIGN RATING: JIS 10K; TEMPERATURE RATING: 100 DEG F; OEM P/N: SC-F10K-15A; S AND S VALVE"]
[676,"0620186","VALVE, GLOBE: VALVE SIZE: 1 IN; DESIGN PRESSURE: 1 TO 1.2 MPA; DESIGN TEMPERATURE: 220 TO 300 DEG C; FACE TO FACE LENGTH: 125 MM; OPERATED: HANDWHEEL; CONNECTION: FLANGED; BODY MATERIAL: A105; TRIM: 13CR/STL; GRADE: ASTM A105; SOFTGOODS: NEOPRENE; STEM DESIGN: RISING SPINDLE; STYLE: DIRECTIONAL; APPLICATION: DRAIN; SPECIFICATION: ISO 9001; TYPE: SHUT OFF; DESIGN RATING: JIS 10K; TEMPERATURE RATING: 840 DEG F; OEM P/N: SC-F10K-25A; S AND S VALVE"]
[677,"0623904","VALVE, RELIEF: VALVE SIZE: NS40; SET PRESSURE: ADJUSTABLE; TEMPERATURE RATING: -20 TO 80 DEG C; CONNECTION: FLANGE; BODY MATERIAL: CAST IRON; TRIM: CAST IRON; FACE TO FACE LENGTH: 100 MM; OPERATED: OIL PRESSURE; ORIFICE SIZE: DIA 1.18 MM; SPECIFICATION: DIN 24340; APPLICATION: DRAFT TUBE GATE HOIST; STYLE: 2 WAY; DESIGN RATING: 420 BAR; PRESSURE RANGE: 0-420 BAR; OEM P/N: LFA40H2-71/F, OEM: BOSCH REXROTH; TO BE SUPPLIED WITH VALVE CARTRIDGE LC 40 A05E7X R900937996"]
[678,"0623903","VALVE, RELIEF: VALVE SIZE: NS16; SET PRESSURE: ADJUSTABLE; TEMPERATURE RATING: -20 TO 80 DEG C; CONNECTION: FLANGE; BODY MATERIAL: CAST IRON; TRIM: CAST IRON; FACE TO FACE LENGTH: 35 MM; OPERATED: OIL PRESSURE; ORIFICE SIZE: DIA 0.669 MM; SPECIFICATION: DIN 24340; APPLICATION: DRAFT TUBE GATE HOIST; STYLE: 2 WAY; DESIGN RATING: 420 BAR; PRESSURE RANGE: 0-420 BAR; OEM P/N: LFA16H2-71/F, OEM: BOSCH REXROTH; TO BE SUPPLIED WITH VALVE CARTRIDGE LC 16 A05E7X R900912566"]
[679,"0655228","VALVE, RELIEF: VALVE SIZE: G1/2 IN; SET PRESSURE: 365 KPA; TEMPERATURE RATING: -10 TO 220 DEG C; CONNECTION: G1/2 IN; BODY MATERIAL: 1.4104 (430); TRIM: METAL; FACE TO FACE LENGTH: 46 MM; OPERATED: PRESSURE; ORIFICE SIZE: 10 MM; SPECIFICATION: DIN ISO 228-1; APPLICATION: VARIOUS; GRADE: 1.4104; STYLE: 1 WAY; SOFTGOODS: 1.4404; DESIGN RATING: PN160-400; PRESSURE RANGE: 180-365 BAR; MANUF P/N: 4373.2602; REFERENCE NO: D0 10-D/G 0.5 F 0.35; ."]
[680,"0639776","VALVE, RELIEF: VALVE SIZE: G1/2 IN; SET PRESSURE: 3 BAR; TEMPERATURE RATING: 0-20 DEG C; CONNECTION: G1/2 IN; BODY MATERIAL: SS GR 316L; TRIM: SS GR 316L; FACE TO FACE LENGTH: 90 DEG; OPERATED: PRESSURE; ORIFICE SIZE: 1/2 IN; APPLICATION: VARIOUS; GRADE: 1.4404; STYLE: 1 WAY; SOFTGOODS: STAINLESS STEEL; DESIGN RATING: INLET PN250; OUTLET PN160; PRESSURE RANGE: 0-250 BAR; REFERENCE NO: 4374.3144"]
[681,"0620399","VALVE, GATE: VALVE SIZE: 250 MM; TYPE: ISOLATING; CONNECTION: FLANGE; FACE TO FACE LENGTH: 450 MM; BODY MATERIAL: SCS13; TRIM: SS GR 304; OPERATED: CHAIN, HANDWHEEL; STEM DESIGN: RISING; STYLE: 1 WAY; TEMPERATURE RATING: 20K DEG F; APPLICATION: COOLER; DESIGN RATING: JIS 20K; ."]
[682,"0620395","VALVE, GATE: VALVE SIZE: 300 MM; TYPE: ISOLATING; CONNECTION: FLANGE; FACE TO FACE LENGTH: 500 MM; BODY MATERIAL: SCS13; TRIM: SS GR 304; OPERATED: CHAIN, HANDWHEEL; STEM DESIGN: RISING; STYLE: 1 WAY; TEMPERATURE RATING: 20K DEG F; APPLICATION: AIR COOLER; DESIGN RATING: JIS 20K; ."]
[683,"0620396","VALVE, GATE: VALVE SIZE: 300 MM; TYPE: ISOLATING; DESIGN PRESSURE: JIS 20 K; DESIGN TEMPERATURE: 20 K; CONNECTION: FLANGE; FACE TO FACE LENGTH: 500 MM; BODY MATERIAL: SCS13; TRIM: SS GR 304; OPERATED: HANDWHEEL; STEM DESIGN: RISING; STYLE: 1 WAY; TEMPERATURE RATING: 20K DEG F; APPLICATION: OIL COOLER; DESIGN RATING: JIS 20 K"]
[684,"0620392","VALVE, GATE: VALVE SIZE: 50 MM; TYPE: ISOLATING; CONNECTION: FLANGE; FACE TO FACE LENGTH: 213 MM; BODY MATERIAL: SCS13; TRIM: SS GR 304; OPERATED: HANDWHEEL; STEM DESIGN: RISING; STYLE: 1 WAY; TEMPERATURE RATING: 20K K; APPLICATION: UPPER OIL COOLER; DESIGN RATING: JIS 20K K"]
[685,"0628697","VALVE, RELIEF: VALVE SIZE: 3/4 IN; SET PRESSURE: 47.2 BAR; TEMPERATURE RATING: -10 TO 100 DEG C; CONNECTION: THREADED FEMALE; BODY MATERIAL: BRASS; TRIM: BRASS; FACE TO FACE LENGTH: 118 MM; OPERATED: PRESSURE; ORIFICE SIZE: 10 MM; SPECIFICATION: ISO 4126-1; APPLICATION: VARIOUS; STYLE: 1 WAY; SOFTGOODS: BRASS; DESIGN RATING: 150 BAR; PRESSURE RANGE: 42-25 BAR; MANUF P/N: H10N11787"]
[686,"0637561","VALVE, RELIEF: VALVE SIZE: DN 3/4 X 1 IN; SET PRESSURE: 53 BAR; TEMPERATURE RATING: -20 TO 200 DEG C; CONNECTION: THD; BODY MATERIAL: BRASS; TRIM: BRASS; FACE TO FACE LENGTH: L SHAPE; OPERATED: AIR; ORIFICE SIZE: 1/2 IN; SPECIFICATION: CE 0035 2011; APPLICATION: COMPRESSOR; GRADE: G14/S; STYLE: 1 WAY; SOFTGOODS: BRASS; MANUF P/N: CW614N"]
[687,"0655227","VALVE, RELIEF: VALVE SIZE: DN 1 X 1-1/4 IN; SET PRESSURE: 8 BAR; TEMPERATURE RATING: -20 TO 200 DEG C; CONNECTION: THD; BODY MATERIAL: BRZ; TRIM: BRZ; FACE TO FACE LENGTH: L SHAPE; OPERATED: PRESSURE; ORIFICE SIZE: 1/2 IN; SPECIFICATION: CE0036 2017; APPLICATION: COMPRESSOR; GRADE: G20/S; STYLE: 1 WAY; SOFTGOODS: BRZ; MANUF P/N: 017450016"]
[688,"0623863","VALVE, RELIEF: VALVE SIZE: NS10; SET PRESSURE: ADJUSTABLE; TEMPERATURE RATING: 100 DEG C; CONNECTION: FLANGE; BODY MATERIAL: CAST IRON; TRIM: CAST IRON; FACE TO FACE LENGTH: 30 MM; OPERATED: PILOT; ORIFICE SIZE: ADJUSTABLE; SPECIFICATION: 97/23/EC; APPLICATION: SURGE CHAMBER HOIST; STYLE: 1 WAY; SOFTGOODS: O-RING; DESIGN RATING: 200 BAR; PRESSURE RANGE: 0-200 BAR; OEM P/N: DBW10B2-52/300-6EG24N9K4, OEM: BOSCH REXROTH; WITH BUILT-ON DIRECTIONAL VALVE"]
[689,"0644952","VALVE, RELIEF: VALVE SIZE: 30 MM; SET PRESSURE: 100 BAR; TEMPERATURE RATING: -30 TO 80 DEG C; CONNECTION: SUBPLATE; BODY MATERIAL: STEEL; TRIM: METAL; FACE TO FACE LENGTH: 80 MM; OPERATED: PRESSURE; ORIFICE SIZE: 15 MM; SPECIFICATION: ISO 9001; APPLICATION: VARIOUS; GRADE: 913000149; STYLE: 1 WAY; SOFTGOODS: NBR; DESIGN RATING: 25-400 BAR; PRESSURE RANGE: 0-350 BAR; MANUF P/N: R900423712; MODEL NO: DBDS 30 P1A/100"]
[690,"0068148","VALVE, RELIEF: VALVE SIZE: 50 MM; SET PRESSURE: 35 KPA; CONNECTION: THD; BODY MATERIAL: STL; TRIM: BRASS; OPERATED: SPRING; PRESSURE RANGE: 2-20 LB; REFERENCE NO: MD0014; SAFETY; TYPE 616-2; TYPE: HLP"]
[691,"0619974","VALVE, RELIEF: VALVE SIZE: 1/2 IN; SET PRESSURE: 1.5 MPA; TEMPERATURE RATING: 120 DEG C; CONNECTION: BSP SCREW; BODY MATERIAL: STEEL; TRIM: STEEL; FACE TO FACE LENGTH: T-TYPE; OPERATED: PRESSURE; APPLICATION: PRESSURE REDUCER; DESIGN RATING: 1.5 MPA; PRESSURE RANGE: 1.3-1.5 MPA; REFERENCE NO: ESV-903M"]
[692,"0623857","VALVE, RELIEF: VALVE SIZE: 1 IN; SET PRESSURE: 94 BAR; TEMPERATURE RATING: 100 DEG C; CONNECTION: FLANGE; BODY MATERIAL: CAST IRON; TRIM: CAST IRON; FACE TO FACE LENGTH: 26 MM; OPERATED: PILOT; ORIFICE SIZE: ADJUSTABLE; SPECIFICATION: ANSI B16.10; APPLICATION: SURGE CHAMBER HOIST; STYLE: 3/2; SOFTGOODS: O-RING; DESIGN RATING: 315 BAR; PRESSURE RANGE: 0-315 BAR; OEM P/N: DB20-2-52/315, OEM: BOSCH REXROTH"]
[693,"0660516","VALVE, PILOT: VALVE STYLE: 1 WAY; VALVE SIZE: 6 MM; MATERIAL: STL; OEM P/N: GPFX730094P0001, OEM: ABB POWER GENERATION (PTY) LTD; MODEL NO: HECPS-3S/5S; 220-250 VDC; FOR USE ON GEN CIRCUIT BREAKER; VENDORS ARE RESPONSIBLE FOR ENSURING THAT THEY ARE PERFORMING AGAINST THE CORRECT DRAWING REVISION NUMBER (IF APPLICABLE)."]
[694,"0659664","VALVE, RELIEF: VALVE SIZE: 8 MM; SET PRESSURE: 11 BAR; TEMPERATURE RATING: -20 TO 200 DEG C; CONNECTION: R1/2 IN; BODY MATERIAL: BRASS; TRIM: STEEL; FACE TO FACE LENGTH: CASCADE; OPERATED: PRESSURE; ORIFICE SIZE: 6 MM; SPECIFICATION: EN 4126-1; APPLICATION: VARIOUS; STYLE: ONE WAY; SOFTGOODS: BRASS; DESIGN RATING: 15 BAR; PRESSURE RANGE: 0.73-15 BAR; OEM P/N: 03/16-08711; BOGE COMPRESSED AIR SYSTEMS"]
[695,"0637560","VALVE, RELIEF: VALVE SIZE: 1 IN; SET PRESSURE: 88 BAR; TEMPERATURE RATING: 0-50 DEG C; CONNECTION: G1 IN-BSPP; BODY MATERIAL: STAINLESS STEEL; TRIM: STAINLESS STEEL; FACE TO FACE LENGTH: L SHAPE; OPERATED: AIR; ORIFICE SIZE: 1 IN; SPECIFICATION: GL1238640; APPLICATION: COMPRESSOR; GRADE: 316; STYLE: 1 WAY; SOFTGOODS: STAINLESS STEEL; DESIGN RATING: 88 BAR G; PRESSURE RANGE: IN PN 250; OUT PN 40; MANUF P/N: M33H03X00V56V66J23H01"]
[696,"0617883","VALVE, RELIEF: VALVE SIZE: 1/2 IN; SET PRESSURE: 2.1 MPA; TEMPERATURE RATING: 220 DEG C; CONNECTION: 1/2 IN-BSP; BODY MATERIAL: STEEL; TRIM: VARIOUS; FACE TO FACE LENGTH: 110 MM; OPERATED: PRESSURE; APPLICATION: AIR LINES; DESIGN RATING: 2.1 MPA; PRESSURE RANGE: 0-2.1 MPA; DRAWING NO: M705-5A7443A REV 0"]
[697,"0637562","VALVE, RELIEF: VALVE SIZE: 1/2 IN; SET PRESSURE: 3 BAR; TEMPERATURE RATING: 0-20 DEG C; CONNECTION: THD 1/2 IN; BODY MATERIAL: STAINLESS STEEL; TRIM: STAINLESS STEEL; FACE TO FACE LENGTH: L SHAPE; OPERATED: AIR; ORIFICE SIZE: 1 IN; SPECIFICATION: 14/980; APPLICATION: COMPRESSOR; GRADE: 316; STYLE: 1 WAY; SOFTGOODS: STAINLESS STEEL; DESIGN RATING: 3 BAR; PRESSURE RANGE: IN PN 250; OUT PN 160; MANUF P/N: M33H03X00V54V65; ."]
[698,"0644950","VALVE, RELIEF: VALVE SIZE: 10 MM; SET PRESSURE: 130 BAR; TEMPERATURE RATING: -30 TO 80 DEG C; CONNECTION: THREADED; BODY MATERIAL: STEEL; TRIM: METAL; FACE TO FACE LENGTH: 80 MM; OPERATED: PRESSURE; ORIFICE SIZE: 5 MM; SPECIFICATION: ISO 9001; APPLICATION: VARIOUS; GRADE: 913000149; STYLE: 1 WAY; SOFTGOODS: NBR; DESIGN RATING: 25-400 BAR; PRESSURE RANGE: 0-630 BAR; MANUF P/N: R900778044; MODEL NO: DBDS 10 G19/130E"]
[699,"0644949","VALVE, RELIEF: VALVE SIZE: 10 MM; SET PRESSURE: 65 BAR; TEMPERATURE RATING: -30 TO 80 DEG C; CONNECTION: THREADED; BODY MATERIAL: STEEL; TRIM: METAL; FACE TO FACE LENGTH: 80 MM; OPERATED: PRESSURE; ORIFICE SIZE: 5 MM; SPECIFICATION: ISO 9001; APPLICATION: VARIOUS; GRADE: 913000149; STYLE: 1 WAY; SOFTGOODS: NBR; DESIGN RATING: 25-400 BAR; PRESSURE RANGE: 0-630 BAR; MANUF P/N: R901260712; MODEL NO: DBDS 10 G19/65E"]
[700,"0644951","VALVE, RELIEF: VALVE SIZE: 30 MM; SET PRESSURE: 130 BAR; TEMPERATURE RATING: -30 TO 80 DEG C; CONNECTION: SUBPLATE; BODY MATERIAL: STEEL; TRIM: METAL; FACE TO FACE LENGTH: 80 MM; OPERATED: PRESSURE; ORIFICE SIZE: 15 MM; SPECIFICATION: ISO 9001; APPLICATION: VARIOUS; GRADE: 913000149; STYLE: 1 WAY; SOFTGOODS: NBR; DESIGN RATING: 25-400 BAR; PRESSURE RANGE: 0-350 BAR; MANUF P/N: R901341824; MODEL NO: DBDS 30 G1A/130E"]
[701,"0644953","VALVE, RELIEF: VALVE SIZE: 20 MM; SET PRESSURE: 100 BAR; TEMPERATURE RATING: -30 TO 80 DEG C; CONNECTION: SUBPLATE; BODY MATERIAL: STEEL; TRIM: METAL; FACE TO FACE LENGTH: NIL; OPERATED: PRESSURE; ORIFICE SIZE: 10 MM; SPECIFICATION: ISO 9001; APPLICATION: VARIOUS; GRADE: 913000149; STYLE: 1 WAY; SOFTGOODS: NBR; DESIGN RATING: 25-400 BAR; PRESSURE RANGE: 10-350 BAR; MANUF P/N: R900597283; MODEL NO: DR 20-5-52/100YM"]
[702,"0637402","VALVE, RELIEF: VALVE SIZE: 3 IN; SET PRESSURE: 25 MPA; TEMPERATURE RATING: -15 TO 75 DEG C; CONNECTION: THD; BODY MATERIAL: STL CAST; TRIM: BONNET CS; FACE TO FACE LENGTH: 150.5 X 90 MM; OPERATED: PILOT; MODEL NO: BT-03-32"]
[703,"0783932","VALVE, BUTTERFLY: TYPE: VALVE BUTTERFLY; VALVE SIZE: DN 80 MM; DESIGN RATING: PN16 BAR; TEMPERATURE RATING: 95; CONNECTION: RUBBER SEALING; BODY MATERIAL: GG-25; FACE TO FACE LENGTH: 46 MM; OPERATED: ACTUATOR"]
[704,"0783504","VALVE, GLOBE: VALVE SIZE: 100 MM; DESIGN PRESSURE: 16 BAR; DESIGN TEMPERATURE: 400 DEG; FACE TO FACE LENGTH: 230 MM; OPERATED: MANUAL; CONNECTION: FLANGED DRILLED TO BS4504 T16; BODY MATERIAL: STAINLESS STEEL; TRIM: STAINLESS STEEL; MANUF P/N: GMK-GV-DN100-PN16-F2-WCB; TGB COOLER CW INLET & OUTLET VALVE, METAL VALVES(GMK), DIN3356, PRESSURE TEST AND MATERIAL PROPERTIES CERTIFICATES TO BE SUPPLIED ON DELIVERY."]
[705,"0783650","VALVE: TYPE: BELLOWS SEAL GLOBE; VALVE SIZE: 1/2 IN; DESIGN RATING: 30 KGF/CM2; TEMPERATURE RATING: -30 to 120 DEG C; FACE TO FACE LENGTH: 58 MM; CONNECTION: THREADED FEMALE ENDS; OPERATED: HANDWHEEL; BODY MATERIAL: BRASS; MANUF P/N: NBV1003; BRAKE AIR COMPRESSOR ,PRESSURE TESTING AND MATERIAL CERTIFICATES TO BE SUPPLIED UPON DELIVERY"]
[706,"0774960","KIT: TYPE: PRESSURE RELIEF VALVES; APPLICATION: STANDBY DIESEL GENERAOTR; COMPRISING: PRESSURE RELIEF VALVE (15 BAR, 6-OFF);GROUP 015 TABLE 2/277-1;PART NUMBER:550 180 10 15,PRESSURE RELIEF VALVE (3-OFF);GROUP 016 TABLE 1/589-1;PART NUMBER:550 180 12 15."]
[707,"0783663","VALVE, CHECK: TYPE: NON RETURN; VALVE SIZE: 20 MM; DESIGN RATING: 16 BAR; TEMPERATURE RATING: -10 TO 120 DEG C; CONNECTION: SCREWED TO BSP TREADED FEMALE; BODY MATERIAL: BRONZE; FACE TO FACE LENGTH: 52 MM; OPERATED: SPRING; WATER TREATMENT PLANT, 2270 BRONZE, C/W RESILIENT SEAT, THREADED FEMALE, SUPPLIER TO SUPPLY WITH THE PRESSURE TEST AND MATERIAL PROPERTIES CERTIFICATES."]
[708,"0783420","VALVE, GATE: VALVE SIZE: 250 MM; TYPE: GATE VALVE; DESIGN PRESSURE: 10 BAR; DESIGN TEMPERATURE: -29 TO 420 DEG C; CONNECTION: FLANGE DRILLED TO JIS 10K50; FACE TO FACE LENGTH: 332 MM; BODY MATERIAL: WCB; TRIM: TRIM 8; OPERATED: MANUAL; DUPLEX INLET AND OUTLET VALVE, DRILLED TO JIS10K250, RISING STEM, BA-OOP, WORN&WHEEL GEAR, STEM HANDWHEEL WITH POSITION INDICATOR, PRESSURE TEST AND MATERIAL PROPERTIES CERTIFICATE ON DELIVERY."]
[709,"0692548","VALVE, CHECK: TYPE: SWING DISK NRV; VALVE SIZE: 1 IN; DESIGN RATING: 300 LB; TEMPERATURE RATING: 38 DEG C; CONNECTION: FNPT; BODY MATERIAL: SS FORGED STEEL; FACE TO FACE LENGTH: 216 MM; OPERATED: AUTO; STYLE: THD BONNET; TRIM: BRASS; SOFTGOODS: SEAL NBR, BACK UP RING PTFE; APPLICATION: PREVENT BACKFLOW; SPECIFICATION: LB (ASA); GRADE: ANSI-300; FLANGED ENDS TO ANSI-300 LB (ASA)"]
[710,"0783648","VALVE, GLOBE: VALVE SIZE: 25 MM; DESIGN PRESSURE: 10 BAR; DESIGN TEMPERATURE: 120 DEG C; FACE TO FACE LENGTH: 127 MM; OPERATED: MANUAL; CONNECTION: FLANGED DRILLED TO JIS 10K; BODY MATERIAL: WCB; TRIM: 8; STEM DESIGN: NON RISING STEM; 10K25 ,UGB OIL COOLER ISOLATING VALVE, PRESSURE TESTING AND MATERIAL CERTIFICATES TO BE SUPPLIED UPON DELIVERY"]
[711,"0783662","VALVE, CHECK: TYPE: WAFER; VALVE SIZE: 150 MM; DESIGN RATING: 16 BAR; TEMPERATURE RATING: 5 to 40 DEG C; CONNECTION: NO FLANGE; BODY MATERIAL: CAST IRON; FACE TO FACE LENGTH: 76 MM; OPERATED: AUTOMATIC; STYLE: WAFER; TRIM: COPON COATED; SOFTGOODS: EPDM; MANUF P/N: FIG 316; SEEPAGE PUMP DISCHARGE VALVE, WAFER TYPE, EPDM DIAPHRAGM, COPEN LINED, RIENZI, SUPPLIER TO SUPPLY WITH THE PRESSURE TEST AND MATERIAL PROPERTIES CERTIFICATES."]
[712,"0783651","VALVE, GLOBE: VALVE SIZE: 50 MM; DESIGN PRESSURE: 16 BAR; DESIGN TEMPERATURE: -120 to 200 DEG C; FACE TO FACE LENGTH: 225 MM; OPERATED: MANUAL; CONNECTION: FLANGED DRUILLED TO JIS 10K RAISED FACE; BODY MATERIAL: GG25; TRIM: 2; SPECIFICATION: NON RISING STEM; PT UPPER TANK , BODY AND SEAL PRESSURE TEST CERTIFICATES AND MATERIAL CERTIFICATES TO BE SUPPLIED UPON DELIVERY"]
[713,"0783429","VALVE, CHECK: TYPE: SWING; VALVE SIZE: 50 MM; DESIGN RATING: 76 BAR; TEMPERATURE RATING: 538 DEG C; CONNECTION: FLANGED , DRILLED TO EN1092-1 PN 40; BODY MATERIAL: 316 SS; FACE TO FACE LENGTH: 265 MM; OPERATED: PRESSURE OPEN/CLOSE; SPECIFICATION: CLASS 300; NEWAY , BS1868,LABYRINTH COOLING WATER SYSTEM , PRESSURE TESTING AND MATERIAL CERTIFICATES TO BE SUPPLIED UPON DELIVERY."]
[714,"0783504","VALVE, GLOBE: VALVE SIZE: 100 MM; DESIGN PRESSURE: 16 BAR; DESIGN TEMPERATURE: 400 DEG; FACE TO FACE LENGTH: 230 MM; OPERATED: MANUAL; CONNECTION: FLANGED DRILLED TO BS4504 T16; BODY MATERIAL: STAINLESS STEEL; TRIM: STAINLESS STEEL; MANUF P/N: GMK-GV-DN100-PN16-F2-WCB; TGB COOLER CW INLET & OUTLET VALVE, METAL VALVES(GMK), DIN3356, PRESSURE TEST AND MATERIAL PROPERTIES CERTIFICATES TO BE SUPPLIED ON DELIVERY."]
[715,"0783652","VALVE, GATE: VALVE SIZE: 250 MM; TYPE: SOLID WEDGE; DESIGN PRESSURE: 10 BAR; DESIGN TEMPERATURE: 120 DEG C; CONNECTION: FLANGED DRILLED TO JIS 10K; FACE TO FACE LENGTH: 329 MM; BODY MATERIAL: WCB; TRIM: 8; OPERATED: MANUAL - HANDWHEEL; STEM DESIGN: RISING STEM; APPLICATION: GEN COOLER CW ISOLATE; SPECIFICATION: 10K250; MANUF P/N: BA-00P; LIMITORQUE , HANDWHEEL ACTUATOR WORM AND GEAR SYSTEM.PRESSURE TESTING AND MATERIAL CERTIFICATES TO BE SUPPLIED UPON DELIVERY"]
[716,"0783647","VALVE, GATE: VALVE SIZE: 80 MM; TYPE: SOLID WEDGE; DESIGN PRESSURE: 10 BAR; DESIGN TEMPERATURE: 120 DEG C; CONNECTION: FLANGED DRILLED TO JIS 10K; FACE TO FACE LENGTH: 200 MM; BODY MATERIAL: WCB; TRIM: 8; OPERATED: HANDWHEEL MANUAL OPERATED; STEM DESIGN: RISING STEM; UPPER GUIDE BEARING OIL ISOLATE,PRESSURE TESTING AND MATERIAL CERTIFICATES TO BE SUPPLIED UPON DELIVERY"]
[717,"0784003","VALVE, RELIEF: VALVE SIZE: 1 IN; SET PRESSURE: 600 KPA G; TEMPERATURE RATING: -20 TO -260 DEG C; CONNECTION: THREADED 1G MALE INLET 1G FEMALE OUTLET; BODY MATERIAL: BRASS; TRIM: STAINLESS/BRONZE; FACE TO FACE LENGTH: 44 MM; OPERATED: PRESSURE SPRING RELEASE; APPLICATION: FIRE PUMP RELIEF VALVES; STYLE: RIGHT ANGLED SAFETY VALVE; TYPE 485 BAILEY BIRKETT, PRESSURE SET TO 600KPA , PRESSURE TESTING AND MATERIAL CERTIFICATES TO BE SUPPLIED UPON DELIVERY."]
[718,"0784000","VALVE, BUTTERFLY: TYPE: WAFER; VALVE SIZE: 6 IN; DESIGN RATING: 20.7 BAR; TEMPERATURE RATING: 100 DEG C; CONNECTION: CLAMPED; BODY MATERIAL: DUCTILE IRON; FACE TO FACE LENGTH: 61 MM; OPERATED: HANDWHEEL AND GEAR ACTUATED; TRIM: NYLON-RILSON FIRE POWDERS (PA11)BLACK; SOFTGOODS: EPDM ENCAPSULATED; APPLICATION: FIRE WATER SYSTEM TEST VALVE; SPECIAL FEATURES: UL & FM APPROVED CE CERTIFIED; MANUF P/N: BFV 300; TYCO"]
[719,"0784005","VALVE, GATE: VALVE SIZE: 200 MM; TYPE: SOLID WEDGE; DESIGN PRESSURE: 16 BAR; DESIGN TEMPERATURE: 5 TO 40 DEG C; CONNECTION: FLANGED DRILLED TO BS4504 T16; FACE TO FACE LENGTH: 317 MM; BODY MATERIAL: SPHEROIDAL GRAPHITE IRON; TRIM: 8; OPERATED: MANUAL HANDWHEEL; APPLICATION: FIRE RESERVOIR INLET; SPECIAL FEATURES: RESILIENT SEAT VALVE; PRESSURE TESTING AND MATERIAL CERTIFICATES TO BE SUPPLIED UPON DELIVERY"]
[720,"0784002","VALVE, GATE: VALVE SIZE: 250 MM; TYPE: SOLID WEDGE; DESIGN PRESSURE: 16 BAR; DESIGN TEMPERATURE: 5 TO 40 DEG C; CONNECTION: FLANGED DRILLED TO BS4504 T16; FACE TO FACE LENGTH: 380 MM; BODY MATERIAL: SPHEROIDAL GRAPHITE IRON; TRIM: 8; OPERATED: MANUAL HANDWHEEL; APPLICATION: FIRE PUMP INLET AND OUTLET; SPECIAL FEATURES: RESILIENT SEAT VALVE; PRESSURE TESTING AND MATERIAL CERTIFICATES TO BE SUPPLIED UPON DELIVERY,AINSWORTH"]
[721,"0784001","VALVE, GATE: VALVE SIZE: 2 IN; TYPE: SOLID WEDGE; DESIGN PRESSURE: 20 BAR; DESIGN TEMPERATURE: -20 to 200 DEG C; CONNECTION: THREADED FEMALE BOTH ENDS BSPP; FACE TO FACE LENGTH: 74 MM; BODY MATERIAL: BRASS ALLOY; TRIM: BRASS; OPERATED: HAND WHEEL OPERATED; APPLICATION: JOCKEY FIRE PUMP ISOLATING VALVE; PRESSURE TESTING AND MATERIAL CERTIFICATES TO BE SUPPLIED UPON DELIVERY"]
[722,"0784004","VALVE, CHECK: TYPE: SPRING; VALVE SIZE: 50 MM; DESIGN RATING: 18 BAR; TEMPERATURE RATING: -20 to 200 DEG C; CONNECTION: THREADED BSPP FEMALE BOTH ENDS; BODY MATERIAL: BRASS ALLOY; FACE TO FACE LENGTH: 101 MM; OPERATED: PRESSURE OPERATED; APPLICATION: JOCKEY FIRE PUMP NRV; MANUF P/N: ITAP 21-2; EUROPA , PRESSURE TESTING AND MATERIAL CERTIFICATES TO BE SUPPLIED UPON DELIVERY"]
[null,"📌 NOTE: These descriptions are provided for reference. Please verify specifications against the NEC Schedule and ITT documents."]

{"sheet":"Foreign Currency Schedule","index":3,"n_rows":72,"n_cols":12,"rows_kept":72,"merged":[[0,0,0,11],[1,0,1,11],[2,0,2,11],[4,0,4,11],[5,0,5,11],[6,0,6,11],[7,0,7,11],[61,0,61,3],[65,0,65,3],[66,0,66,3],[67,0,67,3],[68,0,68,3],[71,0,71,11]]}
["ESKOM HOLDINGS SOC LTD"]
["FOREIGN CURRENCY SCHEDULE - ITT Annexure F Compliance"]
["Tender Enquiry No: E2979GXPOU - Supply and delivery of various valves and valve components for Peaking Power Stations"]
[]
["INSTRUCTIONS:"]
["1. Complete this schedule ONLY if you have foreign currency components in your pricing."]
["2. Select Item Number from dropdown in Column A. Material and Short Text will auto-populate."]
["3. Total ZAR (Col K) MUST match Unit Price (ZAR) on main Price Schedule. Refer to ITT Annexure F - importers cannot claim profit."]
[]
["Item Number","Material","Short Text","Foreign Amount","Currency","Exchange Rate","ZAR Equivalent","Handling (ZAR)","Duties (ZAR)","Freight (ZAR)","Total ZAR","Notes"]
[null,{"$f":"IF(A11=\"\",\"\",VLOOKUP(A11,'Price Schedule C2.2 - Valves'!$A$12:$C$733,2,FALSE))","v":""},{"$f":"IF(A11=\"\",\"\",VLOOKUP(A11,'Price Schedule C2.2 - Valves'!$A$12:$C$733,3,FALSE))","v":""},{"$nulls":3},{"$f":"IF(OR(D11=\"\",F11=\"\"),\"\",D11*F11)","v":""},{"$nulls":3},{"$f":"IF(G11=\"\",\"\",G11+IF(H11=\"\",0,H11)+IF(I11=\"\",0,I11)+IF(J11=\"\",0,J11))","v":""}]
[null,{"$f":"IF(A12=\"\",\"\",VLOOKUP(A12,'Price Schedule C2.2 - Valves'!$A$12:$C$733,2,FALSE))","v":""},{"$f":"IF(A12=\"\",\"\",VLOOKUP(A12,'Price Schedule C2.2 - Valves'!$A$12:$C$733,3,FALSE))","v":""},{"$nulls":3},"",{"$nulls":3},""]
[null,{"$f":"IF(A13=\"\",\"\",VLOOKUP(A13,'Price Schedule C2.2 - Valves'!$A$12:$C$733,2,FALSE))","v":""},{"$f":"IF(A13=\"\",\"\",VLOOKUP(A13,'Price Schedule C2.2 - Valves'!$A$12:$C$733,3,FALSE))","v":""},{"$nulls":3},"",{"$nulls":3},""]
[null,{"$f":"IF(A14=\"\",\"\",VLOOKUP(A14,'Price Schedule C2.2 - Valves'!$A$12:$C$733,2,FALSE))","v":""},{"$f":"IF(A14=\"\",\"\",VLOOKUP(A14,'Price Schedule C2.2 - Valves'!$A$12:$C$733,3,FALSE))","v":""},{"$nulls":3},"",{"$nulls":3},""]
[null,{"$f":"IF(A15=\"\",\"\",VLOOKUP(A15,'Price Schedule C2.2 - Valves'!$A$12:$C$733,2,FALSE))","v":""},{"$f":"IF(A15=\"\",\"\",VLOOKUP(A15,'Price Schedule C2.2 - Valves'!$A$12:$C$733,3,FALSE))","v":""},{"$nulls":3},"",{"$nulls":3},""]
[null,{"$f":"IF(A16=\"\",\"\",VLOOKUP(A16,'Price Schedule C2.2 - Valves'!$A$12:$C$733,2,FALSE))","v":""},{"$f":"IF(A16=\"\",\"\",VLOOKUP(A16,'Price Schedule C2.2 - Valves'!$A$12:$C$733,3,FALSE))","v":""},{"$nulls":3},"",{"$nulls":3},""]
[null,{"$f":"IF(A17=\"\",\"\",VLOOKUP(A17,'Price Schedule C2.2 - Valves'!$A$12:$C$733,2,FALSE))","v":""},{"$f":"IF(A17=\"\",\"\",VLOOKUP(A17,'Price Schedule C2.2 - Valves'!$A$12:$C$733,3,FALSE))","v":""},{"$nulls":3},"",{"$nulls":3},""]
[null,{"$f":"IF(A18=\"\",\"\",VLOOKUP(A18,'Price Schedule C2.2 - Valves'!$A$12:$C$733,2,FALSE))","v":""},{"$f":"IF(A18=\"\",\"\",VLOOKUP(A18,'Price Schedule C2.2 - Valves'!$A$12:$C$733,3,FALSE))","v":""},{"$nulls":3},"",{"$nulls":3},""]
[null,{"$f":"IF(A19=\"\",\"\",VLOOKUP(A19,'Price Schedule C2.2 - Valves'!$A$12:$C$733,2,FALSE))","v":""},{"$f":"IF(A19=\"\",\"\",VLOOKUP(A19,'Price Schedule C2.2 - Valves'!$A$12:$C$733,3,FALSE))","v":""},{"$nulls":3},"",{"$nulls":3},""]
[null,{"$f":"IF(A20=\"\",\"\",VLOOKUP(A20,'Price Schedule C2.2 - Valves'!$A$12:$C$733,2,FALSE))","v":""},{"$f":"IF(A20=\"\",\"\",VLOOKUP(A20,'Price Schedule C2.2 - Valves'!$A$12:$C$733,3,FALSE))","v":""},{"$nulls":3},"",{"$nulls":3},""]
[null,{"$f":"IF(A21=\"\",\"\",VLOOKUP(A21,'Price Schedule C2.2 - Valves'!$A$12:$C$733,2,FALSE))","v":""},{"$f":"IF(A21=\"\",\"\",VLOOKUP(A21,'Price Schedule C2.2 - Valves'!$A$12:$C$733,3,FALSE))","v":""},{"$nulls":3},"",{"$nulls":3},""]
[null,{"$f":"IF(A22=\"\",\"\",VLOOKUP(A22,'Price Schedule C2.2 - Valves'!$A$12:$C$733,2,FALSE))","v":""},{"$f":"IF(A22=\"\",\"\",VLOOKUP(A22,'Price Schedule C2.2 - Valves'!$A$12:$C$733,3,FALSE))","v":""},{"$nulls":3},"",{"$nulls":3},""]
[null,{"$f":"IF(A23=\"\",\"\",VLOOKUP(A23,'Price Schedule C2.2 - Valves'!$A$12:$C$733,2,FALSE))","v":""},{"$f":"IF(A23=\"\",\"\",VLOOKUP(A23,'Price Schedule C2.2 - Valves'!$A$12:$C$733,3,FALSE))","v":""},{"$nulls":3},"",{"$nulls":3},""]
[null,{"$f":"IF(A24=\"\",\"\",VLOOKUP(A24,'Price Schedule C2.2 - Valves'!$A$12:$C$733,2,FALSE))","v":""},{"$f":"IF(A24=\"\",\"\",VLOOKUP(A24,'Price Schedule C2.2 - Valves'!$A$12:$C$733,3,FALSE))","v":""},{"$nulls":3},"",{"$nulls":3},""]
[null,{"$f":"IF(A25=\"\",\"\",VLOOKUP(A25,'Price Schedule C2.2 - Valves'!$A$12:$C$733,2,FALSE))","v":""},{"$f":"IF(A25=\"\",\"\",VLOOKUP(A25,'Price Schedule C2.2 - Valves'!$A$12:$C$733,3,FALSE))","v":""},{"$nulls":3},"",{"$nulls":3},""]
[null,{"$f":"IF(A26=\"\",\"\",VLOOKUP(A26,'Price Schedule C2.2 - Valves'!$A$12:$C$733,2,FALSE))","v":""},{"$f":"IF(A26=\"\",\"\",VLOOKUP(A26,'Price Schedule C2.2 - Valves'!$A$12:$C$733,3,FALSE))","v":""},{"$nulls":3},"",{"$nulls":3},""]
[null,{"$f":"IF(A27=\"\",\"\",VLOOKUP(A27,'Price Schedule C2.2 - Valves'!$A$12:$C$733,2,FALSE))","v":""},{"$f":"IF(A27=\"\",\"\",VLOOKUP(A27,'Price Schedule C2.2 - Valves'!$A$12:$C$733,3,FALSE))","v":""},{"$nulls":3},"",{"$nulls":3},""]
[null,{"$f":"IF(A28=\"\",\"\",VLOOKUP(A28,'Price Schedule C2.2 - Valves'!$A$12:$C$733,2,FALSE))","v":""},{"$f":"IF(A28=\"\",\"\",VLOOKUP(A28,'Price Schedule C2.2 - Valves'!$A$12:$C$733,3,FALSE))","v":""},{"$nulls":3},"",{"$nulls":3},""]
[null,{"$f":"IF(A29=\"\",\"\",VLOOKUP(A29,'Price Schedule C2.2 - Valves'!$A$12:$C$733,2,FALSE))","v":""},{"$f":"IF(A29=\"\",\"\",VLOOKUP(A29,'Price Schedule C2.2 - Valves'!$A$12:$C$733,3,FALSE))","v":""},{"$nulls":3},"",{"$nulls":3},""]
[null,{"$f":"IF(A30=\"\",\"\",VLOOKUP(A30,'Price Schedule C2.2 - Valves'!$A$12:$C$733,2,FALSE))","v":""},{"$f":"IF(A30=\"\",\"\",VLOOKUP(A30,'Price Schedule C2.2 - Valves'!$A$12:$C$733,3,FALSE))","v":""},{"$nulls":3},"",{"$nulls":3},""]
[null,{"$f":"IF(A31=\"\",\"\",VLOOKUP(A31,'Price Schedule C2.2 - Valves'!$A$12:$C$733,2,FALSE))","v":""},{"$f":"IF(A31=\"\",\"\",VLOOKUP(A31,'Price Schedule C2.2 - Valves'!$A$12:$C$733,3,FALSE))","v":""},{"$nulls":3},"",{"$nulls":3},""]
[null,{"$f":"IF(A32=\"\",\"\",VLOOKUP(A32,'Price Schedule C2.2 - Valves'!$A$12:$C$733,2,FALSE))","v":""},{"$f":"IF(A32=\"\",\"\",VLOOKUP(A32,'Price Schedule C2.2 - Valves'!$A$12:$C$733,3,FALSE))","v":""},{"$nulls":3},"",{"$nulls":3},""]
[null,{"$f":"IF(A33=\"\",\"\",VLOOKUP(A33,'Price Schedule C2.2 - Valves'!$A$12:$C$733,2,FALSE))","v":""},{"$f":"IF(A33=\"\",\"\",VLOOKUP(A33,'Price Schedule C2.2 - Valves'!$A$12:$C$733,3,FALSE))","v":""},{"$nulls":3},"",{"$nulls":3},""]
[null,{"$f":"IF(A34=\"\",\"\",VLOOKUP(A34,'Price Schedule C2.2 - Valves'!$A$12:$C$733,2,FALSE))","v":""},{"$f":"IF(A34=\"\",\"\",VLOOKUP(A34,'Price Schedule C2.2 - Valves'!$A$12:$C$733,3,FALSE))","v":""},{"$nulls":3},"",{"$nulls":3},""]
[null,{"$f":"IF(A35=\"\",\"\",VLOOKUP(A35,'Price Schedule C2.2 - Valves'!$A$12:$C$733,2,FALSE))","v":""},{"$f":"IF(A35=\"\",\"\",VLOOKUP(A35,'Price Schedule C2.2 - Valves'!$A$12:$C$733,3,FALSE))","v":""},{"$nulls":3},"",{"$nulls":3},""]
[null,{"$f":"IF(A36=\"\",\"\",VLOOKUP(A36,'Price Schedule C2.2 - Valves'!$A$12:$C$733,2,FALSE))","v":""},{"$f":"IF(A36=\"\",\"\",VLOOKUP(A36,'Price Schedule C2.2 - Valves'!$A$12:$C$733,3,FALSE))","v":""},{"$nulls":3},"",{"$nulls":3},""]
[null,{"$f":"IF(A37=\"\",\"\",VLOOKUP(A37,'Price Schedule C2.2 - Valves'!$A$12:$C$733,2,FALSE))","v":""},{"$f":"IF(A37=\"\",\"\",VLOOKUP(A37,'Price Schedule C2.2 - Valves'!$A$12:$C$733,3,FALSE))","v":""},{"$nulls":3},"",{"$nulls":3},""]
[null,{"$f":"IF(A38=\"\",\"\",VLOOKUP(A38,'Price Schedule C2.2 - Valves'!$A$12:$C$733,2,FALSE))","v":""},{"$f":"IF(A38=\"\",\"\",VLOOKUP(A38,'Price Schedule C2.2 - Valves'!$A$12:$C$733,3,FALSE))","v":""},{"$nulls":3},"",{"$nulls":3},""]
[null,{"$f":"IF(A39=\"\",\"\",VLOOKUP(A39,'Price Schedule C2.2 - Valves'!$A$12:$C$733,2,FALSE))","v":""},{"$f":"IF(A39=\"\",\"\",VLOOKUP(A39,'Price Schedule C2.2 - Valves'!$A$12:$C$733,3,FALSE))","v":""},{"$nulls":3},"",{"$nulls":3},""]
[null,{"$f":"IF(A40=\"\",\"\",VLOOKUP(A40,'Price Schedule C2.2 - Valves'!$A$12:$C$733,2,FALSE))","v":""},{"$f":"IF(A40=\"\",\"\",VLOOKUP(A40,'Price Schedule C2.2 - Valves'!$A$12:$C$733,3,FALSE))","v":""},{"$nulls":3},"",{"$nulls":3},""]
[null,{"$f":"IF(A41=\"\",\"\",VLOOKUP(A41,'Price Schedule C2.2 - Valves'!$A$12:$C$733,2,FALSE))","v":""},{"$f":"IF(A41=\"\",\"\",VLOOKUP(A41,'Price Schedule C2.2 - Valves'!$A$12:$C$733,3,FALSE))","v":""},{"$nulls":3},"",{"$nulls":3},""]
[null,{"$f":"IF(A42=\"\",\"\",VLOOKUP(A42,'Price Schedule C2.2 - Valves'!$A$12:$C$733,2,FALSE))","v":""},{"$f":"IF(A42=\"\",\"\",VLOOKUP(A42,'Price Schedule C2.2 - Valves'!$A$12:$C$733,3,FALSE))","v":""},{"$nulls":3},"",{"$nulls":3},""]
[null,{"$f":"IF(A43=\"\",\"\",VLOOKUP(A43,'Price Schedule C2.2 - Valves'!$A$12:$C$733,2,FALSE))","v":""},{"$f":"IF(A43=\"\",\"\",VLOOKUP(A43,'Price Schedule C2.2 - Valves'!$A$12:$C$733,3,FALSE))","v":""},{"$nulls":3},{"$f":"IF(OR(D43=\"\",F43=\"\"),\"\",D43*F43)","v":""},{"$nulls":3},{"$f":"IF(G43=\"\",\"\",G43+IF(H43=\"\",0,H43)+IF(I43=\"\",0,I43)+IF(J43=\"\",0,J43))","v":""}]
[null,{"$f":"IF(A44=\"\",\"\",VLOOKUP(A44,'Price Schedule C2.2 - Valves'!$A$12:$C$733,2,FALSE))","v":""},{"$f":"IF(A44=\"\",\"\",VLOOKUP(A44,'Price Schedule C2.2 - Valves'!$A$12:$C$733,3,FALSE))","v":""},{"$nulls":3},"",{"$nulls":3},""]
[null,{"$f":"IF(A45=\"\",\"\",VLOOKUP(A45,'Price Schedule C2.2 - Valves'!$A$12:$C$733,2,FALSE))","v":""},{"$f":"IF(A45=\"\",\"\",VLOOKUP(A45,'Price Schedule C2.2 - Valves'!$A$12:$C$733,3,FALSE))","v":""},{"$nulls":3},"",{"$nulls":3},""]
[null,{"$f":"IF(A46=\"\",\"\",VLOOKUP(A46,'Price Schedule C2.2 - Valves'!$A$12:$C$733,2,FALSE))","v":""},{"$f":"IF(A46=\"\",\"\",VLOOKUP(A46,'Price Schedule C2.2 - Valves'!$A$12:$C$733,3,FALSE))","v":""},{"$nulls":3},"",{"$nulls":3},""]
[null,{"$f":"IF(A47=\"\",\"\",VLOOKUP(A47,'Price Schedule C2.2 - Valves'!$A$12:$C$733,2,FALSE))","v":""},{"$f":"IF(A47=\"\",\"\",VLOOKUP(A47,'Price Schedule C2.2 - Valves'!$A$12:$C$733,3,FALSE))","v":""},{"$nulls":3},"",{"$nulls":3},""]
[null,{"$f":"IF(A48=\"\",\"\",VLOOKUP(A48,'Price Schedule C2.2 - Valves'!$A$12:$C$733,2,FALSE))","v":""},{"$f":"IF(A48=\"\",\"\",VLOOKUP(A48,'Price Schedule C2.2 - Valves'!$A$12:$C$733,3,FALSE))","v":""},{"$nulls":3},"",{"$nulls":3},""]
[null,{"$f":"IF(A49=\"\",\"\",VLOOKUP(A49,'Price Schedule C2.2 - Valves'!$A$12:$C$733,2,FALSE))","v":""},{"$f":"IF(A49=\"\",\"\",VLOOKUP(A49,'Price Schedule C2.2 - Valves'!$A$12:$C$733,3,FALSE))","v":""},{"$nulls":3},"",{"$nulls":3},""]
[null,{"$f":"IF(A50=\"\",\"\",VLOOKUP(A50,'Price Schedule C2.2 - Valves'!$A$12:$C$733,2,FALSE))","v":""},{"$f":"IF(A50=\"\",\"\",VLOOKUP(A50,'Price Schedule C2.2 - Valves'!$A$12:$C$733,3,FALSE))","v":""},{"$nulls":3},"",{"$nulls":3},""]
[null,{"$f":"IF(A51=\"\",\"\",VLOOKUP(A51,'Price Schedule C2.2 - Valves'!$A$12:$C$733,2,FALSE))","v":""},{"$f":"IF(A51=\"\",\"\",VLOOKUP(A51,'Price Schedule C2.2 - Valves'!$A$12:$C$733,3,FALSE))","v":""},{"$nulls":3},"",{"$nulls":3},""]
[null,{"$f":"IF(A52=\"\",\"\",VLOOKUP(A52,'Price Schedule C2.2 - Valves'!$A$12:$C$733,2,FALSE))","v":""},{"$f":"IF(A52=\"\",\"\",VLOOKUP(A52,'Price Schedule C2.2 - Valves'!$A$12:$C$733,3,FALSE))","v":""},{"$nulls":3},"",{"$nulls":3},""]
[null,{"$f":"IF(A53=\"\",\"\",VLOOKUP(A53,'Price Schedule C2.2 - Valves'!$A$12:$C$733,2,FALSE))","v":""},{"$f":"IF(A53=\"\",\"\",VLOOKUP(A53,'Price Schedule C2.2 - Valves'!$A$12:$C$733,3,FALSE))","v":""},{"$nulls":3},"",{"$nulls":3},""]
[null,{"$f":"IF(A54=\"\",\"\",VLOOKUP(A54,'Price Schedule C2.2 - Valves'!$A$12:$C$733,2,FALSE))","v":""},{"$f":"IF(A54=\"\",\"\",VLOOKUP(A54,'Price Schedule C2.2 - Valves'!$A$12:$C$733,3,FALSE))","v":""},{"$nulls":3},"",{"$nulls":3},""]
[null,{"$f":"IF(A55=\"\",\"\",VLOOKUP(A55,'Price Schedule C2.2 - Valves'!$A$12:$C$733,2,FALSE))","v":""},{"$f":"IF(A55=\"\",\"\",VLOOKUP(A55,'Price Schedule C2.2 - Valves'!$A$12:$C$733,3,FALSE))","v":""},{"$nulls":3},"",{"$nulls":3},""]
[null,{"$f":"IF(A56=\"\",\"\",VLOOKUP(A56,'Price Schedule C2.2 - Valves'!$A$12:$C$733,2,FALSE))","v":""},{"$f":"IF(A56=\"\",\"\",VLOOKUP(A56,'Price Schedule C2.2 - Valves'!$A$12:$C$733,3,FALSE))","v":""},{"$nulls":3},"",{"$nulls":3},""]
[null,{"$f":"IF(A57=\"\",\"\",VLOOKUP(A57,'Price Schedule C2.2 - Valves'!$A$12:$C$733,2,FALSE))","v":""},{"$f":"IF(A57=\"\",\"\",VLOOKUP(A57,'Price Schedule C2.2 - Valves'!$A$12:$C$733,3,FALSE))","v":""},{"$nulls":3},"",{"$nulls":3},""]
[null,{"$f":"IF(A58=\"\",\"\",VLOOKUP(A58,'Price Schedule C2.2 - Valves'!$A$12:$C$733,2,FALSE))","v":""},{"$f":"IF(A58=\"\",\"\",VLOOKUP(A58,'Price Schedule C2.2 - Valves'!$A$12:$C$733,3,FALSE))","v":""},{"$nulls":3},"",{"$nulls":3},""]
[null,{"$f":"IF(A59=\"\",\"\",VLOOKUP(A59,'Price Schedule C2.2 - Valves'!$A$12:$C$733,2,FALSE))","v":""},{"$f":"IF(A59=\"\",\"\",VLOOKUP(A59,'Price Schedule C2.2 - Valves'!$A$12:$C$733,3,FALSE))","v":""},{"$nulls":3},"",{"$nulls":3},""]
[null,{"$f":"IF(A60=\"\",\"\",VLOOKUP(A60,'Price Schedule C2.2 - Valves'!$A$12:$C$733,2,FALSE))","v":""},{"$f":"IF(A60=\"\",\"\",VLOOKUP(A60,'Price Schedule C2.2 - Valves'!$A$12:$C$733,3,FALSE))","v":""},{"$nulls":3},"",{"$nulls":3},""]
[]
["SUMMARY"]
["Total Foreign Currency Items:",{"$f":"COUNTA(A11:A60)","v":0}]
["Total ZAR Value:",{"$f":"SUM(K11:K60)","v":{"v":0,"d":"R 0.00"}}]
[]
["COLOR LEGEND"]
["Yellow = Supplier Input"]
["Light Blue = Auto-calculated"]
["Light Gray = Auto-populated from Price Schedule"]
[]
[]
["📌 NOTE: Total ZAR values must correspond to Unit Price (ZAR) on the main Price Schedule. Refer to ITT Annexure F for foreign currency requirements."]